Workbook

Sheet Design Regulator
A1: LM(2)5137-Q1 Functional Safety Buck Controller Design Tool
O2: http://www.ti.com/product/lm5175
A3: About | C3: xx | F3: = Input Box | O3: TERMS OF USE
A5: Step 1: Operating Specifications
D7: Input Voltage – Min, VIN(min) | E7: 6.5 | F7: V
D8: Input Voltage – Nom, VIN(nom) | E8: 13.5 | F8: V
D9: Input Voltage – Max, VIN(max) | E9: 36 | F9: V
D10: Output Voltage, VOUT | E10: 5 | F10: V | I10: Output Voltage, VOUT2 | J10: 3.3 | K10: V
D11: Full Load Output Current, IOUT | E11: 20 | F11: A | I11: Full Load Output Current, IOUT2 | J11: 20 | K11: A
D12: Switching Frequency, FSW | E12: 440 | F12: kHz
D13: Frequency Set Resistor, RT | E13: =IF('Standard Value Calculator'!O4/1000>550, "N/A",'Standard Value Calculator'!O4/1000) -> 52.3 | F13: kΩ
D14: Ambient Temperature, TA | E14: 25 | F14: °C
A16: Step 2: Current Sense Resistors
D17: Required IOCP Setpoint at VIN(nom) | E17: 26 | F17: A | I17: Required IOCP Setpoint at VIN(nom) | J17: 25 | K17: A
D18: Recommended Sense Resistance | E18: =Rs_ideal*1000 -> 2.111277322 | F18: mΩ | I18: Recommended Sense Resistance | J18: =Rs2_ideal*1000 -> 2.150646838 | K18: mΩ
D19: Sense Resistance, RS | E19: 2 | F19: mΩ | I19: Sense Resistance, RS2 | J19: 2 | K19: mΩ
D20: Min Inductor Sat Current, ILO(SAT) | E20: ='Variable Management'!B96 -> 30 | F20: A | I20: Min Inductor Sat Current, ILO2(SAT) | J20: ='Variable Management'!D96 -> 30 | K20: A
D21: Max power loss in shunt | E21: ='Variable Management'!B106 -> 1.696035869 | F21: W | I21: Max power loss in shunt RS2 | J21: ='Variable Management'!D106 -> 1.583530356 | K21: W
D22: VIN(min) | E22: ='Variable Management'!B98 -> 29.11627745 | F22: A | I22: VIN(min) | J22: ='Variable Management'!D98 -> 28.11731999 | K22: A
C23: IOUT(typ) at OCP Inception: | D23: VIN(nom) | E23: ='Variable Management'!B99 -> 27.58118482 | F23: A | H23: IOUT2(typ) at OCP Inception: | I23: VIN(nom) | J23: ='Variable Management'!D99 -> 27.10141668 | K23: A
D24: VIN(max) | E24: ='Variable Management'!B100 -> 26.68579524 | F24: A | I24: VIN(max) | J24: ='Variable Management'!D100 -> 26.5088601 | K24: A
A26: Step 3: Buck Inductances
D27: Ch1 Recommended Inductance | E27: =IF('Variable Management'!B45<1.1, ROUND('Variable Management'!B45,2), ROUND('Variable Management'!B45,1)) -> 1.04 | F27: µH | I27: Ch2 Recommended Inductance | J27: =IF('Variable Management'!D45<1, ROUND('Variable Management'!D45,2), ROUND('Variable Management'!D45,1)) -> 0.69 | K27: µH
D28: Ch1 Inductance, LO1 | E28: 1.5 | F28: µH | I28: Ch2 Inductance, LO2 | J28: 1 | K28: µH
D29: Ch1 Inductor DCR | E29: 2.3 | F29: mΩ | I29: Ch2 Inductor DCR | J29: 2.3 | K29: mΩ
D30: DIL as a % at VIN(nom) | E30: ='Variable Management'!B69*100 -> 24.18815183 | F30: % | I30: DIL2 as a % at VIN(nom) | J30: ='Variable Management'!D69*100 -> 28.98583322 | K30: %
D31: Estimate Core Loss at VIN(nom) | E31: 0.2 | F31: W | I31: Estimate Core Loss at VIN(nom) | J31: 0.17 | K31: W
A33: Step 4: Output Capacitors
D34: =IF(MODE=1, "Ch1 Output Voltage Ripple Spec", "Output Voltage Ripple Spec") -> Ch1 Output Voltage Ripple Spec | E34: 240 | F34: mVPK-PK | I34: Ch2 Output Voltage Ripple Spec | J34: 50 | K34: mVPK-PK
D35: =IF(MODE=1, "Ch1 Minimum Output Capacitance", "Minimum Output Capacitance") -> Ch1 Minimum Output Capacitance | E35: ='Variable Management'!B122 -> 5.726361702 | F35: µF | I35: Ch2 Minimum Output Capacitance | J35: ='Variable Management'!D122 -> 32.93844684 | K35: µF
D36: Output Capacitance (derated), COUT | E36: 128 | F36: µF | I36: Ch2 Output Cap (derated), COUT2 | J36: 165 | K36: µF | L36: =CHOOSE(SCH_MODE, "", "** For Single-Output Operation in 2-Phase Mode, use FB1 to set VOUT **", "** For Single-Output Operation in 3-Phase Mode, use FB1 of master IC to set VOUT. Connect FB2 of master IC to AGND. Connect FB2 of slave IC to VDDA to configure it as a slave **", "** For Single-Output Operation in 4-Phase Mode, use FB1 of master IC to set VOUT. Connect FB2 of master IC to AGND. Connect FB2 of slave IC to VDDA to configure it as a slave **") -> 
D37: =IF(MODE=1, "Ch1 Maximum Permitted ESR", "Maximum Permitted ESR") -> Ch1 Maximum Permitted ESR | E37: ='Variable Management'!B126 -> 49.56139505 | F37: mΩ | I37: Ch2 Maximum Permitted ESR | J37: ='Variable Management'!D126 -> 8.45130071 | K37: mΩ
D38: =IF(MODE=1, "Ch1 Output Capacitor ESR", "Output Capacitor ESR") -> Ch1 Output Capacitor ESR | E38: 1 | F38: mΩ | I38: Ch2 Output Capacitor ESR | J38: 1 | K38: mΩ
D39: Resulting Output Voltage Ripple (max) | E39: ='Variable Management'!B128*1000 -> 11.77642962 | F39: mVPK-PK | I39: Resulting Output Voltage Ripple (max) | J39: ='Variable Management'!D128*1000 -> 11.54272236 | K39: mVPK-PK
D40: Output Capacitor RMS Current (max) | E40: ='Variable Management'!B115 -> 1.913457008 | F40: ARMS | I40: Output Capacitor RMS Current (max) | J40: ='Variable Management'!D115 -> 2.015610558 | K40: ARMS
A42: Step 5: Input Capacitors
D43: Input Voltage Ripple Spec | E43: 240 | F43: mVpk-pk
D44: Minimum Input Capacitance | E44: ='Variable Management'!B147 -> 47.34848485 | F44: µF
D45: Input Capacitance, CIN | E45: 55 | F45: µF
D46: Maximum Permitted ESR | E46: ='Variable Management'!B153 -> 1.432106739 | F46: mΩ
D47: Input Capacitor ESR | E47: 1 | F47: mΩ
D48: Resulting Input Voltage Ripple (max) | E48: ='Variable Management'!B159*1000 -> 229.925775 | F48: mVPK-PK
D49: Input Capacitor RMS Current (max) | E49: ='Variable Management'!B139 -> 10.02426371 | F49: ARMS
A51: Step 6: Soft start, Input UVLO, PFM, DRSS
D52: Soft-Start Time, tSS | E52: 4.6 | F52: ms
D53: Soft-Start Resistance, RSS | E53: =IF(Tss>1.5/1000, Rss_u/1000, 0) -> 20 | F53: kΩ
D54: UVLO Turn-on Voltage, VIN(on) | E54: 6.5 | F54: V
D55: UVLO Turn-off Voltage, VIN(off) | E55: 5.5 | F55: V
D56: UVLO Resistance, RUV1 | E56: ='Variable Management'!D181 -> 100 | F56: =IF(DITHER=1, "kΩ", "") -> kΩ
D57: UVLO Resistance, RUV2 | E57: ='Variable Management'!D182 -> 18.2 | F57: =IF(DITHER=1, "kΩ", "") -> kΩ
D58: =IF(DEMB=1, "* Tie PFM/SYNCIN to AGND", "*Tie PFM/SYNCIN to VDDA") -> *Tie PFM/SYNCIN to VDDA
D59: CNFG Resistance, RCNFG | E59: =Rcnfg -> 10 | F59: kΩ
A61: Step 7: Compensation Design
D62: =IF(MODE=1, "Ch1 Load Pole Frequency", "Load Pole Frequency") -> Ch1 Load Pole Frequency | E62: =Fp_dominant -> 6079.730582 | F62: Hz | I62: Ch2 Load Pole Frequency | J62: =Fp_dominant_Ch2 -> 7070.745382 | K62: Hz
D63: =IF(MODE=1, "Ch1 ESR Zero Frequency", "ESR Zero Frequency") -> Ch1 ESR Zero Frequency | E63: =Fesr/1000 -> 1243.397994 | F63: kHz | I63: Ch2 ESR Zero Frequency | J63: =Fesr_Ch2/1000 -> 964.5754138 | K63: kHz
D64: =IF(MODE=1, "Ch1 Desired Crossover Frequency", "Desired Crossover Frequency") -> Ch1 Desired Crossover Frequency | E64: 60 | F64: =" kHz " -> kHz | I64: Ch2 Desired Crossover Frequency | J64: 60 | K64: =" kHz " -> kHz
D65: =IF(MODE=1, "Ch1 Error Amp Pole Frequency", "Error Amp Pole Frequency") -> Ch1 Error Amp Pole Frequency | E65: =Fp1_u -> 0.7964636574 | F65: Hz | I65: Ch2 Error Amp Pole Frequency | J65: =Fp1_u_Ch2 -> 0.6516657313 | K65: Hz
D66: =CHOOSE(Ch1_VOUT, "Ch1 3.3V Out: Tie 7.5kΩ FB1 to VDDA", "Ch1 5V Out: Tie 24.9kΩ FB1 to VDDA", "Ch1 12V Out: Tie 48.7kΩ FB1 to VDDA", IF(MODE=1, "Ch1 Upper Feedback Resistor", "Upper Feedback Resistor")) -> Ch1 5V Out: Tie 24.9kΩ FB1 to VDDA | E66: 93.1 | F66: kΩ | I66: =CHOOSE(Ch2_VOUT, "Ch2 3.3V Out: Tie 7.5kΩ FB2 to VDDA", "Ch2 5V Out: Tie 24.9kΩ FB2 to VDDA", "Ch2 12V: Tie 48.7kΩ FB2 to VDDA", "Ch2 Upper Feedback Resistor") -> Ch2 3.3V Out: Tie 7.5kΩ FB2 to VDDA | J66: 78.7 | K66: kΩ
D67: =IF(Ch1_VOUT=4, IF(MODE=1,"Ch1 Lower Feedback Resistor","Lower Feedback Resistor"),"") ->  | E67: =IF(Vout=Vref,"OPEN",Rfb2_u/1000) -> 17.8 | F67: =IF(Vout=Vref,"","kΩ") -> kΩ | I67: =IF(Ch2_VOUT=4, "Ch2 Lower Feedback Resistor","") ->  | J67: =IF(Vout2=Vref,"OPEN",Rfb4_u/1000) -> 24.9 | K67: =IF(Vout=Vref,"","kΩ") -> kΩ
A69: Compensation Components
B70: Calculated / | C70: Std Values | D70: =C70 -> Std Values | F70: Actual P/Z Frequencies
A71: RC1 | B71: =Rcea1/1000 -> 10.05309648 | C71: ='Standard Value Calculator'!O26 -> 10 | D71: =C71 -> 10 | E71: kΩ | F71: =Fp1_u -> 0.7964636574 | G71: Hz (FPEA)
A72: CC1 | B72: =Cc1ea*1000000000 -> 2.638572497 | C72: ='Standard Value Calculator'!O27 -> 2.7 | D72: 2.7 | E72: nF | F72: =Fz1_u/1000 -> 5.894627529 | G72: kHz (FZCOMP)
A73: CC2 | B73: =IF(Cc2ea<0, "N/A", Cc2ea*1000000000000) -> 64.61545533 | C73: ='Standard Value Calculator'!O28 -> 68 | D73: 68 | E73: pF | F73: =Fp2_u/1000 -> 211.2331925 | G73: kHz (FPCOMP)
A74: RC2 | B74: =Rcea2/1000 -> 8.55298599 | C74: ='Standard Value Calculator'!O30 -> 8.45 | D74: 8.45 | E74: kΩ | F74: =Fp1_u_Ch2 -> 0.6516657313 | G74: Hz (FPEA2)
A75: CC3 | B75: =Cc3ea*1000000000 -> 3.10135243 | C75: ='Standard Value Calculator'!O31 -> 3.3 | D75: 3.3 | E75: nF | F75: =Fz1_u_Ch2/1000 -> 5.707546827 | G75: kHz (FZCOMP2)
A76: CC4 | B76: =IF(Cc4ea<0, "N/A", Cc4ea*1000000000000) -> 77.23672622 | C76: =IF(1, 'Standard Value Calculator'!O32) -> 82 | D76: 82 | E76: pF | F76: =Fp2_u_Ch2/1000 -> 210.8095064 | G76: kHz (FPCOMP2)
A78: Efficiency / Power Loss Analyzer
A80: Step 8: Efficiency
F81: =IF(MODE=1, "Ch1 Power MOSFETs", "Power MOSFETs") -> Ch1 Power MOSFETs | G81: (Q1, Q2) | I81: =IF(MODE=1, "Ch2 Power MOSFETs ", "Power MOSFETs ") -> Ch2 Power MOSFETs | J81: (Q3, Q4)
E82: IAUCN04S7L028, L019 | H82: IAUCN04S7L028, L019
E83: High-side | F83: Low-side | H83: High-side | I83: Low-side
D84: On-State Resistance, RDS(on) | E84: 3.6 | F84: 2.41 | G84: mΩ | H84: 3.6 | I84: 2.41 | J84: mΩ
D85: Total Gate Charge, QG | E85: 9 | F85: 14 | G85: nC | H85: 9 | I85: 14 | J85: nC
D86: Gate-Drain Charge, QGD | E86: 3.3 | F86: 5 | G86: nC | H86: 3.3 | I86: 5 | J86: nC
D87: Gate-Source Charge, QGS | E87: 3.6 | F87: 6 | G87: nC | H87: 3.6 | I87: 6 | J87: nC
D88: Output Charge, QOSS | F88: 50 | G88: nC | I88: 50 | J88: nC
D89: Output Capacitance, COSS | E89: 800 | F89: 1300 | G89: pF | H89: 800 | I89: 1300 | J89: pF
D90: Gate Resistance, RG | E90: 1.3 | F90: 2.1 | G90: Ω | H90: 1.2 | I90: 2.1 | J90: Ω
D91: Transconductance, gFS | E91: 64 | F91: 64 | G91: S | H91: 64 | I91: 64 | J91: S
D92: Gate Miller Plateau Voltage, VPL | E92: 3 | F92: 2.9 | G92: V | H92: 3 | I92: 2.9 | J92: V
D93: Body Diode Forward Voltage, VBD | E93: 0.7 | F93: 0.7 | G93: V | H93: 0.7 | I93: 0.7 | J93: V
D94: Body Diode Rev Recovery Charge, QRR | F94: 8 | G94: nC | I94: 8 | J94: nC
D95: Thermal Resistance, θJA | E95: 29 | F95: 28 | G95: °C/W | H95: 29 | I95: 28 | J95: °C/W
A101: Step 9: IC Power Dissipation
D102: IC Power Dissipation | E102: ='Variable Management'!B336 -> 0.1012 | F102: W
D103: IC Junction Temperature (estimate) | E103: ='Variable Management'!B340 -> 28.52176 | F103: °C

Sheet BOM & Schematic
A37: ** Tie PFM/SYNCIN to VDDA for PFM, AGND for FPWM **
A38: ** For dual-output operation, tie FB1/FB2 to VDDA through a 7.5kΩ, 24.9kΩ or 49.9kΩ resistor for fixed 3.3V, 5V and 12V outputs, respectively **
A39: ** For single-output operation in 2-phase mode, use FB1 to set VOUT. Connect FB2 to AGND to disable the EA of channel 2 **
A40: ** For single-output operation in 3-phase or 4-phase mode, use FB1 of the master IC to set VOUT. Connect FB2 of the master IC to AGND. Connect FB1 of the slave IC to GND for FPWM and to PFM/SYNCIN of the master for PFM. Connect FB2 of the slave IC to GND to configure it as a slave **
A41: =CHOOSE(MODE, "VIN = "&VIN_min&" V to "&VIN_max&" V, VOUT1 = "& Vout &" V, IOUT1 = " &Iout &"A"&", VOUT2 = "& Vout2 &" V, IOUT2 = " &Iout2 & " A, Fsw = " & Fsw/1000 &" kHz, Current Limit = "&ROUNDUP(Ilimit_DC,0)&" A", "VIN = "&VIN_min&" V to "&VIN_max&" V, VOUT = "& Vout &" V, IOUT = " &Iout & " A, Fsw = " & Fsw/1000 &" kHz, Current Limit = "&ROUNDUP(Ilimit_DC,0)&" A") -> VIN = 6.5 V to 36 V, VOUT1 = 5 V, IOUT1 = 20A, VOUT2 = 3.3 V, IOUT2 = 20 A, Fsw = 440 kHz, Current Limit = 26 A
A42: High Efficiency Synchronous Buck Regulator BOM
A43: Count | B43: Ref Des | C43: Value | D43: Description | H43: Size | I43: Part Number | J43: MFR
A44: 2 | B44: CBOOT1, CBOOT2 | C44: 0.1 | D44: =C44 -> 0.1 | H44: 0603 | I44: Std | J44: Std
A45: 1 | B45: CC1 | C45: ='Design Regulator'!D72 -> 2.7 | D45: 2.7 | H45: 0603 | I45: Std | J45: Std
A46: 1 | B46: CC2 | C46: ='Design Regulator'!D73 -> 68 | D46: 68 | H46: 0603 | I46: Std | J46: Std
A47: 1 | B47: CC3 | C47: =IF(MODE=1, 'Variable Management'!E368, "N/A") -> 3.3 | D47: =C47 -> 3.3 | H47: =IF(MODE=1, "0603", "-") -> 0603 | I47: =IF(MODE=1, "Std", "-") -> Std | J47: =IF(MODE=1, "Std", "-") -> Std
A48: 1 | B48: CC4 | C48: =IF(MODE=1, 'Variable Management'!E369, "N/A") -> 82 | D48: 82 | H48: =IF(MODE=1, "0603", "-") -> 0603 | I48: =IF(MODE=1, "Std", "-") -> Std | J48: =IF(MODE=1, "Std", "-") -> Std
A49: =ROUNDUP('Design Regulator'!E45/10,0) -> 6 | B49: CIN | C49: 10 | D49: =C49 -> 10 | H49: 1210 | I49: Std | J49: Std
A50: =ROUNDUP('Design Regulator'!E36/47,0) -> 3 | B50: COUT | C50: 47 | D50: =C50 -> 47 | H50: 1210 | I50: Std | J50: Std
A51: 3 | B51: CVCC | C51: 2.2 | D51: 2.2 | H51: 0603 | I51: Std | J51: Std
A52: 1 | B52: CVDDA | C52: 0.47 | D52: 0.47 | H52: 0603 | I52: Std | J52: Std
A53: 1 | B53: LO1 | C53: ='Design Regulator'!E28 -> 1.5 | D53: ="Inductor, "&Lf*1000000&"µH, "&Rdcr*1000&"mΩ, >"&ROUNDUP(Ilimit_DC*1.3/SCH_MODE,0)&"A" -> Inductor, 1.5µH, 2.3mΩ, >34A | H53: - | I53: - | J53: Various
A54: 1 | B54: LO2 | C54: =IF(MODE = 1, 'Design Regulator'!J28, 'Design Regulator'!E28) -> 1 | D54: =IF(MODE=1, "Inductor, "&Lo_2*1000000&"µH, "&Rdcr2*1000&"mΩ, >"&ROUNDUP(Ilimit2_DC*1.3,0)&"A", "Inductor, "&Lf*1000000&"µH, "&Rdcr*1000&"mΩ, >"&ROUNDUP(Ilimit_DC*1.3/SCH_MODE,0)&"A") -> Inductor, 1µH, 2.3mΩ, >33A | H54: - | I54: - | J54: Various
A55: 2 | B55: Q1, Q2 | C55: See description | D55: ='Design Regulator'!E84 -> 3.6 | H55: Std | I55: ='Design Regulator'!E82 -> IAUCN04S7L028, L019 | J55: -
A56: 2 | B56: Q3, Q4 | C56: See description | D56: ='Design Regulator'!H84 -> 3.6 | H56: Std | I56: =IF(MODE=1, 'Design Regulator'!H82, 'Design Regulator'!E82) -> IAUCN04S7L028, L019 | J56: -
A57: 1 | B57: RC1 | C57: ='Design Regulator'!D71 -> 10 | D57: =C57 -> 10 | H57: 0603 | I57: Std | J57: Std
A58: 1 | B58: RC2 | C58: =IF(MODE=1, 'Variable Management'!E367, "N/A") -> 8.45 | D58: =C58 -> 8.45 | H58: =IF(MODE=1, "0603", "-") -> 0603 | I58: =IF(MODE=1, "Std", "-") -> Std | J58: =IF(MODE=1, "Std", "-") -> Std
A59: 1 | B59: RS1 | C59: =Rs*1000 -> 2 | D59: 2 | H59: 0508 | I59: Std | J59: Std
A60: 1 | B60: RS2 | C60: =IF(MODE=1, Rs_Ch2*1000, Rs*1000) -> 2 | D60: =C60 -> 2 | H60: 0508 | I60: Std | J60: Std
A61: 1 | B61: RRT | C61: ='Design Regulator'!E13 -> 52.3 | D61: 52.3 | H61: 0603 | I61: Std | J61: Std
A62: 1 | B62: RFB1 | C62: ='Design Regulator'!E66 -> 93.1 | D62: 93.1 | H62: 0603 | I62: Std | J62: Std
A63: 1 | B63: RFB2 | C63: ='Design Regulator'!E67 -> 17.8 | D63: 17.8 | H63: 0603 | I63: Std | J63: Std
A64: 1 | B64: RFB3 | C64: =IF(MODE=1, 'Design Regulator'!J66, "N/A") -> 78.7 | D64: =C64 -> 78.7 | H64: =IF(MODE=1, "0603", "-") -> 0603 | I64: =IF(MODE=1, "Std", "-") -> Std | J64: =IF(MODE=1, "Std", "-") -> Std
A65: 1 | B65: RFB4 | C65: =IF(MODE=1, 'Design Regulator'!J67, "N/A") -> 24.9 | D65: 24.9 | H65: =IF(MODE=1, "0603", "-") -> 0603 | I65: =IF(MODE=1, "Std", "-") -> Std | J65: =IF(MODE=1, "Std", "-") -> Std
A66: 1 | B66: RCNFG | C66: =Rcnfg -> 10 | D66: 10 | H66: 0603 | I66: Std | J66: Std
A67: 2 | B67: RPG1, RPG2 | C67: 100 | D67: 100 | H67: 0603 | I67: Std | J67: Std
A68: 1 | B68: RRSS | C68: =Rss_u/1000 -> 20 | D68: 20 | H68: 0603 | I68: Std | J68: Std
A69: 1 | B69: RVIN | C69: 2.2 | D69: 2.2 | H69: 0603 | I69: Std | J69: Std
A70: 1 | B70: U1 | C70: =CHOOSE(VARIANT, "LM5137F", "LM5137F-Q1","LM25137F","LM25137F-Q1") -> LM5137F-Q1 | D70: =CHOOSE(VARIANT, "IC, LM5137, Functional Safety Buck PWM Controller, 4V–80V Input", "IC, LM5137F-Q1, Functional Safety Buck PWM Controller, 4V–80V Input", "IC, LM25137F, Functional Safety Buck PWM Controller, 4V–42V Input", "IC, LM25137F-Q1, Functional Safety Buck PWM Controller, 4V–42V Input") -> IC, LM5137F-Q1, Functional Safety Buck PWM Controller, 4V–80V Input | H70: VQFNP-36 | I70: =CHOOSE(VARIANT, "LM5137FRHAR", "LM5137FQRWGRQ1", "LM25137FRHAR", "LM25137FQRHARQ1") -> LM5137FQRWGRQ1 | J70: TI
A73: NOTES:
A74: ** For information on TI NexFETTM MOSFETs, see ** | D74: http://www.ti.com/nexfet | E74: **
A75: ** Inductor saturation current should be higher than the peak inductor current at the OCP setpoint for all input voltages and operating temperatures **
A76: ** Effective input and output capacitances should be appropriately derated for applied voltage and temperature, particularly with ceramics **

Sheet EVM
A1: LM(2)5137F/-Q1 Quickstart Design Tool
B6: LM5137FQ1-EVM12V PCB Layout

Sheet Variable Management (hidden)
A1: EXCEL Variables Names/Calculations
B2: Input from user =
B3: Output =
B4: Constant
A5: Variable Name | B5: Value | C5: STD Units | E5: Notes | I5: Iteration
A6: Step 1: Operational Specs
A7: VIN_min | B7: ='Design Regulator'!E7 -> 6.5 | C7: V | D7: Minimum input voltage | I7: 1
A8: VIN_nom | B8: ='Design Regulator'!E8 -> 13.5 | C8: V | D8: Nominal input voltage | K8: =CHOOSE(SCH_MODE, "Efficiency vs. IOUT (Ch1)", "Efficiency vs. IOUT - 2 Ph", "Efficiency vs. IOUT - 3 Ph", "Efficiency vs. IOUT - 4 Ph") -> Efficiency vs. IOUT (Ch1) | L8: 1 | N8: Input UVLO - Yes | O8: 1 | T8: Dual Outputs | U8: 1 | W8: FPWM | X8: 1 | Z8: =CHOOSE(SCH_MODE, "Bode Plot (Ch1)", "Bode Plot - 2 Ph", "Bode Plot - 3 Ph", "Bode Plot - 4 Ph") -> Bode Plot (Ch1) | AA8: 1 | AE8: 9.6 | AF8: 41.2
A9: VIN_max | B9: ='Design Regulator'!E9 -> 36 | C9: V | D9: Maximum input voltage | K9: =IF(MODE=1, "Efficiency vs. IOUT (Ch2)", "N/A - Do Not Use") -> Efficiency vs. IOUT (Ch2) | L9: 2 | N9: Input UVLO - No | O9: 2 | T9: Single Output – 2 Phases | U9: 2 | W9: PFM | X9: 2 | Z9: =IF(MODE=1, "Bode Plot (Ch2)", "N/A - Do Not Use") -> Bode Plot (Ch2) | AA9: 2 | AE9: 19.1 | AF9: 54.9
K10: PLOT_TYPE | L10: 1 | N10: Input UVLO Yes/No | O10: 1 | P10: 1 = Yes, 2 = No | T10: Single Output – 3 Phases | U10: 3 | W10: FPWM/PFM | X10: 2 | Z10: BODE_PLOT_TYPE | AA10: 1 | AE10: 29.4 | AF10: 71.5
A11: Vout | B11: ='Design Regulator'!E10 -> 5 | C11: V | D11: Output voltage - channel 1 | T11: Single Output – 4 Phases | U11: 4
A12: Iout | B12: ='Design Regulator'!E11 -> 20 | C12: A | D12: Output current - channel 1 | I12: 1 | T12: Single/Dual Yes/No | U12: 1
A13: Vout2 | B13: ='Design Regulator'!J10 -> 3.3 | C13: V | D13: Output voltage - channel 2 | I13: 1 | K13: 3.3V | L13: 1 | N13: 3.3V | O13: 1 | T13: MODE (Single/Dual), DUAL = 1, SINGLE = 2 | U13: =IF(U12=1, 1, 2) -> 1 | W13: DRSS - OFF | X13: 1 | Z13: Shunt current sensing | AA13: 1
A14: Iout2 | B14: ='Design Regulator'!J11 -> 20 | C14: A | D14: Output current - channel 2 | K14: 5V | L14: 2 | N14: 5V | O14: 2 | T14: SINGLE OUTPUT (1 = YES) | U14: =IF(U12=1, 2, 1) -> 2 | W14: DRSS ON - 5% | X14: 2 | Z14: Inductor DCR current sensing | AA14: 2
K15: 12 | L15: 3 | N15: 12V | O15: 3 | T15: Number of Phases | U15: =SCH_MODE -> 1 | W15: DRSS ON - 10% | X15: 3 | Z15: SENSING_TYPE | AA15: 1
A16: Rout | B16: =Vout/Iout -> 0.25 | C16: W | D16: Load resistance - Channel 1 | K16: Adjustable | L16: 4 | N16: Adjustable | O16: 4 | W16: CNFG | X16: 1 | AA16: =SENSING_TYPE -> 1
A17: Rout2 | B17: =Vout2/Iout2 -> 0.165 | C17: W | K17: Ch1 Output Setting | L17: =IF(Vout=3.3, 1, IF(Vout=5, 2, IF(Vout=12, 3, 4))) -> 2 | N17: Ch2 Output Setting | O17: =IF(Vout2=3.3, 1, IF(Vout2=5, 2, IF(Vout2=12, 3, 4))) -> 1 | T17: =SCH_MODE -> 1
A18: Pout | B18: =CHOOSE(MODE, Vout*Iout+Vout2*Iout2, Vout*Iout) -> 166 | C18: W | D18: Output power
X19: LM5137 | Y19: 1
A20: Efficiency | B20: 0.9 | D20: Estimate of efficiency | X20: LM5137-Q1 | Y20: 2
A21: Pin | B21: =Pout/Efficiency -> 184.4444444 | C21: W | D21: Calculate input power assuming finite efficiency | L21: =Vout -> 5 | X21: LM25137 | Y21: 3
X22: LM25137-Q1 | Y22: 4
A23: Iin_Vinmin | B23: =Pin/VIN_min -> 28.37606838 | C23: A | W23: VARIANT | X23: =CHOOSE(VARIANT, "LM5137", "LM5137-Q1", "LM25137", "LM25137-Q1") -> LM5137-Q1 | Y23: 2
A24: Iin_Vinnom | B24: =Pin/VIN_nom -> 13.66255144 | C24: A | D24: Input currents at min, nom, max Vin | W24: VIN-MAX | X24: =CHOOSE(VARIANT, 80, 80, 42, 42) -> 80 | Y24: V
A25: Iin_Vinmax | B25: =Pin/VIN_max -> 5.12345679 | C25: A | W25: VOUT-MAX | X25: =CHOOSE(VARIANT, 60, 60, 36, 36) -> 60 | Y25: V
A27: Fsw | B27: ='Design Regulator'!E12*1000 -> 440000 | C27: Hz | D27: Nominal switching frequency - determines RT resistor (SYNCIN must be 80-120% of this)
A28: Tsw | B28: =1/Fsw -> 2.272727273e-06 | C28: sec | D28: Switching period | I28: 1
A29: Vref | B29: 0.8 | C29: V | D29: Reference voltage
A30: Rt | B30: =(1000000/(Fsw/1000)-15)/42.8*1000 -> 52750.63721 | C30: W | D30: Frequency set resistor
A33: Step 2: Buck Inductor | B33: Channel 1 | D33: Channel 2
A34: Don1 | B34: =Vout/VIN_nom -> 0.3703703704 | F34: Ideal Duty Cycle at VIN(nom)
A35: Doff1 | B35: =1-34:34 -> 0.6296296296 | F35: Ideal 1- Duty Cycle at VIN(nom)
A37: D_Vinmin | B37: =Vout/VIN_min -> 0.7692307692 | D37: =Vout2/VIN_min -> 0.5076923077
A38: D_Vinnom | B38: =Vout/VIN_nom -> 0.3703703704 | D38: =Vout2/VIN_nom -> 0.2444444444
A39: D_Vinmax | B39: =Vout/VIN_max -> 0.1388888889 | D39: =Vout2/VIN_max -> 0.09166666667
A41: L_Vinnom | B41: =(VIN_nom-Vout)*D1_Vinnom/(Fsw*(Iout/Number_of_Phases)*0.35) -> 1.022126022e-06 | C41: H | D41: =(VIN_nom-Vout2)*D2_Vinnom/(Fsw*Iout2*0.35) -> 8.095238095e-07 | E41: H | F41: Calculated inductance for 35% ripple at VIN(nom)
A42: L_slopecomp | B42: =1000*Vout*Rs/21.82/Fsw -> 1.041579868e-06 | C42: H | D42: =1000*Vout2*Rs_Ch2/21.82/Fsw -> 6.874427131e-07 | E42: H | F42: Calculated inductance based on one times inductor downslope
A44: Lopt | B44: =B42 -> 1.041579868e-06 | C44: H | D44: =D42 -> 6.874427131e-07 | E44: H | F44: min of calculated inductances at VIN(min) and VIN(nom)
B45: =Lopt*1000000 -> 1.041579868 | C45: µH | D45: =Lopt2*1000000 -> 0.6874427131 | E45: µH
A47: Lo | B47: ='Design Regulator'!E28/1000000 -> 1.5e-06 | C47: H | D47: ='Design Regulator'!J28/1000000 -> 1e-06 | E47: H | F47: Chosen inductance
A48: Rdcr | B48: ='Design Regulator'!E29/1000 -> 0.0023 | C48: W | D48: ='Design Regulator'!J29/1000 -> 0.0023 | E48: W | F48: Chosen inductor DCR
A50: Don2 | B50: =(Vout+Iout*(Rdcr+Rs))/(Vin+Iout*Rs) -> 0.3756277696
A51: Doff2 | B51: =1-_Don2 -> 0.6243722304
A53: D_Vinmin_2 | B53: =CHOOSE(MODE, (Vout+Iout*(Rdcr+Rs))/(VIN_min+Iout*Rs), (Vout+Iout/Number_of_Phases*(Rdcr+Rs))/(VIN_min+Iout/Number_of_Phases*Rs)) -> 0.777675841 | D53: =(Vout2+Iout2*(Rdcr2+Rs_Ch2))/(VIN_min+Iout2*Rs_Ch2) -> 0.5177370031 | F53: Duty cycles adjusted for DCR/shunt voltage drops
A54: D_Vinnom_2 | B54: =CHOOSE(MODE, (Vout+Iout*(Rdcr+Rs))/(VIN_nom+Iout*Rs), (Vout+Iout/Number_of_Phases*(Rdcr+Rs))/(VIN_nom+Iout/Number_of_Phases*Rs)) -> 0.3756277696 | D54: =(Vout2+Iout2*(Rdcr2+Rs_Ch2))/(VIN_nom+Iout2*Rs_Ch2) -> 0.2500738552 | F54: need to include RDS(on) later
A55: D_Vinmax_2 | B55: =CHOOSE(MODE, (Vout+Iout*(Rdcr+Rs))/(VIN_max+Iout*Rs), (Vout+Iout/Number_of_Phases*(Rdcr+Rs))/(VIN_max+Iout/Number_of_Phases*Rs)) -> 0.1411209767 | D55: =(Vout2+Iout2*(Rdcr2+Rs_Ch2))/(VIN_max+Iout2*Rs_Ch2) -> 0.09395116537
A57: Iripple_Vinmin | B57: =MAX(0, (VIN_min-Vout)*D1_Vinmin_2/(Fsw*Lf)) -> 1.767445093 | C57: A | D57: =MAX(0.1, (VIN_min-Vout2)*D2_Vinmin_2/(Fsw*Lo_2)) -> 3.765360022 | E57: A
A58: Iripple_Vinnom | B58: =MAX(0, (VIN_nom-Vout)*D1_Vinnom_2/(Fsw*Lf)) -> 4.837630366 | C58: A | D58: =MAX(0, (VIN_nom-Vout2)*D2_Vinnom_2/(Fsw*Lo_2)) -> 5.797166644 | E58: A
A59: Iripple_Vinmax | B59: =MAX(0, (VIN_max-Vout)*D1_Vinmax_2/(Fsw*Lf)) -> 6.628409511 | C59: A | D59: =MAX(0, (VIN_max-Vout2)*D2_Vinmax_2/(Fsw*Lo_2)) -> 6.98227979 | E59: A
A61: Ishunt_rms_Vinmin | B61: =SQRT((Iout/Number_of_Phases)^2+(Iripple_Vinmin^2)/12) -> 20.00650699 | C61: A | D61: =SQRT(Iout2^2+(Iripple2_Vinmin^2)/12) -> 20.02951559 | E61: A
A62: Ishunt_rms_Vinnom | B62: =SQRT((Iout/Number_of_Phases)^2+(Iripple_Vinnom^2)/12) -> 20.04869627 | C62: A | D62: =SQRT(Iout2^2+(Iripple2_Vinnom^2)/12) -> 20.06989275 | E62: A
A63: Ishunt_rms_Vinmax | B63: =SQRT((Iout/Number_of_Phases)^2+(Iripple_Vinmax^2)/12) -> 20.09132444 | C63: A | D63: =SQRT(Iout2^2+(Iripple2_Vinmax^2)/12) -> 20.10131055 | E63: A
A64: Max shunt power loss at full load | B64: =B62^2*Rs -> 0.8039004446 | C64: W | D64: =D62^2*Rs -> 0.8056011902 | E64: W | F64: Note this is power loss at full load - not loss near OCP!
A66: Max inductor ripple current | B66: =MAX(B57:B59) -> 6.628409511 | C66: A | D66: =MAX(D57:D59) -> 6.98227979 | E66: A | F66: Ripple current at Vin(max)
B68: =B57/(Iout/Number_of_Phases) -> 0.08837225466 | D68: =D57/Iout2 -> 0.1882680011
A69: % ripple current | B69: =B58/(Iout/Number_of_Phases) -> 0.2418815183 | D69: =D58/Iout2 -> 0.2898583322
B70: =B59/(Iout/Number_of_Phases) -> 0.3314204756 | D70: =D59/Iout2 -> 0.3491139895
A72: Inductor copper temerature | B72: 100 | C72: °C | D72: 100 | E72: °C
A73: DCR at hot | B73: =Rdcr*(1+0.0039*(B72-25)) -> 0.00297275 | C73: W | D73: =Rdcr2*(1+0.0039*(D72-25)) -> 0.00297275 | E73: W
A76: Step 3: Sense Resistors, Slope Comp, Current Limit
A78: Ilimit_DC | B78: ='Design Regulator'!E17 -> 26 | C78: A | D78: ='Design Regulator'!J17 -> 25 | E78: A | F78: Chosen OCP level - based on output current
A80: Ilimit_inductor_Vinmin | B80: =CHOOSE(MODE, Ilimit_DC+Iripple_Vinmin/2, Ilimit_DC/Number_of_Phases+Iripple_Vinmin/2) -> 26.88372255 | C80: A | D80: =Ilimit2_DC+Iripple2_Vinmin/2 -> 26.88268001 | E80: A | F80: Peak inductor current at current limit inception
A81: Ilimit_inductor_Vinnom | B81: =CHOOSE(MODE, Ilimit_DC+Iripple_Vinnom/2, Ilimit_DC/Number_of_Phases+Iripple_Vinnom/2) -> 28.41881518 | C81: A | D81: =Ilimit2_DC+Iripple2_Vinnom/2 -> 27.89858332 | E81: A
A82: Ilimit_inductor_Vinmax | B82: =CHOOSE(MODE, Ilimit_DC+Iripple_Vinmax/2, Ilimit_DC/Number_of_Phases+Iripple_Vinmax/2) -> 29.31420476 | C82: A | D82: =Ilimit2_DC+Iripple2_Vinmax/2 -> 28.4911399 | E82: A
A85: CS threshold_min | B85: 0.054 | C85: V
A86: CS threshold | B86: 0.06 | C86: V
A87: CS threshold_max | B87: 0.066 | C87: V
F88: =SENSING_TYPE -> 1
A89: Shunt required to get OCP at VIN(min) | B89: =Buck_CS_threshold/B80 -> 0.002231833776 | C89: W | D89: =Buck_CS_threshold/D80 -> 0.002231920328 | E89: W
A90: Shunt required to get OCP at VIN(nom) | B90: =Buck_CS_threshold/B81 -> 0.002111277322 | C90: W | D90: =Buck_CS_threshold/D81 -> 0.002150646838 | E90: W
A91: Shunt required to get OCP at VIN(max) | B91: =Buck_CS_threshold/B82 -> 0.002046789278 | C91: W | D91: =Buck_CS_threshold/D82 -> 0.002105917847 | E91: W
A93: Rs_ideal | B93: =B90 -> 0.002111277322 | C93: W | D93: =D90 -> 0.002150646838 | E93: W | F93: Ideal Rs for the required OCP -- based on 73mV CL threshold
A94: Rs | B94: =CHOOSE(SENSING_TYPE, 'Design Regulator'!E19/1000, Rdcr) -> 0.002 | C94: W | D94: =CHOOSE(SENSING_TYPE, 'Design Regulator'!J19/1000, Rdcr2) -> 0.002 | E94: W | F94: Selected (starndard value) current limit sense resistor
A96: Current limit - peak | B96: =Buck_CS_threshold/Rs -> 30 | C96: A | D96: =Buck_CS_threshold/Rs_Ch2 -> 30 | E96: A | F96: Peak inductor current limit = min sat current
A98: Iout_OCP_Vinmin | B98: =Number_of_Phases*(Buck_CS_threshold/Rs-Iripple_Vinmin/2) -> 29.11627745 | C98: A | D98: =Buck_CS_threshold/Rs_Ch2-Iripple2_Vinmin/2 -> 28.11731999 | E98: A | F98: Current limit setpoints (i.e. IOUT) after standard components are selected
A99: Iout_OCP_Vinnom | B99: =Number_of_Phases*(Buck_CS_threshold/Rs-Iripple_Vinnom/2) -> 27.58118482 | C99: A | D99: =Buck_CS_threshold/Rs_Ch2-Iripple2_Vinnom/2 -> 27.10141668 | E99: A
A100: Iout_OCP_Vinmax | B100: =Number_of_Phases*(Buck_CS_threshold/Rs-Iripple_Vinmax/2) -> 26.68579524 | C100: A | D100: =Buck_CS_threshold/Rs_Ch2-Iripple2_Vinmax/2 -> 26.5088601 | E100: A
A102: Irms_OCP_Vinmin | B102: =SQRT((Iout_OCP_Vinmin/Number_of_Phases)^2+(Iripple_Vinmin^2)/12) -> 29.12074749 | C102: A | D102: =SQRT(Iout2_OCP_Vinmin^2+(Iripple2_Vinmin^2)/12) -> 28.13832223 | E102: A
A103: Irms_OCP_Vinnom | B103: =SQRT((Iout_OCP_Vinnom/Number_of_Phases)^2+(Iripple_Vinnom^2)/12) -> 27.6165164 | C103: A | D103: =SQRT(Iout2_OCP_Vinnom^2+(Iripple2_Vinnom^2)/12) -> 27.15303631 | E103: A
A104: Irms_OCP_Vinmax | B104: =SQRT((Iout_OCP_Vinmax/Number_of_Phases)^2+(Iripple_Vinmax^2)/12) -> 26.75430779 | C104: A | D104: =SQRT(Iout2_OCP_Vinmax^2+(Iripple2_Vinmax^2)/12) -> 26.5853785 | E104: A
A106: Pshunt_Vinmin | B106: =B102^2*Rs -> 1.696035869 | C106: W | D106: =D102^2*Rs_Ch2 -> 1.583530356 | E106: W | F106: Max power dissipations in shunt
A107: Pshunt_Vinnom | B107: =B103^2*Rs -> 1.525343956 | C107: W | D107: =D103^2*Rs_Ch2 -> 1.474574762 | E107: W
A108: Pshunt_Vinmax | B108: =B104^2*Rs -> 1.431585971 | C108: W | D108: =D104^2*Rs_Ch2 -> 1.4135647 | E108: W
A111: Step 4: Output Capacitor
A112: Icoutrms_VINmin | B112: =Iripple_Vinmin/SQRT(12) -> 0.5102174501 | C112: A | D112: =Iripple2_Vinmin/SQRT(12) -> 1.086965811 | E112: A | F112: Output Cap RMS current
A113: Icoutrms_VINnom | B113: =Iripple_Vinnom/SQRT(12) -> 1.396503597 | C113: A | D113: =Iripple2_Vinnom/SQRT(12) -> 1.673497861 | E113: A
A114: Icoutrms_VINmax | B114: =Iripple_Vinmax/SQRT(12) -> 1.913457008 | C114: A | D114: =Iripple2_Vinmax/SQRT(12) -> 2.015610558 | E114: A
A115: Max Cout rms current | B115: =MAX(B112:B114) -> 1.913457008 | C115: A | D115: =MAX(D112:D114) -> 2.015610558 | E115: A
A117: Vripple1 | B117: ='Design Regulator'!E34/1000 -> 0.24 | C117: V | D117: ='Design Regulator'!J34/1000 -> 0.05 | E117: V | F117: Output voltage ripple spec(pk-pk)
A119: Output Ripple Spec (pk-pk) | B119: =Vo1_ripple*1000 -> 240 | C119: mV | D119: =Vo2_ripple*1000 -> 50 | E119: mV | F119: Vout ripple spec at Vin(nom)
A121: Coutmin | B121: =Iripple_Vinnom/(Fsw*8*Vo1_ripple) -> 5.726361702e-06 | C121: F | D121: =Iripple2_Vinnom/(Fsw*8*Vo2_ripple) -> 3.293844684e-05 | E121: F | F121: Minimum output capacitnace | H121: =Vo2_ripple -> 0.05 | I121: 1
A122: Reported Coutmin | B122: =IF(Cout_min*1000000<2, 2.2,Cout_min*1000000) -> 5.726361702 | C122: uF | D122: =IF(Cout2_min*1000000<2, 2.2,Cout2_min*1000000) -> 32.93844684 | E122: uF
A123: Cout | B123: ='Design Regulator'!E36/1000000 -> 0.000128 | C123: F | D123: ='Design Regulator'!J36/1000000 -> 0.000165 | E123: F | F123: Chosen output capacitance | I123: 1
A124: Resrmax | B124: =SQRT((Vo1_ripple/Iripple_Vinnom)^2-(1/(Fsw*Cout*8))^2) -> 0.04956139505 | C124: W | D124: =SQRT((Vo2_ripple/Iripple2_Vinnom)^2-(1/(Fsw*Cout2*8))^2) -> 0.00845130071 | E124: W | F124: Max ESR before ripple exceeds Vripple1 | I124: 1
A126: Reported Cout ESR max | B126: =IF(OR(CoutEsrMax>0.3, CoutEsrMax<0, (ISERROR(CoutEsrMax))), "N/A", CoutEsrMax*1000) -> 49.56139505 | C126: mΩ | D126: =IF(OR(Cout2EsrMax>0.3, Cout2EsrMax<0, (ISERROR(Cout2EsrMax))), "N/A", Cout2EsrMax*1000) -> 8.45130071 | E126: mΩ
A127: CoutEsr | B127: ='Design Regulator'!E38/1000 -> 0.001 | C127: W | D127: ='Design Regulator'!J38/1000 -> 0.001 | E127: W | F127: Chosen ESR | I127: 1 | K127: =ISERROR(CoutEsrMax) -> FALSE | L127: =ISERROR(B126) -> FALSE
A128: Vripple | B128: =Iripple_Vinnom*SQRT(Cout_ESR^2+(1/(8*Fsw*Cout))^2) -> 0.01177642962 | C128: Vp-p | D128: =Iripple2_Vinnom*SQRT(Cout2_ESR^2+(1/(8*Fsw*Cout2))^2) -> 0.01154272236 | E128: Vp-p | L128: =OR(CoutEsrMax>0.3,CoutEsrMax<0) -> FALSE
K129: =OR(TRUE, FALSE, TRUE) -> TRUE
A130: Step 5: Input Capacitor
K131: Two channels operating at full load
A132: Icinrms_VINmin | B132: =SQRT(D1_Vinmin_2*(Iout^2*(1-D1_Vinmin_2)+Iripple_Vinmin^2/12)) -> 8.328318975 | C132: A | D132: =SQRT(D2_Vinmin_2*(Iout2^2*(1-D2_Vinmin_2)+Iripple2_Vinmin^2/12)) -> 10.02426371 | E132: A | F132: Calculate input cap rms current with one output unloaded | K132: =SQRT(Iout^2*D1_Vinmin*(1-D1_Vinmin)+Iout2^2*D2_Vinmin*(1-D2_Vinmin)-2*Iout*Iout2*D1_Vinmin*D2_Vinmin) ->  | L132: A | M132: =SQRT(Iout^2*D1_Vinmin*(1-D1_Vinmin)+Iout2^2*D2_Vinmin*(1-D2_Vinmin)-2*Iout*Iout2*(0.5-D2_Vinmin*(1-D1_Vinmin))) ->  | N132: A
A133: Icinrms_VINnom | B133: =SQRT(D1_Vinnom_2*(Iout^2*(1-D1_Vinnom_2)+Iripple_Vinnom^2/12)) -> 9.723434423 | C133: A | D133: =SQRT(D2_Vinnom_2*(Iout2^2*(1-D2_Vinnom_2)+Iripple2_Vinnom^2/12)) -> 8.701443816 | E133: A | K133: =SQRT(Iout^2*D1_Vinnom*(1-D1_Vinnom)+Iout2^2*D2_Vinnom*(1-D2_Vinnom)-2*Iout*Iout2*D1_Vinnom*D2_Vinnom) -> 9.732780863 | L133: A
A134: Icinrms_VINmax | B134: =SQRT(D1_Vinmax_2*(Iout^2*(1-D1_Vinmax_2)+Iripple_Vinmax^2/12)) -> 6.999930527 | C134: A | D134: =SQRT(D2_Vinmax_2*(Iout2^2*(1-D2_Vinmax_2)+Iripple2_Vinmax^2/12)) -> 5.867830232 | E134: A | K134: =SQRT(Iout^2*D1_Vinmax*(1-D1_Vinmax)+Iout2^2*D2_Vinmax*(1-D2_Vinmax)-2*Iout*Iout2*D1_Vinmax*D2_Vinmax) -> 8.423768548 | L134: A
A135: Max Cin rms current | B135: =MAX(B132:B134, D132:D134) -> 10.02426371 | C135: A | K135: =MAX(K132:K134) ->  | L135: A
F136: =Number_of_Phases*D1_Vinnom -> 0.3703703704 | G136: N*D
A137: Icinrms - multiphase | B137: =Iout*SQRT((D1_Vinnom-F137/Number_of_Phases)*((F137+1)/Number_of_Phases-D1_Vinnom)) -> 9.658077637 | C137: A | F137: =FLOOR(Number_of_Phases*D1_Vinnom,1) -> 0 | G137: floor(N*D)
A138: Icinrms - multiphase - max | B138: =Iout/2/Number_of_Phases -> 10 | C138: A
A139: Final result | B139: =CHOOSE(MODE, B135, B138) -> 10.02426371 | C139: A | D139: …report this
A141: Vinripple1 | B141: ='Design Regulator'!E43/1000 -> 0.24 | C141: Vp-p | F141: Input voltage ripple spec (pk-pk)
A143: Cinmin_Vinmin | B143: =Iout/Number_of_Phases*D1_Vinmin*(1-D1_Vinmin)/(Vinripple1*Fsw) -> 3.362022593e-05 | C143: F
A144: Cinmin_Vinmax | B144: =Iout/Number_of_Phases*D1_Vinmax*(1-D1_Vinmax)/(Vinripple1*Fsw) -> 2.265128133e-05 | C144: F | F144: Calculate cap at Vinmax and 50% duty cycle (Vin = 2*Vout)
A145: Cinmin_50%D | B145: =IF(Number_of_Phases=1,MAX(Iout*0.5*(1-0.5)/(Vinripple1*Fsw),Iout2*0.5*(1-0.5)/(Vinripple1*Fsw)),MAX(Iout/Number_of_Phases*0.5*(1-0.5)/(Vinripple1*Fsw))) -> 4.734848485e-05 | C145: F | F145: Buck 50% typically worst case
A146: Cinmin | B146: =IF(VIN_min>2*Vout, B143,B145) -> 4.734848485e-05 | C146: F | D146: =Number_of_Phases -> 1
A147: Reported Cinmin | B147: =IF(Cinmin*1000000<10, 10,Cinmin*1000000) -> 47.34848485 | C147: uF | F147: …report this
A148: Cin | B148: ='Design Regulator'!E45/1000000 -> 5.5e-05 | C148: F | F148: Input capacitance
A149: CinEsrMax_Vinmin | B149: =-(Iout/Number_of_Phases*D1_Vinmin*(1-D1_Vinmin)/(Cin*Fsw)-Vinripple1)/(Iout/Number_of_Phases+Iripple_Vinmin/2) -> 0.004467285915 | C149: W
A150: CinEsrMax_Vinmax | B150: =-(Iout/Number_of_Phases*D1_Vinmax*(1-D1_Vinmax)/(Cin*Fsw)-Vinripple1)/(Iout/Number_of_Phases+Iripple_Vinmax/2) -> 0.006054594037 | C150: W
A151: CinEsrMax_50%D | B151: =-(Iout/Number_of_Phases*0.5*(1-0.5)/(Cin*Fsw)-Vinripple1)/(Iout/Number_of_Phases+Iripple_Vinmax/2) -> 0.001432106739 | C151: W | F151: Calculate ESR at Vinmax and 50% duty cycle (Vin = 2*Vout)
A152: CinEsrMax | B152: =IF(VIN_min>2*Vout, B149,B151) -> 0.001432106739 | C152: W
A153: Reported Cin ESR max | B153: =IF(OR(CinEsrMax>0.3, CinEsrMax<0), "N/A",CinEsrMax*1000) -> 1.432106739 | C153: mΩ | F153: …report this
A154: RCinEsr | B154: ='Design Regulator'!E47/1000 -> 0.001 | C154: W | F154: Input capacitance series resistance (ESR)
A156: Vinripple2_Vinmin | B156: =Iout/Number_of_Phases*D1_Vinmin_2*(1-D1_Vinmin_2)/(Cin*Fsw)+(Iout/Number_of_Phases +Iripple_Vinmin/2)*RCinEsr -> 0.163773084 | C156: Vp-p
A157: Vinripple2_Vinmax | B157: =Iout/Number_of_Phases*D1_Vinmax_2*(1-D1_Vinmax_2)/(Cin*Fsw)+(Iout/Number_of_Phases +Iripple_Vinmax/2)*RCinEsr -> 0.1234843259 | C157: Vp-p
A158: Vinripple2_50%D | B158: =Iout/Number_of_Phases*0.5*(1-0.5)/(Cin*Fsw)+(Iout/Number_of_Phases +Iripple_Vinmax/2)*RCinEsr -> 0.229925775 | C158: Vp-p | F158: Calculate ripple at Vinmax and 50% duty cycle (Vin = 2*Vout)
A159: Vinripple2 | B159: =IF(VIN_min>2*Vout, B156,B158) -> 0.229925775 | C159: Vp-p | F159: …report highest of these
B161: =Iout*D1_Vinmax_2*(1-D1_Vinmax_2)/(Cin*Fsw) -> 0.1001701212 | C161: Vp-p
A163: Step 6a: Soft Start
A164: Tss | B164: ='Design Regulator'!E52/1000 -> 0.0046 | C164: s | D164: Soft-start time
A165: I_Cout | B165: =Cout*Vout/Tss -> 0.1391304348 | C165: A | D165: Load cap current during soft start
A166: Rss | B166: =IF(Tss>1.25/1000,4.38*Tss*1000000,0) -> 20148 | C166: W
A167: Rss_u | B167: =IF(Rss=0, 0, 'Standard Value Calculator'!O16) -> 20000 | C167: Ω
A169: Step 6b: Other Components - DRSS, Hiccup, DEMB, MODE
A170: Tres | B170: ='Design Regulator'!E52/1000 -> 0.0046 | C170: s
A171: Cres | B171: =0.00002*Tres/1.2 -> 7.666666667e-08 | C171: F
A172: Cres_u | B172: ='Standard Value Calculator'!G4 -> 8.2e-08 | C172: F
A174: RPG1/2 | B174: 100 | C174: kΩ
A175: RFB1/2 | C175: W | E175: Tie to VDDA or AGND for 3.3V/5V output, respectively.
A176: R_MODE | C176: W | E176: Tie to VDDA or AGND for Single/Dual operation, respectively.
A177: R_DEMB | C177: W | E177: Tie to VDDA or AGND for FPWM/DEM, respectively.
A179: UVLO On Voltage | B179: ='Design Regulator'!E54 -> 6.5 | C179: V
A180: UVLO Off Voltage | B180: ='Design Regulator'!E55 -> 5.5 | C180: V
A181: Upper UVLO Resistance | B181: =(B179-B180)/10*1000 -> 100 | C181: kΩ | D181: ='Standard Value Calculator'!O14 -> 100 | E181: kΩ
A182: Lower UVLO Resistance | B182: =D181/(B179-1) -> 18.18181818 | C182: kΩ | D182: ='Standard Value Calculator'!O15 -> 18.2 | E182: kΩ
A183: Actual Turn-on Voltage | B183: =1/D182*(D182+D181) -> 6.494505495 | C183: V
A184: Actual Turn-off Voltage | C184: V
A186: DRSS Modulation Frequency | B186: =CHOOSE(CNFG, "N/A", "5%", "10%") -> N/A
A187: RCNFG | B187: =CHOOSE(MODE, CHOOSE(CNFG, 10, 19.1, 29.4), CHOOSE(CNFG, 41.2, 54.9, 71.5)) -> 10 | C187: kΩ
A191: Step 7: Compensation
A192: Pi | B192: 3.14159265 | D192: p
A193: CS Amp Gain | B193: 10
A194: Ri | B194: =Rs*CSAmp_gain -> 0.02 | C194: W | D194: =Rs_Ch2*CSAmp_gain -> 0.02 | E194: W | F194: Current Sense effective resistance = shunt resistor Rs * CS amp gain
A195: gm | B195: 0.0006 | C195: S | F195: Error Amp Transconductance
A197: Se_ext | B197: =B201/Ri*1000 -> 4200000 | C197: A/s | D197: =B201/Ri_Ch2*1000 -> 4200000 | E197: A/s | F197: Slope Comp Slope - referred to inductor current
A198: Sn | B198: =(Vin-Vout)/Lf -> 5666666.667 | C198: A/s | D198: =(Vin-Vout2)/Lo_2 -> 10200000 | E198: A/s | F198: On-time Slope
A199: Sf | B199: =Vout/Lf -> 3333333.333 | C199: A/s | D199: =Vout2/Lo_2 -> 3300000 | E199: A/s | F199: Off-time Slope
K200: Tsw | L200: Tsw (us) | M200: Slope comp amplitude
A201: Se_int | B201: =(Fsw/1000)/220*42 -> 84 | C201: mV/μs | F201: Slope Comp Slope - referred to IC | K201: =Ts -> 2.272727273e-06 | L201: =Ts*1000000 -> 2.272727273 | M201: =B201*L201 -> 190.9090909 | N201: mV
A202: Sn_int | B202: =Sn*Ri/1000 -> 113.3333333 | C202: mV/μs | D202: =Sn_Ch2*Ri_Ch2/1000 -> 204 | E202: mV/μs | F202: etc
A203: Sf_int | B203: =Sf*Ri/1000 -> 66.66666667 | C203: mV/μs | D203: =Sf_Ch2*Ri_Ch2/1000 -> 66 | E203: mV/μs | F203: etc
A205: mc_buck | B205: =1+Se_ext/Sn -> 1.741176471 | D205: =1+Se_ext_Ch2/Sn_Ch2 -> 1.411764706 | F205: mc = 1 + Se/Sf for peak current-mode buck
A206: k_buck | B206: =mc_buck*(1-D1_Vinnom_2) -> 1.087142237 | D206: =mc_buck_Ch2*(1-D2_Vinnom_2) -> 1.058719263 | F206: mc*(1-d)
A208: mc | B208: =1+Se_ext/Sn -> 1.741176471 | D208: =1+Se_ext_Ch2/Sn_Ch2 -> 1.411764706
A209: k | B209: =mc_buck*(1-D1_Vinnom_2) -> 1.087142237 | D209: =mc_buck_Ch2*(1-D2_Vinnom_2) -> 1.058719263
A210: Q | B210: =1/Pi/(k-0.5) -> 0.5421341998 | D210: =1/Pi/(k_Ch2-0.5) -> 0.5697134635 | F210: 1/(Pi*(k-0.5)) | H210: Q = 2/Pi = 0.636 gives ideal one-cycle damping
A212: Error Amp (EA)
A213: GBW | B213: 13 | C213: MHz | F213: EA gain-bandwidth product
A214: Cbw | B214: =gm/(2*Pi*GBW*1000000) -> 7.345612766e-12 | C214: F | F214: EA effective bandwidth limiting capacitance = gm/(2*Pi*GBW)
A215: RoEA | B215: 74000000 | C215: W | F215: EA output resistance
A216: AEA | B216: =gm*RoEA -> 44400 | C216: V/V | F216: EA DC gain = gm*RoEA | H216: =20*LOG(AEA) -> 92.9476594
A217: Afb | B217: =Vref/Vout -> 0.16 | C217: V/V | D217: =Vref/Vout2 -> 0.2424242424 | E217: V/V | F217: Feedback gain from Vout to FB
A218: Acs | B218: =1/Ri -> 50 | D218: =1/Ri_Ch2 -> 50 | F218: Acs = 1/Ri
A219: Am_buck | B219: =(Ro/Number_of_Phases)/Ri/((1+Ro/Number_of_Phases*(k-0.5)/(Fsw*Lf))) -> 10.22576558 | D219: =Ro_Ch2/Ri_Ch2/((1+Ro_Ch2*(k_Ch2-0.5)/(Fsw*Lo_2))) -> 6.820889183
A220: Am | B220: =(Ro*Number_of_Phases)/Ri/((1+Ro*Number_of_Phases*(k-0.5)/(Fsw*Lf))) -> 10.22576558 | D220: =Ro_Ch2/Ri_Ch2/((1+Ro_Ch2*(k_Ch2-0.5)/(Fsw*Lo_2))) -> 6.820889183 | F220: Buck modulator gain
A222: Scaling factor to calculate Rcomp - buck | B222: =2*Pi*Ri/gm -> 209.43951 | F222: 2*Pi*Ri/gm -- scaling factor to calculate Rcomp given desired buck crossover frequency
A223: DC Gain is Adc = AEA*Afb*Am
A225: Ro | B225: =Rout -> 0.25 | C225: W | D225: =Rout2 -> 0.165 | E225: W | F225: Output Resistance
A227: Fp_load_buck | B227: =1/(2*Pi*Ro*Cout)+(k-0.5)/(2*Pi*Fsw*Lf*Cout/Number_of_Phases) -> 6079.730582 | C227: Hz | D227: =1/(2*Pi*Ro_Ch2*Cout2)+(k_Ch2-0.5)/(2*Pi*Fsw*Lo_2*Cout2) -> 7070.745382 | E227: Hz | F227: Buck dominant pole frequency -- note slope comp influence
A228: Fp_dominant | B228: =Fload_u -> 6079.730582 | C228: Hz | D228: =Fload_u_Ch2 -> 7070.745382 | E228: Hz
B229: =Cbw -> 7.345612766e-12
A230: Fp_EA | B230: =1/(2*Pi*(RoEA+Rcea1_u)*Cc1ea_u) -> 0.7964636574 | C230: Hz | D230: =1/(2*Pi*(RoEA+Rcea2_u)*Cc3ea_u) -> 0.6516657313 | E230: Hz | F230: Error Amp LF pole -- related to amplifier ouptut resistance and comp cap
A231: Fp_HF | B231: =1/(2*Pi*Rcea1_u*(Cc2ea_u+Cbw)) -> 211233.1925 | C231: Hz | D231: =1/(2*Pi*Rcea2_u*(Cc4ea_u+Cbw)) -> 210809.5064 | E231: Hz | F231: Error Amp HF pole cancels zero related to Output Cap ESR
A232: Fesr | B232: =1/(2*Pi*Cout*Cout_ESR) -> 1243397.994 | C232: Hz | D232: =1/(2*Pi*Cout2*Cout2_ESR) -> 964575.4138 | E232: Hz | F232: Cout ESR zero frequency
A233: F_mod | B233: =Fsw/2 -> 220000 | C233: Hz | F233: Zero-order sample-and-hold effects of current-mode control modeled as pole at Fsw/2
A235: Desired Crossover Frequency | B235: ='Design Regulator'!E64*1000 -> 60000 | C235: Hz | D235: ='Design Regulator'!J64*1000 -> 60000 | E235: Hz
A236: Rcea1 | B236: =Fcross*Cout/Number_of_Phases*2*Pi*Ri/(gm*Afb) -> 10053.09648 | C236: W | D236: =Fcross_Ch2*Cout2*2*Pi*Ri_Ch2/(gm*Afb_Ch2) -> 8552.98599 | E236: W | F236: This component will largely determine the crossover frequency
A237: Cc1ea, Cc3ea | B237: =10/(Rcea1*Fcross*2*Pi) -> 2.638572497e-09 | C237: F | D237: =10/(Rcea2*Fcross_Ch2*2*Pi) -> 3.10135243e-09 | E237: F | F237: This along with Rcea1 will set a zero at Fcrossover/5 to optimize phase margin
A238: Cc2ea, Cc4ea | B238: =MAX(1/(Rcea1*2*Pi*Fesr)-Cbw, 1/(Rcea1*2*Pi*(Fsw/2))-Cbw) -> 6.461545533e-11 | C238: F | D238: =MAX(1/(Rcea2*2*Pi*Fesr_Ch2)-Cbw, 1/(Rcea2*2*Pi*(Fsw/2))-Cbw) -> 7.723672622e-11 | E238: F | F238: This along with Rcea1 places a pole at the output cap ESR zero
A240: Chosen Compensation Components from the standard value sheet
A241: Rcea1_u | B241: ='Design Regulator'!D71*1000 -> 10000 | C241: W | D241: ='Design Regulator'!D74*1000 -> 8450 | E241: W | F241: =1/(Rcea1*2*Pi*(Fsw/2))-Cbw -> 6.461545533e-11
A242: Cc1ea_u | B242: ='Design Regulator'!D72*0.000000001 -> 2.7e-09 | C242: F | D242: ='Design Regulator'!D75*0.000000001 -> 3.3e-09 | E242: F
A243: Cc2ea_u | B243: ='Design Regulator'!D73*0.000000000001 -> 6.8e-11 | C243: F | D243: ='Design Regulator'!D76*0.000000000001 -> 8.2e-11 | E243: F
A245: Resulting Pole/Zero Locations | F245: =Cout -> 0.000128 | G245: =Cout_ESR -> 0.001
A246: Fz1 | B246: =1/(2*Pi*Rcea1_u*Cc1ea_u) -> 5894.627529 | C246: Hz | D246: =1/(2*Pi*Rcea2_u*Cc3ea_u) -> 5707.546827 | E246: Hz | F246: This zero is set at or close to the dominant load pole
A247: Fp2 | B247: =1/(2*Pi*Rcea1_u*(Cc1ea_u*(Cc2ea_u+Cbw)/(Cc1ea_u+Cc2ea_u+Cbw))) -> 217127.8201 | C247: Hz | D247: =1/(2*Pi*Rcea2_u*(Cc3ea_u*(Cc4ea_u+Cbw)/(Cc3ea_u+Cc4ea_u+Cbw))) -> 216517.0533 | E247: Hz | F247: This pole cancels the zero from the Output Cap ESR
A249: Rfb1 | B249: ='Design Regulator'!E66*1000 -> 93100 | C249: W | D249: ='Design Regulator'!J66*1000 -> 78700 | E249: W | F249: Upper Feedback Resistance - chosen by user
A250: Rfb2 | B250: =IF(Vout=Vref,100000000,Vref*B249/((Vout-Vref))) -> 17733.33333 | C250: W | D250: =IF(Vout2=Vref,100000000,Vref*D249/((Vout2-Vref))) -> 25184 | E250: W | F250: Lower Feedback Resistance
A251: Rfb2_u | B251: =IF(Vout=Vref,"N/A",'Standard Value Calculator'!O10) -> 17800 | C251: W | D251: =IF(Vout2=Vref,"N/A",'Standard Value Calculator'!O12) -> 24900 | E251: W | F251: Std Value Lower Feedback Resistance
A254: Other Input Variables
A255: Rfets | B255: 0 | C255: W | D255: Series resistance due to FETs
A256: Diode loss eq res | B256: =0.00000002*Fsw*0.6*4/Iripple1 -> 
... 118 more rows

Sheet Stability Calculations (hidden)
A2: Divider Network & EA Poles/Zeros | E2: Modulator | J2: Power Stage Poles/Zeros | M2: Complex Pole Pair | P2: Total System
B3: Afb1 | C3: =Afb -> 0.16 | D3: V/V | E3: Acs | F3: =Acs -> 50 | G3: A/V | H3: gm | I3: =gm -> 0.0006 | J3: z_ESR | K3: =Fesr -> 1243397.994 | L3: Hz | M3: p3 | N3: =Fsw/2 -> 220000 | O3: Hz | P3: Adc | Q3: =Am*Afb*AEA -> 72643.83867 | R3: V/V
B4: EA zero, z1 | C4: =Fz1_u -> 5894.627529 | D4: Hz | E4: Am | F4: =Am -> 10.22576558 | G4: V/V | J4: p_dom | K4: =Fp_dominant -> 6079.730582 | L4: Hz | M4: pterm1 | N4: =Q*pole3 -> 119269.524 | P4: Crossover | Q4: =AE7 -> 54.954 | R4: kHz
B5: EA pole, p1 | C5: =Fp1_u -> 0.7964636574 | D5: Hz | E5: Q | F5: =Q -> 0.5421341998 | M5: pterm2 | N5: =pole3^2 -> 48400000000 | P5: Phase Margin | Q5: =AE9 -> 51.96921197 | R5: °
B6: Aea | C6: =AEA -> 44400 | D6: V/V | E6: mc | F6: =mc -> 1.741176471 | P6: radconv | Q6: =180/Pi -> 57.29577958 | AD6: XOVER SEARCH
B7: EA pole, p2 | C7: =Fp2_u -> 211233.1925 | D7: Hz | E7: k | F7: =k -> 1.087142237 | AD7: xover | AE7: =SUM(AD12:AD613)/1000 -> 54.954
AD9: phase margin | AE9: =SUM(AE13:AE613) -> 51.96921197
A10: Freq (Hz) | C10: Power Stage | I10: Error Amplifier | O10: Sampling Double Pole | Q10: System Response | X10: ERROR AMP Response | AA10: PLANT Response
C11: p_dom | E11: z_ESR | G11: z_RHP | I11: p1 | K11: z1 | M11: p2 | O11: p3
C12: Gain(V/V) | D12: Phase(rad) | E12: Gain(V/V) | F12: Phase(rad) | G12: Gain(V/V) | H12: Phase(rad) | I12: Gain(V/V) | J12: Phase(rad) | K12: Gain(V/V) | L12: Phase(rad) | M12: Gain(V/V) | N12: Phase(rad) | O12: Gain(V/V) | P12: Phase(rad) | Q12: Gain (dB) | R12: Phase (°) | S12: Phase Margin (°) | V12: Fsquare | X12: Gain(dB) | Y12: Phase(Deg) | AA12: Gain(dB) | AB12: Phase(Deg)
A13: 1 | B13: =A13/1000 -> 0.001 | C13: =SQRT(1+(A13/pole1)^2) -> 1.000000014 | D13: =ATAN(A13/pole1) -> 0.0001644809712 | E13: =SQRT(1+(A13/Zero1)^2) -> 1 | F13: =ATAN(A13/Zero1) -> 8.042477184e-07 | G13: =IF(VIN_nom>Vout, 1, SQRT(1+(A13/z_RHP)^2)) -> 1 | H13: =IF(VIN_nom>Vout, 0, -ATAN(A13/z_RHP)) -> 0 | I13: =SQRT(1+(A13/Pole2)^2) -> 1.60511868 | J13: =ATAN(A13/Pole2) -> 0.8982154138 | K13: =SQRT(1+(A13/Zero2)^2) -> 1.000000014 | L13: =ATAN(A13/Zero2) -> 0.0001696460015 | M13: =SQRT(1+(A13/pole4)^2) -> 1 | N13: =ATAN(A13/pole4) -> 4.734104466e-06 | O13: =SQRT((1-(V13/pterm2))^2+(A13/pterm1)^2) -> 1 | P13: =IF((ATAN((A13/pterm1)/(1-A13^2/pterm2))>0),ATAN((A13/pterm1)/(1-A13^2/pterm2)),PI()+ATAN((A13/pterm1)/(1-A13^2/pterm2))) -> 8.384371521e-06 | Q13: =20*LOG10(((E13*K13*G13)/(C13*I13*O13*M13))*Adc) -> 93.11383273 | R13: =((F13+L13+H13)-(D13+J13+P13+N13))*radconv -> -51.46436198 | S13: =IF(R13>0,R13,R13+180) -> 128.535638 | U13: =IF(Q13<0,A13,1000000000) -> 1000000000 | V13: =A13^2 -> 1 | X13: =20*LOG10((K13/(I13*M13))*AEA*Afb) -> 72.9199162 | Y13: =(L13-(J13+N13))*radconv -> -51.45450361 | AA13: =20*LOG10((E13*G13/(C13*O13))*Am) -> 20.19391653 | AB13: =(F13+H13-(D13+P13))*radconv -> -0.009858374575 | AD13: =SUM((Q14<0)*(Q13>0))*A13 -> 0 | AE13: =IF(AD13>0,S11,0) -> 0
A14: 1.0965 | B14: =A14/1000 -> 0.0010965 | C14: 1.000000016 | D14: 0.0001803533846 | E14: 1 | F14: 8.818576232e-07 | G14: 1 | H14: 0 | I14: 1.701567576 | J14: 0.9425913518 | K14: 1.000000017 | L14: 0.0001860168403 | M14: 1 | N14: 5.190945546e-06 | O14: 1 | P14: 9.193463373e-06 | Q14: 92.60699169 | R14: -54.00695547 | S14: 125.9930445 | U14: =IF(Q14<0,A14,1000000000) -> 1000000000 | V14: =A14^2 -> 1.20231225 | X14: 72.41307518 | Y14: -53.99614576 | AA14: 20.19391651 | AB14: -0.0108097077 | AD14: =SUM((Q15<0)*(Q14>0))*A14 -> 0 | AE14: 0
A15: 1.2023 | B15: 0.0012023 | C15: 1.00000002 | D15: 0.0001977554709 | E15: 1 | F15: 9.669470318e-07 | G15: 1 | H15: 0 | I15: 1.810727673 | J15: 0.9857186251 | K15: 1.000000021 | L15: 0.0002039653867 | M15: 1 | N15: 5.691813799e-06 | O15: 1 | P15: 1.008052988e-05 | Q15: 92.06691294 | R15: -56.47800955 | S15: 123.5219904 | U15: 1000000000 | V15: 1.44552529 | X15: 71.87299646 | Y15: -56.46615683 | AA15: 20.19391648 | AB15: -0.01185272371 | AD15: 0 | AE15: 0
A16: 1.3183 | B16: 0.0013183 | C16: 1.000000024 | D16: 0.0002168352629 | E16: 1 | F16: 1.060239767e-06 | G16: 1 | H16: 0 | I16: 1.933819903 | J16: 1.027323878 | K16: 1.000000025 | L16: 0.0002236443222 | M16: 1 | N16: 6.240969917e-06 | O16: 1 | P16: 1.105311698e-05 | Q16: 91.4956552 | R16: -58.86186244 | S16: 121.1381376 | U16: 1000000000 | V16: 1.73791489 | X16: 71.30173876 | Y16: -58.84886615 | AA16: 20.19391645 | AB16: -0.01299629512 | AD16: 0 | AE16: 0
A17: 1.4454 | B17: 0.0014454 | C17: 1.000000028 | D17: 0.0002377407935 | E17: 1 | F17: 1.162459652e-06 | G17: 1 | H17: 0 | I17: 2.072051559 | J17: 1.067160075 | K17: 1.00000003 | L17: 0.000245206328 | M17: 1 | N17: 6.842674594e-06 | O17: 1 | P17: 1.21187706e-05 | Q17: 90.89596456 | R17: -61.14436049 | S17: 118.8556395 | U17: 1000000000 | V17: 2.08918116 | X17: 70.70204816 | Y17: -61.13011119 | AA17: 20.1939164 | AB17: -0.01424929448 | AD17: 0 | AE17: 0
A18: 1.5849 | B18: 0.0015849 | C18: 1.000000034 | D18: 0.0002606858877 | E18: 1 | F18: 1.274652209e-06 | G18: 1 | H18: 0 | I18: 2.227057879 | J18: 1.105124822 | K18: 1.000000036 | L18: 0.0002688719438 | M18: 1 | N18: 7.503082167e-06 | O18: 1 | P18: 1.328839042e-05 | Q18: 90.26934564 | R18: -63.31963742 | S18: 116.6803626 | U18: 1000000000 | V18: 2.51190801 | X18: 70.07542929 | Y18: -63.30401288 | AA18: 20.19391635 | AB18: -0.01562453766 | AD18: 0 | AE18: 0
A19: 1.7378 | B19: 0.0017378 | C19: 1.000000041 | D19: 0.0002858350266 | E19: 1 | F19: 1.397621685e-06 | G19: 1 | H19: 0 | I19: 2.40013862 | J19: 1.141047367 | K19: 1.000000043 | L19: 0.0002948108156 | M19: 1 | N19: 8.22692674e-06 | O19: 1 | P19: 1.457036083e-05 | Q19: 89.61924922 | R19: -65.37791029 | S19: 114.6220897 | U19: 1000000000 | V19: 3.01994884 | X19: 69.42533293 | Y19: -65.3607784 | AA19: 20.19391629 | AB19: -0.01713188304 | AD19: 0 | AE19: 0
A20: 1.9055 | B20: 0.0019055 | C20: 1.000000049 | D20: 0.0003134184832 | E20: 1 | F20: 1.532494027e-06 | G20: 1 | H20: 0 | I20: 2.593033001 | J20: 1.17488544 | K20: 1.000000052 | L20: 0.0003232604476 | M20: 1 | N20: 9.020836059e-06 | O20: 1 | P20: 1.597641993e-05 | Q20: 88.94781485 | R20: -67.3167577 | S20: 112.6832423 | U20: 1000000000 | V20: 3.63093025 | X20: 68.75389863 | Y20: -67.29797257 | AA20: 20.19391622 | AB20: -0.01878513233 | AD20: 0 | AE20: 0
A21: 2.0893 | B21: 0.0020893 | C21: 1.000000059 | D21: 0.0003436500828 | E21: 1 | F21: 1.680314758e-06 | G21: 1 | H21: 0 | I21: 2.807363024 | J21: 1.206591749 | K21: 1.000000063 | L21: 0.0003544413794 | M21: 1 | N21: 9.89096446e-06 | O21: 1 | P21: 1.751746742e-05 | Q21: 88.25800423 | R21: -69.1334707 | S21: 110.8665293 | U21: 1000000000 | V21: 4.36517449 | X21: 68.06408809 | Y21: -69.11287359 | AA21: 20.19391614 | AB21: -0.0205971014 | AD21: 0 | AE21: 0
A22: 2.2909 | B22: 0.0022909 | C22: 1.000000071 | D22: 0.0003768094426 | E22: 1 | F22: 1.842451098e-06 | G22: 1 | H22: 0 | I22: 3.045214245 | J22: 1.236204013 | K22: 1.000000076 | L22: 0.0003886420089 | M22: 1 | N22: 1.084535992e-05 | O22: 1 | P22: 1.920775672e-05 | Q22: 87.55161869 | R22: -70.83021101 | S22: 109.169789 | U22: 1000000000 | V22: 5.24822281 | X22: 67.35770266 | Y22: -70.80762646 | AA22: 20.19391603 | AB22: -0.02258454949 | AD22: 0 | AE22: 0
A23: 2.5119 | B23: 0.0025119 | C23: 1.000000085 | D23: 0.0004131597318 | E23: 1 | F23: 2.020189844e-06 | G23: 1 | H23: 0 | I23: 3.308558106 | J23: 1.26374786 | K23: 1.000000091 | L23: 0.0004261337694 | M23: 1 | N23: 1.189159701e-05 | O23: 1 | P23: 2.106070282e-05 | Q23: 86.83120043 | R23: -72.40844776 | S23: 107.5915522 | U23: 1000000000 | V23: 6.30964161 | X23: 66.63728452 | Y23: -72.38368451 | AA23: 20.19391591 | AB23: -0.02476324996 | AD23: 0 | AE23: 0
A24: 2.7542 | B24: 0.0027542 | C24: 1.000000103 | D24: 0.0004530134641 | E24: 1 | F24: 2.215059066e-06 | G24: 1 | H24: 0 | I24: 3.599724014 | J24: 1.289294084 | K24: 1.000000109 | L24: 0.0004672389877 | M24: 1 | N24: 1.303867052e-05 | O24: 1 | P24: 2.309223604e-05 | Q24: 86.09859166 | R24: -73.87223783 | S24: 106.1277622 | U24: 1000000000 | V24: 7.58561764 | X24: 65.9046759 | Y24: -73.8450859 | AA24: 20.19391576 | AB24: -0.02715193371 | AD24: 0 | AE24: 0
A25: 3.02 | B25: 0.00302 | C25: 1.000000123 | D25: 0.0004967324967 | E25: 1 | F25: 2.42882811e-06 | G25: 1 | H25: 0 | I25: 3.921409576 | J25: 1.312937927 | K25: 1.000000131 | L25: 0.0005123308845 | M25: 1 | N25: 1.429699548e-05 | O25: 1 | P25: 2.532080199e-05 | Q25: 85.35513167 | R25: -75.22703913 | S25: 104.7729609 | U25: 1000000000 | V25: 9.1204 | X25: 65.16121609 | Y25: -75.19726684 | AA25: 20.19391558 | AB25: -0.02977228913 | AD25: 0 | AE25: 0
A26: 3.3113 | B26: 0.0033113 | C26: 1.000000148 | D26: 0.0005446457911 | E26: 1 | F26: 2.66310547e-06 | G26: 1 | H26: 0 | I26: 4.276076557 | J26: 1.334751223 | K26: 1.000000158 | L26: 0.000561748751 | M26: 1 | N26: 1.567604012e-05 | O26: 1 | P26: 2.776316942e-05 | Q26: 84.60306634 | R26: -76.47696823 | S26: 103.5230318 | U26: 1000000000 | V26: 10.96470769 | X26: 64.40915098 | Y26: -76.44432419 | AA26: 20.19391536 | AB26: -0.03264403293 | AD26: 0 | AE26: 0
A27: 3.6308 | B27: 0.0036308 | C27: 1.000000178 | D27: 0.0005971974447 | E27: 1 | F27: 2.920062616e-06 | G27: 1 | H27: 0 | I27: 4.667044105 | J27: 1.35485357 | K27: 1.00000019 | L27: 0.0006159506302 | M27: 1 | N27: 1.718858649e-05 | O27: 1 | P27: 3.044197612e-05 | Q27: 83.8431377 | R27: -77.62887876 | S27: 102.3711212 | U27: 1000000000 | V27: 13.18270864 | X27: 63.6492226 | Y27: -77.59308498 | AA27: 20.1939151 | AB27: -0.03579378265 | AD27: 0 | AE27: 0
A28: 3.9811 | B28: 0.0039811 | C28: 1.000000214 | D28: 0.0006548151069 | E28: 1 | F28: 3.201790592e-06 | G28: 1 | H28: 0 | I28: 5.097519606 | J28: 1.373341918 | K28: 1.000000228 | L28: 0.0006753776003 | M28: 1 | N28: 1.884694329e-05 | O28: 1 | P28: 3.337902146e-05 | Q28: 83.07679772 | R28: -78.68832656 | S28: 101.3116734 | U28: 1000000000 | V28: 15.84915721 | X28: 62.88288294 | Y28: -78.64907939 | AA28: 20.19391479 | AB28: -0.03924717 | AD28: 0 | AE28: 0
A29: 4.3652 | B29: 0.0043652 | C29: 1.000000258 | D29: 0.0007179922187 | E29: 1 | F29: 3.51070214e-06 | G29: 1 | H29: 0 | I29: 5.571209044 | J29: 1.390323997 | K29: 1.000000274 | L29: 0.0007405385974 | M29: 1 | N29: 2.066531281e-05 | O29: 1 | P29: 3.659945856e-05 | Q29: 82.30498675 | R29: -79.66148535 | S29: 100.3385146 | U29: 1000000000 | V29: 19.05497104 | X29: 62.11107235 | Y29: -79.61845158 | AA29: 20.19391441 | AB29: -0.04303377 | AD29: 0 | AE29: 0
A30: 4.7863 | B30: 0.0047863 | C30: 1.00000031 | D30: 0.0007872551171 | E30: 1 | F30: 3.849370855e-06 | G30: 1 | H30: 0 | I30: 6.092073591 | J30: 1.405902376 | K30: 1.00000033 | L30: 0.0008119764862 | M30: 1 | N30: 2.26588442e-05 | O30: 1 | P30: 4.013011741e-05 | Q30: 81.52867305 | R30: -80.55423318 | S30: 99.44576682 | U30: 1000000000 | V30: 22.90866769 | X30: 61.3347591 | Y30: -80.50704805 | AA30: 20.19391396 | AB30: -0.04718512932 | AD30: 0 | AE30: 0
A31: 5.2481 | B31: 0.0052481 | C31: 1.000000373 | D31: 0.0008632123785 | E31: 1 | F31: 4.220772451e-06 | G31: 1 | H31: 0 | I31: 6.664701501 | J31: 1.420183318 | K31: 1.000000396 | L31: 0.0008903189536 | M31: 1 | N31: 2.484505364e-05 | O31: 1 | P31: 4.400202018e-05 | Q31: 80.74836185 | R31: -81.3726601 | S31: 98.6273399 | U31: 1000000000 | V31: 27.54255361 | X31: 60.55444844 | Y31: -81.32092237 | AA31: 20.19391341 | AB31: -0.05173772377 | AD31: 0 | AE31: 0
A32: 5.7544 | B32: 0.0057544 | C32: 1.000000448 | D32: 0.0009464890267 | E32: 1 | F32: 4.627963071e-06 | G32: 1 | H32: 0 | I32: 7.293813764 | J32: 1.433260645 | K32: 1.000000476 | L32: 0.0009762106501 | M32: 1 | N32: 2.724193073e-05 | O32: 1 | P32: 4.824702748e-05 | Q32: 79.96488254 | R32: -82.12214311 | S32: 97.87785689 | U32: 1000000000 | V32: 33.11311936 | X32: 59.77096979 | Y32: -82.06541409 | AA32: 20.19391276 | AB32: -0.05672901495 | AD32: 0 | AE32: 0
A33: 6.3096 | B33: 0.0063096 | C33: 1.000000539 | D33: 0.001037808773 | E33: 1 | F33: 5.074481404e-06 | G33: 1 | H33: 0 | I33: 7.984884503 | J33: 1.445229995 | K33: 1.000000573 | L33: 0.001070398012 | M33: 1 | N33: 2.987030553e-05 | O33: 1.000000001 | P33: 5.290203055e-05 | Q33: 79.17860322 | R33: -82.80816375 | S33: 97.19183625 | U33: 1000000000 | V33: 39.81105216 | X33: 58.98469125 | Y33: -82.74596137 | AA33: 20.19391197 | AB33: -0.06220237941 | AD33: 0 | AE33: 0
A34: 6.9183 | B34: 0.0069183 | C34: 1.000000647 | D34: 0.001137928222 | E34: 1 | F34: 5.56402699e-06 | G34: 1 | H34: 0 | I34: 8.743644663 | J34: 1.456176736 | K34: 1.000000689 | L34: 0.001173661404 | M34: 1.000000001 | N34: 3.275195491e-05 | O34: 1.000000001 | P34: 5.800559749e-05 | Q34: 78.39012606 | R34: -83.43561519 | S34: 96.56438481 | U34: 1000000000 | V34: 47.86287489 | X34: 58.19621504 | Y34: -83.36741202 | AA34: 20.19391102 | AB34: -0.06820316527 | AD34: 0 | AE34: 0
A35: 7.5858 | B35: 0.0075858 | C35: 1.000000778 | D35: 0.001247719115 | E35: 1 | F35: 6.100862342e-06 | G35: 1 | H35: 0 | I35: 9.576704838 | J35: 1.466185581 | K35: 1.000000828 | L35: 0.00128689994 | M35: 1.000000001 | N35: 3.591196964e-05 | O35: 1.000000001 | P35: 6.360216548e-05 | Q35: 77.59965408 | R35: -84.00935318 | S35: 95.99064682 | U35: 1000000000 | V35: 57.54436164 | X35: 57.4057442 | Y35: -83.93456956 | AA35: 20.19390988 | AB35: -0.0747836214 | AD35: 0 | AE35: 0
A36: 8.3176 | B36: 0.0083176 | C36: 1.000000936 | D36: 0.001368086085 | E36: 1 | F36: 6.689410822e-06 | G36: 1 | H36: 0 | I36: 10.49093221 | J36: 1.475330973 | K36: 1.000000996 | L36: 0.001411046659 | M36: 1.000000001 | N36: 3.937638728e-05 | O36: 1.000000001 | P36: 6.973784855e-05 | Q36: 76.80769459 | R36: -84.53364529 | S36: 95.46635471 | U36: 1000000000 | V36: 69.18246976 | X36: 56.61378608 | Y36: -84.45164732 | AA36: 20.19390851 | AB36: -0.08199796817 | AD36: 0 | AE36: 0
A37: 9.1201 | B37: 0.0091201 | C37: 1.000001125 | D37: 0.001500081794 | E37: 1 | F37: 7.334819616e-06 | G37: 1 | H37: 0 | I37: 11.49432454 | J37: 1.483686745 | K37: 1.000001197 | L37: 0.001547187278 | M37: 1.000000001 | N37: 4.317550611e-05 | O37: 1.000000001 | P37: 7.64663067e-05 | Q37: 76.01430721 | R37: -85.01272449 | S37: 94.98727551 | U37: 1000000000 | V37: 83.17622401 | X37: 55.82040034 | Y37: -84.92281519 | AA37: 20.19390687 | AB37: -0.08990929827 | AD37: 0 | AE37: 0
A38: 10 | B38: 0.01 | C38: 1.000001353 | D38: 0.001644808244 | E38: 1 | F38: 8.042477184e-06 | G38: 1 | H38: 0 | I38: 12.59526092 | J38: 1.491317736 | K38: 1.000001439 | L38: 0.001696458404 | M38: 1.000000001 | N38: 4.734104462e-05 | O38: 1.000000001 | P38: 8.384371519e-05 | Q38: 75.21983306 | R38: -85.4503085 | S38: 94.5496915 | U38: 1000000000 | V38: 100 | X38: 55.02592817 | Y38: -85.35172484 | AA38: 20.19390489 | AB38: -0.09858366161 | AD38: 0 | AE38: 0
A39: 10.965 | B39: 0.010965 | C39: 1.000001626 | D39: 0.00180353191 | E39: 1 | F39: 8.818576232e-06 | G39: 1 | H39: 0 | I39: 13.80337718 | J39: 1.498286766 | K39: 1.00000173 | L39: 0.001860166278 | M39: 1.000000001 | N39: 5.190945542e-05 | O39: 1.000000002 | P39: 9.19346337e-05 | Q39: 74.42426947 | R39: -85.8499998 | S39: 94.1500002 | U39: 1000000000 | V39: 120.231225 | X39: 54.23036697 | Y39: -85.74190283 | AA39: 20.19390251 | AB39: -0.1080969661 | AD39: 0 | AE39: 0
A40: 12.023 | B40: 0.012023 | C40: 1.000001955 | D40: 0.001977552157 | E40: 1 | F40: 9.669470318e-06 | G40: 1 | H40: 0 | I40: 15.12856472 | J40: 1.504647974 | K40: 1.00000208 | L40: 0.002039651067 | M40: 1.000000002 | N40: 5.691813793e-05 | O40: 1.000000002 | P40: 0.0001008052988 | Q40: 73.62802221 | R40: -86.21490351 | S40: 93.78509649 | U40: 1000000000 | V40: 144.552529 | X40: 53.43412256 | Y40: -86.09637642 | AA40: 20.19389965 | AB40: -0.1185270908 | AD40: 0 | AE40: 0
A41: 13.183 | B41: 0.013183 | C41: 1.000002351 | D41: 0.002168349265 | E41: 1 | F41: 1.060239767e-05 | G41: 1 | H41: 0 | I41: 16.58209703 | J41: 1.51045371 | K41: 1.000002501 | L41: 0.00223643953 | M41: 1.000000002 | N41: 6.240969909e-05 | O41: 1.000000003 | P41: 0.0001105311697 | Q41: 72.83118793 | R41: -86.54802284 | S41: 93.45197716 | U41: 1000000000 | V41: 173.791489 | X41: 52.63729172 | Y41: -86.41806009 | AA41: 20.19389621 | AB41: -0.1299627584 | AD41: 0 | AE41: 0
A42: 14.454 | B42: 0.014454 | C42: 1.000002826 | D42: 0.002377403501 | E42: 1 | F42: 1.162459652e-05 | G42: 1 | H42: 0 | I42: 18.17525148 | J42: 1.515748658 | K42: 1.000003006 | L42: 0.002452058414 | M42: 1.000000002 | N42: 6.842674584e-05 | O42: 1.000000003 | P42: 0.0001211877059 | Q42: 72.03436865 | R42: -86.85192167 | S42: 93.14807833 | U42: 1000000000 | V42: 208.918116 | X42: 51.84047657 | Y42: -86.70942898 | AA42: 20.19389208 | AB42: -0.1424926907 | AD42: 0 | AE42: 0
A43: 15.849 | B43: 0.015849 | C43: 1.000003398 | D43: 0.002606853031 | E43: 1 | F43: 1.274652209e-05 | G43: 1 | H43: 0 | I43: 19.92432382 | J43: 1.520585322 | K43: 1.000003615 | L43: 0.002688713024 | M43: 1.000000003 | N43: 7.503082153e-05 | O43: 1.000000004 | P43: 0.0001328839042 | Q43: 71.2363057 | R43: -87.12961353 | S43: 92.87038647 | U43: 1000000000 | V43: 251.190801 | X43: 51.0424186 | Y43: -86.97336849 | AA43: 20.19388711 | AB43: -0.1562450416 | AD43: 0 | AE43: 0
A44: 17.378 | B44: 0.017378 | C44: 1.000004085 | D44: 0.002858342559 | E44: 1 | F44: 1.397621685e-05 | G44: 1 | H44: 0 | I44: 21.84185294 | J44: 1.524996655 | K44: 1.000004346 | L44: 0.002948099701 | M44: 1.000000003 | N44: 8.226926722e-05 | O44: 1.000000004 | P44: 0.0001457036082 | Q44: 70.43818833 | R44: -87.38299063 | S44: 92.61700937 | U44: 1000000000 | V44: 301.994884 | X44: 50.2443072 | Y44: -87.21167224 | AA44: 20.19388113 | AB44: -0.1713183888 | AD44: 0 | AE44: 0
A45: 19.055 | B45: 0.019055 | C45: 1.000004912 | D45: 0.003134174673 | E45: 1 | F45: 1.532494027e-05 | G45: 1 | H45: 0 | I45: 23.94539652 | J45: 1.529022498 | K45: 1.000005225 | L45: 0.003232593329 | M45: 1.000000004 | N45: 9.020836035e-05 | O45: 1.000000005 | P45: 0.0001597641992 | Q45: 69.63953769 | R45: -87.61434134 | S45: 92.38565866 | U45: 1000000000 | V45: 363.093025 | X45: 49.44566374 | Y45: -87.4264906 | AA45: 20.19387394 | AB45: -0.1878507411 | AD45: 0 | AE45: =IF(AD45>0,S43,0) -> 0
A46: 20.893 | B46: 0.020893 | C46: 1.000005905 | D46: 0.003436487435 | E46: 1 | F46: 1.680314758e-05 | G46: 1 | H46: 0 | I46: 26.25126121 | J46: 1.5326937 | K46: 1.000006281 | L46: 0.0035443991 | M46: 1.000000005 | N46: 9.890964428e-05 | O46: 1.000000006 | P46: 0.000175174674 | Q46: 68.84097541 | R46: -87.82543864 | S46: 92.17456136 | U46: 1000000000 | V46: 436.517449 | X46: 48.6471101 | Y46: -87.61946839 | AA46: 20.19386531 | AB46: -0.2059702467 | AD46: 0 | AE46: 0
A47: 22.909 | B47: 0.022909 | C47: 1.000007099 | D47: 0.00376807677 | E47: 1 | F47: 1.842451098e-05 | G47: 1 | H47: 0 | I47: 28.78077448 | J47: 1.536043915 | K47: 1.000007552 | L47: 0.003886400718 | M47: 1.000000006 | N47: 0.0001084535988 | O47: 1.000000008 | P47: 0.0001920775669 | Q47: 68.04192999 | R47: -88.01821765 | S47: 91.98178235 | U47: 1000000000 | V47: 524.822281 | X47: 47.84807507 | Y47: -87.79237317 | AA47: 20.19385492 | AB47: -0.2258444833 | AD47: 0 | AE47: 0
A48: 25.119 | B48: 0.025119 | C48: 1.000008535 | D48: 0.004131574045 | E48: 1 | F48: 2.020189844e-05 | G48: 1 | H48: 0 | I48: 31.55401201 | J48: 1.539099328 | K48: 1.000009079 | L48: 0.004261312158 | M48: 1.000000007 | N48: 0.0001189159695 | O48: 1.000000009 | P48: 0.0002106070279 | Q48: 67.24288857 | R48: -88.19418521 | S48: 91.80581479 | U48: 1000000000 | V48: 630.964161 | X48: 47.04904613 | Y48: -87.94655405 | AA48: 20.19384244 | AB48: -0.2476311661 | AD48: 0 | AE48: 0
A49: 27.542 | B49: 0.027542 | C49: 1.000010261 | D49: 0.004530103962 | E49: 1 | F49: 2.215059066e-05 | G49: 1 | H49: 0 | I49: 34.59481605 | J49: 1.541886235 | K49: 1.000010916 | L49: 0.004672356216 | M49: 1.000000009 | N49: 0.0001303867045 | O49: 1.000000011 | P49: 0.00023092236 | Q49: 66.44376071 | R49: -88.35485574 | S49: 91.64514426 | U49: 1000000000 | V49: 758.561764 | X49: 46.24993328 | Y49: -88.08333816 | AA49: 20.19382743 | AB49: -0.2715175793 | AD49: 0 | AE49: 0
A50: 30.2 | B50: 0.0302 | C50: 1.000012337 | D50: 0.004967284521 | E50: 1 | F50: 2.428828109e-05 | G50: 1 | H50: 0 | I50: 37.93079627 | J50: 1.54442947 | K50: 1.000013124 | L50: 0.005123264468 | M50: 1.00000001 | N50: 0.0001429699539 | O50: 1.000000013 | P50: 0.0002532080193 | Q50: 65.64414314 | R50: -88.5016612 | S50: 91.4983388 | U50: 1000000000 | V50: 912.04 | X50: 45.45033376 | Y50: -88.20394062 | AA50: 20.19380938 | AB50: -0.2977205739 | AD50: 0 | AE50: 0
A51: 33.113 | B51: 0.033113 | C51: 1.000014832 | D51: 0.005446404596 | E51: 1 | F51: 2.663105469e-05 | G51: 1 | H51: 0 | I51: 41.58705414 | J51: 1.546748064 | K51: 1.000015778 | L51: 0.005617429013 | M51: 1.000000012 | N51: 0.0001567603999 | O51: 1.000000016 | P51: 0.0002776316933 | Q51: 64.84482053 | R51: -88.63570017 | S51: 91.36429983 | U51: 1000000000 | V51: 1096.470769 | X51: 44.65103284 | Y51: -88.30926289 | AA51: 20.19378769 | AB51: -0.3264372745 | AD51: 0 | AE51: 0
A52: 36.308 | B52: 0.036308 | C52: 1.000017832 | D52: 0.005971904163 | E52: 1 | F52: 2.920062615e-05 | G52: 1 | H52: 0 | I52: 45.59747874 | J52: 1.548863531 | K52: 1.00001897 | L52: 0.006159429186 | M52: 1.000000015 | N52: 0.0001718858632 | O52: 1.000000019 | P52: 0.0003044197601 | Q52: 64.0451687 | R52: -88.75821632 | S52: 91.24178368 | U52: 1000000000 | V52: 1318.270864 | X52: 43.8514071 | Y52: -88.40028252 | AA52: 20.1937616 | AB52: -0.3579337994 | AD52: 0 | AE52: 0
A53: 39.811 | B53: 0.039811 | C53: 1.000021439 | D53: 0.006548058416 | E53: 1.000000001 | F53: 3.201790591e-05 | G53: 1 | H53: 0 | I53: 49.99470585 | J53: 1.550792875 | K53: 1.000022806 | L53: 0.006753674344 | M53: 1.000000018 | N53: 0.0001884694306 | O53: 1.000000023 | P53: 0.0003337902132 | Q53: 63.24550688 | R53: -88.87019459 | S53: 91.12980541 | U53: 1000000000 | V53: 1584.915721 | X53: 43.05177664 | Y53: -88.4777282 | AA53: 20.19373024 | AB53: -0.3924663913 | AD53: 0 | AE53: 0
A54: 43.652 | B54: 0.043652 | C54: 1.000025775 | D54: 0.007179800047 | E54: 1.000000001 | F54: 3.510702139e-05 | G54: 1 | H54: 0 | I54: 54.81639373 | J54: 1.552552597 | K54: 1.00002742 | L54: 0.007405251962 | M54: 1.000000021 | N54: 0.0002066531252 | O54: 1.000000028 | P54: 0.0003659945837 | Q54: 62.44578035 | R54: -88.97259275 | S54: 91.02740725 | U54: 1000000000 | V54: 1905.497104 | X54: 42.25208782 | Y54: -88.54226205 | AA54: 20.19369254 | AB54: -0.4303307017 | AD54: 0 | AE54: 0
A55: 47.863 | B55: 0.047863 | C55: 1.000030988 | D55: 0.007872390164 | E55: 1.000000001 | F55: 3.849370853e-05 | G55: 1 | H55: 0 | I55: 60.10271262 | J55: 1.554157375 | K55: 1.000032965 | L55: 0.008119588206 | M55: 1.000000026 | N55: 0.0002265884382 | O55: 1.000000033 | P55: 0.0004013011716 | Q55: 61.6461109 | R55: -89.06626488 | S55: 90.93373512 | U55: 1000000000 | V55: 2290.866769 | X55: 41.45246369 | Y55: -88.59442281 | AA55: 20.19364721 | AB55: -0.471842068 | AD55: 0 | AE55: 0
A56: 52.481 | B56: 0.052481 | C56: 1.000037256 | D56: 0.008631911535 | E56: 1.000000001 | F56: 4.220772448e-05 | G56: 1 | H56: 0 | I56: 65.90011085 | J56: 1.555621263 | K56: 1.000039633 | L56: 0.008902956657 | M56: 1.000000031 | N56: 0.0002484505313 | O56: 1.00000004 | P56: 0.0004400201985 | Q56: 60.84627284 | R56: -89.1520314 | S56: 90.8479686 | U56: 1000000000 | V56: 2754.255361 | X56: 40.65268012 | Y56: -88.63466632 | AA56: 20.19359271 | AB56: -0.5173650765 | AD56: 0 | AE56: 0
A57: 57.544 | B57: 0.057544 | C57: 1.000044791 | D57: 0.009464610474 | E57: 1.000000001 | F57: 4.627963067e-05 | G57: 1 | H57: 0 | I57: 72.25629331 | J57: 1.55695626 | K57: 1.000047648 | L57: 0.009761799514 | M57: 1.000000037 | N57: 0.0002724193006 | O57: 1.000000048 | P57: 0.0004824702704 | Q57: 60.04648621 | R57: -89.23059537 | S57: 90.76940463 | U57: 1000000000 | V57: 3311.311936 | X57: 39.85295901 | Y57: -88.66332125 | AA57: 20.1935272 | AB57: -0.5672741183 | AD57: 0 | AE57: 0
A58: 63.096 | B58: 0.063096 | C58: 1.000053851 | D58: 0.01037771889 | E58: 1.000000001 | F58: 5.0744814e-05 | G58: 1 | H58: 0 | I58: 79.22649842 | J58: 1.558173952 | K58: 1.000057286 | L58: 0.01070357544 | M58: 1.000000045 | N58: 0.0002987030465 | O58: 1.000000058 | P58: 0.0005290202997 | Q58: 59.24659543 | R58: -89.30263869 | S58: 90.69736131 | U58: 1000000000 | V58: 3981.105216 | X58: 39.053147 | Y58: -88.68063603 | AA58: 20.19344843 | AB58: -0.6220026608 | AD58: 0 | AE58: 0
A59: 69.183 | B59: 0.069183 | C59: 1.000064742 | D59: 0.01137879601 | E59: 1.000000002 | F59: 5.564026984e-05 | G59: 1 | H59: 0 | I59: 86.86847644 | J59: 1.559284417 | K59: 1.000068872 | L59: 0.01173608058 | M59: 1.000000054 | N59: 0.0003275195375 | O59: 1.000000069 | P59: 0.0005800559673 | Q59: 58.44676643 | R59: -89.36875764 | S59: 90.63124236 | U59: 1000000000 | V59: 4786.287489 | X59: 38.25341269 | Y59: -88.68675384 | AA59: 20.19335374 | AB59: -0.6820037944 | AD59: 0 | AE59: 0
A60: 75.858 | B60: 0.075858 | C60: 1.000077837 | D60: 0.0124765502 | E60: 1.000000002 | F60: 6.100862335e-05 | G60: 1 | H60: 0 | I60: 95.24876669 | J60: 1.56029731 | K60: 1.000082802 | L60: 0.01286829616 | M60: 1.000000064 | N60: 0.0003591196811 | O60: 1.000000083 | P60: 0.0006360216447 | Q60: 57.64683034 | R60: -89.42952724 | S60: 90.57047276 | U60: 1000000000 | V60: 5754.436164 | X60: 37.45359046 | Y60: -88.68172775 | AA60: 20.19323988 | AB60: -0.7477994897 | AD60: 0 | AE60: 0
A61: 83.176 | B61: 0.083176 | C61: 1.000093579 | D61: 0.01368001595 | E61: 1.000000002 | F61: 6.689410813e-05 | G61: 1 | H61: 0 | I61: 104.4364202 | J61: 1.561220977 | K61: 1.000099548 | L61: 0.01410953957 | M61: 1.000000078 | N61: 0.0003937638527 | O61: 1.0000001 | P61: 0.0006973784723 | Q61: 56.84698648 | R61: -89.48544817 | S61: 90.51455183 | U61: 1000000000 | V61: 6918.246976 | X61: 36.65388346 | Y61: -88.66551689 | AA61: 20.19310302 | AB61: -0.8199312717 | AD61: 0 | AE61: 0
A62: 91.201 | B62: 0.091201 | C62: 1.000112506 | D62: 0.01499970416 | E62: 1.000000003 | F62: 7.334819603e-05 | G62: 1 | H62: 0 | I62: 114.5117883 | J62: 1.56206349 | K62: 1.000119682 | L62: 0.01547065076 | M62: 1.000000093 | N62: 0.0004317550345 | O62: 1.000000121 | P62: 0.0007646630495 | Q62: 56.04703226 | R62: -89.53700935 | S62: 90.46299065 | U62: 1000000000 | V62: 8317.622401 | X62: 35.85409379 | Y62: -88.63798018 | AA62: 20.19293847 | AB62: -0.8990291666 | AD62: 0 | AE62: 0
A63: 100 | B63: 0.1 | C63: 1.000135261 | D63: 0.01644661422 | E63: 1.000000003 | F63: 8.042477167e-05 | G63: 1 | H63: 0 | I63: 125.5589891 | J63: 1.562831859 | K63: 1.000143888 | L63: 0.01696297313 | M63: 1.000000112 | N63: 0.0004734104112 | O63: 1.000000145 | P63: 0.0008384371289 | Q63: 55.24709222 | R63: -89.58463983 | S63: 90.41536017 | U63: 1000000000 | V63: 10000 | X63: 35.05435158 | Y63: -88.59888734 | AA63: 20.19274064 | AB63: -0.9857524923 | AD63: 0 | AE63: 0
A64: 109.65 | B64: 0.10965 | C64: 1.000162623 | D64: 0.01803338357 | E64: 1.000000004 | F64: 8.818576209e-05 | G64: 1 | H64: 0 | I64: 137.6746969 | J64: 1.563532764 | K64: 1.000172996 | L64: 0.01859953915 | M64: 1.000000135 | N64: 0.000519094508 | O64: 1.000000174 | P64: 0.0009193463067 | Q64: 54.44698056 | R64: -89.62875421 | S64: 90.37124579 | U64: 1000000000 | V64: 12023.1225 | X64: 34.2544778 | Y64: -88.54789544 | AA64: 20.19250276 | AB64: -1.080858761 | AD64: 0 | AE64: 0
A65: 120.23 | B65: 0.12023 | C65: 1.000195517 | D65: 0.01977297006 | E65: 1.000000005 | F65: 9.669470288e-05 | G65: 1 | H65: 0 | I65: 150.958097 | J65: 1.564171924 | K65: 1.000207988 | L65: 0.02039371121 | M65: 1.000000162 | N65: 0.0005691813184 | O65: 1.000000209 | P65: 0.001008052948 | Q65: 53.64695257 | R65: -89.66971257 | S65: 90.33028743 | U65: 1000000000 | V65: 14455.2529 | X65: 33.45473577 | Y65: -88.48458786 | AA65: 20.1922168 | AB65: -1.185124716 | AD65: 0 | AE65: 0
A66: 131.83 | B66: 0.13183 | C66: 1.00023506 | D66: 0.02168012924 | E66: 1.000000006 | F66: 0.0001060239763 | G66: 1 | H66: 0 | I66: 165.5221864 | J66: 1.564754804 | K66: 1.000250053 | L66: 0.02236070505 | M66: 1.000000195 | N66: 0.0006240969107 | O66: 1.000000252 | P66: 0.001105311644 | Q66: 52.84697778 | R66: -89.7078653 | S66: 90.2921347 | U66: 1000000000 | V66: 17379.1489 | X66: 32.65510474 | Y66: -88.40843043 | AA66: 20.19187305 | AB66: -1.299434872 | AD66: 0 | AE66: 0
A67: 144.54 | B67: 0.14454 | C67: 1.000282564 | D67: 0.02376960222 | E67: 1.000000007 | F67: 0.0001162459647 | G67: 1 | H67: 0 | I67: 181.4799621 | J67: 1.565286049 | K67: 1.000300586 | L67: 0.02451572062 | M67: 1.000000234 | N67: 0.0006842673527 | O67: 1.000000303 | P67: 0.00121187699 | Q67: 52.04755399 | R67: -89.74351565 | S67: 90.25648435 | U67: 1000000000 | V67: 20891.8116 | X67: 31.85609388 | Y67: -88.31884273 | AA67: 20.19146011 | AB67: -1.424672923 | AD67: 0 | AE67: 0
A68: 158.49 | B68: 0.15849 | C68: 1.000339728 | D68: 0.02606268662 | E68: 1.000000008 | F68: 0.0001274652202 | G68: 1 | H68: 0 | I68: 198.9946431 | J68: 1.565771045 | K68: 1.000361395 | L68: 0.02688071873 | M68: 1.000000281 | N68: 0.0007503080759 | O68: 1.000000364 | P68: 0.00132883895 | Q68: 51.2473306 | R68: -89.77702599 | S68: 90.22297401 | U68: 1000000000 | V68: 25119.0801 | X68: 31.05636738 | Y68: -88.2149104 | AA68: 20.19096322 | AB68: -1.562115592 | AD68: 0 | AE68: 0
A69: 173.78 | B69: 0.17378 | C69: 1.000408425 | D69: 0.02857572285 | E69: 1.00000001 | F69: 0.0001397621676 | G69: 1 | H69: 0 | I69: 218.1917826 | J69: 1.566213187 | K69: 1.000434473 | L69: 0.02947254586 | M69: 1.000000338 | N69: 0.0008226924884 | O69: 1.000000438 | P69: 0.001457035961 | Q69: 50.4474274 | R69: -89.80863238 | S69: 90.19136762 | U69: 1000000000 | V69: 30199.4884 | X69: 30.25706127 | Y69: -88.09588984 | AA69: 20.19036612 | AB69: -1.712742547 | AD69: 0 | AE69: 0
A70: 190.55 | B70: 0.19055 | C70: 1.000491035 | D70: 0.03133159291 | E70: 1.000000012 | F70: 0.0001532494015 | G70: 1 | H70: 0 | I70: 239.2471555 | J70: 1.566616537 | K70: 1.00052235 | L70: 0.03231479299 | M70: 1.000000407 | N70: 0.0009020833612 | O70: 1.000000526 | P70: 0.001597641833 | Q70: 49.6473039 | R70: -89.83862571 | S70: 90.16137429 | U70: 1000000000 | V70: 36309.3025 | X70: 29.45765575 | Y70: -87.96070008 | AA70: 20.18964815 | AB70: -1.877925631 | AD70: 0 | AE70: 0
A71: 208.93 | B71: 0.20893 | C71: 1.000590303 | D71: 0.03435149138 | E71: 1.000000014 | F71: 0.0001680314742 | G71: 1 | H71: 0 | I71: 262.323982 | J71: 1.566984238 | K71: 1.000627946 | L71: 0.03542930793 | M71: 1.000000489 | N71: 0.0009890961234 | O71: 1.000000632 | P71: 0.00175174653 | Q71: 48.84753293 | R71: -89.86724036 | S71: 90.13275964 | U71: 1000000000 | V71: 43651.7449 | X71: 28.65874745 | Y71: -87.80830469 | AA71: 20.18878549 | AB71: -2.058935667 | AD71: 0 | AE71: 0
A72: 229.09 | B72: 0.22909 | C72: 1.000709675 | D72: 0.03766312741 | E72: 1.000000017 | F72: 0.0001842451077 | G72: 1 | H72: 0 | I72: 287.6357036 | J72: 1.5673197 | K72: 1.000754928 | L72: 0.03884465339 | M72: 1.000000588 | N72: 0.001084535567 | O72: 1.00000076 | P72: 0.001920775392 | Q72: 48.04750105 | R72: -89.89474277 | S72: 90.10525723 | U72: 1000000000 | V72: 52482.2281 | X72: 27.85975283 | Y72: -87.63730867 | AA72: 20.18774822 | AB72: -2.257434103 | AD72: 0 | AE72: 0
A73: 251.19 | B73: 0.25119 | C73: 1.000853141 | D73: 0.04129249066 | E73: 1.00000002 | F73: 0.0002020189816 | G73: 1 | H73: 0 | I73: 315.3832072 | J73: 1.567625576 | K73: 1.000907538 | L73: 0.04258761371 | M73: 1.000000707 | N73: 0.00118915914 | O73: 1.000000914 | P73: 0.002106069914 | Q73: 47.24766257 | R73: -89.92135224 | S73: 90.07864776 | U73: 1000000000 | V73: 63096.4161 | X73: 27.06116081 | Y73: -87.44637271 | AA73: 20.18650176 | AB73: -2.474979526 | AD73: 0 | AE73: 0
A74: 275.42 | B74: 0.27542 | C74: 1.00102558 | D74: 0.04527039828 | E74: 1.000000025 | F74: 0.000221505903 | G74: 1 | H74: 0 | I74: 345.8050459 | J74: 1.56790452 | K74: 1.001090966 | L74: 0.0466899453 | M74: 1.00000085 | N74: 0.001303866313 | O74: 1.000001099 | P74: 0.002309223119 | Q74: 46.4478998 | R74: -89.94730115 | S74: 90.05269885 | U74: 1000000000 | V74: 75856.1764 | X74: 26.262896 | Y74: -87.233881 | AA74: 20.18500381 | AB74: -2.713420147 | AD74: 0 | AE74: 0
A75: 302 | B75: 0.302 | C75: 1.001232956 | D75: 0.04963245901 | E75: 1.000000029 | F75: 0.0002428828062 | G75: 1 | H75: 0 | I75: 379.1774395 | J75: 1.568159036 | K75: 1.001311555 | L75: 0.05118833735 | M75: 1.000001022 | N75: 0.001429698574 | O75: 1.000001321 | P75: 0.002532079559 | Q75: 45.64778765 | R75: -89.97282622 | S75: 90.02717378 | U75: 1000000000 | V75: 91204 | X75: 25.46458494 | Y75: -86.99793447 | AA75: 20.18320271 | AB75: -2.974891744 | AD75: 0 | AE75: 0
A76: 331.13 | B76: 0.33113 | C76: 1.001482097 | D76: 0.05441082573 | E76: 1.000000035 | F76: 0.0002663105407 | G76: 1 | H76: 0 | I76: 415.751497 | J76: 1.568391041 | K76: 1.001576566 | L76: 0.05611590382 | M76: 1.000001229 | N76: 0.001567602728 | O76: 1.000001589 | P76: 0.002776316098 | Q76: 44.8480944 | R76: -89.99812337 | S76: 90.00187663 | U76: 1000000000 | V76: 109647.0769 | X76: 24.66705504 | Y76: -86.73679997 | AA76: 20.18103936 | AB76: -3.261323403 | AD76: 0 | AE76: 0
A77: 363.08 | B77: 0.36308 | C77: =SQRT(1+(A77/pole1)^2) -> 1.001781637 | D77: =ATAN(A77/pole1) -> 0.0596489073 | E77: =SQRT(1+(A77/Zero1)^2) -> 1.000000043 | F77: =ATAN(A77/Zero1) -> 0.0002920062533 | G77: =IF(VIN_nom>Vout, 1, SQRT(1+(A77/z_RHP)^2)) -> 1 | H77: =IF(VIN_nom>Vout, 0, -ATAN(A77/z_RHP)) -> 0 | I77: =SQRT(1+(A77/Pole2)^2) -> 455.8662158 | J77: =ATAN(A77/Pole2) -> 1.568602699 | K77: =SQRT(1+(A77/Zero2)^2) -> 1.001895181 | L77: =ATAN(A77/Zero2) -> 0.06151735138 | M77: =SQRT(1+(A77/pole4)^2) -> 1.000001477 | N77: =ATAN(A77/pole4) -> 0.001718856957 | O77: =SQRT((1-(V77/pterm2))^2+(A77/pterm1)^2) -> 1.00000191 | P77: =IF((ATAN((A77/pterm1)/(1-A77^2/pterm2))>0),ATAN((A77/pterm1)/(1-A77^2/pterm2)),PI()+ATAN((A77/pterm1)/(1-A77^2/pterm2))) -> 0.0030441965 | Q77: =20*LOG10(((E77*K77*G77)/(C77*I77*O77*M77))*Adc) -> 44.04818291 | R77: =((F77+L77+H77)-(D77+J77+P77+N77))*radconv -> -90.02343266 | S77: =IF(R77>0,R77,R77+180) -> 89.97656734 | U77: 1000000000 | V77: 131827.0864 | X77: =20*LOG10((K77/(I77*M77))*AEA*Afb) -> 23.86974382 | Y77: =(L77-(J77+N77))*radconv -> -86.44811313 | AA77: =20*LOG10((E77*G77/(C77*O77))*Am) -> 20.1784391 | AB77: =(F77+H77-(D77+P77))*radconv -> -3.57531953 | AD77: 0 | AE77: =IF(AD77>0,S75,0) -> 0
A78: 398.11 | B78: =A78/1000 -> 0.39811 | C78: 1.002141621 | D78: 0.0653881689 | E78: 1.000000051 | F78: 0.0003201790482 | G78: 1 | H78: 0 | I78: 499.8480383 | J78: 1.568795717 | K78: 1.00227808 | L78: 0.06743536261 | M78: 1.000001776 | N78: 0.001884692097 | O78: 1.000002296 | P78: 0.00333790068 | Q78: 43.24836359 | R78: -90.04896569 | S78: 89.95103431 | U78: =IF(Q78<0,A78,1000000000) -> 1000000000 | V78: =A78^2 -> 158491.5721 | X78: 23.07304844 | Y78: -86.12959686 | AA78: 20.17531515 | AB78: -3.919368826 | AD78: =SUM((Q79<0)*(Q78>0))*A78 -> 0 | AE78: 0
A79: 436.52 | B79: 0.43652 | C79: 1.002574252 | D79: 0.0716762363 | E79: 1.000000062 | F79: 0.0003510701996 | G79: 1 | H79: 0 | I79: 548.0736284 | J79: 1.568971753 | K79: 1.002738239 | L79: 0.07391894706 | M79: 1.000002135 | N79: 0.00206652834 | O79: 1.000002761 | P79: 0.003659943924 | Q79: 42.44857621 | R79: -90.07494974 | S79: 89.92505026 | U79: 1000000000 | V79: 190549.7104 | X79: 22.27701393 | Y79: -85.7786194 | AA79: 20.17156227 | AB79: -4.296330335 | AD79: 0 | AE79: 0
A80: 478.63 | B80: 0.47863 | C80: 1.003094068 | D80: 0.0785634908 | E80: 1.000000074 | F80: 0.0003849370664 | G80: 1 | H80: 0 | I80: 600.9447615 | J80: 1.56913228 | K80: 1.003291115 | L80: 0.08101992201 | M80: 1.000002567 | N80: 0.002265880542 | O80: 1.000003319 | P80: 0.004013009193 | Q80: 41.64894023 | R80: -90.10161269 | S80: 89.89838731 | U80: 1000000000 | V80: 229086.6769 | X80: 21.48188501 | Y80: -85.39238302 | AA80: 20.16705523 | AB80: -4.709229673 | AD80: 0 | AE80: 0
A81: 524.81 | B81: 0.52481 | C81: 1.003718765 | D81: 0.08610780919 | E81: 1.000000089 | F81: 0.00042207722 | G81: 1 | H81: 0 | I81: 658.9259905 | J81: 1.569278705 | K81: 1.003955518 | L81: 0.08879778882 | M81: 1.000003086 | N81: 0.002484500252 | O81: 1.00000399 | P81: 0.004400198659 | Q81: 40.8492308 | R81: -90.12920325 | S81: 89.87079675 | U81: 1000000000 | V81: 275425.5361 | X81: 20.68758891 | Y81: -84.96765963 | AA81: 20.16164189 | AB81: -5.161543624 | AD81: 0 | AE81: 0
A82: 575.44 | B82: 0.57544 | C82: 1.004469223 | D82: 0.0943678055 | E82: 1.000000107 | F82: 0.000462796274 | G82: 1 | H82: 0 | I82: 722.4944237 | J82: 1.569412233 | K82: 1.004753641 | L82: 0.09731275148 | M82: 1.000003711 | N82: 0.002724186335 | O82: 1.000004797 | P82: 0.004824698321 | Q82: 40.04967183 | R82: -90.15796733 | S82: 89.84203267 | U82: 1000000000 | V82: 331131.1936 | X82: 19.89452861 | Y82: -84.50117177 | AA82: 20.15514322 | AB82: -5.656795561 | AD82: 0 | AE82: 0
A83: 630.96 | B83: 0.63096 | C83: 1.005370816 | D83: 0.1034107139 | E83: 1.000000129 | F83: 0.0005074480968 | G83: 1 | H83: 0 | I83: 792.2025027 | J83: 1.569534023 | K83: 1.005712448 | L83: 0.1066338257 | M83: 1.000004461 | N83: 0.00298702167 | O83: 1.000005768 | P83: 0.005290197218 | Q83: 39.2501148 | R83: -90.1881798 | S83: 89.8118202 | U83: 1000000000 | V83: 398110.5216 | X83: 19.10277262 | Y83: -83.98915098 | AA83: 20.14734218 | AB83: -6.199028811 | AD83: 0 | AE83: 0
A84: 691.83 | B84: 0.69183 | C84: 1.006453584 | D84: 0.1133054913 | E84: 1.000000155 | F84: 0.0005564026416 | G84: 1 | H84: 0 | I84: 868.6277798 | J84: 1.569645085 | K84: 1.006863856 | L84: 0.1168317054 | M84: 1.000005363 | N84: 0.003275183782 | O84: 1.000006934 | P84: 0.005800552055 | Q84: 38.45073594 | R84: -90.22012349 | S84: 89.77987651 | U84: 1000000000 | V84: 478628.7489 | X84: 18.31275319 | Y84: -83.4277294 | AA84: 20.13798275 | AB84: -6.792394086 | AD84: 0 | AE84: 0
A85: 758.58 | B85: 0.75858 | C85: 1.007753961 | D85: 0.1241304726 | E85: 1.000000186 | F85: 0.0006100861585 | G85: 1 | H85: 0 | I85: 952.4356963 | J85: 1.569746387 | K85: 1.008246564 | L85: 0.127986624 | M85: 1.000006448 | N85: 0.003591181527 | O85: 1.000008337 | P85: 0.006360206405 | Q85: 37.65138035 | R85: -90.25411895 | S85: 89.74588105 | U85: 1000000000 | V85: 575443.6164 | X85: 17.52462478 | Y85: -82.81250913 | AA85: 20.12675558 | AB85: -7.441609819 | AD85: 0 | AE85: 0
A86: 831.76 | B86: 0.83176 | C86: 1.009314925 | D86: 0.1359646206 | E86: 1.000000224 | F86: 0.0006689409825 | G86: 1 | H86: 0 | I86: 1044.316804 | J86: 1.569838763 | K86: 1.00990621 | L86: 0.1401792992 | M86: 1.000007752 | N86: 0.003937618379 | O86: 1.000010023 | P86: 0.006973771486 | Q86: 36.85226487 | R86: -90.29050153 | S86: 89.70949847 | U86: 1000000000 | V86: 691824.6976 | X86: 16.73896725 | Y86: -82.13906241 | AA86: 20.11329762 | AB86: -8.151439114 | AD86: 0 | AE86: 0
A87: 912.01 | B87: 0.91201 | C87: 1.011188651 | D87: 0.1488980571 | E87: 1.000000269 | F87: 0.0007334818301 | G87: 1 | H87: 0 | I87: 1145.074655 | J87: 1.569923021 | K87: 1.011898178 | L87: 0.1535017359 | M87: 1.000009321 | N87: 0.004317523786 | O87: 1.00001205 | P87: 0.007646613044 | Q87: 36.05320892 | R87: -90.32966114 | S87: 89.67033886 | U87: 1000000000 | V87: 831762.2401 | X87: 15.95603834 | Y87: -81.40233765 | AA87: 20.09717059 | AB87: -8.927323499 | AD87: 0 | AE87: 0
A88: 1000 | B88: 1 | C88: 1.013436722 | D88: 0.1630213055 | E88: 1.000000323 | F88: 0.000804247545 | G88: 1 | H88: 0 | I88: 1255.550467 | J88: 1.569999863 | K88: 1.014287812 | L88: 0.1680460833 | M88: 1.000011206 | N88: 0.004734069099 | O88: 1.000014488 | P88: 0.008384348285 | Q88: 35.25436326 | R88: -90.3720175 | S88: 89.6279825 | U88: 1000000000 | V88: 1000000 | X88: 15.17650239 | Y88: -80.59727694 | AA88: 20.07786088 | AB88: -9.774740565 | AD88: 0 | AE88: 0
A89: 1096.5 | B89: 1.0965 | C89: 1.016133527 | D89: 0.1784352133 | E89: 1.000000389 | F89: 0.0008818573946 | G89: 1 | H89: 0 | I89: 1376.711014 | J89: 1.570069958 | K89: 1.017154003 | L89: 0.1839147797 | M89: 1.000013473 | N89: 0.005190898922 | O89: 1.000017419 | P89: 0.009193432739 | Q89: 34.45557366 | R89: -90.41806099 | S89: 89.58193901 | U89: 1000000000 | V89: 1202312.25 | X89: 14.40082055 | Y89: -79.71825815 | AA89: 20.05475311 | AB89: -10.69980284 | AD89: 0 | AE89: 0
A90: 1202.3 | B90: 1.2023 | C90: 1.019366091 | D90: 0.1952364327 | E90: 1.000000467 | F90: 0.0009669467305 | G90: 1 | H90: 0 | I90: 1509.548179 | J90: 1.570133877 | K90: 1.020588987 | L90: 0.2012055106 | M90: 1.000016198 | N90: 0.005691752335 | O90: 1.000020943 | P90: 0.0100804895 | Q90: 33.65713149 | R90: -90.46832247 | S90: 89.53167753 | U90: 1000000000 | V90: 1445525.29 | X90: 13.62999634 | Y90: -78.75993132 | AA90: 20.02713515 | AB90: -11.70839115 | AD90: 0 | AE90: =IF(AD90>0,S90,0) -> 0
A91: 1318.3 | B91: 1.3183 | C91: 1.023238747 | D91: 0.2135296763 | E91: 1.000000562 | F91: 0.00106023937 | G91: 1 | H91: 0 | I91: 1655.191958 | J91: 1.570192167 | K91: 1.024703267 | L91: 0.2200237182 | M91: 1.000019475 | N91: 0.006240888891 | O91: 1.000025179 | P91: 0.01105306374 | Q91: 32.85904826 | R91: -90.52342637 | S91: 89.47657363 | U91: 1000000000 | V91: 1737914.89 | X91: 12.86488496 | Y91: -77.71653044 | AA91: 19.99416329 | AB91: -12.80689593 | AD91: 0 | AE91: 0
A92: 1445.4 | B92: 1.4454 | C92: 1.027871922 | D92: 0.233407729 | E92: 1.000000676 | F92: 0.001162459129 | G92: 1 | H92: 0 | I92: 1814.772345 | J92: 1.570245293 | K92: 1.029624274 | L92: 0.2404619126 | M92: 1.000023411 | N92: 0.006842567801 | O92: 1.000030268 | P92: 0.01211870043 | Q92: 32.06186769 | R92: -90.58404991 | S92: 89.41595009 | U92: 1000000000 | V92: 2089181.16 | X92: 12.10698812 | Y92: -76.58302574 | AA92: 19.95487957 | AB92: -14.00102418 | AD92: 0 | AE92: 0
A93: 1584.9 | B93: 1.5849 | C93: 1.033420116 | D93: 0.2550104143 | E93: 1.000000812 | F93: 0.001274651519 | G93: 1 | H93: 0 | I93: 1989.921556 | J93: 1.570293794 | K93: 1.035515391 | L93: 0.2626601338 | M93: 1.000028148 | N93: 0.007502941374 | O93: 1.000036392 | P93: 0.01328829791 | Q93: 31.264296 | R93: -90.65112858 | S93: 89.34887142 | U93: 1000000000 | V93: 2511908.01 | X93: 11.35622661 | Y93: -75.35177686 | AA93: 19.90806939 | AB93: -15.29935172 | AD93: 0 | AE93: 0
A94: 1737.8 | B94: 1.7378 | C94: 1.040048877 | D94: 0.278411291 | E94: 1.000000977 | F94: 0.001397620775 | G94: 1 | H94: 0 | I94: 2181.895139 | J94: 1.57033801 | K94: 1.0425514 | L94: 0.2866893098 | M94: 1.000033841 | N94: 0.008226741142 | O94: 1.000043753 | P94: 0.01457023888 | Q94: 30.46750727 | R94: -90.72553789 | S94: 89.27446211 | U94: 1000000000 | V94: 3019948.84 | X94: 10.61503715 | Y94: -74.01901051 | AA94: 19.85247012 | AB94: -16.70652738 | AD94: 0 | AE94: 0
A95: 1905.5 | B95: 1.9055 | C95: 1.047965244 | D95: 0.3037214264 | E95: 1.000001174 | F95: 0.001532492828 | G95: 1 | H95: 0 | I95: 2392.450865 | J95: 1.570378345 | K95: 1.050950676 | L95: 0.31265774 | M95: 1.000040687 | N95: 0.009020591379 | O95: 1.000052605 | P95: 0.01597625916 | Q95: 29.67102415 | R95: -90.80844714 | S95: 89.19155286 | U95: 1000000000 | V95: 3630930.25 | X95: 9.884491796 | Y95: -72.57892439 | AA95: 19.78653235 | AB95: -18.22952275 | AD95: 0 | AE95: 0
A96: 2089.3 | B96: 2.0893 | C96: 1.057400297 | D96: 0.3310067278 | E96: 1.000001412 | F96: 0.001680313177 | G96: 1 | H96: 0 | I96: 2623.22095 | J96: 1.570415116 | K96: 1.060956503 | L96: 0.3406260257 | M96: 1.000048914 | N96: 0.009890641931 | O96: 1.000063243 | P96: 0.01751725549 | Q96: 28.87547939 | R96: -90.90109516 | S96: 89.09890484 | U96: 1000000000 | V96: 4365174.49 | X96: 9.166888345 | Y96: -71.02841669 | AA96: 19.70859104 | AB96: -19.87267847 | AD96: 0 | AE96: 0
A97: 2290.9 | B97: 2.2909 | C97: 1.068637155 | D97: 0.360356102 | E97: 1.000001697 | F97: 0.001842449013 | G97: 1 | H97: 0 | I97: 2876.339827 | J97: 1.570448663 | K97: 1.072866546 | L97: 0.3706768399 | M97: 1.000058809 | N97: 0.01084493473 | O97: 1.000076038 | P97: 0.01920747732 | Q97: 28.080324 | R97: -91.00505752 | S97: 88.99494248 | U97: 1000000000 | V97: 5248222.81 | X97: 8.463658437 | Y97: -69.36323089 | AA97: 19.61666556 | AB97: -21.64182663 | AD97: 0 | AE97: 0
A98: 2511.9 | B98: 2.5119 | C98: 1.081989364 | D98: 0.3917992661 | E98: 1.000002041 | F98: 0.002020187096 | G98: 1 | H98: 0 | I98: 3153.816377 | J98: 1.570479251 | K98: 1.087009665 | L98: 0.4028305901 | M98: 1.000070703 | N98: 0.01189103652 | O98: 1.000091416 | P98: 0.02106033451 | Q98: 27.28606554 | R98: -91.12201097 | S98: 88.87798903 | U98: 1000000000 | V98: 6309641.61 | X98: 7.777384993 | Y98: -67.58264649 | AA98: 19.50868055 | AB98: -23.53936448 | AD98: 0 | AE98: 0
A99: 2754.2 | B99: 2.7542 | C99: 1.097825681 | D99: 0.425357123 | E99: 1.000002453 | F99: 0.002215055443 | G99: 1 | H99: 0 | I99: 3458.036144 | J99: 1.570507145 | K99: 1.103771853 | L99: 0.4370970563 | M99: 1.000085 | N99: 0.01303793171 | O99: 1.000109904 | P99: 0.02309175053 | Q99: 26.4926322 | R99: -91.25394757 | S99: 88.74605243 | U99: 1000000000 | V99: 7585617.64 | X99: 7.110316521 | Y99: -65.68663309 | AA99: 19.38231567 | AB99: -25.56731448 | AD99: 0 | AE99: 0
A100: 3020 | B100: 3.02 | C100: 1.11657656 | D100: 0.4610302242 | E100: 1.00000295 | F100: 0.002428823334 | G100: 1 | H100: 0 | I100: 3791.76134 | J100: 1.570532597 | K100: 1.123602679 | L100: 0.4734636194 | M100: 1.000102197 | N100: 0.01429602148 | O100: 1.000132143 | P100: 0.0253201619 | Q100: 25.69963131 | R100: -91.40318721 | S100: 88.59681279 | U100: 1000000000 | V100: 9120400 | X100: 6.464606868 | Y100: -63.67652402 | AA100: 19.23502444 | AB100: -27.72666319 | AD100: 0 | AE100: 0
A101: 3311.3 | B101: 3.3113 | C101: 1.138700618 | D101: 0.4987232438 | E101: 1.000003546 | F101: 0.002663099174 | G101: 1 | H101: 0 | I101: 4157.503064 | J101: 1.570555798 | K101: 1.146979392 | L101: 0.5118186403 | M101: 1.000122862 | N101: 0.01567475624 | O101: 1.000158866 | P101: 0.02776232564 | Q101: 24.90782924 | R101: -91.57208498 | S101: 88.42791502 | U101: 1000000000 | V101: 10964707.69 | X101: 5.843452699 | Y101: -61.55926819 | AA101: 19.06437654 | AB101: -30.01281679 | AD101: 0 | AE101: 0
A102: 3630.8 | B102: 3.6308 | C102: 1.164750992 | D102: 0.5383563021 | E102: 1.000004263 | F102: 0.002920054316 | G102: 1 | H102: 0 | I102: 4558.6513 | J102: 1.570576964 | K102: 1.174476596 | L102: 0.5520654782 | M102: 1.000147713 | N102: 0.01718689402 | O102: 1.000191006 | P102: 0.03044086374 | Q102: 24.11656901 | R102: -91.76351631 | S102: 88.23648369 | U102: 1000000000 | V102: 13182708.64 | X102: 5.248936003 | Y102: -59.34114606 | AA102: 18.86763301 | AB102: -32.42237025 | AD102: 0 | AE102: 0
A103: 3981.1 | B103: 3.9811 | C103: 1.19531709 | D103: 0.5797528028 | E103: 1.000005126 | F103: 0.003201779651 | G103: 1 | H103: 0 | I103: 4998.470479 | J103: 1.570596266 | K103: 1.206704206 | L103: 0.5940090995 | M103: 1.000177588 | N103: 0.01884471224 | O103: 1.000229645 | P103: 0.033377555 | Q103: 23.32609473 | R103: -91.98037886 | S103: 88.01962114 | U103: 1000000000 | V103: 15849157.21 | X103: 4.683790585 | Y103: -57.03404549 | AA103: 18.64230415 | AB103: -34.94633337 | AD103: 0 | AE103: 0
A104: 4365.2 | B104: 4.3652 | C104: 1.231061738 | D104: 0.6226995744 | E104: 1.000006162 | F104: 0.003510687717 | G104: 1 | H104: 0 | I104: 5480.727252 | J104: 1.570613869 | K104: 1.24434626 | L104: 0.6374183481 | M104: 1.000213505 | N104: 0.02066237182 | O104: 1.000276102 | P104: 0.03659752529 | Q104: 22.53624156 | R104: -92.2258253 | S104: 87.7741747 | U104: 1000000000 | V104: 19054971.04 | X104: 4.150265911 | Y104: -54.65203158 | AA104: 18.38597565 | AB104: -37.57379371 | AD104: 0 | AE104: 0
A105: 4786.3 | B105: 4.7863 | C105: 1.272702194 | D105: 0.6669213156 | E105: 1.000007409 | F105: 0.003849351842 | G105: 1 | H105: 0 | I105: 6009.439378 | J105: 1.570629922 | K105: 1.288140561 | L105: 0.6820012415 | M105: 1.000256679 | N105: 0.02265496754 | O105: 1.000331951 | P105: 0.0401275688 | Q105: 21.74697813 | R105: -92.50307244 | S105: 87.49692756 | U105: 1000000000 | V105: 22908667.69 | X105: 3.650415797 | Y105: -52.21270703 | AA105: 18.09656234 | AB105: -40.29036542 | AD105: 0 | AE105: 0
A106: 5248.1 | B106: 5.2481 | C106: 1.32103595 | D106: 0.7121148193 | E106: 1.000008907 | F106: 0.004220747387 | G106: 1 | H106: 0 | I106: 6589.252393 | J106: 1.570644565 | K106: 1.33890562 | L106: 0.7274407686 | M106: 1.000308591 | N106: 0.02483994345 | O106: 1.00039911 | P106: 0.0439986602 | Q106: 20.95789087 | R106: -92.815523 | S106: 87.184477 | U106: 1000000000 | V106: 27542553.61 | X106: 3.185655512 | Y106: -49.73524275 | AA106: 17.77223536 | AB106: -43.08028025 | AD106: 0 | AE106: 0
A107: 5370.3 | B107: 5.3703 | C107: 1.334256492 | D107: 0.7235184285 | E107: 1.000009327 | F107: 0.004319024666 | G107: 1 | H107: 0 | I107: 6742.680609 | J107: 1.570648018 | K107: 1.352779352 | L107: 0.7388866012 | M107: 1.000323127 | N107: 0.02541808577 | O107: 1.000417917 | P107: 0.04502299012 | Q107: 20.76072237 | R107: -92.89948566 | S107: 87.10051434 | U107: 1000000000 | V107: 28840122.09 | X107: 3.07514042 | Y107: -49.11276783 | AA107: 17.68558195 | AB107: -43.78671783 | AD107: 0 | AE107: 0
A108: 5432.85 | B108: 5.43285 | C108: 1.341089769 | D108: 0.7292681684 | E108: 1.000009546 | F108: 0.004369329412 | G108: 1 | H108: 0 | I108: 6821.215265 | J108: 1.570649725 | K108: 1.359948356 | L108: 0.7446545842 | M108: 1.000330696 | N108: 0.02571401049 | O108: 1.000427711 | P108: 0.04554730525 | Q108: 20.66152867 | R108: -92.94265227 | S108: 87.05734773 | U108: 1000000000 | V108: 29515859.12 | X108: 3.020400357 | Y108: -48.79933982 | AA108: 17.64112832 | AB108: -44.14331246 | AD108: 0 | AE108: 0
A109: 5495.4 | B109: 5.4954 | C109: 1.347966932 | D109: 0.7349594259 | E109: 1.000009767 | F109: 0.004419634135 | G109: 1 | H109: 0 | I109: 6899.749921 | J109: 1.570651394 | K109: 1.367162128 | L109: 0.7503618864 | M109: 1.000338354 | N109: 0.02600993071 | O109: 1.000437619 | P109: 0.04607161742 | Q109: 20.56347048 | R109: -92.98594219 | S109: 87.01405781 | U109: 1000000000 | V109: 30199421.16 | X109: 2.966854037 | Y109: -48.48938607 | AA109: 17.59661644 | AB109: -44.49655612 | AD109: 0 | AE109: 0
A110: 5559.4 | B110: 5.5594 | C110: 1.355048244 | D110: 0.7407226306 | E110: 1.000009995 | F110: 0.004471104972 | G110: 1 | H110: 0 | I110: 6980.105125 | J110: 1.570653062 | K110: 1.37458873 | L110: 0.7561392969 | M110: 1.000346279 | N110: 0.02631270607 | O110: 1.000447873 | P110: 0.0466080808 | Q110: 20.46428715 | R110: -93.03035964 | S110: 86.96964036 | U110: 1000000000 | V110: 30906928.36 | X110: 2.913268144 | Y110: -48.17580818 | AA110: 17.55101901 | AB110: -44.85455145 | AD110: 0 | AE110: 0
A111: 5623.4 | B111: 5.6234 | C111: 1.362174094 | D111: 0.7464257258 | E111: 1.000010227 | F111: 0.004522575785 | G111: 1 | H111: 0 | I111: 7060.460329 | J111: 1.570654693 | K111: 1.38206072 | L111: 0.7618544263 | M111: 1.000354296 | N111: 0.02661547661 | O111: 1.000458247 | P111: 0.04714454099 | Q111: 20.36623813 | R111: -93.07489887 | S111: 86.92510113 | U111: 1000000000 | V111: 31622627.56 | X111: 2.860864355 | Y111: -47.86579629 | AA111: 17.50537378 | AB111: -45.20910258 | AD111: 0 | AE111: 0
A112: 5688.9 | B112: 5.6889 | C112: 1.369512347 | D112: 0.7522008431 | E112: 1.000010467 | F112: 0.00457525292 | G112: 1 | H112: 0 | I112: 7142.698857 | J112: 1.570656324 | K112: 1.389754066 | L112: 0.7676396782 | M112: 1.000362596 | N112: 0.02692533828 | O112: 1.000468987 | P112: 0.04769357115 | Q112: 20.26703832 | R112: -93.12060433 | S112: 86.87939567 | U112: 1000000000 | V112: 32363583.21 | X112: 2.808422414 | Y112: -47.55217296 | AA112: 17.4586159 | AB112: -45.56843136 | AD112: 0 | AE112: 0
A113: 5754.4 | B113: 5.7544 | C113: 1.376895789 | D113: 0.7579142125 | E113: 1.000010709 | F113: 0.004627930031 | G113: 1 | H113: 0 | I113: 7224.937386 | J113: 1.570657917 | K113: 1.397493413 | L113: 0.7733610422 | M113: 1.000370993 | N113: 0.02723519478 | O113: 1.000479851 | P113: 0.04824259789 | Q113: 20.16897219 | R113: -93.16642979 | S113: 86.83357021 | U113: 1000000000 | V113: 33113119.36 | X113: 2.757150889 | Y113: -47.24220773 | AA113: 17.4118213 | AB113: -45.92422206 | AD113: 0 | AE113: 0
A114: 5821.4 | B114: 5.8214 | C114: 1.384494315 | D114: 0.7636951815 | E114: 1.00001096 | F114: 0.00468181346 | G114: 1 | H114: 0 | I114: 7309.05924 | J114: 1.57065951 | K114: 1.405456798 | L114: 0.7791480436 | M114: 1.00037968 | N114: 0.02755214182 | O114: 1.000491093 | P114: 0.04880419421 | Q114: 20.06980596 | R114: -93.21342496 | S114: 86.78657504 | U114: 1000000000 | V114: 33888697.96 | X114: 2.70588219 | Y114: -46.92888797 | AA114: 17.36392377 | AB114: -46.28453699 | AD114: 0 | AE114: 0
A115: 5888.4 | B115: 5.8884 | C115: 1.392138605 | D115: 0.7694128528 | E115: 1.000011214 | F115: 0.004735696862 | G115: 1 | H115: 0 | I115: 7393.181094 | J115: 1.570661067 | K115: 1.413466719 | L115: 0.7848696466 | M115: 1.000388469 | N115: 0.02786908332 | O115: 1.000502466 | P115: 0.04936578687 | Q115: 19.97177162 | R115: -93.26053789 | S115: 86.73946211 | U115: 1000000000 | V115: 34673254.56 | X115: 2.655770374 | Y115: -46.61931287 | AA115: 17.31600125 | AB115: -46.64122502 | AD115: 0 | AE115: 0
A116: 5957 | B116: 5.957 | C116: 1.400012078 | D116: 0.775202178 | E116: 1.000011476 | F116: 0.004790867004 | G116: 1 | H116: 0 | I116: 7479.311828 | J116: 1.570662625 | K116: 1.421715317 | L116: 0.7906608917 | M116: 1.000397571 | N116: 0.02819358777 | O116: 1.000514244 | P116: 0.04994078687 | Q116: 19.87254169 | R116: -93.30889393 | S116: 86.69110607 | U116: 1000000000 | V116: 35485849 | X116: 2.60562653 | Y116: -46.30618095 | AA116: 17.26691516 | AB116: -47.00271298 | AD116: 0 | AE116: 0
A117: 6025.6 | B117: 6.0256 | C117: 1.407931948 | D117: 0.7809265613 | E117: 1.000011742 | F117: 0.004846037117 | G117: 1 | H117: 0 | I117: 7565.442562 | J117: 1.570664147 | K117: 1.430011047 | L117: 0.796385135 | M117: 1.000406778 | N117: 0.02851808628 | O117: 1.00052616 | P117: 0.05051578297 | Q117: 19.77444402 | R117: -93.35736539 | S117: 86.64263461 | U117: 1000000000 | V117: 36307855.36 | X117: 2.556627623 | Y117: -45.99688558 | AA117: 17.2178164 | AB117: -47.36047982 | AD117: 0 | AE117: 0
A118: 6095.8 | B118: 6.0958 | C118: 1.416083759 | D118: 0.7867179752 | E118: 1.000012017 | F118: 0.004902493965 | G118: 1 | H118: 0 | I118: 7653.582176 | J118: 1.570665669 | K118: 1.438548205 | L118: 0.8021743457 | M118: 1.00041631 | N118: 0.02885014704 | O118: 1.000538494 | P118: 0.05110418594 | Q118: 19.67520333 | R118: -93.40708279 | S118: 86.59291721 | U118: 1000000000 | V118: 37158777.64 | X118: 2.507637187 | Y118: -45.68430113 | AA118: 17.16756615 | AB118: -47.72278165 | AD118: 0 | AE118: 0
A119: 6166 | B119: 6.166 | C119: 1.424282522 | D119: 0.7924429036 | E119: 1.000012296 | F119: 0.004958950782 | G119: 1 | H119: 0 | I119: 7741.72179 | J119: 1.570667157 | K119: 1.447133007 | L119: 0.8078950598 | M119: 1.000425952 | N119: 0.02918220145 | O119: 1.000550972 | P119: 0.05169258473 | Q119: 19.57709404 | R119: -93.45691283 | S119: 86.54308717 | U119: 1000000000 | V119: 38019556 | X119: 2.459777853 | Y119: -45.37563891 | AA119: 17.11731619 | AB119: -48.08127392 | AD119: 0 | AE119: 0
A120: 6237.8 | B120: 6.2378 | C120: 1.43271588 | D120: 0.7982303411 | E120: 1.000012584 | F120: 0.005016694332 | G120: 1 | H120: 0 | I120: 7831.870284 | J120: 1.570668643 | K120: 1.455961879 | L120: 0.8136761806 | M120: 1.000435927 | N120: 0.02952181739 | O120: 1.000563882 | P120: 0.05229438992 | Q120: 19.47789185 | R120: -93.50799093 | S120: 86.49200907 | U120: 1000000000 | V120: 38910148.84 | X120: 2.411963831 | Y120: -45.06394883 | AA120: 17.06592802 | AB120: -48.4440421 | AD120: 0 | AE120: 0
A121: 6309.6 | B121: 6.3096 | C121: 1.441196663 | D121: 0.8039498555 | E121: 1.000012875 | F121: 0.005074437848 | G121: 1 | H121: 0 | I121: 7922.018778 | J121: 1.570670096 | K121: 1.464838824 | L121: 0.819387423 | M121: 1.000446018 | N121: 0.02986142651 | O121: 1.000576942 | P121: 0.05289619062 | Q121: 19.37981906 | R121: -93.55917848 | S121: 86.44082152 | U121: 1000000000 | V121: 39811052.16 | X121: 2.365265344 | Y121: -44.75626017 | AA121: 17.01455371 | AB121: -48.80291832 | AD121: 0 | AE121: 0
A122: 6383.05 | B122: 6.38305 | C122: 1.449920544 | D122: 0.8097313808 | E122: 1.000013177 | F122: 0.005133508304 | G122: 1 | H122: 0 | I122: 8014.23893 | J122: 1.570671549 | K122: 1.473968602 | L122: 0.8251585385 | M122: 1.00045646 | N122: 0.03020883289 | O122: 1.000590457 | P122: 0.0535118163 | Q122: 19.28063403 | R122: -93.61165133 | S122: 86.38834867 | U122: 1000000000 | V122: 40743327.3 | X122: 2.318614127 | Y122: -44.44558775 | AA122: 16.9620199 | AB122: -49.16606359 | AD122: 0 | AE122: 0
A123: 6456.5 | B123: 6.4565 | C123: 1.45869231 | D123: 0.8154435614 | E123: 1.000013482 | F123: 0.005192578724 | G123: 1 | H123: 0 | I123: 8106.459082 | J123: 1.570672968 | K123: 1.483146867 | L123: 0.8308584143 | M123: 1.000467023 | N123: 0.03055623198 | O123: 1.000604128 | P123: 0.05412743718 | Q123: 19.18257684 | R123: -93.66423017 | S123: 86.33576983 | U123: 1000000000 | V123: 41686392.25 | X123: 2.273062766 | Y123: -44.13899475 | AA123: 16.90951408 | AB123: -49.52523542 | AD123: 0 | AE123: 0
A124: 6531.7 | B124: 6.5317 | C124: 1.467721782 | D124: 0.8212209089 | E124: 1.000013797 | F124: 0.005253056503 | G124: 1 | H124: 0 | I124: 8200.876446 | J124: 1.570674389 | K124: 1.49259311 | L124: 0.8366212772 | M124: 1.000477963 | N124: 0.03091190046 | O124: 1.000618287 | P124: 0.05475772062 | Q124: 19.08332477 | R124: -93.71816721 | S124: 86.28183279 | U124: 1000000000 | V124: 42663104.89 | X124: 2.227531784 | Y124: -43.82926671 | AA124: 16.85579299 | AB124: -49.88890051 | AD124: 0 | AE124: 0
A125: 6606.9 | B125: 6.6069 | C125: 1.476799643 | D125: 0.8269274184 | E125: 1.000014117 | F125: 0.005313534243 | G125: 1 | H125: 0 | I125: 8295.293811 | J125: 1.570675777 | K125: 1.502088298 | L125: 0.8423114692 | M125: 1.000489029 | N125: 0.03126756112 | O125: 1.00063261 | P125: 0.05538799891 | Q125: 18.98520088 | R125: -93.77220668 | S125: 86.22779332 | U125: 1000000000 | V125: 43651127.61 | X125: 2.183086234 | Y125: -43.5237001 | AA125: 16.80211464 | AB125: -50.24850658 | AD125: 0 | AE125: 0
A126: 6683.85 | B126: 6.68385 | C126: 1.486137924 | D126: 0.832694366 | E126: 1.000014448 | F126: 0.005375419338 | G126: 1 | H126: 0 | I126: 8391.908388 | J126: 1.570677164 | K126: 1.511854156 | L126: 0.8480598997 | M126: 1.000500484 | N126: 0.03163149027 | O126: 1.000647437 | P126: 0.05603293918 | Q126: 18.88593432 | R126: -93.82760535 | S126: 86.17239465 | U126: 1000000000 | V126: 44673850.82 | X126: 2.138696272 | Y126: -43.21527041 | AA126: 16.74723805 | AB126: -50.61233494 | AD126: 0 | AE126: 0
A127: 6760.8 | B127: 6.7608 | C127: 1.495525013 | D127: 0.8383891052 | E127: 1.000014782 | F127: 0.005437304391 | G127: 1 | H127: 0 | I127: 8488.522965 | J127: 1.570678521 | K127: 1.521669331 | L127: 0.8537343579 | M127: 1.000512072 | N127: 0.03199541103 | O127: 1.000662436 | P127: 0.05667787392 | Q127: 18.78779507 | R127: -93.88310249 | S127: 86.11689751 | U127: 1000000000 | V127: 45708416.64 | X127: 2.095375587 | Y127: -42.91107674 | AA127: 16.69241949 | AB127: -50.97202575 | AD127: 0 | AE127: 0
A128: 6839.55 | B128: 6.83955 | C128: 1.505181263 | D128: 0.8441433209 | E128: 1.000015129 | F128: 0.005500637004 | G128: 1 | H128: 0 | I128: 8587.397532 | J128: 1.570679877 | K128: 1.531764171 | L128: 0.8594660701 | M128: 1.000524067 | N128: 0.03236783578 | O128: 1.000677963 | P128: 0.05733788906 | Q128: 18.68850031 | R128: -93.93999532 | S128: 86.06000468 | U128: 1000000000 | V128: 46779444.2 | X128: 2.052115035 | Y128: -42.6040899 | AA128: 16.63638527 | AB128: -51.33590541 | AD128: 0 | AE128: 0
A129: 6918.3 | B129: 6.9183 | C129: 1.514886714 | D129: 0.8498239915 | E129: 1.000015479 | F129: 0.005563969573 | G129: 1 | H129: 0 | I129: 8686.2721 | J129: 1.570681203 | K129: 1.541908673 | L129: 0.8651225462 | M129: 1.000536202 | N129: 0.03274025155 | O129: 1.000693671 | P129: 0.05799789827 | Q129: 18.59033226 | R129: -93.99698241 | S129: 86.00301759 | U129: 1000000000 | V129: 47862874.89 | X129: 2.009907352 | Y129: -42.30141149 | AA129: 16.5804249 | AB129: -51.69557092 | AD129: 0 | AE129: 0
A130: 6998.9 | B130: 6.9989 | C130: 1.524870135 | D130: 0.8555630423 | E130: 1.000015842 | F130: 0.005628789909 | G130: 1 | H130: 0 | I130: 8787.469434 | J130: 1.570682528 | K130: 1.552341901 | L130: 0.8708351618 | M130: 1.000548765 | N130: 0.03312140673 | O130: 1.000709934 | P130: 0.05867340625 | Q130: 18.49099776 | R130: -94.05540141 | S130: 85.94459859 | U130: 1000000000 | V130: 48984601.21 | X130: 1.96776491 | Y130: -41.99601727 | AA130: 16.52323285 | AB130: -52.05938414 | AD130: 0 | AE130: 0
A131: 7079.5 | B131: 7.0795 | C131: 1.534903127 | D131: 0.8612272504 | E131: 1.000016209 | F131: 0.005693610198 | G131: 1 | H131: 0 | I131: 8888.666769 | J131: 1.570683824 | K131: 1.562825111 | L131: 0.8764713205 | M131: 1.000561473 | N131: 0.03350255228 | O131: 1.000726385 | P131: 0.05934890789 | Q131: 18.39278965 | R131: -94.11391025 | S131: 85.88608975 | U131: 1000000000 | V131: 50119320.25 | X131: 1.926658643 | Y131: -41.69500143 | AA131: 16.46613101 | AB131: -52.41890882 | AD131: 0 | AE131: 0
A132: 7161.95 | B132: 7.16195 | C132: 1.545216686 | D132: 0.8669451738 | E132: 1.000016589 | F132: 0.005759918248 | G132: 1 | H132: 0 | I132: 8992.186872 | J132: 1.570685119 | K132: 1.573599614 | L132: 0.8821589594 | M132: 1.000574624 | N132: 0.03389243613 | O132: 1.00074341 | P132: 0.06003990756 | Q132: 18.29346588 | R132: -94.17385052 | S132: 85.82614948 | U132: 1000000000 | V132: 51293527.8 | X132: 1.885647708 | Y132: -41.39153664 | AA132: 16.40781817 | AB132: -52.78231389 | AD132: 0 | AE132: 0
A133: 7244.4 | B133: 7.2444 | C133: 1.555580096 | D133: 0.872587093 | E133: 1.000016973 | F133: 0.005826226247 | G133: 1 | H133: 0 | I133: 9095.706974 | J133: 1.570686385 | K133: 1.584424329 | L133: 0.8877690623 | M133: 1.000587926 | N133: 0.03428230967 | O133: 1.000760632 | P133: 0.06073090042 | Q133: 18.195267 | R133: -94.2338759 | S133: 85.7661241 | U133: 1000000000 | V133: 52481331.36 | X133: 1.845654728 | Y133: -41.09251204 | AA133: 16.34961227 | AB133: -53.14136386 | AD133: 0 | AE133: 0
A134: 7328.75 | B134: 7.32875 | C134: 1.566232876 | D134: 0.8782815772 | E134: 1.00001737 | F134: 0.005894062212 | G134: 1 | H134: 0 | I134: 9201.612622 | J134: 1.57068765 | K134: 1.595549387 | L134: 0.8934294904 | M134: 1.000601693 | N134: 0.03468115678 | O134: 1.000778455 | P134: 0.0614378096 | Q134: 18.09594236 | R134: -94.29536811 | S134: 85.70463189 | U134: 1000000000 | V134: 53710576.56 | X134: 1.805760496 | Y134: -40.79111815 | AA134: 16.29018187 | AB134: -53.50424996 | AD134: 0 | AE134: 0
A135: 7413.1 | B135: 7.4131 | C135: 1.576935758 | D135: 0.8838989429 | E135: 1.000017772 | F135: 0.005961898123 | G135: 1 | H135: 0 | I135: 9307.51827 | J135: 1.570688887 | K135: 1.606724857 | L135: 0.8990113539 | M135: 1.000615619 | N135: 0.03507999284 | O135: 1.000796484 | P135: 0.06214471148 | Q135: 17.99774138 | R135: -94.3569405 | S135: 85.6430595 | U135: 1000000000 | V135: 54954051.61 | X135: 1.766865809 | Y135: -40.49422341 | AA135: 16.23087557 | AB135: -53.86271709 | AD135: 0 | AE135: 0
A136: 7499.45 | B136: 7.49945 | C136: 1.587943252 | D136: 0.8895708793 | E136: 1.000018189 | F136: 0.006031342416 | G136: 1 | H136: 0 | I136: 9415.935018 | J136: 1.570690124 | K136: 1.618216436 | L136: 0.9046455266 | M136: 1.000630039 | N136: 0.03548827404 | O136: 1.000815156 | P136: 0.06286836689 | Q136: 17.89834904 | R136: -94.42005141 | S136: 85.57994859 | U136: 1000000000 | V136: 56241750.3 | X136: 1.728051432 | Y136: -40.19487276 | AA136: 16.1702976 | AB136: -54.22517865 | AD136: 0 | AE136: 0
A137: 7585.8 | B137: 7.5858 | C137: 1.599001128 | D137: 0.8951645453 | E137: 1.00001861 | F137: 0.006100786652 | G137: 1 | H137: 0 | I137: 9524.351765 | J137: 1.570691333 | K137: 1.629758658 | L137: 0.9102000692 | M137: 1.000644627 | N137: 0.0358965434 | O137: 1.000834044 | P137: 0.06359201448 | Q137: 17.8000806 | R137: -94.48323748 | S137: 85.51676252 | U137: 1000000000 | V137: 57544361.64 | X137: 1.6902191 | Y137: -39.90008229 | AA137: 16.1098615 | AB137: -54.58315519 | AD137: 0 | AE137: 0
A138: 7674.15 | B138: 7.67415 | C138: 1.610366183 | D138: 0.9008080788 | E138: 1.000019046 | F138: 0.006171839262 | G138: 1 | H138: 0 | I138: 9635.279613 | J138: 1.570692542 | K138: 1.641619518 | L138: 0.9158022439 | M138: 1.000659725 | N138: 0.03631425652 | O138: 1.000853593 | P138: 0.06433241469 | Q138: 17.70067252 | R138: -94.54796041 | S138: 85.45203959 | U138: 1000000000 | V138: 58892578.22 | X138: 1.65249434 | Y138: -39.60310378 | AA138: 16.04817819 | AB138: -54.94485664 | AD138: 0 | AE138: 0
A139: 7762.5 | B139: 7.7625 | C139: 1.621781809 | D139: 0.9063723386 | E139: 1.000019487 | F139: 0.00624289181 | G139: 1 | H139: 0 | I139: 9746.207461 | J139: 1.570693723 | K139: 1.653531159 | L139: 0.9213238765 | M139: 1.000674998 | N139: 0.03673195696 | O139: 1.000873369 | P139: 0.06507280652 | Q139: 17.60238744 | R139: -94.61275324 | S139: 85.38724676 | U139: 1000000000 | V139: 60256406.25 | X139: 1.615732706 | Y139: -39.31073769 | AA139: 15.98665474 | AB139: -55.30201555 | AD139: 0 | AE139: 0
A140: 7852.9 | B140: 7.8529 | C140: 1.63351355 | D140: 0.9119850305 | E140: 1.000019944 | F140: 0.006315592937 | G140: 1 | H140: 0 | I140: 9859.709187 | J140: 1.570694904 | K140: 1.665770614 | L140: 0.9268917162 | M140: 1.000690806 | N140: 0.0371593361 | O140: 1.000893839 | P140: 0.06583036902 | Q140: 17.50295741 | R140: -94.67911745 | S140: 85.32088255 | U140: 1000000000 | V140: 61668038.41 | X140: 1.579082681 | Y140: -39.01627866 | AA140: 15.92387473 | AB140: -55.66283878 | AD140: 0 | AE140: 0
A141: 7943.3 | B141: 7.9433 | C141: =SQRT(1+(A141/pole1)^2) -> 1.645296016 | D141: =ATAN(A141/pole1) -> 0.9175175064 | E141: =SQRT(1+(A141/Zero1)^2) -> 1.000020405 | F141: =ATAN(A141/Zero1) -> 0.006388293997 | G141: =IF(VIN_nom>Vout, 1, SQRT(1+(A141/z_RHP)^2)) -> 1 | H141: =IF(VIN_nom>Vout, 0, -ATAN(A141/z_RHP)) -> 0 | I141: =SQRT(1+(A141/Pole2)^2) -> 9973.210913 | J141: =ATAN(A141/Pole2) -> 1.570696058 | K141: =SQRT(1+(A141/Zero2)^2) -> 1.678060955 | L141: =ATAN(A141/Zero2) -> 0.9323781648 | M141: =SQRT(1+(A141/pole4)^2) -> 1.000706796 | N141: =ATAN(A141/pole4) -> 0.03758670166 | O141: =SQRT((1-(V141/pterm2))^2+(A141/pterm1)^2) -> 1.000914547 | P141: =IF((ATAN((A141/pterm1)/(1-A141^2/pterm2))>0),ATAN((A141/pterm1)/(1-A141^2/pterm2)),PI()+ATAN((A141/pterm1)/(1-A141^2/pterm2))) -> 0.06658792256 | Q141: =20*LOG10(((E141*K141*G141)/(C141*I141*O141*M141))*Adc) -> 17.40464959 | R141: =((F141+L141+H141)-(D141+J141+P141+N141))*radconv -> -94.74554615 | S141: =IF(R141>0,R141,R141+180) -> 85.25445385 | U141: 1000000000 | V141: 63096014.89 | X141: =20*LOG10((K141/(I141*M141))*AEA*Afb) -> 1.543376645 | Y141: =(L141-(J141+N141))*radconv -> -38.72648069 | AA141: =20*LOG10((E141*G141/(C141*O141))*Am) -> 15.86127294 | AB141: =(F141+H141-(D141+P141))*radconv -> -56.01906545 | AD141: 0 | AE141: 0
A142: 8035.8 | B142: =A142/1000 -> 8.0358 | C142: 1.657403567 | D142: 0.9230969043 | E142: 1.000020884 | F142: 0.00646268384 | G142: 1 | H142: 0 | I142: 10089.34929 | J142: 1.570697212 | K142: 1.690688316 | L142: 0.9379093258 | M142: 1.000723347 | N142: 0.03802398074 | O142: 1.000935981 | P142: 0.06736306473 | Q142: 17.30519292 | R142: -94.81358045 | S142: 85.18641955 | U142: =IF(Q142<0,A142,1000000000) -> 1000000000 | V142: =A142^2 -> 64574081.64 | X142: 1.507786289 | Y142: -38.43468889 | AA142: 15.79740663 | AB142: -56.37889156 | AD142: =SUM((Q143<0)*(Q142>0))*A142 -> 0 | AE142: 0
A143: 8128.3 | B143: 8.1283 | C143: 1.669561963 | D143: 0.9285952086 | E143: 1.000021367 | F143: 0.006537073611 | G143: 1 | H143: 0 | I143: 10205.48767 | J143: 1.57069834 | K143: 1.703366635 | L143: 0.9433583134 | M143: 1.00074009 | N143: 0.03846124528 | O143: 1.000957664 | P143: 0.06813819729 | Q143: 17.20685779 | R143: -94.88167373 | S143: 85.11832627 | U143: 1000000000 | V143: 66069260.89 | X143: 1.473120566 | Y143: -38.14760293 | AA143: 15.73373722 | AB143: -56.7340708 | AD143: 0 | AE143: 0
A144: 8222.95 | B144: 8.22295 | C144: 1.682054441 | D144: 0.9341388601 | E144: 1.000021868 | F144: 0.006613192367 | G144: 1 | H144: 0 | I144: 10324.32549 | J144: 1.570699468 | K144: 1.716391208 | L144: 0.9488504587 | M144: 1.00075742 | N144: 0.03890865802 | O144: 1.000980108 | P144: 0.06893133638 | Q144: 17.10737123 | R144: -94.95140654 | S144: 85.04859346 | U144: 1000000000 | V144: 67616906.7 | X144: 1.43857455 | Y144: -37.85862567 | AA144: 15.66879668 | AB144: -57.09278087 | AD144: 0 | AE144: 0
A145: 8270.275 | B145: 8.270275 | C145: 1.68831985 | D145: 0.9368798792 | E145: 1.00002212 | F145: 0.006651251716 | G145: 1 | H145: 0 | I145: 10383.74439 | J145: 1.570700022 | K145: 1.722922688 | L145: 0.9515653517 | M145: 1.00076616 | N145: 0.03913235856 | O145: 1.000991428 | P145: 0.06932790206 | Q145: 17.05804993 | R145: -94.98629321 | S145: 85.01370679 | U145: 1000000000 | V145: 68397448.58 | X145: 1.421642846 | Y145: -37.71592261 | AA145: 15.63640708 | AB145: -57.27037059 | AD145: 0 | AE145: 0
A146: 8317.6 | B146: 8.3176 | C146: 1.69459785 | D146: 0.9396006092 | E146: 1.000022374 | F146: 0.006689311046 | G146: 1 | H146: 0 | I146: 10443.1633 | J146: 1.57070057 | K146: 1.729466772 | L146: 0.9542597188 | M146: 1.00077495 | N146: 0.03935605519 | O146: 1.001002813 | P146: 0.06972446516 | Q146: 17.00900561 | R146: -95.02119271 | S146: 84.97880729 | U146: 1000000000 | V146: 69182469.76 | X146: 1.404933601 | Y146: -37.57439502 | AA146: 15.60407201 | AB146: -57.44679769 | AD146: 0 | AE146: 0
A147: 8366.05 | B147: 8.36605 | C147: 1.701037986 | D147: 0.9423651903 | E147: 1.000022635 | F147: 0.006728275094 | G147: 1 | H147: 0 | I147: 10503.9947 | J147: 1.570701125 | K147: 1.736179328 | L147: 0.956997074 | M147: 1.000784001 | N147: 0.03958506539 | O147: 1.001014536 | P147: 0.07013045257 | Q147: 16.95907906 | R147: -95.05693462 | S147: 84.94306538 | U147: 1000000000 | V147: 69990792.6 | X147: 1.388053719 | Y147: -37.43070921 | AA147: 15.57102534 | AB147: -57.62622541 | AD147: 0 | AE147: 0
A148: 8414.5 | B148: 8.4145 | C148: 1.707491025 | D148: 0.9451088962 | E148: 1.000022898 | F148: 0.006767239121 | G148: 1 | H148: 0 | I148: 10564.8261 | J148: 1.570701673 | K148: =SQRT(1+(A148/Zero2)^2) -> 1.742904793 | L148: =ATAN(A148/Zero2) -> 0.9597133238 | M148: 1.000793104 | N148: 0.03981407145 | O148: 1.001026327 | P148: 0.07053643724 | Q148: 16.90943615 | R148: -95.09268896 | S148: 84.90731104 | U148: 1000000000 | V148: 70803810.25 | X148: 1.371399197 | Y148: -37.28823205 | AA148: 15.53803696 | AB148: -57.80445691 | AD148: 0 | AE148: 0
A149: 8462.95 | B149: 8.46295 | C149: 1.713956822 | D149: 0.9478319215 | E149: 1.000023163 | F149: 0.006806203129 | G149: 1 | H149: 0 | I149: 10625.6575 | J149: 1.570702215 | K149: 1.749643018 | L149: 0.9624086717 | M149: 1.00080226 | N149: 0.04004307333 | O149: 1.001038186 | P149: 0.07094241914 | Q149: 16.86007361 | R149: -95.12845523 | S149: 84.87154477 | U149: 1000000000 | V149: 71621522.7 | X149: 1.354966206 | Y149: -37.14695188 | AA149: 15.50510741 | AB149: -57.98150335 | AD149: 0 | AE149: 0
A150: 8511.4 | B150: 8.5114 | C150: 1.720435231 | D150: 0.9505344592 | E150: 1.000023429 | F150: 0.006845167115 | G150: 1 | H150: 0 | I150: 10686.4889 | J150: 1.570702751 | K150: 1.756393856 | L150: 0.9650833193 | M150: 1.000811468 | N150: 0.040272071 | O150: 1.001050114 | P150: 0.07134839827 | Q150: 16.81098821 | R150: -95.16423293 | S150: 84.83576707 | U150: 1000000000 | V150: 72443929.96 | X150: 1.338750995 | Y150: -37.00685715 | AA150: 15.47223721 | AB150: -58.15737577 | AD150: 0 | AE150: 0
A151: 8560.95 | B151: 8.56095 | C151: 1.727073623 | D151: 0.9532773637 | E151: 1.000023702 | F151: 0.006885015712 | G151: 1 | H151: 0 | I151: 10748.70141 | J151: 1.570703292 | K151: 1.76331086 | L151: 0.9677974892 | M151: 1.00082094 | N151: 0.04050626342 | O151: 1.001062383 | P151: 0.07176359178 | Q151: 16.76107171 | R151: -95.20083425 | S151: 84.79916575 | U151: 1000000000 | V151: 73289864.9 | X151: 1.322389059 | Y151: -36.86479594 | AA151: 15.43868265 | AB151: -58.3360383 | AD151: 0 | AE151: 0
A152: 8610.5 | B152: 8.6105 | C152: 1.73372491 | D152: 0.9559992428 | E152: 1.000023977 | F152: 0.006924864286 | G152: 1 | H152: 0 | I152: 10810.91391 | J152: 1.570703828 | K152: 1.770240752 | L152: 0.9704904287 | M152: 1.000830467 | N152: 0.0407404514 | O152: 1.001074723 | P152: 0.07217878235 | Q152: 16.71143843 | R152: -95.23744653 | S152: 84.76255347 | U152: 1000000000 | V152: 74140710.25 | X152: 1.306247209 | Y152: -36.72395053 | AA152: 15.40519122 | AB152: -58.513496 | AD152: 0 | AE152: 0
A153: 8660.05 | B153: 8.66005 | C153: 1.740388942 | D153: 0.9587002973 | E153: 1.000024254 | F153: 0.006964712839 | G153: 1 | H153: 0 | I153: 10873.12642 | J153: 1.570704357 | K153: 1.777183381 | L153: 0.9731623474 | M153: 1.000840048 | N153: 0.04097463491 | O153: 1.001087135 | P153: 0.07259396997 | Q153: 16.66208508 | R153: -95.27406929 | S153: 84.72593071 | U153: 1000000000 | V153: 74996466 | X153: 1.290321671 | Y153: -36.58430892 | AA153: 15.37176341 | AB153: -58.68976037 | AD153: 0 | AE153: 0
A154: 8709.6 | B154: 8.7096 | C154: 1.747065575 | D154: 0.9613807264 | E154: 1.000024532 | F154: 0.007004561369 | G154: 1 | H154: 0 | I154: 10935.33893 | J154: 1.57070488 | K154: 1.784138599 | L154: 0.9758134526 | M154: 1.000849684 | N154: 0.04120881392 | O154: 1.001099618 | P154: 0.07300915461 | Q154: 16.61300844 | R154: -95.31070204 | S154: 84.68929796 | U154: 1000000000 | V154: 75857132.16 | X154: 1.274608747 | Y154: -36.44585923 | AA154: 15.33839969 | AB154: -58.86484282 | AD154: 0 | AE154: =IF(AD154>0,S154,0) -> 0
A155: 8760.325 | B155: 8.760325 | C155: 1.753913436 | D155: 0.9641035587 | E155: 1.000024819 | F155: 0.007045354821 | G155: 1 | H155: 0 | I155: 10999.0267 | J155: 1.57070541 | K155: 1.791271636 | L155: 0.9785060795 | M155: 1.000859606 | N155: 0.04144854144 | O155: 1.001112471 | P155: 0.0734341816 | Q155: 16.56305137 | R155: -95.34821336 | S155: 84.65178664 | U155: 1000000000 | V155: 76743294.11 | X155: 1.258739673 | Y155: -36.30534878 | AA155: 15.30431169 | AB155: -59.04286458 | AD155: 0 | AE155: 0
A156: 8811.05 | B156: 8.81105 | C156: 1.760774199 | D156: 0.9668051922 | E156: 1.000025107 | F156: 0.00708614825 | G156: 1 | H156: 0 | I156: 11062.71448 | J156: 1.570705933 | K156: 1.798417557 | L156: 0.9811773275 | M156: 1.000869585 | N156: 0.04168826418 | O156: 1.001125399 | P156: 0.07385920543 | Q156: 16.51337763 | R156: -95.38573419 | S156: 84.61426581 | U156: 1000000000 | V156: 77634602.1 | X156: 1.243085816 | Y156: -36.16606263 | AA156: 15.27029182 | AB156: -59.21967155 | AD156: 0 | AE156: 0
A157: 8861.775 | B157: 8.861775 | C157: 1.767647713 | D157: 0.9694858344 | E157: 1.000025397 | F157: 0.007126941655 | G157: 1 | H157: 0 | I157: 11126.40226 | J157: 1.57070645 | K157: 1.80557621 | L157: 0.9838274127 | M157: 1.000879622 | N157: 0.04192798213 | O157: 1.001138402 | P157: 0.0742842261 | Q157: 16.46398397 | R157: -95.42326405 | S157: 84.57673595 | U157: 1000000000 | V157: 78531056.15 | X157: 1.227643447 | Y157: -36.02798841 | AA157: 15.23634052 | AB157: -59.39527564 | AD157: 0 | AE157: 0
A158: 8912.5 | B158: 8.9125 | C158: 1.774533831 | D158: 0.9721456911 | E158: 1.000025689 | F158: 0.007167735037 | G158: 1 | H158: 0 | I158: 11190.09003 | J158: 1.570706962 | K158: =SQRT(1+(A158/Zero2)^2) -> 1.812747442 | L158: =ATAN(A158/Zero2) -> 0.9864565488 | M158: 1.000889716 | N158: 0.04216769526 | O158: 1.001151479 | P158: 0.07470924357 | Q158: 16.41486715 | R158: -95.46080249 | S158: 84.53919751 | U158: 1000000000 | V158: 79432656.25 | X158: 1.212408916 | Y158: -35.89111387 | AA158: 15.20245824 | AB158: -59.56968862 | AD158: 0 | AE158: 0
A159: 8964.4 | B159: 8.9644 | C159: 1.781592353 | D159: 0.97484586 | E159: 1.000025989 | F159: 0.007209473336 | G159: 1 | H159: 0 | I159: 11255.25308 | J159: 1.570707479 | K159: 1.820097656 | L159: 0.9891251244 | M159: 1.000900104 | N159: 0.04241295612 | O159: 1.001164937 | P159: 0.07514410288 | Q159: 16.36489584 | R159: -95.49921888 | S159: 84.50078112 | U159: 1000000000 | V159: 80360467.36 | X159: 1.197032875 | Y159: -35.7522978 | AA159: 15.16786296 | AB159: -59.74692108 | AD159: 0 | AE159: 0
A160: 9016.3 | B160: 9.0163 | C160: 1.788663761 | D160: 0.9775246983 | E160: 1.000026291 | F160: 0.007251211611 | G160: 1 | H160: 0 | I160: 11320.41613 | J160: 1.570707991 | K160: 1.827460726 | L160: 0.9917722147 | M160: 1.000910552 | N160: 0.04265821187 | O160: 1.001178473 | P160: 0.07557895881 | Q160: 16.3152077 | R160: -95.53764331 | S160: 84.46235669 | U160: 1000000000 | V160: 81293665.69 | X160: 1.181866917 | Y160: -35.61471212 | AA160: 15.13334078 | AB160: -59.92293119 | AD160: 0 | AE160: 0
A161: 9068.2 | B161: 9.0682 | C161: 1.795747904 | D161: 0.9801824197 | E161: 1.000026594 | F161: 0.00729294986 | G161: 1 | H161: 0 | I161: 11385.57918 | J161: 1.570708496 | K161: 1.834836499 | L161: 0.9943980414 | M161: 1.00092106 | N161: 0.04290346248 | O161: 1.001192088 | P161: 0.07601381135 | Q161: 16.26579947 | R161: -95.57607532 | S161: 84.42392468 | U161: 1000000000 | V161: 82232251.24 | X161: 1.166907368 | Y161: -35.47834413 | AA161: 15.0988921 | AB161: -60.0977312 | AD161: 0 | AE161: 0
A162: 9120.1 | B162: 9.1201 | C162: 1.802844631 | D162: 0.9828192359 | E162: 1.000026899 | F162: 0.007334688084 | G162: 1 | H162: 0 | I162: 11450.74223 | J162: 1.570708996 | K162: 1.842224822 | L162: 0.997002824 | M162: 1.000931628 | N162: 0.04314870793 | O162: 1.001205781 | P162: 0.07644866046 | Q162: 16.21666794 | R162: -95.61451447 | S162: 84.38548553 | U162: 1000000000 | V162: 83176224.01 | X162: 1.152150632 | Y162: -35.34318124 | AA162: 15.0645173 | AB162: -60.27133323 | AD162: 0 | AE162: 0
A163: 9173.2 | B163: 9.1732 | C163: 1.810118315 | D163: 0.9854956015 | E163: 1.000027214 | F163: 0.007377391327 | G163: 1 | H163: 0 | I163: 11517.41194 | J163: 1.570709502 | K163: 1.849796804 | L163: 0.9996462795 | M163: 1.000942503 | N163: 0.04339961842 | O163: 1.001219871 | P163: 0.07689356033 | Q163: 16.16668348 | R163: -95.65384933 | S163: 84.34615067 | U163: 1000000000 | V163: 84147598.24 | X163: 1.137258925 | Y163: -35.20612748 | AA163: 15.02942456 | AB163: -60.44772186 | AD163: 0 | AE163: 0
A164: 9226.3 | B164: 9.2263 | C164: 1.81740486 | D164: 0.9881505252 | E164: 1.00002753 | F164: 0.007420094543 | G164: 1 | H164: 0 | I164: 11584.08164 | J164: 1.570710001 | K164: 1.857381608 | L164: 1.002268164 | M164: 1.000953441 | N164: 0.04365052345 | O164: 1.001234044 | P164: 0.07733845659 | Q164: 16.11698204 | R164: -95.69319076 | S164: 84.30680924 | U164: 1000000000 | V164: 85124611.69 | X164: 1.122572137 | Y164: -35.07030901 | AA164: 14.9944099 | AB164: -60.62288174 | AD164: 0 | AE164: 0
A165: 9279.4 | B165: 9.2794 | C165: 1.824704114 | D165: 0.9907842267 | E165: 1.000027847 | F165: 0.007462797732 | G165: 1 | H165: 0 | I165: 11650.75135 | J165: 1.570710495 | K165: 1.864979075 | L165: 1.004868704 | M165: 1.000964442 | N165: 0.04390142297 | O165: 1.001248298 | P165: 0.0777833492 | Q165: 16.06756033 | R165: -95.73253831 | S165: 84.26746169 | U165: 1000000000 | V165: 86107264.36 | X165: 1.10808665 | Y165: -34.93571283 | AA165: 14.95947368 | AB165: -60.79682548 | AD165: 0 | AE165: 0
A166: 9332.5 | B166: 9.3325 | C166: 1.832015923 | D166: 0.9933969234 | E166: 1.000028167 | F166: 0.007505500894 | G166: 1 | H166: 0 | I166: 11717.42106 | J166: 1.570710984 | K166: 1.872589053 | L166: 1.007448124 | M166: 1.000975506 | N166: 0.04415231696 | O166: 1.001262635 | P166: 0.07822823815 | Q166: 16.01841516 | R166: -95.77189158 | S166: 84.22810842 | U166: 1000000000 | V166: 87095556.25 | X166: 1.093798924 | Y166: -34.80232606 | AA166: 14.92461623 | AB166: -60.96956552 | AD166: 0 | AE166: 0
A167: 9386.85 | B167: 9.38685 | C167: 1.839512702 | D167: 0.9960495962 | E167: 1.000028496 | F167: 0.007549209281 | G167: 1 | H167: 0 | I167: 11785.66021 | J167: 1.570711478 | K167: 1.88039097 | L167: 1.010066627 | M167: 1.000986896 | N167: 0.04440911136 | O167: 1.001277394 | P167: 0.07868359619 | Q167: 15.96839615 | R167: -95.81217671 | S167: 84.18782329 | U167: 1000000000 | V167: 88112952.92 | X167: 1.079376039 | Y167: -34.66703845 | AA167: 14.88902012 | AB167: -61.14513827 | AD167: 0 | AE167: 0
A168: 9441.2 | B168: 9.4412 | C168: 1.84702232 | D168: 0.998680717 | E168: 1.000028827 | F168: 0.007592917639 | G168: 1 | H168: 0 | I168: 11853.89935 | J168: 1.570711966 | K168: 1.888205673 | L168: 1.012663473 | M168: 1.000998351 | N168: 0.0446658999 | O168: 1.001292239 | P168: 0.07913895034 | Q168: 15.91866023 | R168: -95.85246696 | S168: 84.14753304 | U168: 1000000000 | V168: 89136257.44 | X168: 1.065153066 | Y168: -34.53299101 | AA168: 14.85350716 | AB168: -61.31947595 | AD168: 0 | AE168: 0
A169: 9495.55 | B169: 9.49555 | C169: 1.854544621 | D169: 1.001290511 | E169: 1.00002916 | F169: 0.007636625968 | G169: 1 | H169: 0 | I169: 11922.1385 | J169: 1.570712449 | K169: 1.896033005 | L169: 1.015238896 | M169: 1.001009873 | N169: 0.04492268254 | O169: 1.00130717 | P169: 0.0795943006 | Q169: 15.8692041 | R169: -95.89276189 | S169: 84.10723811 | U169: 1000000000 | V169: 90165469.8 | X169: 1.051126443 | Y169: -34.4001704 | AA169: 14.81807766 | AB169: -61.49259149 | AD169: 0 | AE169: 0
A170: 9549.9 | B170: 9.5499 | C170: 1.862079452 | D170: 1.003879202 | E170: 1.000029494 | F170: 0.007680334268 | G170: 1 | H170: 0 | I170: 11990.37765 | J170: 1.570712927 | K170: 1.903872809 | L170: 1.017793125 | M170: 1.00102146 | N170: 0.04517945926 | O170: 1.001322187 | P170: 0.08004964693 | Q170: 15.82002458 | R170: -95.93306111 | S170: 84.06693889 | U170: 1000000000 | V170: 91200590.01 | X170: 1.037292683 | Y170: -34.26856344 | AA170: 14.7827319 | AB170: -61.66449768 | AD170: 0 | AE170: 0
A171: 9605.525 | B171: 9.605525 | C171: 1.869803858 | D171: 1.006507 | E171: 1.000029839 | F171: 0.007725067893 | G171: 1 | H171: 0 | I171: 12060.21762 | J171: 1.57071341 | K171: 1.911909283 | L171: 1.020385566 | M171: 1.001033388 | N171: 0.04544225354 | O171: 1.001337645 | P171: 0.08051567117 | Q171: 15.76997446 | R171: -95.97430974 | S171: 84.02569026 | U171: 1000000000 | V171: 92266110.53 | X171: 1.02333054 | Y171: -34.13511217 | AA171: 14.74664392 | AB171: -61.83919757 | AD171: 0 | AE171: 0
A172: 9661.15 | B172: 9.66115 | C172: 1.877541069 | D172: 1.009113158 | E172: 1.000030186 | F172: 0.007769801487 | G172: 1 | H172: 0 | I172: 12130.05759 | J172: 1.570713887 | K172: 1.919958498 | L172: 1.022956287 | M172: 1.001045385 | N172: 0.04570504155 | O172: 1.001353193 | P172: 0.08098169124 | Q172: 15.72020745 | R172: -96.01556202 | S172: 83.98443798 | U172: 1000000000 | V172: 93337819.32 | X172: 1.009563262 | Y172: -34.00290468 | AA172: 14.71064419 | AB172: -62.01265734 | AD172: 0 | AE172: 0
A173: 9716.775 | B173: 9.716775 | C173: 1.885290928 | D173: 1.011697906 | E173: 1.000030534 | F173: 0.00781453505 | G173: 1 | H173: 0 | I173: 12199.89756 | J173: 1.570714359 | K173: 1.928020295 | L173: 1.025505527 | M173: 1.001057451 | N173: 0.04596782323 | O173: 1.001368831 | P173: 0.08144770713 | Q173: 15.67072027 | R173: -96.05681756 | S173: 83.94318244 | U173: 1000000000 | V173: 94415716.4 | X173: 0.9959873448 | Y173: -33.87192732 | AA173: 14.67473292 | AB173: -62.18489024 | AD173: 0 | AE173: 0
A174: 9772.4 | B174: 9.7724 | C174: 1.893053279 | D174: 1.014261475 | E174: 1.000030885 | F174: 0.007859268582 | G174: 1 | H174: 0 | I174: 12269.73753 | J174: 1.570714825 | K174: 1.936094518 | L174: 1.028033521 | M174: 1.001069587 | N174: 0.04623059857 | O174: 1.001384559 | P174: 0.08191371881 | Q174: 15.62150971 | R174: -96.09807597 | S174: 83.90192403 | U174: 1000000000 | V174: 95499801.76 | X174: 0.9825993605 | Y174: -33.74216661 | AA174: 14.63891035 | AB174: -62.35590937 | AD174: 0 | AE174: 0
A175: 9829.3 | B175: 9.8293 | C175: 1.90100632 | D175: 1.016862126 | E175: 1.000031246 | F175: 0.007905027434 | G175: 1 | H175: 0 | I175: 12341.17833 | J175: 1.570715297 | K175: 1.944366507 | L175: 1.030597719 | M175: 1.001082071 | N175: 0.04649939046 | O175: 1.001400741 | P175: 0.08239040773 | Q175: 15.57145411 | R175: -96.14028266 | S175: 83.85971734 | U175: 1000000000 | V175: 96615138.49 | X175: 0.9690954517 | Y175: -33.61067651 | AA175: 14.60235866 | AB175: -62.52960615 | AD175: 0 | AE175: 0
A176: 9886.2 | B176: 9.8862 | C176: 1.90897211 | D176: 1.01944109 | E176: 1.000031608 | F176: 0.007950786253 | G176: 1 | H176: 0 | I176: 12412.61913 | J176: 1.570715764 | K176: 1.952651172 | L176: 1.033140176 | M176: 1.001094629 | N176: 0.04676817562 | O176: 1.001417017 | P176: 0.08286709219 | Q176: 15.52168135 | R176: -96.18249157 | S176: 83.81750843 | U176: 1000000000 | V176: 97736950.44 | X176: 0.9557811649 | Y176: -33.48043145 | AA176: 14.56590018 | AB176: -62.70206012 | AD176: 0 | AE176: 0
A177: 9943.1 | B177: 9.9431 | C177: 1.916950492 | D177: 1.021998603 | E177: 1.000031973 | F177: 0.007996545039 | G177: 1 | H177: 0 | I177: 12484.05993 | J177: 1.570716225 | K177: 1.960948352 | L177: 1.035661134 | M177: 1.001107258 | N177: 0.04703695402 | O177: 1.001433387 | P177: 0.08334377218 | Q177: 15.47218816 | R177: -96.22470231 | S177: 83.77529769 | U177: 1000000000 | V177: 98865237.61 | X177: 0.9426530622 | Y177: -33.3514175 | AA177: 14.5295351 | AB177: -62.87328481 | AD177: 0 | AE177: 0
A178: 10000 | B178: 10 | C178: 1.924941308 | D178: 1.0245349 | E178: 1.00003234 | F178: 0.008042303791 | G178: 1 | H178: 0 | I178: 12555.50073 | J178: 1.57071668 | K178: 1.96925789 | L178: 1.038160832 | M178: 1.00111996 | N178: 0.04730572562 | O178: 1.001449852 | P178: 0.08382044765 | Q178: 15.42297135 | R178: -96.26691453 | S178: 83.73308547 | U178: 1000000000 | V178: 100000000 | X178: 0.9297077798 | Y178: -33.22362093 | AA178: 14.49326357 | AB178: -63.0432936 | AD178: 0 | AE178: 0
A179: 10058.25 | B179: 10.05825 | C179: 1.933134432 | D179: 1.027109634 | E179: 1.000032718 | F179: 0.008089148173 | G179: 1 | H179: 0 | I179: 12628.63652 | J179: 1.570717142 | K179: 1.977777216 | L179: 1.040698063 | M179: 1.001133038 | N179: 0.04758086697 | O179: 1.001466805 | P179: 0.08430842795 | Q179: 15.37286984 | R179: -96.31012942 | S179: 83.68987058 | U179: 1000000000 | V179: 101168393.1 | X179: 0.9166413019 | Y179: -33.09403915 | AA179: 14.45622853 | AB179: -63.21609027 | AD179: 0 | AE179: 0
A180: 10116.5 | B180: 10.1165 | C180: 1.941340264 | D180: 1.02966262 | E180: 1.000033098 | F180: 0.008135992519 | G180: 1 | H180: 0 | I180: 12701.77231 | J180: 1.570717598 | K180: 1.986309165 | L180: 1.043213514 | M180: 1.001146192 | N180: 0.04785600111 | O180: 1.001483856 | P180: 0.08479640347 | Q180: 15.32305135 | R180: -96.35334511 | S180: 83.64665489 | U180: 1000000000 | V180: 102343572.2 | X180: 0.9037595185 | Y180: -32.96570459 | AA180: 14.41929183 | AB180: -63.38764052 | AD180: 0 | AE180: 0
A181: 10174.75 | B181: 10.17475 | C181: 1.949558642 | D181: 1.032194098 | E181: 1.00003348 | F181: 0.00818283683 | G181: 1 | H181: 0 | I181: 12774.9081 | J181: 1.570718048 | K181: 1.994853575 | L181: 1.045707432 | M181: 1.001159422 | N181: 0.04813112799 | O181: 1.001501007 | P181: 0.08528437418 | Q181: 15.27351264 | R181: -96.39656125 | S181: 83.60343875 | U181: 1000000000 | V181: 103525537.6 | X181: 0.8910590506 | Y181: -32.83860306 | AA181: 14.38245359 | AB181: -63.55795819 | AD181: 0 | AE181: 0
A182: 10233 | B182: 10.233 | C182: 1.957789408 | D182: 1.034704306 | E182: 1.000033865 | F182: 0.008229681105 | G182: 1 | H182: 0 | I182: 12848.04389 | J182: 1.570718494 | K182: 2.003410286 | L182: 1.048180062 | M182: 1.001172727 | N182: 0.04840624759 | O182: 1.001518256 | P182: 0.08577234006 | Q182: 15.22425049 | R182: -96.43977747 | S182: 83.56022253 | U182: 1000000000 | V182: 104714289 | X182: 0.8785365929 | Y182: -32.71272053 | AA182: 14.3457139 | AB182: -63.72705694 | AD182: 0 | AE182: 0
A183: 10292.5 | B183: 10.2925 | C183: 1.966209429 | D183: 1.037246668 | E183: 1.00003426 | F183: 0.008277530585 | G183: 1 | H183: 0 | I183: 12922.74912 | J183: 1.570718944 | K183: 2.012163154 | L183: 1.050684025 | M183: 1.001186397 | N183: 0.04868726346 | O183: 1.001535977 | P183: 0.08627077228 | Q183: 15.17421347 | R183: -96.48392084 | S183: 83.51607916 | U183: 1000000000 | V183: 105935556.2 | X183: 0.8659258323 | Y183: -32.58538081 | AA183: 14.30828764 | AB183: -63.89854003 | AD183: 0 | AE183: 0
A184: 10352 | B184: 10.352 | C184: 1.974642051 | D184: 1.039767332 | E184: 1.000034657 | F184: 0.008325380026 | G184: 1 | H184: 0 | I184: 12997.45435 | J184: 1.570719389 | K184: 2.020928529 | L184: 1.053166283 | M184: 1.001200145 | N184: 0.04896827165 | O184: 1.001553801 | P184: 0.0867691994 | Q184: 15.12445844 | R184: -96.5280636 | S184: 83.4719364 | U184: 1000000000 | V184: 107163904 | X184: 0.8534940595 | Y184: -32.45928397 | AA184: 14.27096438 | AB184: -64.06877963 | AD184: 0 | AE184: 0
A185: 10411.5 | B185: 10.4115 | C185: 1.983087112 | D185: 1.042266543 | E185: 1.000035057 | F185: 0.00837322943 | G185: 1 | H185: 0 | I185: 13072.15958 | J185: 1.570719828 | K185: 2.029706249 | L185: 1.055627086 | M185: 1.001213972 | N185: 0.04924927209 | O185: 1.001571728 | P185: 0.08726762139 | Q185: 15.07498214 | R185: -96.57220544 | S185: 83.42779456 | U185: 1000000000 | V185: 108399332.2 | X185: 0.8412379781 | Y185: -32.33441567 | AA185: 14.23374416 | AB185: -64.23778978 | AD185: 0 | AE185: 0
A186: 10471 | B186: 10.471 | C186: 1.991544454 | D186: 1.044744542 | E186: 1.000035458 | F186: 0.008421078795 | G186: 1 | H186: 0 | I186: 13146.86481 | J186: 1.570720263 | K186: 2.038496154 | L186: 1.058066682 | M186: 1.001227879 | N186: 0.04953026475 | O186: 1.001589759 | P186: 0.08776603822 | Q186: 15.02578139 | R186: -96.61634602 | S186: 83.38365398 | U186: 1000000000 | V186: 109641841 | X186: 0.8291543642 | Y186: -32.2107617 | AA186: 14.19662703 | AB186: -64.40558432 | AD186: 0 | AE186: 0
A187: 10532 | B187: 10.532 | C187: 2.000227593 | D187: 1.047263243 | E187: 1.000035873 | F187: 0.008470134406 | G187: 1 | H187: 0 | I187: 13223.45336 | J187: 1.570720704 | K187: 2.047520138 | L187: 1.060546021 | M187: 1.001242218 | N187: 0.04981833313 | O187: 1.001608351 | P187: 0.08827701478 | Q187: 14.97562308 | R187: -96.66159777 | S187: 83.33840223 | U187: 1000000000 | V187: 110923024 | X187: 0.8169418649 | Y187: -32.08523641 | AA187: 14.15868121 | AB187: -64.57636136 | AD187: 0 | AE187: 0
A188: 10593 | B188: 10.593 | C188: 2.008923312 | D188: 1.049760155 | E188: 1.000036289 | F188: 0.008519189977 | G188: 1 | H188: 0 | I188: 13300.04192 | J188: 1.570721139 | K188: 2.056556598 | L188: 1.063003586 | M188: 1.00125664 | N188: 0.05010639323 | O188: 1.001627051 | P188: 0.08878798585 | Q188: 14.92574778 | R188: -96.70684754 | S188: 83.29315246 | U188: 1000000000 | V188: 112211649 | X188: 0.8049040015 | Y188: -31.96095787 | AA188: 14.12084378 | AB188: -64.74588967 | AD188: 0 | AE188: 0
A189: 10654 | B189: 10.654 | C189: 2.017631447 | D189: 1.052235528 | E189: 1.000036709 | F189: 0.008568245507 | G189: 1 | H189: 0 | I189: 13376.63047 | J189: 1.57072157 | K189: 2.065605371 | L189: 1.065439634 | M189: 1.001271145 | N189: 0.05039444502 | O189: 1.00164586 | P189: 0.0892989514 | Q189: 14.87615225 | R189: -96.75209503 | S189: 83.24790497 | U189: 1000000000 | V189: 113507716 | X189: 0.7930375253 | Y189: -31.83791141 | AA189: 14.08311472 | AB189: -64.91418362 | AD189: 0 | AE189: 0
A190: 10715 | B190: 10.715 | C190: 2.026351839 | D190: 1.054689611 | E190: 1.00003713 | F190: 0.008617300995 | G190: 1 | H190: 0 | I190: 13453.21903 | J190: 1.570721995 | K190: 2.074666294 | L190: 1.067854418 | M190: 1.001285733 | N190: 0.05068248843 | O190: 1.001664777 | P190: 0.0898099114 | Q190: 14.82683327 | R190: -96.79733993 | S190: 83.20266007 | U190: 1000000000 | V190: 114811225 | X190: 0.7813392595 | Y190: -31.71608253 | AA190: 14.04549401 | AB190: -65.0812574 | AD190: 0 | AE190: 0
A191: 10777.5 | B191: 10.7775 | C191: 2.035299215 | D191: 1.057182214 | E191: 1.000037564 | F191: 0.008667562724 | G191: 1 | H191: 0 | I191: 13531.6909 | J191: 1.570722426 | K191: 2.083962464 | L191: 1.070306788 | M191: 1.001300767 | N191: 0.05097760615 | O191: 1.001684271 | P191: 0.09033343019 | Q191: 14.77658508 | R191: -96.84369443 | S191: 83.15630557 | U191: 1000000000 | V191: 116154506.2 | X191: 0.7695245495 | Y191: -31.5925058 | AA191: 14.00706053 | AB191: -65.25118863 | AD191: 0 | AE191: 0
A192: 10840 | B192: 10.84 | C192: 2.044259126 | D192: 1.059652981 | E192: 1.000038001 | F192: 0.008717824408 | G192: 1 | H192: 0 | I192: 13610.16278 | J192: 1.570722852 | K192: 2.093271056 | L192: 1.072737361 | M192: 1.001315887 | N192: 0.05127271498 | O192: 1.00170388 | P192: 0.09085694308 | Q192: 14.7266206 | R192: -96.8900456 | S192: 83.1099544 | U192: 1000000000 | V192: 117505600 | X192: 0.7578798971 | Y192: -31.47017711 | AA192: 13.9687407 | AB192: -65.41986848 | AD192: 0 | AE192: 0
A193: 10902.5 | B193: 10.9025 | C193: 2.053231407 | D193: 1.06210217 | E193: 1.000038441 | F193: 0.008768086048 | G193: 1 | H193: 0 | I193: 13688.63466 | J193: 1.570723273 | K193: 2.102591905 | L193: 1.075146399 | M193: 1.001331095 | N193: 0.05156781487 | O193: 1.001723602 | P193: 0.09138045003 | Q193: 14.67693654 | R193: -96.93639315 | S193: 83.06360685 | U193: 1000000000 | V193: 118864506.2 | X193: 0.7464021092 | Y193: -31.34908153 | AA193: 13.93053443 | AB193: -65.58731163 | AD193: 0 | AE193: 0
A194: 10965 | B194: 10.965 | C194: 2.062215897 | D194: 1.064530033 | E194: 1.000038883 | F194: 0.008818347644 | G194: 1 | H194: 0 | I194: 13767.10654 | J194: 1.57072369 | K194: 2.111924848 | L194: 1.077534159 | M194: 1.001346389 | N194: 0.05186290577 | O194: 1.001743438 | P194: 0.09190395102 | Q194: 14.62752971 | R194: -96.98273682 | S194: 83.01726318 | U194: 1000000000 | V194: 120231225 | X194: 0.7350880643 | Y194: -31.22920429 | AA194: 13.89244165 | AB194: -65.75353252 | AD194: 0 | AE194: 0
A195: 11028.75 | B195: 11.02875 | C195: 2.07139249 | D195: 1.06698474 | E195: 1.000039336 | F195: 0.008869614426 | G195: 1 | H195: 0 | I195: 13847.14786 | J195: 1.57072411 | K195: 2.121456745 | L195: 1.079948016 | M195: 1.00136208 | N195: 0.05216388918 | O195: 1.001763788 | P195: 0.09243791584 | Q195: 14.57741706 | R195: -97.03000306 | S195: 82.96999694 | U195: 1000000000 | V195: 121633326.6 | X195: 0.7237132624 | Y195: -31.10816959 | AA195: 13.8537038 | AB195: -65.92183347 | AD195: 0 | AE195: 0
A196: 11092.5 | B196: 11.0925 | C196: 2.080581454 | D196: 1.06941778 | E196: 1.000039792 | F196: 0.008920881161 | G196: 1 | H196: 0 | I196: 13927.18918 | J196: 1.570724525 | K196: 2.131000892 | L196: 1.082340265 | M196: 1.001377861 | N196: 0.05246486313 | O196: 1.001784256 | P196: 0.09297187438 | Q196: 14.52758625 | R196: -97.07726469 | S196: 82.92273531 | U196: 1000000000 | V196: 123043556.2 | X196: 0.7125024785 | Y196: -30.98837212 | AA196: 13.81508377 | AB196: -66.08889256 | AD196: 0 | AE196: 0
A197: 11156.25 | B197: 11.15625 | C197: 2.089782627 | D197: 1.071829408 | E197: 1.000040251 | F197: 0.00897214785 | G197: 1 | H197: 0 | I197: 14007.23049 | J197: 1.570724935 | K197: 2.140557126 | L197: 1.084711168 | M197: 1.001393733 | N197: 0.05276582757 | O197: 1.001804843 | P197: 0.0935058266 | Q197: 14.47803406 | R197: -97.12452145 | S197: 82.87547855 | U197: 1000000000 | V197: 124461914.1 | X197: 0.7014526187 | Y197: -30.86979689 | AA197: 13.77658144 | AB197: -66.25472455 | AD197: 0 | AE197: 0
A198: 11220 | B198: 11.22 | C198: 2.098995846 | D198: 1.07421988 | E198: 1.000040712 | F198: 0.009023414491 | G198: 1 | H198: 0 | I198: 14087.27181 | J198: 1.570725341 | K198: 2.150125285 | L198: 1.087060983 | M198: 1.001409696 | N198: 0.05306678243 | O198: 1.001825548 | P198: 0.09403977246 | Q198: 14.42875729 | R198: -97.17177307 | S198: 82.82822693 | U198: 1000000000 | V198: 125888400 | X198: 0.690560659 | Y198: -30.75242911 | AA198: 13.73819663 | AB198: -66.41934397 | AD198: 0 | AE198: 0
A199: 11285.5 | B199: 11.2855 | C199: 2.10847436 | D199: 1.076654199 | E199: 1.000041189 | F199: 0.009076088402 | G199: 1 | H199: 0 | I199: 14169.51034 | J199: 1.570725753 | K199: 2.159968354 | L199: 1.089453605 | M199: 1.001426191 | N199: 0.05337598878 | O199: 1.001846945 | P199: 0.09458836901 | Q199: 14.37841142 | R199: -97.2203162 | S199: 82.7796838 | U199: 1000000000 | V199: 127362510.2 | X199: 0.679531059 | Y199: -30.63308176 | AA199: 13.69888036 | AB199: -66.58723444 | AD199: 0 | AE199: 0
A200: 11351 | B200: 11.351 | C200: 2.117965257 | D200: 1.079066715 | E200: 1.000041669 | F200: 0.009128762263 | G200: 1 | H200: 0 | I200: 14251.74887 | J200: 1.57072616 | K200: 2.169823675 | L200: 1.091824507 | M200: 1.001442782 | N200: 0.05368518492 | O200: 1.001868467 | P200: 0.09513695876 | Q200: 14.32834968 | R200: -97.2688534 | S200: 82.7311466 | U200: 1000000000 | V200: 128845201 | X200: 0.668661893 | Y200: -30.51497808 | AA200: 13.65968779 | AB200: -66.75387533 | AD200: 0 | AE200: 0
A201: 11416.5 | B201: 11.4165 | C201: 2.12746837 | D201: 1.081457692 | E201: 1.000042151 | F201: 0.009181436074 | G201: 1 | H201: 0 | I201: 14333.9874 | J201: 1.570726563 | K201: 2.179691084 | L201: 1.094173955 | M201: 1.001459469 | N201: 0.05399437078 | O201: 1.001890113 | P201: 0.09568554169 | Q201: 14.2785688 | R201: -97.31738443 | S201: 82.68261557 | U201: 1000000000 | V201: 130336472.2 | X201: 0.6579500993 | Y201: -30.3981027 | AA201: 13.6206187 | AB201: -66.91928173 | AD201: 0 | AE201: 0
A202: 11482 | B202: 11.482 | C202: 2.136983538 | D202: 1.083827391 | E202: 1.000042636 | F202: 0.009234109833 | G202: 1 | H202: 0 | I202: 14416.22593 | J202: 1.570726961 | K202: 2.189570415 | L202: 1.096502215 | M202: 1.001476251 | N202: 0.05430354631 | O202: 1.001911885 | P202: 0.09623411774 | Q202: 14.22906556 | R202: -97.36590905 | S202: 82.63409095 | U202: 1000000000 | V202: 131836324 | X202: 0.6473926862 | Y202: -30.28244049 | AA202: 13.58167287 | AB202: -67.08346856 | AD202: 0 | AE202: 0
... 433 more rows

Sheet Ch2 Stability Calculations (hidden)
A2: Divider Network & EA Poles/Zeros | E2: Modulator | J2: Power Stage Poles/Zeros | M2: Complex Pole Pair | P2: Total System
B3: Afb1 | C3: =Afb_Ch2 -> 0.2424242424 | D3: V/V | E3: Acs | F3: =Acs_Ch2 -> 50 | G3: A/V | H3: gm | I3: =gm -> 0.0006 | J3: z_ESR | K3: =Fesr_Ch2 -> 964575.4138 | L3: Hz | M3: p3 | N3: =Fsw/2 -> 220000 | O3: Hz | P3: Adc | Q3: =Am_Ch2*Afb_Ch2*AEA -> 73417.57084 | R3: V/V
B4: EA zero, z1 | C4: =Fz1_u_Ch2 -> 5707.546827 | D4: Hz | E4: Am | F4: =Am_Ch2 -> 6.820889183 | G4: V/V | J4: p_dom | K4: =Fp_dominant_Ch2 -> 7070.745382 | L4: Hz | M4: pterm1 | N4: =Q_Ch2*pole3 -> 125336.962 | P4: Crossover | Q4: =AE7 -> 55.274 | R4: kHz
B5: EA pole, p1 | C5: =Fp1_u_Ch2 -> 0.6516657313 | D5: Hz | E5: Q | F5: =Q_Ch2 -> 0.5697134635 | M5: pterm2 | N5: =pole3^2 -> 48400000000 | P5: Phase Margin | Q5: =AE9 -> 54.77541353 | R5: °
B6: Aea | C6: =AEA -> 44400 | D6: V/V | E6: mc | F6: =mc_Ch2 -> 1.411764706 | P6: radconv | Q6: =180/Pi -> 57.29577958 | AD6: XOVER SEARCH
B7: EA pole, p2 | C7: =Fp2_u_Ch2 -> 210809.5064 | D7: Hz | E7: k | F7: =k_Ch2 -> 1.058719263 | AD7: xover | AE7: =SUM(AD12:AD613)/1000 -> 55.274
AD9: phase margin | AE9: =SUM(AE13:AE613) -> 54.77541353
A10: Freq (Hz) | C10: Power Stage | I10: Error Amplifier | O10: Sampling Double Pole | Q10: System Response | X10: ERROR AMP Response | AA10: PLANT Response
C11: p_dom | E11: z_ESR | G11: z_RHP | I11: p1 | K11: z1 | M11: p2 | O11: p3
C12: Gain(V/V) | D12: Phase(rad) | E12: Gain(V/V) | F12: Phase(rad) | G12: Gain(V/V) | H12: Phase(rad) | I12: Gain(V/V) | J12: Phase(rad) | K12: Gain(V/V) | L12: Phase(rad) | M12: Gain(V/V) | N12: Phase(rad) | O12: Gain(V/V) | P12: Phase(rad) | Q12: Gain (dB) | R12: Phase (°) | S12: Phase Margin (°) | V12: Fsquare | X12: Gain(dB) | Y12: Phase(Deg) | AA12: Gain(dB) | AB12: Phase(Deg)
A13: 1 | B13: =A13/1000 -> 0.001 | C13: =SQRT(1+(A13/pole1)^2) -> 1.00000001 | D13: =ATAN(A13/pole1) -> 0.0001414278042 | E13: =SQRT(1+(A13/Zero1)^2) -> 1 | F13: =ATAN(A13/Zero1) -> 1.036725574e-06 | G13: =IF(VIN_nom>Vout, 1, SQRT(1+(A13/z_RHP)^2)) -> 1 | H13: =IF(VIN_nom>Vout, 0, -ATAN(A13/z_RHP)) -> 0 | I13: =SQRT(1+(A13/Pole2)^2) -> 1.831605696 | J13: =ATAN(A13/Pole2) -> 0.9932510088 | K13: =SQRT(1+(A13/Zero2)^2) -> 1.000000015 | L13: =ATAN(A13/Zero2) -> 0.0001752066203 | M13: =SQRT(1+(A13/pole4)^2) -> 1 | N13: =ATAN(A13/pole4) -> 4.743619094e-06 | O13: =SQRT((1-(V13/pterm2))^2+(A13/pterm1)^2) -> 1 | P13: =IF((ATAN((A13/pterm1)/(1-A13^2/pterm2))>0),ATAN((A13/pterm1)/(1-A13^2/pterm2)),PI()+ATAN((A13/pterm1)/(1-A13^2/pterm2))) -> 7.978492412e-06 | Q13: =20*LOG10(((E13*K13*G13)/(C13*I13*O13*M13))*Adc) -> 92.05936056 | R13: =((F13+L13+H13)-(D13+J13+P13+N13))*radconv -> -56.907825 | S13: =IF(R13>0,R13,R13+180) -> 123.092175 | U13: =IF(Q13<0,A13,1000000000) -> 1000000000 | V13: =A13^2 -> 1 | X13: =20*LOG10((K13/(I13*M13))*AEA*Afb_Ch2) -> 75.38254077 | Y13: =(L13-(J13+N13))*radconv -> -56.89932405 | AA13: =20*LOG10((E13*G13/(C13*O13))*Am_Ch2) -> 16.67681979 | AB13: =(F13+H13-(D13+P13))*radconv -> -0.008500950238 | AD13: =SUM((Q14<0)*(Q13>0))*A13 -> 0 | AE13: =IF(AD13>0,S11,0) -> 0
A14: 1.0965 | B14: =A14/1000 -> 0.0010965 | C14: 1.000000012 | D14: 0.0001550755871 | E14: 1 | F14: 1.136769592e-06 | G14: 1 | H14: 0 | I14: 1.95734007 | J14: 1.034567909 | K14: 1.000000018 | L14: 0.0001921140588 | M14: 1 | N14: 5.201378337e-06 | O14: 1 | P14: 8.74841693e-06 | Q14: 91.48267454 | R14: -59.27498683 | S14: 120.7250132 | U14: =IF(Q14<0,A14,1000000000) -> 1000000000 | V14: =A14^2 -> 1.20231225 | X14: 74.80585477 | Y14: =(L14-(J14+N14))*radconv -> -59.26566554 | AA14: 16.67681977 | AB14: -0.009321291924 | AD14: =SUM((Q15<0)*(Q14>0))*A14 -> 0 | AE14: 0
A15: 1.2023 | B15: 0.0012023 | C15: 1.000000014 | D15: 0.0001700386485 | E15: 1 | F15: 1.246455158e-06 | G15: 1 | H15: 0 | I15: 2.098545499 | J15: 1.074103592 | K15: 1.000000022 | L15: 0.0002106509186 | M15: 1 | N15: 5.703253237e-06 | O15: 1 | P15: 9.592541427e-06 | Q15: 90.87763249 | R15: -61.54008072 | S15: 118.4599193 | U15: 1000000000 | V15: 1.44552529 | X15: 74.20081274 | Y15: -61.52986002 | AA15: 16.67681975 | AB15: -0.01022069244 | AD15: 0 | AE15: 0
A16: 1.3183 | B16: 0.0013183 | C16: 1.000000017 | D16: 0.0001864442734 | E16: 1 | F16: 1.366715325e-06 | G16: 1 | H16: 0 | I16: 2.256636042 | J16: 1.111700793 | K16: 1.000000027 | L16: 0.0002309748858 | M16: 1 | N16: 6.253513052e-06 | O16: 1 | P16: 1.051804655e-05 | Q16: 90.24676989 | R16: -63.69409483 | S16: 116.3059052 | U16: 1000000000 | V16: 1.73791489 | X16: 73.56995017 | Y16: -63.68288803 | AA16: 16.67681972 | AB16: -0.01120680265 | AD16: 0 | AE16: 0
A17: 1.4454 | B17: 0.0014454 | C17: 1.000000021 | D17: 0.0002044197467 | E17: 1 | F17: 1.498483145e-06 | G17: 1 | H17: 0 | I17: 2.433014758 | J17: 1.147231659 | K17: 1.000000032 | L17: 0.0002532436462 | M17: 1 | N17: 6.856427039e-06 | O17: 1 | P17: 1.153211293e-05 | Q17: 89.59310545 | R17: -65.72970257 | S17: 114.2702974 | U17: 1000000000 | V17: 2.08918116 | X17: 72.91628576 | Y17: -65.7174153 | AA17: 16.67681969 | AB17: -0.01228727339 | AD17: 0 | AE17: 0
A18: 1.5849 | B18: 0.0015849 | C18: 1.000000025 | D18: 0.0002241489246 | E18: 1 | F18: 1.643106363e-06 | G18: 1 | H18: 0 | I18: 2.629636725 | J18: 1.180696586 | K18: 1.000000039 | L18: 0.0002776849682 | M18: 1 | N18: 7.518161903e-06 | O18: 1 | P18: 1.264511262e-05 | Q18: 88.91808521 | R18: -67.6469251 | S18: 112.3530749 | U18: 1000000000 | V18: 2.51190801 | X18: 72.24126555 | Y18: -67.63345194 | AA18: 16.67681966 | AB18: -0.0134731559 | AD18: 0 | AE18: 0
A19: 1.7378 | B19: 0.0017378 | C19: 1.00000003 | D19: 0.0002457732348 | E19: 1 | F19: 1.801621703e-06 | G19: 1 | H19: 0 | I19: 2.848036762 | J19: 1.212030333 | K19: 1.000000046 | L19: 0.0003044740585 | M19: 1 | N19: 8.243461262e-06 | O19: 1 | P19: 1.386502411e-05 | Q19: 88.22508854 | R19: -69.44202297 | S19: 110.557977 | U19: 1000000000 | V19: 3.01994884 | X19: 71.54826893 | Y19: -69.42725001 | AA19: 16.67681961 | AB19: -0.01477295113 | AD19: 0 | AE19: 0
A20: 1.9055 | B20: 0.0019055 | C20: 1.000000036 | D20: 0.0002694906762 | E20: 1 | F20: 1.975480582e-06 | G20: 1 | H20: 0 | I20: 3.090313876 | J20: 1.241273331 | K20: 1.000000056 | L20: 0.000333856206 | M20: 1 | N20: 9.038966184e-06 | O20: 1 | P20: 1.520301729e-05 | Q20: 87.51594855 | R20: -71.11731105 | S20: 108.8826889 | U20: 1000000000 | V20: 3.63093025 | X20: 70.83912899 | Y20: -71.10111249 | AA20: 16.67681956 | AB20: -0.01619856041 | AD20: 0 | AE20: 0
A21: 2.0893 | B21: 0.0020893 | C21: 1.000000044 | D21: 0.0002954851047 | E21: 1 | F21: 2.166030743e-06 | G21: 1 | H21: 0 | I21: 3.358425685 | J21: 1.268452474 | K21: 1.000000067 | L21: 0.0003660591792 | M21: 1 | N21: 9.910843374e-06 | O21: 1 | P21: 1.66694642e-05 | Q21: 86.79328557 | R21: -72.67432858 | S21: 107.3256714 | U21: 1000000000 | V21: 4.36517449 | X21: 70.11646607 | Y21: -72.65656754 | AA21: 16.6768195 | AB21: -0.01776103495 | AD21: 0 | AE21: 0
A22: 2.2909 | B22: 0.0022909 | C22: 1.000000052 | D22: 0.0003239969475 | E22: 1 | F22: 2.375034619e-06 | G22: 1 | H22: 0 | I22: 3.654915471 | J22: 1.293658161 | K22: 1.000000081 | L22: 0.000401380829 | M22: 1 | N22: 1.086715698e-05 | O22: 1 | P22: 1.827792827e-05 | Q22: 86.05845372 | R22: -74.11825291 | S22: 105.8817471 | U22: 1000000000 | V22: 5.24822281 | X22: 69.3816343 | Y22: -74.09877808 | AA22: 16.67681942 | AB22: -0.01947482637 | AD22: 0 | AE22: 0
A23: 2.5119 | B23: 0.0025119 | C23: 1.000000063 | D23: 0.0003552524888 | E23: 1 | F23: 2.604150971e-06 | G23: 1 | H23: 0 | I23: 3.982187119 | J23: 1.316960939 | K23: 1.000000097 | L23: 0.0004401014856 | M23: 1 | N23: 1.19154968e-05 | O23: 1 | P23: 2.004117509e-05 | Q23: 85.31356725 | R23: -75.45312398 | S23: 104.546876 | U23: 1000000000 | V23: 6.30964161 | X23: 68.63674792 | Y23: -75.43177044 | AA23: 16.67681933 | AB23: -0.02135353618 | AD23: 0 | AE23: 0
A24: 2.7542 | B24: 0.0027542 | C24: 1.000000076 | D24: 0.0003895204412 | E24: 1 | F24: 2.855349577e-06 | G24: 1 | H24: 0 | I24: 4.343092948 | J24: 1.338461075 | K24: 1.000000116 | L24: 0.0004825540411 | M24: 1 | N24: 1.306487571e-05 | O24: 1 | P24: 2.19743638e-05 | Q24: 84.56001809 | R24: -76.6846843 | S24: 103.3153157 | U24: 1000000000 | V24: 7.58561764 | X24: 67.88319888 | Y24: -76.66127099 | AA24: 16.67681922 | AB24: -0.02341331617 | AD24: 0 | AE24: 0
A25: 3.02 | B25: 0.00302 | C25: 1.000000091 | D25: 0.0004271119455 | E25: 1 | F25: 3.130911235e-06 | G25: 1 | H25: 0 | I25: 4.740941919 | J25: 1.358271543 | K25: 1.00000014 | L25: 0.0005291239493 | M25: 1 | N25: 1.432572966e-05 | O25: 1 | P25: 2.409504708e-05 | Q25: 83.79870794 | R25: -77.81940406 | S25: 102.1805959 | U25: 1000000000 | V25: 9.1204 | X25: 67.12188886 | Y25: -77.79373119 | AA25: 16.67681908 | AB25: -0.02567286839 | AD25: 0 | AE25: 0
A26: 3.3113 | B26: 0.0033113 | C26: 1.00000011 | D26: 0.0004683098569 | E26: 1 | F26: 3.432909395e-06 | G26: 1 | H26: 0 | I26: 5.178751595 | J26: 1.376479025 | K26: 1.000000168 | L26: 0.0005801616226 | M26: 1 | N26: 1.570754591e-05 | O26: 1 | P26: 2.641918192e-05 | Q26: 83.03149912 | R26: -78.86224717 | S26: 101.1377528 | U26: 1000000000 | V26: 10.96470769 | X26: 66.3546802 | Y26: -78.83409798 | AA26: 16.67681892 | AB26: -0.02814919474 | AD26: 0 | AE26: 0
A27: 3.6308 | B27: 0.0036308 | C27: 1.000000132 | D27: 0.0005134960298 | E27: 1 | F27: 3.764143216e-06 | G27: 1 | H27: 0 | I27: 5.660598121 | J27: 1.393204514 | K27: 1.000000202 | L27: 0.0006361401177 | M27: 1 | N27: 1.722313221e-05 | O27: 1 | P27: 2.896831025e-05 | Q27: 82.25875437 | R27: -79.82014266 | S27: 100.1798573 | U27: 1000000000 | V27: 13.18270864 | X27: 65.58193564 | Y27: -79.78927742 | AA27: 16.67681873 | AB27: -0.03086524773 | AD27: 0 | AE27: 0
A28: 3.9811 | B28: 0.0039811 | C28: 1.000000159 | D28: 0.0005630381755 | E28: 1 | F28: 4.127308185e-06 | G28: 1 | H28: 0 | I28: 6.19041754 | J28: 1.408545385 | K28: 1.000000243 | L28: 0.0006975149701 | M28: 1 | N28: 1.888482197e-05 | O28: 1 | P28: 3.176317614e-05 | Q28: 81.48160209 | R28: -80.69866641 | S28: 99.30133359 | U28: 1000000000 | V28: 15.84915721 | X28: 64.8047836 | Y28: -80.66482328 | AA28: 16.6768185 | AB28: -0.0338431298 | AD28: 0 | AE28: 0
A29: 4.3652 | B29: 0.0043652 | C29: 1.000000191 | D29: 0.0006173605766 | E29: 1 | F29: 4.525514478e-06 | G29: 1 | H29: 0 | I29: 6.77275821 | J29: 1.422604184 | K29: 1.000000292 | L29: 0.0007648117976 | M29: 1 | N29: 2.070684607e-05 | O29: 1 | P29: 3.482771508e-05 | Q29: 80.70068967 | R29: -81.50369003 | S29: 98.49630997 | U29: 1000000000 | V29: 19.05497104 | X29: 64.02387145 | Y29: -81.46658168 | AA29: 16.67681822 | AB29: -0.03710834372 | AD29: 0 | AE29: 0
A30: 4.7863 | B30: 0.0047863 | C30: 1.000000229 | D30: 0.0006769158003 | E30: 1 | F30: 4.962079617e-06 | G30: 1 | H30: 0 | I30: 7.412479974 | J30: 1.435476102 | K30: 1.000000352 | L30: 0.0008385912587 | M30: 1 | N30: 2.270438407e-05 | O30: 1 | P30: 3.818745823e-05 | Q30: 79.91673062 | R30: -82.24066352 | S30: 97.75933648 | U30: 1000000000 | V30: 22.90866769 | X30: 63.23991274 | Y30: -82.19997543 | AA30: 16.67681788 | AB30: -0.04068809246 | AD30: 0 | AE30: 0
A31: 5.2481 | B31: 0.0052481 | C31: 1.000000275 | D31: 0.0007422271278 | E31: 1 | F31: 5.440839487e-06 | G31: 1 | H31: 0 | I31: 8.115210323 | J31: 1.447256929 | K31: 1.000000423 | L31: 0.0009195016143 | M31: 1 | N31: 2.489498736e-05 | O31: 1 | P31: 4.187192603e-05 | Q31: 79.13000589 | R31: -82.91507061 | S31: 97.08492939 | U31: 1000000000 | V31: 27.54255361 | X31: 62.45318841 | Y31: -82.87045679 | AA31: 16.67681748 | AB31: -0.04461382942 | AD31: 0 | AE31: 0
A32: 5.7544 | B32: 0.0057544 | C32: 1.000000331 | D32: 0.0008138319822 | E32: 1 | F32: 5.965733646e-06 | G32: 1 | H32: 0 | I32: 8.886736871 | J32: 1.458030243 | K32: 1.000000508 | L32: 0.001008208645 | M32: 1 | N32: 2.729668171e-05 | O32: 1 | P32: 4.591143673e-05 | Q32: 78.34115533 | R32: -83.53169517 | S32: 96.46830483 | U32: 1000000000 | V32: 33.11311936 | X32: 61.66433833 | Y32: -83.48277731 | AA32: 16.676817 | AB32: -0.04891785807 | AD32: 0 | AE32: 0
A33: 6.3096 | B33: 0.0063096 | C33: 1.000000398 | D33: 0.0008923526424 | E33: 1 | F33: 6.541323685e-06 | G33: 1 | H33: 0 | I33: 9.733768364 | J33: 1.467879609 | K33: 1.000000611 | L33: 0.001105483252 | M33: 1 | N33: 2.993033903e-05 | O33: 1 | P33: 5.034109572e-05 | Q33: 77.55038192 | R33: -84.09531946 | S33: 95.90468054 | U33: 1000000000 | V33: 39.81105216 | X33: 60.87356551 | Y33: -84.04168188 | AA33: 16.67681641 | AB33: -0.05363758239 | AD33: 0 | AE33: 0
A34: 6.9183 | B34: 0.0069183 | C34: 1.000000479 | D34: 0.000978439672 | E34: 1 | F34: 7.172378542e-06 | G34: 1 | H34: 0 | I34: 10.66332561 | J34: 1.476878948 | K34: 1.000000735 | L34: 0.00121213138 | M34: 1.000000001 | N34: 3.281777997e-05 | O34: 1.000000001 | P34: 5.519760405e-05 | Q34: 76.75814902 | R34: -84.61017307 | S34: 95.38982693 | U34: 1000000000 | V34: 47.86287489 | X34: 60.0813333 | Y34: -84.55136096 | AA34: 16.67681571 | AB34: -0.05881210652 | AD34: 0 | AE34: 0
A35: 7.5858 | B35: 0.0075858 | C35: 1.000000575 | D35: 0.001072842633 | E35: 1 | F35: 7.864392863e-06 | G35: 1 | H35: 0 | I35: 11.68350456 | J35: 1.485100721 | K35: 1.000000883 | L35: 0.001329081611 | M35: 1.000000001 | N35: 3.598414571e-05 | O35: 1.000000001 | P35: 6.052324774e-05 | Q35: 75.96454023 | R35: -85.080401 | S35: 94.919599 | U35: 1000000000 | V35: 57.54436164 | X35: 59.28772536 | Y35: -85.01591451 | AA35: 16.67681487 | AB35: -0.06448648514 | AD35: 0 | AE35: 0
A36: 8.3176 | B36: 0.0083176 | C36: 1.000000692 | D36: 0.001176339369 | E36: 1 | F36: 8.623068638e-06 | G36: 1 | H36: 0 | I36: 12.80271286 | J36: 1.49260824 | K36: 1.000001062 | L36: 0.001457297568 | M36: 1.000000001 | N36: 3.945552616e-05 | O36: 1.000000001 | P36: 6.636190848e-05 | Q36: 75.16996332 | R36: -85.50962383 | S36: 94.49037617 | U36: 1000000000 | V36: 69.18246976 | X36: 58.49314946 | Y36: -85.43891635 | AA36: 16.67681386 | AB36: -0.07070747306 | AD36: 0 | AE36: 0
A37: 9.1201 | B37: 0.0091201 | C37: 1.000000832 | D37: 0.00128983501 | E37: 1 | F37: 9.455040912e-06 | G37: 1 | H37: 0 | I37: 14.03073986 | J37: 1.499463769 | K37: 1.000001277 | L37: 0.001597900554 | M37: 1.000000001 | N37: 4.326228048e-05 | O37: 1.000000001 | P37: 7.276464864e-05 | Q37: 74.37439261 | R37: -85.90140087 | S37: 94.09859913 | U37: 1000000000 | V37: 83.17622401 | X37: 57.69757997 | Y37: -85.82387139 | AA37: 16.67681264 | AB37: -0.07752947578 | AD37: 0 | AE37: 0
A38: 10 | B38: 0.01 | C38: 1.000001 | D38: 0.001414277108 | E38: 1 | F38: 1.036725574e-05 | G38: 1 | H38: 0 | I38: 15.37783934 | J38: 1.505721767 | K38: 1.000001535 | L38: 0.001752064428 | M38: 1.000000001 | N38: 4.743619091e-05 | O38: 1.000000001 | P38: 7.978492412e-05 | Q38: 73.57809846 | R38: -86.25884389 | S38: 93.74115611 | U38: 1000000000 | V38: 100 | X38: 56.90128728 | Y38: -86.17383444 | AA38: 16.67681118 | AB38: -0.08500944889 | AD38: 0 | AE38: 0
A39: 10.965 | B39: 0.010965 | C39: 1.000001202 | D39: 0.00155075464 | E39: 1 | F39: 1.136769592e-05 | G39: 1 | H39: 0 | I39: 16.85580063 | J39: 1.511434712 | K39: 1.000001845 | L39: 0.001921138248 | M39: 1.000000001 | N39: 5.201378332e-05 | O39: 1.000000001 | P39: 8.748416929e-05 | Q39: 72.78101806 | R39: -86.58495002 | S39: 93.41504998 | U39: 1000000000 | V39: 120.231225 | X39: 56.10420864 | Y39: -86.49173717 | AA39: 16.67680942 | AB39: -0.09321284873 | AD39: 0 | AE39: 0
A40: 12.023 | B40: 0.012023 | C40: 1.000001446 | D40: 0.001700384862 | E40: 1 | F40: 1.246455158e-05 | G40: 1 | H40: 0 | I40: 18.47672377 | J40: 1.51664772 | K40: 1.000002219 | L40: 0.002106506102 | M40: 1.000000002 | N40: 5.703253231e-05 | O40: 1.000000002 | P40: 9.592541426e-05 | Q40: 71.98350758 | R40: -86.88229412 | S40: 93.11770588 | U40: 1000000000 | V40: 144.552529 | X40: 55.30670028 | Y40: -86.78008729 | AA40: 16.6768073 | AB40: -0.1022068315 | AD40: 0 | AE40: 0
A41: 13.183 | B41: 0.013183 | C41: 1.000001738 | D41: 0.001864440595 | E41: 1 | F41: 1.366715325e-05 | G41: 1 | H41: 0 | I41: 20.25439762 | J41: 1.521404252 | K41: 1.000002667 | L41: 0.002309744792 | M41: 1.000000002 | N41: 6.253513044e-05 | O41: 1.000000002 | P41: 0.0001051804655 | Q41: 71.18562163 | R41: -87.15335498 | S41: 92.84664502 | U41: 1000000000 | V41: 173.791489 | X41: 54.50881687 | Y41: -87.04128707 | AA41: 16.67680476 | AB41: -0.1120679039 | AD41: 0 | AE41: 0
A42: 14.454 | B42: 0.014454 | C42: 1.000002089 | D42: 0.002044194648 | E42: 1 | F42: 1.498483145e-05 | G42: 1 | H42: 0 | I42: 22.20261429 | J42: 1.525741344 | K42: 1.000003207 | L42: 0.002532431102 | M42: 1.000000002 | N42: 6.856427028e-05 | O42: 1.000000002 | P42: 0.0001153211293 | Q42: 70.3879276 | R42: -87.40024314 | S42: 92.59975686 | U42: 1000000000 | V42: 208.918116 | X42: 53.71112589 | Y42: -87.27737057 | AA42: 16.67680171 | AB42: -0.1228725724 | AD42: 0 | AE42: 0
A43: 15.849 | B43: 0.015849 | C43: 1.000002512 | D43: 0.00224148553 | E43: 1 | F43: 1.643106363e-05 | G43: 1 | H43: 0 | I43: 24.34130092 | J43: 1.529702323 | K43: 1.000003855 | L43: 0.002776842616 | M43: 1.000000003 | N43: 7.518161889e-05 | O43: 1.000000003 | P43: 0.0001264511262 | Q43: 69.58913613 | R43: -87.6254247 | S43: 92.3745753 | U43: 1000000000 | V43: 251.190801 | X43: 52.9123381 | Y43: -87.49069336 | AA43: 16.67679803 | AB43: -0.1347313461 | AD43: 0 | AE43: 0
A44: 17.378 | B44: 0.017378 | C44: 1.00000302 | D44: 0.002457727449 | E44: 1 | F44: 1.801621703e-05 | G44: 1 | H44: 0 | I44: 26.6857891 | J44: 1.533314423 | K44: 1.000004635 | L44: 0.00304473127 | M44: 1.000000003 | N44: 8.243461244e-05 | O44: 1.000000003 | P44: 0.0001386502411 | Q44: 68.7904132 | R44: -87.83044732 | S44: 92.16955268 | U44: 1000000000 | V44: 301.994884 | X44: 52.11361959 | Y44: -87.68271809 | AA44: 16.67679361 | AB44: -0.1477292306 | AD44: 0 | AE44: 0
A45: 19.055 | B45: 0.019055 | C45: 1.000003631 | D45: 0.002694900303 | E45: 1 | F45: 1.975480582e-05 | G45: 1 | H45: 0 | I45: 29.25754578 | J45: 1.536610452 | K45: 1.000005573 | L45: 0.00333854978 | M45: 1.000000004 | N45: 9.03896616e-05 | O45: 1.000000004 | P45: 0.0001520301729 | Q45: 67.99125915 | R45: -88.01717311 | S45: 91.98282689 | U45: 1000000000 | V45: 363.093025 | X45: 51.31447085 | Y45: -87.85518787 | AA45: 16.6767883 | AB45: -0.161985234 | AD45: 0 | AE45: 0
A46: 20.893 | B46: 0.020893 | C46: 1.000004366 | D46: 0.002954842533 | E46: 1 | F46: 2.166030742e-05 | G46: 1 | H46: 0 | I46: 32.07650711 | J46: 1.53961581 | K46: 1.0000067 | L46: 0.003660575605 | M46: 1.000000005 | N46: 9.910843341e-05 | O46: 1.000000005 | P46: 0.0001666946419 | Q46: 67.192279 | R46: -88.18704093 | S46: 91.81295907 | U46: 1000000000 | V46: 436.517449 | X46: 50.51549708 | Y46: -88.00943107 | AA46: 16.67678192 | AB46: -0.1776098617 | AD46: 0 | AE46: 0
A47: 22.909 | B47: 0.022909 | C47: 1.000005249 | D47: 0.003239958251 | E47: 1 | F47: 2.375034618e-05 | G47: 1 | H47: 0 | I47: 35.16874621 | J47: 1.542358156 | K47: 1.000008055 | L47: 0.004013786951 | M47: 1.000000006 | N47: 0.0001086715694 | O47: 1.000000006 | P47: 0.0001827792826 | Q47: 66.39288678 | R47: -88.34161394 | S47: 91.65838606 | U47: 1000000000 | V47: 524.822281 | X47: 49.71611255 | Y47: -88.14686632 | AA47: 16.67677424 | AB47: -0.1947476207 | AD47: 0 | AE47: 0
A48: 25.119 | B48: 0.025119 | C48: 1.00000631 | D48: 0.003552510093 | E48: 1 | F48: 2.60415097e-05 | G48: 1 | H48: 0 | I48: 38.55880477 | J48: 1.544859005 | K48: 1.000009684 | L48: 0.004400986726 | M48: 1.000000007 | N48: 0.0001191549675 | O48: 1.000000007 | P48: 0.0002004117508 | Q48: 65.59355814 | R48: -88.48210465 | S48: 91.51789535 | U48: 1000000000 | V48: 630.964161 | X48: 48.91679313 | Y48: -88.26857013 | AA48: 16.67676501 | AB48: -0.2135345141 | AD48: 0 | AE48: 0
A49: 27.542 | B49: 0.027542 | C49: 1.000007586 | D49: 0.003895184909 | E49: 1 | F49: 2.855349577e-05 | G49: 1 | H49: 0 | I49: 42.27582803 | J49: 1.547139941 | K49: 1.000011643 | L49: 0.004825503331 | M49: 1.000000009 | N49: 0.0001306487564 | O49: 1.000000008 | P49: 0.0002197436379 | Q49: 64.79419286 | R49: -88.60972576 | S49: 91.39027424 | U49: 1000000000 | V49: 758.561764 | X49: 48.11743895 | Y49: -88.37559371 | AA49: 16.67675391 | AB49: -0.2341320442 | AD49: 0 | AE49: 0
A50: 30.2 | B50: 0.0302 | C50: 1.000009121 | D50: 0.004271093744 | E50: 1 | F50: 3.130911234e-05 | G50: 1 | H50: 0 | I50: 46.35356543 | J50: 1.54922134 | K50: 1.000013999 | L50: 0.005291190608 | M50: 1.00000001 | N50: 0.0001432572957 | O50: 1.00000001 | P50: 0.0002409504707 | Q50: 63.99437951 | R50: -88.72561675 | S50: 91.27438325 | U50: 1000000000 | V50: 912.04 | X50: 47.31763895 | Y50: -88.46888954 | AA50: 16.67674057 | AB50: -0.2567272107 | AD50: 0 | AE50: 0
A51: 33.113 | B51: 0.033113 | C51: 1.000010966 | D51: 0.004683064676 | E51: 1.000000001 | F51: 3.432909393e-05 | G51: 1 | H51: 0 | I51: 50.82269974 | J51: 1.55111881 | K51: 1.000016829 | L51: 0.005801551787 | M51: 1.000000012 | N51: 0.0001570754578 | O51: 1.000000012 | P51: 0.0002641918191 | Q51: 63.19489631 | R51: -88.83064676 | S51: 91.16935324 | U51: 1000000000 | V51: 1096.470769 | X51: 46.51817179 | Y51: -88.54915676 | AA51: 16.67672453 | AB51: -0.2814900055 | AD51: 0 | AE51: 0
A52: 36.308 | B52: 0.036308 | C52: 1.000013184 | D52: 0.005134915617 | E52: 1.000000001 | F52: 3.764143214e-05 | G52: 1 | H52: 0 | I52: 55.72465441 | J52: 1.552849985 | K52: 1.000020234 | L52: 0.006361316227 | M52: 1.000000015 | N52: 0.0001722313204 | O52: 1.000000015 | P52: 0.0002896831023 | Q52: 62.39511353 | R52: -88.92579195 | S52: 91.07420805 | U52: 1000000000 | V52: 1318.270864 | X52: 45.71840828 | Y52: -88.61714203 | AA52: 16.67670524 | AB52: -0.3086499173 | AD52: 0 | AE52: 0
A53: 39.811 | B53: 0.039811 | C53: 1.00001585 | D53: 0.005630322855 | E53: 1.000000001 | F53: 4.127308182e-05 | G53: 1 | H53: 0 | I53: 61.09932023 | J53: 1.554428802 | K53: 1.000024326 | L53: 0.006975037715 | M53: 1.000000018 | N53: 0.0001888482175 | O53: 1.000000018 | P53: 0.0003176317611 | Q53: 61.59534597 | R53: -89.0118179 | S53: 90.9881821 | U53: 1000000000 | V53: 1584.915721 | X53: 44.91866391 | Y53: -88.67338998 | AA53: 16.67668205 | AB53: -0.3384279232 | AD53: 0 | AE53: 0
A54: 43.652 | B54: 0.043652 | C54: 1.000019057 | D54: 0.006173528119 | E54: 1.000000001 | F54: 4.525514475e-05 | G54: 1 | H54: 0 | I54: 66.9927263 | J54: 1.555868779 | K54: 1.000029246 | L54: 0.00764797035 | M54: 1.000000021 | N54: 0.0002070684577 | O54: 1.000000021 | P54: 0.0003482771504 | Q54: 60.79553532 | R54: -89.08946131 | S54: 90.91053869 | U54: 1000000000 | V54: 1905.497104 | X54: 44.11888115 | Y54: -88.71838233 | AA54: 16.67665418 | AB54: -0.3710789884 | AD54: 0 | AE54: 0
A55: 47.863 | B55: 0.047863 | C55: 1.00002291 | D55: 0.006769055649 | E55: 1.000000001 | F55: 4.962079613e-05 | G55: 1 | H55: 0 | I55: 73.45397155 | J55: 1.557181938 | K55: 1.000035161 | L55: 0.008385717986 | M55: 1.000000026 | N55: 0.0002270438368 | O55: 1.000000026 | P55: 0.0003818745818 | Q55: 59.99580054 | R55: -89.15937057 | S55: 90.84062943 | U55: 1000000000 | V55: 2290.866769 | X55: 43.31917987 | Y55: -88.75249551 | AA55: 16.67662067 | AB55: -0.4068750601 | AD55: 0 | AE55: 0
A56: 52.481 | B56: 0.052481 | C56: 1.000027545 | D56: 0.007422136348 | E56: 1.000000001 | F56: 5.440839482e-05 | G56: 1 | H56: 0 | I56: 80.53982778 | J56: 1.55837979 | K56: 1.000042273 | L56: 0.009194759606 | M56: 1.000000031 | N56: 0.0002489498685 | O56: 1.000000031 | P56: 0.0004187192596 | Q56: 59.19591369 | R56: -89.2221584 | S56: 90.7778416 | U56: 1000000000 | V56: 2754.255361 | X56: 42.51933332 | Y56: -88.77602783 | AA56: 16.67658037 | AB56: -0.4461305632 | AD56: 0 | AE56: 0
A57: 57.544 | B57: 0.057544 | C57: 1.000033116 | D57: 0.008138141953 | E57: 1.000000002 | F57: 5.965733639e-05 | G57: 1 | H57: 0 | I57: 88.30860219 | J57: 1.55947216 | K57: 1.000050823 | L57: 0.01008174827 | M57: 1.000000037 | N57: 0.0002729668104 | O57: 1.000000037 | P57: 0.0004591143665 | Q57: 58.39609318 | R57: -89.27833973 | S57: 90.72166027 | U57: 1000000000 | V57: 3311.311936 | X57: 41.71956124 | Y57: -88.78917134 | AA57: 16.67653194 | AB57: -0.4891683895 | AD57: 0 | AE57: 0
A58: 63.096 | B58: 0.063096 | C58: 1.000039814 | D58: 0.008923291946 | E58: 1.000000002 | F58: 6.541323676e-05 | G58: 1 | H58: 0 | I58: 96.82780932 | J58: 1.560468532 | K58: 1.000061103 | L58: 0.01105438673 | M58: 1.000000045 | N58: 0.0002993033814 | O58: 1.000000044 | P58: 0.0005034109561 | Q58: 57.59618224 | R58: -89.32840253 | S58: 90.67159747 | U58: 1000000000 | V58: 3981.105216 | X58: 40.91970855 | Y58: -88.79204014 | AA58: 16.67647369 | AB58: -0.5363623892 | AD58: 0 | AE58: 0
A59: 69.183 | B59: 0.069183 | C59: 1.000047866 | D59: 0.009784087626 | E59: 1.000000003 | F59: 7.17237853e-05 | G59: 1 | H59: 0 | I59: 106.1680334 | J59: 1.561377156 | K59: 1.00007346 | L59: 0.01212072614 | M59: 1.000000054 | N59: 0.000328177788 | O59: 1.000000053 | P59: 0.0005519760391 | Q59: 56.79634615 | R59: -89.3727615 | S59: 90.6272385 | U59: 1000000000 | V59: 4786.287489 | X59: 40.11994247 | Y59: -88.78465815 | AA59: 16.67640368 | AB59: -0.5881033553 | AD59: 0 | AE59: 0
A60: 75.858 | B60: 0.075858 | C60: 1.000057548 | D60: 0.01072801886 | E60: 1.000000003 | F60: 7.864392847e-05 | G60: 1 | H60: 0 | I60: 116.4106004 | J60: 1.562205938 | K60: 1.000088319 | L60: 0.01329004143 | M60: 1.000000065 | N60: 0.0003598414417 | O60: 1.000000064 | P60: 0.0006052324754 | Q60: 55.9964158 | R60: -89.41180271 | S60: 90.58819729 | U60: 1000000000 | V60: 5754.436164 | X60: 39.32009629 | Y60: -88.7669612 | AA60: 16.6763195 | AB60: -0.6448415052 | AD60: 0 | AE60: 0
A61: 83.176 | B61: 0.083176 | C61: 1.000069186 | D61: 0.01176285657 | E61: 1.000000004 | F61: 8.623068617e-05 | G61: 1 | H61: 0 | I61: 127.6399062 | J61: 1.562961706 | K61: 1.00010618 | L61: 0.0145719545 | M61: 1.000000078 | N61: 0.0003945552413 | O61: 1.000000077 | P61: 0.0006636190823 | Q61: 55.19659068 | R61: -89.44584822 | S61: 90.55415178 | U61: 1000000000 | V61: 6918.246976 | X61: 38.52037237 | Y61: -88.73880427 | AA61: 16.67621831 | AB61: -0.7070439554 | AD61: 0 | AE61: 0
A62: 91.201 | B62: 0.091201 | C62: 1.00008318 | D62: 0.01289764204 | E62: 1.000000004 | F62: 9.455040884e-05 | G62: 1 | H62: 0 | I62: 139.9541572 | J62: 1.563651069 | K62: 1.000127656 | L62: 0.01597765938 | M62: 1.000000094 | N62: 0.000432622778 | O62: 1.000000093 | P62: 0.0007276464831 | Q62: 54.39666885 | R62: -89.47519619 | S62: 90.52480381 | U62: 1000000000 | V62: 8317.622401 | X62: 37.72057221 | Y62: -88.69994201 | AA62: 16.67609664 | AB62: -0.7752541884 | AD62: 0 | AE62: 0
A63: 100 | B63: 0.1 | C63: 1.000100004 | D63: 0.01414183769 | E63: 1.000000005 | F63: 0.0001036725571 | G63: 1 | H63: 0 | I63: 153.456164 | J63: 1.564279762 | K63: 1.000153475 | L63: 0.01751886975 | M63: 1.000000113 | N63: 0.0004743618739 | O63: 1.000000112 | P63: 0.0007978492367 | Q63: 53.59677595 | R63: -89.50009107 | S63: 90.49990893 | U63: 1000000000 | V63: 10000 | X63: 36.92082558 | Y63: -88.65005006 | AA63: 16.67595037 | AB63: -0.8500410091 | AD63: 0 | AE63: 0
A64: 109.65 | B64: 0.10965 | C64: 1.000120235 | D64: 0.0155063159 | E64: 1.000000006 | F64: 0.0001136769588 | G64: 1 | H64: 0 | I64: 168.2640826 | J64: 1.564853253 | K64: 1.000184522 | L64: 0.01920904313 | M64: 1.000000135 | N64: 0.0005201377868 | O64: 1.000000134 | P64: 0.0008748416871 | Q64: 52.7967278 | R64: -89.52074963 | S64: 90.47925037 | U64: 1000000000 | V64: 12023.1225 | X64: 36.12095332 | Y64: -88.58869165 | AA64: 16.67577448 | AB64: -0.9320579846 | AD64: 0 | AE64: 0
A65: 120.23 | B65: 0.12023 | C65: 1.000144555 | D65: 0.01700222651 | E65: 1.000000008 | F65: 0.0001246455152 | G65: 1 | H65: 0 | I65: 184.4991386 | J65: 1.565376221 | K65: 1.000221844 | L65: 0.02106197721 | M65: 1.000000163 | N65: 0.0005703252619 | O65: 1.000000161 | P65: 0.000959254135 | Q65: 51.99678182 | R65: -89.5373411 | S65: 90.4626589 | U65: 1000000000 | V65: 14455.2529 | X65: 35.32121878 | Y65: -88.51536573 | AA65: 16.67556304 | AB65: -1.021975374 | AD65: 0 | AE65: 0
A66: 131.83 | B66: 0.13183 | C66: 1.000173792 | D66: 0.01864226764 | E66: 1.000000009 | F66: 0.0001366715316 | G66: 1 | H66: 0 | I66: 202.2994372 | J66: 1.565853139 | K66: 1.000266711 | L66: 0.02309338285 | M66: 1.000000196 | N66: 0.0006253512237 | O66: 1.000000194 | P66: 0.001051804644 | Q66: 51.19691033 | R66: -89.55000945 | S66: 90.44999055 | U66: 1000000000 | V66: 17379.1489 | X66: 34.52160147 | Y66: -88.42945293 | AA66: 16.67530886 | AB66: -1.120556523 | AD66: 0 | AE66: 0
A67: 144.54 | B67: 0.14454 | C67: 1.000208915 | D67: 0.02043912828 | E67: 1.000000011 | F67: 0.0001498483134 | G67: 1 | H67: 0 | I67: 221.8030841 | J67: 1.566287808 | K67: 1.00032061 | L67: 0.02531895354 | M67: 1.000000235 | N67: 0.0006856425965 | O67: 1.000000233 | P67: 0.00115321128 | Q67: 50.39761455 | R67: -89.5588605 | S67: 90.4411395 | U67: 1000000000 | V67: 20891.8116 | X67: 33.72261103 | Y67: -88.33029625 | AA67: 16.67500352 | AB67: -1.228564252 | AD67: 0 | AE67: 0
A68: 158.49 | B68: 0.15849 | C68: 1.000251182 | D68: 0.02241114002 | E68: 1.000000013 | F68: 0.0001643106348 | G68: 1 | H68: 0 | I68: 243.2095661 | J68: 1.566684635 | K68: 1.00038547 | L68: 0.0277613635 | M68: 1.000000283 | N68: 0.0007518160486 | O68: 1.000000281 | P68: 0.001264511245 | Q68: 49.59754843 | R68: -89.56398502 | S68: 90.43601498 | U68: 1000000000 | V68: 25119.0801 | X68: 32.92291234 | Y68: -88.21688443 | AA68: 16.67463609 | AB68: -1.34710059 | AD68: 0 | AE68: 0
A69: 173.78 | B69: 0.17378 | C69: 1.000301977 | D69: 0.02457237717 | E69: 1.000000016 | F69: 0.0001801621684 | G69: 1 | H69: 0 | I69: 266.6723345 | J69: 1.567046398 | K69: 1.000463415 | L69: 0.03043800332 | M69: 1.00000034 | N69: 0.0008243459395 | O69: 1.000000337 | P69: 0.001386502388 | Q69: 48.79783692 | R69: -89.56541912 | S69: 90.43458088 | U69: 1000000000 | V69: 30199.4884 | X69: 32.12364238 | Y69: -88.08840741 | AA69: 16.67419454 | AB69: -1.477011709 | AD69: 0 | AE69: 0
A70: 190.55 | B70: 0.19055 | C70: 1.00036306 | D70: 0.02694254717 | E70: 1.00000002 | F70: 0.0001975480557 | G70: 1 | H70: 0 | I70: 292.4062217 | J70: 1.56737642 | K70: 1.000557145 | L70: 0.03337322626 | M70: 1.000000409 | N70: 0.0009038963723 | O70: 1.000000405 | P70: 0.001520301698 | Q70: 47.99794616 | R70: -89.56318077 | S70: 90.43681923 | U70: 1000000000 | V70: 36309.3025 | X70: 31.32428256 | Y70: -87.94369832 | AA70: 16.67366359 | AB70: -1.619482445 | AD70: 0 | AE70: 0
A71: 208.93 | B71: 0.20893 | C71: 1.000436462 | D71: 0.02953991608 | E71: 1.000000023 | F71: 0.0002166030709 | G71: 1 | H71: 0 | I71: 320.6107154 | J71: 1.567677274 | K71: 1.000669772 | L71: 0.03658958212 | M71: 1.000000491 | N71: 0.0009910840129 | O71: 1.000000487 | P71: 0.001666946379 | Q71: 47.19845665 | R71: -89.55725893 | S71: 90.44274107 | U71: 1000000000 | V71: 43651.7449 | X71: 30.52543104 | Y71: -87.78164786 | AA71: 16.67302561 | AB71: -1.775611071 | AD71: 0 | AE71: 0
A72: 229.09 | B72: 0.22909 | C72: 1.000524732 | D72: 0.03238836593 | E72: 1.000000028 | F72: 0.0002375034574 | G72: 1 | H72: 0 | I72: 351.5466839 | J72: 1.567951751 | K72: 1.000805209 | L72: 0.04011655083 | M72: 1.00000059 | N72: 0.001086715271 | O72: 1.000000586 | P72: 0.001827792773 | Q72: 46.3987647 | R72: -89.54760657 | S72: 90.45239343 | U72: 1000000000 | V72: 52482.2281 | X72: 29.72650624 | Y72: -87.60077303 | AA72: 16.67225846 | AB72: -1.946833541 | AD72: 0 | AE72: 0
A73: 251.19 | B73: 0.25119 | C73: 1.000630823 | D73: 0.03551031688 | E73: 1.000000034 | F73: 0.0002604150912 | G73: 1 | H73: 0 | I73: 385.459651 | J73: 1.568202019 | K73: 1.000967978 | L73: 0.04398177005 | M73: 1.00000071 | N73: 0.001191549116 | O73: 1.000000705 | P73: 0.002004117438 | Q73: 45.59933591 | R73: -89.5341562 | S73: 90.4658438 | U73: 1000000000 | V73: 63096.4161 | X73: 28.92799939 | Y73: -87.39965813 | AA73: 16.67133652 | AB73: -2.134498074 | AD73: 0 | AE73: 0
A74: 275.42 | B74: 0.27542 | C74: 1.000758343 | D74: 0.03893236385 | E74: 1.000000041 | F74: 0.00028553495 | G74: 1 | H74: 0 | I74: 422.6411759 | J74: 1.568430251 | K74: 1.001163615 | L74: 0.0482180045 | M74: 1.000000853 | N74: 0.001306486828 | O74: 1.000000847 | P74: 0.002197436287 | Q74: 44.80006645 | R74: -89.516806 | S74: 90.483194 | U74: 1000000000 | V74: 75856.1764 | X74: 28.12983797 | Y74: -87.17660199 | AA74: 16.67022848 | AB74: -2.340204015 | AD74: 0 | AE74: 0
A75: 302 | B75: 0.302 | C75: 1.000911708 | D75: 0.04268525363 | E75: 1.000000049 | F75: 0.0003130911133 | G75: 1 | H75: 0 | I75: 463.4288541 | J75: 1.568638497 | K75: 1.001398883 | L75: 0.05286310265 | M75: 1.000001026 | N75: 0.001432571986 | O75: 1.000001018 | P75: 0.002409504586 | Q75: 44.00054814 | R75: -89.49541372 | S75: 90.50458628 | U75: 1000000000 | V75: 91204 | X75: 27.33165207 | Y75: -86.92961319 | AA75: 16.66889607 | AB75: -2.565800527 | AD75: 0 | AE75: 0
A76: 331.13 | B76: 0.33113 | C76: 1.00109597 | D76: 0.04679679843 | E76: 1.000000059 | F76: 0.000343290926 | G76: 1 | H76: 0 | I76: 508.1295906 | J76: 1.568828324 | K76: 1.001681524 | L76: 0.05795120817 | M76: 1.000001234 | N76: 0.001570753299 | O76: 1.000001224 | P76: 0.002641918031 | Q76: 43.20156865 | R76: -89.46984039 | S76: 90.53015961 | U76: 1000000000 | V76: 109647.0769 | X76: 26.53427317 | Y76: -86.65687971 | AA76: 16.66729549 | AB76: -2.81296068 | AD76: 0 | AE76: 0
A77: 363.08 | B77: 0.36308 | C77: =SQRT(1+(A77/pole1)^2) -> 1.001317523 | D77: =ATAN(A77/pole1) -> 0.05130454618 | E77: =SQRT(1+(A77/Zero1)^2) -> 1.000000071 | F77: =ATAN(A77/Zero1) -> 0.0003764143038 | G77: =IF(VIN_nom>Vout, 1, SQRT(1+(A77/z_RHP)^2)) -> 1 | H77: =IF(VIN_nom>Vout, 0, -ATAN(A77/z_RHP)) -> 0 | I77: =SQRT(1+(A77/Pole2)^2) -> 557.1577074 | J77: =ATAN(A77/Pole2) -> 1.569001502 | K77: =SQRT(1+(A77/Zero2)^2) -> 1.002021329 | L77: =ATAN(A77/Zero2) -> 0.06352841822 | M77: =SQRT(1+(A77/pole4)^2) -> 1.000001483 | N77: =ATAN(A77/pole4) -> 0.001722311518 | O77: =SQRT((1-(V77/pterm2))^2+(A77/pterm1)^2) -> 1.000001472 | P77: =IF((ATAN((A77/pterm1)/(1-A77^2/pterm2))>0),ATAN((A77/pterm1)/(1-A77^2/pterm2)),PI()+ATAN((A77/pterm1)/(1-A77^2/pterm2))) -> 0.002896830812 | Q77: =20*LOG10(((E77*K77*G77)/(C77*I77*O77*M77))*Adc) -> 42.4025153 | R77: =((F77+L77+H77)-(D77+J77+P77+N77))*radconv -> -89.43987834 | S77: =IF(R77>0,R77,R77+180) -> 90.56012166 | U77: 1000000000 | V77: 131827.0864 | X77: =20*LOG10((K77/(I77*M77))*AEA*Afb_Ch2) -> 25.73714393 | Y77: -86.35593514 | AA77: =20*LOG10((E77*G77/(C77*O77))*Am_Ch2) -> 16.66537137 | AB77: =(F77+H77-(D77+P77))*radconv -> -3.083943198 | AD77: 0 | AE77: =IF(AD77>0,S75,0) -> 0
A78: 398.11 | B78: =A78/1000 -> 0.39811 | C78: 1.001583806 | D78: 0.05624443978 | E78: 1.000000085 | F78: 0.000412730795 | G78: 1 | H78: 0 | I78: 610.9121813 | J78: 1.56915943 | K78: 1.002429685 | L78: 0.06963871735 | M78: 1.000001783 | N78: 0.001888479953 | O78: 1.00000177 | P78: 0.003176317333 | Q78: 41.6037269 | R78: -89.405321 | S78: 90.594679 | U78: =IF(Q78<0,A78,1000000000) -> 1000000000 | V78: =A78^2 -> 158491.5721 | X78: 24.94066754 | Y78: =(L78-(J78+N78))*radconv -> -86.02441013 | AA78: 16.66305936 | AB78: -3.380910869 | AD78: =SUM((Q79<0)*(Q78>0))*A78 -> 0 | AE78: 0
A79: 436.52 | B79: 0.43652 | C79: 1.001903859 | D79: 0.06165781196 | E79: 1.000000102 | F79: 0.0004525514169 | G79: 1 | H79: 0 | I79: 669.8533703 | J79: 1.569303462 | K79: 1.002920422 | L79: 0.07633259351 | M79: 1.000002144 | N79: 0.002070681648 | O79: 1.000002128 | P79: 0.003482771138 | Q79: 40.80517758 | R79: -89.36592233 | S79: 90.63407767 | U79: 1000000000 | V79: 190549.7104 | X79: 24.14489628 | Y79: -85.65957113 | AA79: 16.6602813 | AB79: -3.706351204 | AD79: 0 | AE79: 0
A80: 478.63 | B80: 0.47863 | C80: 1.002288457 | D80: 0.06758848266 | E80: 1.000000123 | F80: 0.000496207921 | G80: 1 | H80: 0 | I80: 734.4723233 | J80: 1.569434805 | K80: 1.003510018 | L80: 0.08366339503 | M80: 1.000002577 | N80: 0.002270434506 | O80: 1.000002558 | P80: 0.003818745335 | Q80: 40.00702765 | R80: -89.32141968 | S80: 90.67858032 | U80: 1000000000 | V80: 229086.6769 | X80: 23.3500835 | Y80: -85.25851751 | AA80: 16.65694415 | AB80: -4.062902176 | AD80: 0 | AE80: 0
A81: 524.81 | B81: 0.52481 | C81: 1.002750723 | D81: 0.07408687718 | E81: 1.000000148 | F81: 0.0005440838951 | G81: 1 | H81: 0 | I81: 805.3368152 | J81: 1.56955461 | K81: 1.004218521 | L81: 0.09169235277 | M81: 1.000003099 | N81: 0.002489493594 | O81: 1.000003076 | P81: 0.00418719196 | Q81: 39.20910167 | R81: -89.27150771 | S81: 90.72849229 | U81: 1000000000 | V81: 275425.5361 | X81: 22.5561669 | Y81: -84.81790761 | AA81: 16.65293477 | AB81: -4.453600101 | AD81: 0 | AE81: 0
A82: 575.44 | B82: 0.57544 | C82: 1.003306149 | D82: 0.08120425364 | E82: 1.000000178 | F82: 0.0005965732938 | G82: 1 | H82: 0 | I82: 883.0299667 | J82: 1.569663862 | K82: 1.005069576 | L82: 0.1004813572 | M82: 1.000003726 | N82: 0.002729661392 | O82: 1.000003698 | P82: 0.004591142826 | Q82: 38.41168151 | R82: -89.21588804 | S82: 90.78411196 | U82: 1000000000 | V82: 331131.1936 | X82: 21.76356168 | Y82: -84.33435504 | AA82: 16.64811983 | AB82: -4.881532993 | AD82: 0 | AE82: 0
A83: 630.96 | B83: 0.63096 | C83: 1.003973574 | D83: 0.08899955487 | E83: 1.000000214 | F83: 0.0006541322752 | G83: 1 | H83: 0 | I83: 968.2269701 | J83: 1.569763511 | K83: 1.006091915 | L83: 0.1101013088 | M83: 1.000004479 | N83: 0.002993024966 | O83: 1.000004446 | P83: 0.005034108455 | Q83: 37.61468859 | R83: -89.15422452 | S83: 90.84577548 | U83: 1000000000 | V83: 398110.5216 | X83: 20.97235111 | Y83: -83.80397149 | AA83: 16.64233749 | AB83: -5.350253028 | AD83: 0 | AE83: 0
A84: 691.83 | B84: 0.69183 | C84: 1.004775322 | D84: 0.09753354494 | E84: 1.000000257 | F84: 0.0007172377312 | G84: 1 | H84: 0 | I84: 1061.633708 | J84: 1.569854382 | K84: 1.007319532 | L84: 0.1206247291 | M84: 1.000005385 | N84: 0.003281766216 | O84: 1.000005345 | P84: 0.005519758932 | Q84: 36.81838116 | R84: -89.0861988 | S84: 90.9138012 | U84: 1000000000 | V84: 478628.7489 | X84: 20.18298468 | Y84: -83.22277411 | AA84: 16.63539648 | AB84: -5.863424689 | AD84: 0 | AE84: 0
A85: 758.58 | B85: 0.75858 | C85: 1.005738496 | D85: 0.1068755125 | E85: 1.000000309 | F85: 0.0007864391242 | G85: 1 | H85: 0 | I85: 1164.063481 | J85: 1.569937267 | K85: 1.008793636 | L85: 0.1321338403 | M85: 1.000006474 | N85: 0.003598399041 | O85: 1.000006426 | P85: 0.006052322832 | Q85: 36.02270276 | R85: -89.01147001 | S85: 90.98852999 | U85: 1000000000 | V85: 575443.6164 | X85: 19.39563749 | Y85: -82.58624129 | AA85: 16.62706527 | AB85: -6.425228719 | AD85: 0 | AE85: 0
A86: 831.76 | B86: 0.83176 | C86: 1.006895107 | D86: 0.1170958553 | E86: 1.000000372 | F86: 0.0008623066501 | G86: 1 | H86: 0 | I86: 1276.36028 | J86: 1.570012849 | K86: 1.01056281 | L86: 0.1447111782 | M86: 1.000007784 | N86: 0.003945532144 | O86: 1.000007726 | P86: 0.006636188288 | Q86: 35.22798475 | R86: -88.92975006 | S86: 91.07024994 | U86: 1000000000 | V86: 691824.6976 | X86: 18.61091335 | Y86: -81.8898327 | AA86: 16.61707139 | AB86: -7.039917366 | AD86: 0 | AE86: 0
A87: 912.01 | B87: 0.91201 | C87: 1.008284068 | D87: 0.1282753392 | E87: 1.000000447 | F87: 0.0009455038094 | G87: 1 | H87: 0 | I87: 1399.506202 | J87: 1.570081789 | K87: 1.012685986 | L87: 0.1584506839 | M87: 1.000009358 | N87: 0.00432620106 | O87: 1.000009288 | P87: 0.007276461489 | Q87: 34.43418349 | R87: -88.84075042 | S87: 91.15924958 | U87: 1000000000 | V87: 831762.2401 | X87: 17.82909851 | Y87: -81.1283777 | AA87: 16.60508498 | AB87: -7.712372716 | AD87: 0 | AE87: 0
A88: 1000 | B88: 1 | C88: 1.009951397 | D88: 0.1404960242 | E88: 1.000000537 | F88: 0.001036725203 | G88: 1 | H88: 0 | I88: 1534.529383 | J88: 1.570144661 | K88: 1.015232663 | L88: 0.1734461417 | M88: 1.000011251 | N88: 0.004743583515 | O88: 1.000011167 | P88: 0.007978487962 | Q88: 33.64160815 | R88: -88.74428076 | S88: 91.25571924 | U88: 1000000000 | V88: 1000000 | X88: 17.05089009 | Y88: -80.29671782 | AA88: 16.59071806 | AB88: -8.447562943 | AD88: 0 | AE88: 0
A89: 1096.5 | B89: 1.0965 | C89: 1.011952785 | D89: 0.1538501142 | E89: 1.000000646 | F89: 0.001136769103 | G89: 1 | H89: 0 | I89: 1682.611408 | J89: 1.570202012 | K89: 1.018286704 | L89: 0.1898015556 | M89: 1.000013527 | N89: 0.005201331431 | O89: 1.000013426 | P89: 0.008748411063 | Q89: 32.85029161 | R89: -88.64021184 | S89: 91.35978816 | U89: 1000000000 | V89: 1202312.25 | X89: 16.27678774 | Y89: -79.38913465 | AA89: 16.57350387 | AB89: -9.251077192 | AD89: 0 | AE89: 0
A90: 1202.3 | B90: 1.2023 | C90: 1.014353559 | D90: 0.1684277214 | E90: 1.000000777 | F90: 0.001246454513 | G90: 1 | H90: 0 | I90: 1844.964556 | J90: 1.570254311 | K90: 1.02194609 | L90: 0.2076155411 | M90: 1.000016263 | N90: 0.005703191402 | O90: 1.000016143 | P90: 0.009592533693 | Q90: 32.06073753 | R90: -88.52861211 | S90: 91.47138789 | U90: 1000000000 | V90: 1445525.29 | X90: 15.50783827 | Y90: -78.4002194 | AA90: 16.55289927 | AB90: -10.12839271 | AD90: 0 | AE90: =IF(AD90>0,S90,0) -> 0
A91: 1318.3 | B91: 1.3183 | C91: 1.017232259 | D91: 0.1843278856 | E91: 1.000000934 | F91: 0.001366714474 | G91: 1 | H91: 0 | I91: 2022.969903 | J91: 1.570302004 | K91: 1.026328115 | L91: 0.2269940999 | M91: 1.000019553 | N91: 0.006253431537 | O91: 1.000019408 | P91: 0.01051803635 | Q91: 31.27320353 | R91: -88.40971084 | S91: 91.59028916 | U91: 1000000000 | V91: 1737914.89 | X91: 14.7449466 | Y91: -77.32416882 | AA91: 16.52825693 | AB91: -11.08554202 | AD91: 0 | AE91: 0
A92: 1445.4 | B92: 1.4454 | C92: 1.020679888 | D92: 0.2016416845 | E92: 1.000001123 | F92: 0.001498482024 | G92: 1 | H92: 0 | I92: 2218.008524 | J92: 1.570345472 | K92: 1.031567907 | L92: 0.248029174 | M92: 1.000023505 | N92: 0.0068563196 | O92: 1.000023331 | P92: 0.01153209949 | Q92: 30.48850425 | R92: -88.28408276 | S92: 91.71591724 | U92: 1000000000 | V92: 2089181.16 | X92: 13.98966842 | Y92: -76.15598131 | AA92: 16.49883584 | AB92: -12.12810144 | AD92: 0 | AE92: 0
A93: 1584.9 | B93: 1.5849 | C93: 1.024813516 | D93: 0.2205042326 | E93: 1.00000135 | F93: 0.001643104884 | G93: 1 | H93: 0 | I93: 2432.075308 | J93: 1.570385155 | K93: 1.037838593 | L93: 0.2708606936 | M93: 1.000028261 | N93: 0.007518020258 | O93: 1.000028051 | P93: 0.01264509491 | Q93: 29.7056819 | R93: -88.15234745 | S93: 91.84765255 | U93: 1000000000 | V93: 2511908.01 | X93: 13.24199083 | Y93: -74.88801795 | AA93: 16.46369106 | AB93: -13.2643295 | AD93: 0 | AE93: 0
A94: 1737.8 | B94: 1.7378 | C94: 1.029759431 | D94: 0.2409965966 | E94: 1.000001623 | F94: 0.001801619754 | G94: 1 | H94: 0 | I94: 2666.704783 | J94: 1.570421332 | K94: 1.045325049 | L94: 0.2955563727 | M94: 1.000033977 | N94: 0.008243274543 | O94: 1.000033725 | P94: 0.01386500076 | Q94: 28.92623907 | R94: -88.01595525 | S94: 91.98404475 | U94: 1000000000 | V94: 3019948.84 | X94: 12.50441358 | Y94: -73.51668655 | AA94: 16.42182548 | AB94: -14.4992687 | AD94: 0 | AE94: 0
A95: 1905.5 | B95: 1.9055 | C95: 1.035676218 | D95: 0.2632370628 | E95: 1.000001951 | F95: 0.001975478012 | G95: 1 | H95: 0 | I95: 2924.045289 | J95: 1.570454335 | K95: 1.054258021 | L95: 0.3222210771 | M95: 1.000040851 | N95: 0.009038720026 | O95: 1.000040549 | P95: 0.01520298649 | Q95: 28.15008646 | R95: -87.87663124 | S95: 92.12336876 | U95: 1000000000 | V95: 3630930.25 | X95: 11.77808191 | Y95: -72.03637811 | AA95: 16.37200456 | AB95: -15.84025314 | AD95: 0 | AE95: 0
A96: 2089.3 | B96: 2.0893 | C96: 1.042742275 | D96: 0.2873095668 | E96: 1.000002346 | F96: 0.002166027355 | G96: 1 | H96: 0 | I96: 3206.091714 | J96: 1.570484421 | K96: 1.064894049 | L96: 0.3509092099 | M96: 1.000049111 | N96: 0.009910518896 | O96: 1.000048749 | P96: 0.0166694236 | Q96: 27.37824015 | R96: -87.73695236 | S96: 92.26304764 | U96: 1000000000 | V96: 4365174.49 | X96: 11.06536294 | Y96: -70.44434335 | AA96: 16.31287721 | AB96: -17.29260901 | AD96: 0 | AE96: 0
A97: 2290.9 | B97: 2.2909 | C97: 1.051177449 | D97: 0.3133244153 | E97: 1.00000282 | F97: 0.002375030153 | G97: 1 | H97: 0 | I97: 3515.452759 | J97: 1.570511868 | K97: 1.077546559 | L97: 0.3816961984 | M97: 1.000059046 | N97: 0.01086672923 | O97: 1.000058611 | P97: 0.01827787474 | Q97: 26.61057765 | R97: -87.60007082 | S97: 92.39992918 | U97: 1000000000 | V97: 5248222.81 | X97: 10.36776306 | Y97: -68.73673831 | AA97: 16.24281459 | AB97: -18.86333251 | AD97: 0 | AE97: 0
A98: 2511.9 | B98: 2.5119 | C98: 1.061227752 | D98: 0.341346425 | E98: 1.000003391 | F98: 0.002604145084 | G98: 1 | H98: 0 | I98: 3854.583668 | J98: 1.570536895 | K98: 1.09256091 | L98: 0.41459192 | M98: 1.000070987 | N98: 0.01191493293 | O98: 1.000070466 | P98: 0.02004110451 | Q98: 25.84799273 | R98: -87.4702176 | S98: 92.5297824 | U98: 1000000000 | V98: 6309641.61 | X98: 9.687927407 | Y98: -66.91344389 | AA98: 16.16006532 | AB98: -20.55677371 | AD98: 0 | AE98: 0
A99: 2754.2 | B99: 2.7542 | C99: 1.073185068 | D99: 0.3714397759 | E99: 1.000004077 | F99: 0.002855341817 | G99: 1 | H99: 0 | I99: 4226.400047 | J99: 1.570559719 | K99: 1.110341587 | L99: 0.4495937175 | M99: 1.000085342 | N99: 0.01306413243 | O99: 1.000084717 | P99: 0.02197427075 | Q99: 25.09078622 | R99: -87.35250604 | S99: 92.64749396 | U99: 1000000000 | V99: 7585617.64 | X99: 9.028159179 | Y99: -64.97514058 | AA99: 16.06262704 | AB99: -22.37736546 | AD99: 0 | AE99: 0
A100: 3020 | B100: 3.02 | C100: 1.087393506 | D100: 0.4036581454 | E100: 1.000004901 | F100: 0.003130901005 | G100: 1 | H100: 0 | I100: 4634.27786 | J100: 1.570580543 | K100: 1.131358567 | L100: 0.4866744365 | M100: 1.000102608 | N100: 0.01432474978 | O100: 1.00010186 | P100: 0.02409492439 | Q100: 24.3388962 | R100: -87.25305128 | S100: 92.74694872 | U100: 1000000000 | V100: 9120400 | X100: 8.390653152 | Y100: -62.92399309 | AA100: 15.94824305 | AB100: -24.32905819 | AD100: 0 | AE100: 0
A101: 3311.3 | B101: 3.3113 | C101: 1.10422559 | D101: 0.437975673 | E101: 1.000005892 | F101: 0.003432895909 | G101: 1 | H101: 0 | I101: 5081.286164 | J101: 1.570599526 | K101: 1.156108811 | L101: 0.5257047726 | M101: 1.000123356 | N101: 0.01570625427 | O101: 1.000122461 | P101: 0.02641902014 | Q101: 23.59326139 | R101: -87.1791271 | S101: 92.8208729 | U101: 1000000000 | V101: 10964707.69 | X101: 7.778610102 | Y101: -60.76796157 | AA101: 15.81465128 | AB101: -26.41116553 | AD101: 0 | AE101: 0
A102: 3630.8 | B102: 3.6308 | C102: 1.124134431 | D102: 0.474386083 | E102: 1.000007084 | F102: 0.003764125438 | G102: 1 | H102: 0 | I102: 5571.568189 | J102: 1.570616844 | K102: 1.185189588 | L102: 0.5665701698 | M102: 1.000148307 | N102: 0.01722142951 | O102: 1.000147238 | P102: 0.02896809691 | Q102: 22.85333742 | R102: -87.13875381 | S102: 92.86124619 | U102: 1000000000 | V102: 13182708.64 | X102: 7.194099805 | Y102: -58.51435217 | AA102: 15.65923761 | AB102: -28.62440164 | AD102: 0 | AE102: 0
A103: 3981.1 | B103: 3.9811 | C103: 1.147611456 | D103: 0.5127982332 | E103: 1.000008517 | F103: 0.004127284749 | G103: 1 | H103: 0 | I103: 6109.11371 | J103: 1.570632637 | K103: 1.219232255 | L103: 0.6090562873 | M103: 1.000178302 | N103: 0.01888257745 | O103: 1.000177026 | P103: 0.0317628948 | Q103: 22.11925533 | R103: -87.14073693 | S103: 92.85926307 | U103: 1000000000 | V103: 15849157.21 | X103: 6.63979646 | Y103: -56.17615857 | AA103: 15.47945887 | AB103: -30.96457836 | AD103: 0 | AE103: 0
A104: 4365.2 | B104: 4.3652 | C104: 1.175216652 | D104: 0.5530869833 | E104: 1.00001024 | F104: 0.004525483584 | G104: 1 | H104: 0 | I104: 6698.526314 | J104: 1.57064704 | K104: 1.258942935 | L104: 0.6529135548 | M104: 1.000214364 | N104: 0.02070388732 | O104: 1.000212842 | P104: 0.03482734403 | Q104: 21.39055572 | R104: -87.19421946 | S104: 92.80578054 | U104: 1000000000 | V104: 19054971.04 | X104: 6.11785415 | Y104: -53.76850086 | AA104: 15.27270157 | AB104: -33.4257186 | AD104: 0 | AE104: 0
A105: 4786.3 | B105: 4.7863 | C105: 1.207565791 | D105: 0.5950647046 | E105: 1.000012311 | F105: 0.004962038892 | G105: 1 | H105: 0 | I105: 7344.716493 | J105: 1.570660175 | K105: 1.305080698 | L105: 0.6978334163 | M105: 1.000257711 | N105: 0.02270048399 | O105: 1.000255901 | P105: 0.03818696885 | Q105: 20.66667711 | R105: -87.30827588 | S105: 92.69172412 | U105: 1000000000 | V105: 22908667.69 | X105: 5.630188781 | Y105: -51.30993147 | AA105: 15.03648833 | AB105: -35.99834441 | AD105: 0 | AE105: 0
A106: 5248.1 | B106: 5.2481 | C106: 1.245351883 | D106: 0.6385079702 | E106: 1.000014801 | F106: 0.005440785801 | G106: 1 | H106: 0 | I106: 8053.362006 | J106: 1.570672155 | K106: 1.35848581 | L106: 0.7434857347 | M106: 1.000309832 | N106: 0.02488984631 | O106: 1.000307683 | P106: 0.04187128047 | Q106: 19.94648201 | R106: -87.49149947 | S106: 92.50850053 | U106: 1000000000 | V106: 27542553.61 | X106: 5.17804729 | Y106: -48.82037396 | AA106: 14.76843472 | AB106: -38.67112551 | AD106: 0 | AE106: 0
A107: 5370.3 | B107: 5.3703 | C107: 1.255728891 | D107: 0.649559614 | E107: 1.000015499 | F107: 0.005567469828 | G107: 1 | H107: 0 | I107: 8240.881455 | J107: 1.570674981 | K107: 1.37306796 | L107: 0.7549642078 | M107: 1.000324426 | N107: 0.0254691491 | O107: 1.000322184 | P107: 0.04284620596 | Q107: 19.76696896 | R107: -87.54899811 | S107: 92.45100189 | U107: 1000000000 | V107: 28840122.09 | X107: 5.070730195 | Y107: -48.19605939 | AA107: 14.69623876 | AB107: -39.35293872 | AD107: 0 | AE107: 0
A108: 5432.85 | B108: 5.43285 | C108: 1.261099132 | D108: 0.6551458498 | E108: 1.000015862 | F108: 0.005632314979 | G108: 1 | H108: 0 | I108: 8336.866247 | J108: 1.570676378 | K108: 1.380600944 | L108: 0.7607454352 | M108: 1.000332027 | N108: 0.0257656678 | O108: 1.000329736 | P108: 0.04334523614 | Q108: 19.67671305 | R108: -87.5797722 | S108: 92.4202278 | U108: 1000000000 | V108: 29515859.12 | X108: 5.017603516 | Y108: -47.88188878 | AA108: 14.65910953 | AB108: -39.69788342 | AD108: 0 | AE108: 0
A109: 5495.4 | B109: 5.4954 | C109: 1.266508393 | D109: 0.6606845395 | E109: 1.000016229 | F109: 0.005697160083 | G109: 1 | H109: 0 | I109: 8432.851038 | J109: 1.570677743 | K109: 1.388179569 | L109: 0.7664637279 | M109: 1.000339715 | N109: 0.02606218197 | O109: 1.000337375 | P109: 0.04384426574 | Q109: 19.587524 | R109: -87.61142588 | S109: 92.38857412 | U109: 1000000000 | V109: 30199421.16 | X109: 4.965654509 | Y109: -47.57132197 | AA109: 14.62186949 | AB109: -40.04010391 | AD109: 0 | AE109: 0
A110: 5559.4 | B110: 5.5594 | C110: 1.272082915 | D110: 0.6663026926 | E110: 1.000016609 | F110: 0.005763508341 | G110: 1 | H110: 0 | I110: 8531.060897 | J110: 1.570679108 | K110: 1.395980344 | L110: 0.7722501214 | M110: 1.000347672 | N110: 0.02636556501 | O110: 1.000345282 | P110: 0.04435486297 | Q110: 19.49734342 | R110: -87.64470079 | S110: 92.35529921 | U110: 1000000000 | V110: 30906928.36 | X110: 4.913686248 | Y110: -47.25724683 | AA110: 14.58365718 | AB110: -40.38745396 | AD110: 0 | AE110: 0
A111: 5623.4 | B111: 5.6234 | C111: 1.277697238 | D111: 0.6718716468 | E111: 1.000016994 | F111: 0.005829856548 | G111: 1 | H111: 0 | I111: 8629.270756 | J111: 1.570680442 | K111: 1.403827338 | L111: 0.7779720161 | M111: 1.000355722 | N111: 0.02666894321 | O111: 1.000353281 | P111: 0.04486545959 | Q111: 19.40822347 | R111: -87.67885023 | S111: 92.32114977 | U111: 1000000000 | V111: 31622627.56 | X111: 4.862883131 | Y111: -46.94686514 | AA111: 14.54534034 | AB111: -40.73198509 | AD111: 0 | AE111: 0
A112: 5688.9 | B112: 5.6889 | C112: 1.283483813 | D112: 0.677520497 | E112: 1.000017392 | F112: 0.005897759738 | G112: 1 | H112: 0 | I112: 8729.782409 | J112: 1.570681776 | K112: 1.411905301 | L112: 0.7837619683 | M112: 1.000364055 | N112: 0.02697942675 | O112: 1.000361563 | P112: 0.04538802266 | Q112: 19.31808487 | R112: -87.71468162 | S112: 92.28531838 | U112: 1000000000 | V112: 32363583.21 | X112: 4.812061772 | Y112: -46.63299116 | AA112: 14.5060231 | AB112: -41.08169046 | AD112: 0 | AE112: 0
A113: 5754.4 | B113: 5.7544 | C113: 1.289310974 | D113: 0.6831184635 | E113: 1.000017795 | F113: 0.005965662874 | G113: 1 | H113: 0 | I113: 8830.294062 | J113: 1.57068308 | K113: 1.420030056 | L113: 0.7894858557 | M113: 1.000372485 | N113: 0.02728990508 | O113: 1.00036994 | P113: 0.04591058508 | Q113: 19.22900117 | R113: -87.75138074 | S113: 92.24861926 | U113: 1000000000 | V113: 33113119.36 | X113: 4.762392987 | Y113: -46.32290037 | AA113: 14.46660819 | AB113: -41.42848037 | AD113: 0 | AE113: 0
A114: 5821.4 | B114: 5.8214 | C114: 1.295313002 | D114: 0.6887923355 | E114: 1.000018212 | F114: 0.006035120987 | G114: 1 | H114: 0 | I114: 8933.107508 | J114: 1.570684384 | K114: 1.428388454 | L114: 0.7952732607 | M114: 1.000381208 | N114: 0.02760748816 | O114: 1.000378609 | P114: 0.04644511388 | Q114: 19.13894088 | R114: -87.78979321 | S114: 92.21020679 | U114: 1000000000 | V114: 33888697.96 | X114: 4.712745255 | Y114: -46.00957734 | AA114: 14.42619562 | AB114: -41.78021587 | AD114: 0 | AE114: 0
A115: 5888.4 | B115: 5.8884 | C115: 1.301356345 | D115: 0.6944136894 | E115: 1.000018633 | F115: 0.006104579041 | G115: 1 | H115: 0 | I115: 9035.920954 | J115: 1.570685657 | K115: 1.436794137 | L115: 0.8009931393 | M115: 1.000390031 | N115: 0.02792506567 | O115: 1.000387378 | P115: 0.04697964197 | Q115: 19.04992868 | R115: -87.82906355 | S115: 92.17093645 | U115: 1000000000 | V115: 34673254.56 | X115: 4.664235718 | Y115: -45.70012127 | AA115: 14.38569297 | AB115: -42.12894228 | AD115: 0 | AE115: 0
A116: 5957 | B116: 5.957 | C116: 1.307586215 | D116: 0.7001152626 | E116: 1.00001907 | F116: 0.006175695734 | G116: 1 | H116: 0 | I116: 9141.189647 | J116: 1.570686932 | K116: 1.445448684 | L116: 0.8067804904 | M116: 1.00039917 | N116: 0.02825022128 | O116: 1.000396461 | P116: 0.04752693417 | Q116: 18.95984898 | R116: -87.87013475 | S116: 92.12986525 | U116: 1000000000 | V116: 35485849 | X116: 4.615713065 | Y116: -45.38723354 | AA116: 14.34413591 | AB116: -42.48290121 | AD116: 0 | AE116: 0
A117: 6025.6 | B117: 6.0256 | C117: 1.313858187 | D117: 0.7057625826 | E117: 1.000019512 | F117: 0.006246812365 | G117: 1 | H117: 0 | I117: 9246.458339 | J117: 1.570688177 | K117: 1.454151066 | L117: 0.8124987622 | M117: 1.000408415 | N117: 0.02857537092 | O117: 1.000405649 | P117: 0.04807422561 | Q117: 18.8708126 | R117: -87.91205338 | S117: 92.08794662 | U117: 1000000000 | V117: 36307855.36 | X117: 4.568315796 | Y117: -45.07830176 | AA117: 14.30249681 | AB117: -42.83375162 | AD117: 0 | AE117: 0
A118: 6095.8 | B118: 6.0958 | C118: 1.320319406 | D118: 0.7114858863 | E118: 1.000019969 | F118: 0.006319587627 | G118: 1 | H118: 0 | I118: 9354.182278 | J118: 1.570689423 | K118: 1.463105051 | L118: 0.8182797894 | M118: 1.000417985 | N118: 0.02890809796 | O118: 1.000415161 | P118: 0.04863428106 | Q118: 18.78075205 | R118: -87.95580037 | S118: 92.04419963 | U118: 1000000000 | V118: 37158777.64 | X118: 4.520944158 | Y118: -44.76620851 | AA118: 14.2598079 | AB118: -43.18959186 | AD118: 0 | AE118: 0
A119: 6166 | B119: 6.166 | C119: 1.326823451 | D119: 0.7171532631 | E119: 1.000020431 | F119: 0.006392362822 | G119: 1 | H119: 0 | I119: 9461.906218 | J119: 1.57069064 | K119: 1.472107338 | L119: 0.8239903008 | M119: 1.000427665 | N119: 0.0292408186 | O119: 1.000424783 | P119: 0.0491943357 | Q119: 18.69172898 | R119: -88.00038123 | S119: 91.99961877 | U119: 1000000000 | V119: 38019556 | X119: 4.474683252 | Y119: -44.45815353 | AA119: 14.21704572 | AB119: -43.54222769 | AD119: 0 | AE119: 0
A120: 6237.8 | B120: 6.2378 | C120: 1.333519385 | D120: 0.722892434 | E120: 1.00002091 | F120: 0.006466796641 | G120: 1 | H120: 0 | I120: 9572.085403 | J120: 1.570691856 | K120: 1.481363852 | L120: 0.8297589768 | M120: 1.000437681 | N120: 0.02958111592 | O120: 1.000434739 | P120: 0.04976715427 | Q120: 18.60172265 | R120: -88.04681335 | S120: 91.95318665 | U120: 1000000000 | V120: 38910148.84 | X120: 4.428483093 | Y120: -44.14720004 | AA120: 14.17323955 | AB120: -43.89961331 | AD120: 0 | AE120: 0
A121: 6309.6 | B121: 6.3096 | C121: 1.340258804 | D121: 0.7285740723 | E121: 1.000021394 | F121: 0.006541230389 | G121: 1 | H121: 0 | I121: 9682.264589 | J121: 1.570693045 | K121: 1.49066905 | L121: 0.8354558209 | M121: 1.000447812 | N121: 0.02992140639 | O121: 1.00044481 | P121: 0.05033997196 | Q121: 18.51274694 | R121: -88.09406274 | S121: 91.90593726 | U121: 1000000000 | V121: 39811052.16 | X121: 4.383377328 | Y121: -43.84036024 | AA121: 14.12936962 | AB121: -44.2537025 | AD121: 0 | AE121: 0
A122: 6383.05 | B122: 6.38305 | C122: 1.347197411 | D122: 0.7343272672 | E122: 1.000021895 | F122: 0.006617374586 | G122: 1 | H122: 0 | I122: 9794.975748 | J122: 1.570694234 | K122: 1.500237516 | L122: 0.8412102661 | M122: 1.000458297 | N122: 0.03026950973 | O122: 1.000455232 | P122: 0.05092595237 | Q122: 18.42276574 | R122: -88.14321552 | S122: 91.85678448 | U122: 1000000000 | V122: 40743327.3 | X122: 4.338333671 | Y122: -43.53066777 | AA122: 14.08443207 | AB122: -44.61254775 | AD122: 0 | AE122: 0
A123: 6456.5 | B123: 6.4565 | C123: 1.354180152 | D123: 0.7400213171 | E123: 1.000022402 | F123: 0.006693518706 | G123: 1 | H123: 0 | I123: 9907.686906 | J123: 1.570695395 | K123: 1.509855029 | L123: 0.8468915878 | M123: 1.000468902 | N123: 0.03061760573 | O123: 1.000465775 | P123: 0.05151193185 | Q123: 18.33380883 | R123: -88.19316718 | S123: 91.80683282 | U123: 1000000000 | V123: 41686392.25 | X123: 4.294367984 | Y123: -43.22516299 | AA123: 14.03944084 | AB123: -44.96800419 | AD123: 0 | AE123: 0
A124: 6531.7 | B124: 6.5317 | C124: 1.361374276 | D124: 0.7457903241 | E124: 1.000022927 | F124: 0.006771476936 | G124: 1 | H124: 0 | I124: 10023.08349 | J124: 1.570696557 | K124: 1.519751528 | L124: 0.8526335841 | M124: 1.000479886 | N124: 0.03097398768 | O124: 1.000476694 | P124: 0.05211187174 | Q124: 18.24376661 | R124: -88.24510789 | S124: 91.75489211 | U124: 1000000000 | V124: 42663104.89 | X124: 4.250437925 | Y124: -42.9166566 | AA124: 13.99332869 | AB124: -45.32845129 | AD124: 0 | AE124: 0
A125: 6606.9 | B125: 6.6069 | C125: 1.368613231 | D125: 0.7514984918 | E125: 1.000023458 | F125: 0.006849435083 | G125: 1 | H125: 0 | I125: 10138.48008 | J125: 1.570697693 | K125: 1.529697486 | L125: 0.8583010973 | M125: 1.000490997 | N125: 0.03133036176 | O125: 1.00048774 | P125: 0.05271181061 | Q125: 18.15474418 | R125: -88.29782831 | S125: 91.70217169 | U125: 1000000000 | V125: 43651127.61 | X125: 4.207570665 | Y125: -42.61241581 | AA125: 13.94717352 | AB125: -45.6854125 | AD125: 0 | AE125: 0
A126: 6683.85 | B126: 6.68385 | C126: 1.376066315 | D126: 0.7572771332 | E126: 1.000024007 | F126: 0.00692920733 | G126: 1 | H126: 0 | I126: 10256.56209 | J126: 1.570698828 | K126: 1.539925096 | L126: 0.8640245271 | M126: 1.000502498 | N126: 0.03169502088 | O126: 1.000499175 | P126: 0.05332570978 | Q126: 18.06467889 | R126: -88.35255341 | S126: 91.64744659 | U126: 1000000000 | V126: 44673850.82 | X126: 4.16477247 | Y126: -42.30544592 | AA126: 13.89990642 | AB126: -46.04710748 | AD126: 0 | AE126: 0
A127: 6760.8 | B127: 6.7608 | C127: 1.383564855 | D127: 0.7629933265 | E127: 1.000024563 | F127: 0.007008979488 | G127: 1 | H127: 0 | I127: 10374.6441 | J127: 1.570699938 | K127: 1.550202484 | L127: 0.8696722506 | M127: 1.000514131 | N127: 0.03205967157 | O127: 1.000510742 | P127: 0.05393960787 | Q127: 17.97562791 | R127: -88.40803613 | S127: 91.59196387 | U127: 1000000000 | V127: 45708416.64 | X127: 4.123020228 | Y127: -42.00281173 | AA127: 13.85260768 | AB127: -46.4052244 | AD127: 0 | AE127: 0
A128: 6839.55 | B128: 6.83955 | C128: 1.391285094 | D128: 0.7687792426 | E128: 1.000025139 | F128: 0.007090617569 | G128: 1 | H128: 0 | I128: 10495.48826 | J128: 1.570701048 | K128: 1.56077079 | L128: 0.8753748895 | M128: 1.000526175 | N128: 0.03243284327 | O128: 1.000522717 | P128: 0.05456786502 | Q128: 17.88551738 | R128: -88.46557127 | S128: 91.53442873 | U128: 1000000000 | V128: 46779444.2 | X128: 4.081340876 | Y128: -41.69751934 | AA128: 13.8041765 | AB128: -46.76805194 | AD128: 0 | AE128: 0
A129: 6918.3 | B129: 6.9183 | C129: 1.399051394 | D129: 0.7745011119 | E129: 1.000025721 | F129: 0.007172255556 | G129: 1 | H129: 0 | I129: 10616.33242 | J129: 1.570702132 | K129: 1.571389169 | L129: 0.8810006403 | M129: 1.000538358 | N129: 0.03280600593 | O129: 1.000534831 | P129: 0.05519612102 | Q129: 17.79641608 | R129: -88.52384015 | S129: 91.47615985 | U129: 1000000000 | V129: 47862874.89 | X129: 4.040690414 | Y129: -41.39663035 | AA129: 13.75572567 | AB129: -47.1272098 | AD129: 0 | AE129: 0
A130: 6998.9 | B130: 6.9989 | C130: 1.407047041 | D130: 0.7802917975 | E130: 1.000026324 | F130: 0.007255811289 | G130: 1 | H130: 0 | I130: 10740.01546 | J130: 1.570703217 | K130: 1.582307795 | L130: 0.8866801804 | M130: 1.000550972 | N130: 0.03318792549 | O130: 1.000547374 | P130: 0.05583913483 | Q130: 17.70624025 | R130: -88.58420744 | S130: 91.41579256 | U130: 1000000000 | V130: 48984601.21 | X130: 4.0001172 | Y130: -41.0931612 | AA130: 13.70612305 | AB130: -47.49104623 | AD130: 0 | AE130: 0
A131: 7079.5 | B131: 7.0795 | C131: 1.415089335 | D131: 0.7860168535 | E131: 1.000026934 | F131: 0.00733936692 | G131: 1 | H131: 0 | I131: 10863.6985 | J131: 1.570704277 | K131: 1.593276761 | L131: 0.8922816971 | M131: 1.000563732 | N131: 0.03356983536 | O131: 1.000560062 | P131: 0.0564821474 | Q131: 17.61706894 | R131: -88.64528279 | S131: 91.35471721 | U131: 1000000000 | V131: 50119320.25 | X131: 3.960555563 | Y131: -40.79416049 | AA131: 13.65651338 | AB131: -47.8511223 | AD131: 0 | AE131: 0
A132: 7161.95 | B132: 7.16195 | C132: 1.423363664 | D132: 0.7918061815 | E132: 1.000027565 | F132: 0.007424840286 | G132: 1 | H132: 0 | I132: 10990.22042 | J132: 1.570705337 | K132: 1.604548507 | L132: 0.8979323602 | M132: 1.000576935 | N132: 0.03396050102 | O132: 1.000573193 | P132: 0.05713991764 | Q132: 17.52686409 | R132: -88.70846211 | S132: 91.29153789 | U132: 1000000000 | V132: 51293527.8 | X132: 3.921099551 | Y132: -40.49284555 | AA132: 13.60576454 | AB132: -48.21561656 | AD132: 0 | AE132: 0
A133: 7244.4 | B133: 7.2444 | C133: 1.431685146 | D133: 0.7975284 | E133: 1.000028203 | F133: 0.007510313543 | G133: 1 | H133: 0 | I133: 11116.74234 | J133: 1.570706372 | K133: 1.61587077 | L133: 0.9035040118 | M133: 1.000590291 | N133: 0.03435115631 | O133: 1.000586476 | P133: 0.05779768655 | Q133: 17.43765824 | R133: -88.77232132 | S133: 91.22767868 | U133: 1000000000 | V133: 52481331.36 | X133: 3.882636349 | Y133: -40.19605567 | AA133: 13.55502189 | AB133: -48.57626566 | AD133: 0 | AE133: 0
A134: 7328.75 | B134: 7.32875 | C134: 1.440246334 | D134: 0.8033138616 | E134: 1.000028864 | F134: 0.007597756355 | G134: 1 | H134: 0 | I134: 11246.17987 | J134: 1.570707408 | K134: 1.627505124 | L134: 0.909123657 | M134: 1.000604113 | N134: 0.03475080311 | O134: 1.000600222 | P134: 0.05847061187 | Q134: 17.34740456 | R134: -88.83832497 | S134: 91.16167503 | U134: 1000000000 | V134: 53710576.56 | X134: 3.844281452 | Y134: -39.89703111 | AA134: 13.50312311 | AB134: -48.94129386 | AD134: 0 | AE134: 0
A135: 7413.1 | B135: 7.4131 | C135: 1.448855159 | D135: 0.8090307604 | E135: 1.000029532 | F135: 0.007685199051 | G135: 1 | H135: 0 | I135: 11375.6174 | J135: 1.570708419 | K135: 1.639190144 | L135: 0.9146633555 | M135: 1.000618095 | N135: 0.0351504388 | O135: 1.000614129 | P135: 0.05914353577 | Q135: 17.25814478 | R135: -88.90497881 | S135: 91.09502119 | U135: 1000000000 | V135: 54954051.61 | X135: 3.806900449 | Y135: -39.60258517 | AA135: 13.45124433 | AB135: -49.30239364 | AD135: 0 | AE135: 0
A136: 7499.45 | B136: 7.49945 | C136: 1.457716569 | D136: 0.8148130721 | E136: 1.000030224 | F136: 0.007774714955 | G136: 1 | H136: 0 | I136: 11508.12398 | J136: 1.570709432 | K136: 1.651203585 | L136: 0.9202530126 | M136: 1.000632574 | N136: 0.03555953851 | O136: 1.00062853 | P136: 0.05983241368 | Q136: 17.1677724 | R136: -88.97385571 | S136: 91.02614429 | U136: 1000000000 | V136: 56241750.3 | X136: 3.769609436 | Y136: -39.3058191 | AA136: 13.39816296 | AB136: -49.66803661 | AD136: 0 | AE136: 0
A137: 7585.8 | B137: 7.5858 | C137: 1.466626127 | D137: 0.8205253194 | E137: 1.000030924 | F137: 0.007864230735 | G137: 1 | H137: 0 | I137: 11640.63056 | J137: 1.570710421 | K137: 1.663267871 | L137: 0.925761752 | M137: 1.00064722 | N137: 0.03596862632 | O137: 1.000643099 | P137: 0.06052129007 | Q137: 17.07839036 | R137: -89.04335235 | S137: 90.95664765 | U137: 1000000000 | V137: 57544361.64 | X137: 3.733274323 | Y137: -39.01368725 | AA137: 13.34511603 | AB137: -50.0296651 | AD137: 0 | AE137: 0
A138: 7674.15 | B138: 7.67415 | C138: 1.47579097 | D138: 0.8262982921 | E138: 1.000031648 | F138: 0.007955819709 | G138: 1 | H138: 0 | I138: 11776.2062 | J138: 1.57071141 | K138: 1.675663063 | L138: 0.93131581 | M138: 1.000662379 | N138: 0.03638717677 | O138: 1.000658178 | P138: 0.06122612029 | Q138: 16.98793761 | R138: -89.11506922 | S138: 90.88493078 | U138: 1000000000 | V138: 58892578.22 | X138: 3.697054797 | Y138: -38.71950101 | AA138: 13.29088281 | AB138: -50.39556821 | AD138: 0 | AE138: 0
A139: 7762.5 | B139: 7.7625 | C139: 1.485004389 | D139: 0.8319998182 | E139: 1.000032381 | F139: 0.008047408549 | G139: 1 | H139: 0 | I139: 11911.78185 | J139: 1.570712376 | K139: 1.688109185 | L139: 0.9367881366 | M139: 1.000677713 | N139: 0.03680571446 | O139: 1.000673432 | P139: 0.06193094887 | Q139: 16.89847083 | R139: -89.18737326 | S139: 90.81262674 | U139: 1000000000 | V139: 60256406.25 | X139: 3.661771835 | Y139: -38.42999561 | AA139: 13.23669899 | AB139: -50.75737764 | AD139: 0 | AE139: 0
A140: 7852.9 | B140: 7.8529 | C140: 1.494480932 | D140: 0.8377606809 | E140: 1.00003314 | F140: 0.0081411224 | G140: 1 | H140: 0 | I140: 12050.50327 | J140: 1.570713343 | K140: 1.700895647 | L140: 0.942304374 | M140: 1.000693584 | N140: 0.0372339502 | O140: 1.000689222 | P140: 0.06265212999 | Q140: 16.80792344 | R140: -89.26193195 | S140: 90.73806805 | U140: 1000000000 | V140: 61668038.41 | X140: 3.626607731 | Y140: -38.13852996 | AA140: 13.18131571 | AB140: -51.12340199 | AD140: 0 | AE140: 0
A141: 7943.3 | B141: 7.9433 | C141: =SQRT(1+(A141/pole1)^2) -> 1.504006446 | D141: =ATAN(A141/pole1) -> 0.8434487583 | E141: =SQRT(1+(A141/Zero1)^2) -> 1.000033907 | F141: =ATAN(A141/Zero1) -> 0.008234836109 | G141: =IF(VIN_nom>Vout, 1, SQRT(1+(A141/z_RHP)^2)) -> 1 | H141: =IF(VIN_nom>Vout, 0, -ATAN(A141/z_RHP)) -> 0 | I141: =SQRT(1+(A141/Pole2)^2) -> 12189.2247 | J141: =ATAN(A141/Pole2) -> 1.570714287 | K141: =SQRT(1+(A141/Zero2)^2) -> 1.713733092 | L141: =ATAN(A141/Zero2) -> 0.9477381312 | M141: =SQRT(1+(A141/pole4)^2) -> 1.000709639 | N141: =ATAN(A141/pole4) -> 0.03766217228 | O141: =SQRT((1-(V141/pterm2))^2+(A141/pterm1)^2) -> 1.000705195 | P141: =IF((ATAN((A141/pterm1)/(1-A141^2/pterm2))>0),ATAN((A141/pterm1)/(1-A141^2/pterm2)),PI()+ATAN((A141/pterm1)/(1-A141^2/pterm2))) -> 0.06337330935 | Q141: =20*LOG10(((E141*K141*G141)/(C141*I141*O141*M141))*Adc) -> 16.71835803 | R141: =((F141+L141+H141)-(D141+J141+P141+N141))*radconv -> -89.33704398 | S141: =IF(R141>0,R141,R141+180) -> 90.66295602 | U141: 1000000000 | V141: 63096014.89 | X141: =20*LOG10((K141/(I141*M141))*AEA*Afb_Ch2) -> 3.592360684 | Y141: -37.85178803 | AA141: =20*LOG10((E141*G141/(C141*O141))*Am_Ch2) -> 13.12599734 | AB141: =(F141+H141-(D141+P141))*radconv -> -51.48525595 | AD141: 0 | AE141: 0
A142: 8035.8 | B142: =A142/1000 -> 8.0358 | C142: 1.513802966 | D142: 0.8491946822 | E142: 1.000034702 | F142: 0.008330726646 | G142: 1 | H142: 0 | I142: 12331.16864 | J142: 1.570715231 | K142: 1.726920339 | L142: 0.9532143266 | M142: 1.000726257 | N142: 0.03810032768 | O142: 1.000721729 | P142: 0.06411123992 | Q142: 16.62770345 | R142: -89.41444304 | S142: 90.58555696 | U142: =IF(Q142<0,A142,1000000000) -> 1000000000 | V142: =A142^2 -> 64574081.64 | X142: 3.558235799 | Y142: =(L142-(J142+N142))*radconv -> -37.56318371 | AA142: 13.06946765 | AB142: -51.85125933 | AD142: =SUM((Q143<0)*(Q142>0))*A142 -> 0 | AE142: 0
A143: 8128.3 | B143: 8.1283 | C143: 1.523648822 | D143: 0.8548665308 | E143: 1.000035505 | F143: 0.008426617029 | G143: 1 | H143: 0 | I143: 12473.11257 | J143: 1.570716154 | K143: 1.740158589 | L143: 0.9586073613 | M143: 1.000743067 | N143: 0.03853846846 | O143: 1.000738455 | P143: 0.0648491686 | Q143: 16.53802718 | R143: -89.49236047 | S143: 90.50763953 | U143: 1000000000 | V143: 66069260.89 | X143: 3.525008295 | Y143: -37.27934208 | AA143: 13.01301888 | AB143: -52.2130184 | AD143: 0 | AE143: 0
A144: 8222.95 | B144: 8.22295 | C144: 1.533773605 | D144: 0.8605946449 | E144: 1.000036337 | F144: 0.008524736056 | G144: 1 | H144: 0 | I144: 12618.35575 | J144: 1.570717077 | K144: 1.753756128 | L144: 0.9640413064 | M144: 1.000760466 | N144: 0.03898677772 | O144: 1.000755769 | P144: 0.06560424715 | Q144: 16.44725446 | R144: -89.57259523 | S144: 90.42740477 | U144: 1000000000 | V144: 67616906.7 | X144: 3.491906216 | Y144: -36.99373906 | AA144: 12.95534824 | AB144: -52.57885617 | AD144: 0 | AE144: 0
A145: 8270.275 | B145: 8.270275 | C145: 1.538854682 | D145: 0.8634303896 | E145: 1.000036756 | F145: 0.008573795508 | G145: 1 | H145: 0 | I145: 12690.97734 | J145: 1.570717531 | K145: 1.760574091 | L145: 0.9667267631 | M145: 1.000769241 | N145: 0.03921092648 | O145: 1.000764502 | P145: 0.06598178567 | Q145: 16.40223521 | R145: -89.61289532 | S145: 90.38710468 | U145: 1000000000 | V145: 68397448.58 | X145: 3.475686129 | Y145: -36.85274249 | AA145: 12.92654908 | AB145: -52.76015284 | AD145: 0 | AE145: 0
A146: 8317.6 | B146: 8.3176 | C146: 1.543948052 | D146: 0.8662474471 | E146: 1.000037178 | F146: 0.008622854919 | G146: 1 | H146: 0 | I146: 12763.59892 | J146: 1.570717979 | K146: 1.767404654 | L146: 0.9693914817 | M146: 1.000778067 | N146: 0.0394350713 | O146: 1.000773284 | P146: 0.06635932368 | Q146: 16.35745673 | R146: -89.65331237 | S146: 90.34668763 | U146: 1000000000 | V146: 69182469.76 | X146: 3.459681681 | Y146: -36.7129336 | AA146: 12.89777505 | AB146: -52.94037878 | AD146: 0 | AE146: 0
A147: 8366.05 | B147: 8.36605 | C147: 1.549175109 | D147: 0.8691122581 | E147: 1.000037612 | F147: 0.008673080516 | G147: 1 | H147: 0 | I147: 12837.94686 | J147: 1.570718433 | K147: 1.77441049 | L147: 0.9720982728 | M147: 1.000787154 | N147: 0.03966454034 | O147: 1.000782328 | P147: 0.06674583591 | Q147: 16.31186016 | R147: -89.69480766 | S147: 90.30519234 | U147: 1000000000 | V147: 69990792.6 | X147: 3.443516358 | Y147: -36.5710195 | AA147: 12.8683438 | AB147: -53.12378816 | AD147: 0 | AE147: 0
A148: 8414.5 | B148: 8.4145 | C148: 1.554414795 | D148: 0.8719577787 | E148: 1.000038049 | F148: 0.00872330607 | G148: 1 | H148: 0 | I148: 12912.29479 | J148: 1.570718881 | K148: =SQRT(1+(A148/Zero2)^2) -> 1.781429225 | L148: =ATAN(A148/Zero2) -> 0.9747837542 | M148: 1.000796294 | N148: 0.0398940052 | O148: 1.000791424 | P148: 0.0671323476 | Q148: 16.26650981 | R148: -89.73641807 | S148: 90.26358193 | U148: 1000000000 | V148: 70803810.25 | X148: 3.427569382 | Y148: -36.43032581 | AA148: 12.83894043 | AB148: -53.30609226 | AD148: 0 | AE148: 0
A149: 8462.95 | B149: 8.46295 | C149: 1.559666983 | D149: 0.8747841575 | E149: 1.000038489 | F149: 0.00877353158 | G149: 1 | H149: 0 | I149: 12986.64272 | J149: 1.570719325 | K149: 1.788460706 | L149: 0.9774481383 | M149: 1.000805487 | N149: 0.04012346585 | O149: 1.000800573 | P149: 0.06751885874 | Q149: 16.2214027 | R149: -89.77813996 | S149: 90.22186004 | U149: 1000000000 | V149: 71621522.7 | X149: 3.411836995 | Y149: -36.29084038 | AA149: 12.8095657 | AB149: -53.48729958 | AD149: 0 | AE149: 0
A150: 8511.4 | B150: 8.5114 | C150: 1.564931545 | D150: 0.8775915422 | E150: 1.000038931 | F150: 0.008823757046 | G150: 1 | H150: 0 | I150: 13060.99065 | J150: 1.570719763 | K150: 1.795504784 | L150: 0.9800916354 | M150: 1.000814732 | N150: 0.04035292228 | O150: 1.000809775 | P150: 0.06790536934 | Q150: 16.17653586 | R150: -89.81996975 | S150: 90.18003025 | U150: 1000000000 | V150: 72443929.96 | X150: 3.396315512 | Y150: -36.15255115 | AA150: 12.78022035 | AB150: -53.6674186 | AD150: 0 | AE150: 0
A151: 8560.95 | B151: 8.56095 | C151: 1.570328304 | D151: 0.8804431727 | E151: 1.000039385 | F151: 0.008875122775 | G151: 1 | H151: 0 | I151: 13137.02657 | J151: 1.570720206 | K151: 1.802721664 | L151: 0.9827737631 | M151: 1.000824242 | N151: 0.04058758384 | O151: 1.00081924 | P151: 0.06830065463 | Q151: 16.13089589 | R151: -89.86285719 | S151: 90.13714281 | U151: 1000000000 | V151: 73289864.9 | X151: 3.380656014 | Y151: -36.01234706 | AA151: 12.75023988 | AB151: -53.85051013 | AD151: 0 | AE151: 0
A152: 8610.5 | B152: 8.6105 | C152: 1.575737745 | D152: 0.883275247 | E152: 1.000039842 | F152: 0.008926488458 | G152: 1 | H152: 0 | I152: 13213.06248 | J152: 1.570720644 | K152: 1.809951409 | L152: 0.9854344826 | M152: 1.000833807 | N152: 0.04082224094 | O152: 1.00082876 | P152: 0.06869593935 | Q152: 16.08550118 | R152: -89.90585016 | S152: 90.09414984 | U152: 1000000000 | V152: 74140710.25 | X152: 3.365209552 | Y152: -35.87336902 | AA152: 12.72029163 | AB152: -54.03248114 | AD152: 0 | AE152: 0
A153: 8660.05 | B153: 8.66005 | C153: 1.581159738 | D153: 0.8860879206 | E153: 1.000040302 | F153: 0.008977854093 | G153: 1 | H153: 0 | I153: 13289.0984 | J153: 1.570721077 | K153: 1.817193866 | L153: 0.988074012 | M153: 1.000843427 | N153: 0.04105689354 | O153: 1.000838336 | P153: 0.06909122347 | Q153: 16.04034877 | R153: -89.94894509 | S153: 90.05105491 | U153: 1000000000 | V153: 74996466 | X153: 3.349972424 | Y153: -35.73560454 | AA153: 12.69037634 | AB153: -54.21334055 | AD153: 0 | AE153: 0
A154: 8709.6 | B154: 8.7096 | C154: 1.586594155 | D154: 0.8888813483 | E154: 1.000040765 | F154: 0.009029219681 | G154: 1 | H154: 0 | I154: 13365.13431 | J154: 1.570721505 | K154: 1.824448883 | L154: 0.990692567 | M154: 1.000853102 | N154: 0.04129154161 | O154: 1.000847966 | P154: 0.06948650702 | Q154: 15.99543573 | R154: -89.99213847 | S154: 90.00786153 | U154: 1000000000 | V154: 75857132.16 | X154: 3.334941004 | Y154: -35.59904126 | AA154: 12.66049473 | AB154: -54.39309721 | AD154: 0 | AE154: =IF(AD154>0,S154,0) -> 0
A155: 8760.325 | B155: 8.760325 | C155: 1.592170175 | D155: 0.8917212421 | E155: 1.000041241 | F155: 0.009081803274 | G155: 1 | H155: 0 | I155: 13442.9733 | J155: 1.570721938 | K155: 1.831888796 | L155: 0.9933517136 | M155: 1.000863063 | N155: 0.04153174928 | O155: 1.000857882 | P155: 0.06989116347 | Q155: 15.94970263 | R155: -90.03645453 | S155: 89.96354547 | U155: 1000000000 | V155: 76743294.11 | X155: 3.319762513 | Y155: -35.46047109 | AA155: 12.62994012 | AB155: -54.57598343 | AD155: 0 | AE155: 0
A156: 8811.05 | B156: 8.81105 | C156: 1.597758947 | D156: 0.8945412914 | E156: 1.00004172 | F156: 0.009134386816 | G156: 1 | H156: 0 | I156: 13520.81228 | J156: 1.570722367 | K156: 1.839341557 | L156: 0.9959893297 | M156: 1.000873083 | N156: 0.04177195215 | O156: 1.000867857 | P156: 0.0702958193 | Q156: 15.90421439 | R156: -90.08086658 | S156: 89.91913342 | U156: 1000000000 | V156: 77634602.1 | X156: 3.304792148 | Y156: -35.32313397 | AA156: 12.59942224 | AB156: -54.75773261 | AD156: 0 | AE156: 0
A157: 8861.775 | B157: 8.861775 | C157: 1.603360337 | D157: 0.8973416589 | E157: 1.000042202 | F157: 0.009186970308 | G157: 1 | H157: 0 | I157: 13598.65127 | J157: 1.57072279 | K157: 1.846807011 | L157: 0.9986056395 | M157: 1.00088316 | N157: 0.0420121502 | O157: 1.000877888 | P157: 0.07070047451 | Q157: 15.85896807 | R157: -90.12537112 | S157: 89.87462888 | U157: 1000000000 | V157: 78531056.15 | X157: 3.290026258 | Y157: -35.18701705 | AA157: 12.56894181 | AB157: -54.93835407 | AD157: 0 | AE157: 0
A158: 8912.5 | B158: 8.9125 | C158: 1.608974212 | D158: 0.9001225065 | E158: 1.000042686 | F158: 0.009239553749 | G158: 1 | H158: 0 | I158: 13676.49026 | J158: 1.570723209 | K158: =SQRT(1+(A158/Zero2)^2) -> 1.854285005 | L158: =ATAN(A158/Zero2) -> 1.001200865 | M158: 1.000893295 | N158: 0.0422523434 | O158: 1.000887978 | P158: 0.07110512908 | Q158: 15.81396077 | R158: -90.16996473 | S158: 89.83003527 | U158: 1000000000 | V158: 79432656.25 | X158: 3.275461265 | Y158: -35.05210763 | AA158: 12.53849951 | AB158: -55.1178571 | AD158: 0 | AE158: 0
A159: 8964.4 | B159: 8.9644 | C159: 1.614730916 | D159: 0.9029477345 | E159: 1.000043185 | F159: 0.009293355186 | G159: 1 | H159: 0 | I159: 13756.13231 | J159: 1.570723632 | K159: 1.861949041 | L159: 1.003834612 | M159: 1.000903724 | N159: 0.04249809541 | O159: 1.000898361 | P159: 0.07151915646 | Q159: 15.76815536 | R159: -90.21568 | S159: 89.78432 | U159: 1000000000 | V159: 80360467.36 | X159: 3.260763167 | Y159: -34.91530984 | AA159: 12.50739219 | AB159: -55.30037016 | AD159: 0 | AE159: 0
A160: 9016.3 | B160: 9.0163 | C160: 1.620500416 | D160: 0.9057528673 | E160: 1.000043686 | F160: 0.00934715657 | G160: 1 | H160: 0 | I160: 13835.77437 | J160: 1.57072405 | K160: 1.869625887 | L160: 1.006446749 | M160: 1.000914214 | N160: 0.04274384229 | O160: 1.000908805 | P160: 0.07193318318 | Q160: 15.72259423 | R160: -90.26148149 | S160: 89.73851851 | U160: 1000000000 | V160: 81293665.69 | X160: 3.246268041 | Y160: -34.77974967 | AA160: 12.47632619 | AB160: -55.48173182 | AD160: 0 | AE160: 0
A161: 9068.2 | B161: 9.0682 | C161: 1.626282577 | D161: 0.9085380748 | E161: 1.000044191 | F161: 0.009400957899 | G161: 1 | H161: 0 | I161: 13915.41643 | J161: 1.570724464 | K161: 1.877315385 | L161: 1.009037504 | M161: 1.000924764 | N161: 0.042989584 | O161: 1.000919309 | P161: 0.07234720922 | Q161: 15.67727445 | R161: -90.3073658 | S161: 89.6926342 | U161: 1000000000 | V161: 82232251.24 | X161: 3.231972293 | Y161: -34.64541399 | AA161: 12.44530216 | AB161: -55.66195181 | AD161: 0 | AE161: 0
A162: 9120.1 | B162: 9.1201 | C162: 1.632077265 | D162: 0.9113035259 | E162: 1.000044698 | F162: 0.009454759174 | G162: 1 | H162: 0 | I162: 13995.05849 | J162: 1.570724873 | K162: 1.885017381 | L162: 1.011607105 | M162: 1.000935375 | N162: 0.04323532052 | O162: 1.000929874 | P162: 0.07276123459 | Q162: 15.63219318 | R162: -90.35332958 | S162: 89.64667042 | U162: 1000000000 | V162: 83176224.01 | X162: 3.217872403 | Y162: -34.51228977 | AA162: 12.41432077 | AB162: -55.84103981 | AD162: 0 | AE162: 0
A163: 9173.2 | B163: 9.1732 | C163: 1.638018759 | D163: 0.914112646 | E163: 1.00004522 | F163: 0.009509804352 | G163: 1 | H163: 0 | I163: 14076.54198 | J163: 1.570725287 | K163: 1.892910233 | L163: 1.01421446 | M163: 1.000946294 | N163: 0.0434867334 | O163: 1.000940746 | P163: 0.07318483209 | Q163: 15.58631346 | R163: -90.40043497 | S163: 89.59956503 | U163: 1000000000 | V163: 84147598.24 | X163: 3.203645615 | Y163: -34.37732793 | AA163: 12.38266784 | AB163: -56.02310703 | AD163: 0 | AE163: 0
A164: 9226.3 | B164: 9.2263 | C164: 1.643973086 | D164: 0.9169014392 | E164: 1.000045745 | F164: 0.009564849473 | G164: 1 | H164: 0 | I164: 14158.02547 | J164: 1.570725695 | K164: 1.900815847 | L164: 1.016800144 | M164: 1.000957276 | N164: 0.04373814077 | O164: 1.000951681 | P164: 0.07360842887 | Q164: 15.54067749 | R164: -90.44761672 | S164: 89.55238328 | U164: 1000000000 | V164: 85124611.69 | X164: 3.189616627 | Y164: -34.24360716 | AA164: 12.35106087 | AB164: -56.20400957 | AD164: 0 | AE164: 0
A165: 9279.4 | B165: 9.2794 | C165: 1.649940106 | D165: 0.9196700825 | E165: 1.000046273 | F165: 0.009619894536 | G165: 1 | H165: 0 | I165: 14239.50897 | J165: 1.5707261 | K165: 1.908734065 | L165: 1.019364392 | M165: 1.000968321 | N165: 0.04398954262 | O165: 1.00096268 | P165: 0.07403202494 | Q165: 15.4952824 | R165: -90.49487154 | S165: 89.50512846 | U165: 1000000000 | V165: 86107264.36 | X165: 3.175781906 | Y165: -34.11111398 | AA165: 12.31950049 | AB165: -56.38375756 | AD165: 0 | AE165: 0
A166: 9332.5 | B166: 9.3325 | C166: 1.655919682 | D166: 0.9224187513 | E166: 1.000046804 | F166: 0.00967493954 | G166: 1 | H166: 0 | I166: 14320.99246 | J166: 1.570726499 | K166: 1.916664729 | L166: 1.021907437 | M166: 1.000979429 | N166: 0.0442409389 | O166: 1.000973742 | P166: 0.07445562027 | Q166: 15.45012533 | R166: -90.54219618 | S166: 89.45780382 | U166: 1000000000 | V166: 87095556.25 | X166: 3.162137991 | Y166: -33.97983512 | AA166: 12.28798734 | AB166: -56.56236106 | AD166: 0 | AE166: 0
A167: 9386.85 | B167: 9.38685 | C167: 1.662052882 | D167: 0.9252116219 | E167: 1.000047351 | F167: 0.00973128027 | G167: 1 | H167: 0 | I167: 14404.39411 | J167: 1.570726904 | K167: 1.924794813 | L167: 1.024488627 | M167: 1.000990864 | N167: 0.04449824738 | O167: 1.00098513 | P167: 0.07488918649 | Q167: 15.40414882 | R167: -90.59070387 | S167: 89.40929613 | U167: 1000000000 | V167: 88112952.92 | X167: 3.148366953 | Y167: -33.84670968 | AA167: 12.25578187 | AB167: -56.74399418 | AD167: 0 | AE167: 0
A168: 9441.2 | B168: 9.4412 | C168: 1.668198951 | D168: 0.9279839347 | E168: 1.000047901 | F168: 0.009787620939 | G168: 1 | H168: 0 | I168: 14487.79577 | J168: 1.570727303 | K168: 1.932937614 | L168: 1.027048086 | M168: 1.001002366 | N168: 0.04475554996 | O168: 1.000996585 | P168: 0.07532275194 | Q168: 15.35841584 | R168: -90.6392781 | S168: 89.3607219 | U168: 1000000000 | V168: 89136257.44 | X168: 3.134788709 | Y168: -33.71482871 | AA168: 12.22362713 | AB168: -56.92444939 | AD168: 0 | AE168: 0
A169: 9495.55 | B169: 9.49555 | C169: 1.674357747 | D169: 0.9307358736 | E169: 1.000048454 | F169: 0.009843961545 | G169: 1 | H169: 0 | I169: 14571.19742 | J169: 1.570727698 | K169: 1.941092972 | L169: 1.029586055 | M169: 1.001013934 | N169: 0.04501284661 | O169: 1.001008106 | P169: 0.07575631662 | Q169: 15.31292351 | R169: -90.68791566 | S169: 89.31208434 | U169: 1000000000 | V169: 90165469.8 | X169: 3.121399781 | Y169: -33.58417843 | AA169: 12.19152372 | AB169: -57.10373723 | AD169: 0 | AE169: 0
A170: 9549.9 | B170: 9.5499 | C170: 1.68052913 | D170: 0.9334676214 | E170: 1.00004901 | F170: 0.009900302089 | G170: 1 | H170: 0 | I170: 14654.59907 | J170: 1.570728089 | K170: 1.949260727 | L170: 1.032102772 | M170: 1.001025568 | N170: 0.0452701373 | O170: 1.001019694 | P170: 0.07618988051 | Q170: 15.267669 | R170: -90.73661341 | S170: 89.26338659 | U170: 1000000000 | V170: 91200590.01 | X170: 3.108196766 | Y170: -33.45474526 | AA170: 12.15947223 | AB170: -57.28186815 | AD170: 0 | AE170: 0
A171: 9605.525 | B171: 9.605525 | C171: 1.686858177 | D171: 0.936242735 | E171: 1.000049583 | F171: 0.009957964264 | G171: 1 | H171: 0 | I171: 14739.95725 | J171: 1.570728484 | K171: 1.957632767 | L171: 1.034656766 | M171: 1.001037544 | N171: 0.04553345757 | O171: 1.001031622 | P171: 0.0766336146 | Q171: 15.22159624 | R171: -90.78651271 | S171: 89.21348729 | U171: 1000000000 | V171: 92266110.53 | X171: 3.094873054 | Y171: -33.32352197 | AA171: 12.12672318 | AB171: -57.46299074 | AD171: 0 | AE171: 0
A172: 9661.15 | B172: 9.66115 | C172: 1.693200118 | D172: 0.9389970811 | E172: 1.000050158 | F172: 0.01001562637 | G172: 1 | H172: 0 | I172: 14825.31543 | J172: 1.570728875 | K172: 1.966017467 | L172: 1.037188991 | M172: 1.001049589 | N172: 0.04579677153 | O172: 1.00104362 | P172: 0.07707734785 | Q172: 15.17576679 | R172: -90.83646868 | S172: 89.16353132 | U172: 1000000000 | V172: 93337819.32 | X172: 3.0817371 | Y172: -33.19354528 | AA172: 12.09402969 | AB172: -57.64292339 | AD172: 0 | AE172: 0
A173: 9716.775 | B173: 9.716775 | C173: 1.699554809 | D173: 0.9417308506 | E173: 1.000050738 | F173: 0.01007328841 | G173: 1 | H173: 0 | I173: 14910.67361 | J173: 1.570729261 | K173: 1.974414667 | L173: 1.039699694 | M173: 1.001061704 | N173: 0.04606007913 | O173: 1.001055687 | P173: 0.07752108028 | Q173: 15.13017781 | R173: -90.88647822 | S173: 89.11352178 | U173: 1000000000 | V173: 94415716.4 | X173: 3.068785488 | Y173: -33.06480116 | AA173: 12.06139233 | AB173: -57.82167706 | AD173: 0 | AE173: 0
A174: 9772.4 | B174: 9.7724 | C174: 1.705922106 | D174: 0.9444442329 | E174: 1.00005132 | F174: 0.01013095039 | G174: 1 | H174: 0 | I174: 14996.03179 | J174: 1.570729642 | K174: 1.982824207 | L174: 1.042189115 | M174: 1.001073888 | N174: 0.04632338034 | O174: 1.001067824 | P174: 0.07796481186 | Q174: 15.0848265 | R174: -90.93653832 | S174: 89.06346168 | U174: 1000000000 | V174: 95499801.76 | X174: 3.056014875 | Y174: -32.93727575 | AA174: 12.02881163 | AB174: -57.99926257 | AD174: 0 | AE174: 0
A175: 9829.3 | B175: 9.8293 | C175: 1.712448248 | D175: 0.9471989117 | E175: 1.00005192 | F175: 0.01018993399 | G175: 1 | H175: 0 | I175: 15083.34649 | J175: 1.570730029 | K175: 1.99143911 | L175: 1.044713828 | M175: 1.001086423 | N175: 0.04659271012 | O175: 1.001080311 | P175: 0.0784187135 | Q175: 15.03867872 | R175: -90.98779511 | S175: 89.01220489 | U175: 1000000000 | V175: 96615138.49 | X175: 3.043135403 | Y175: -32.80807393 | AA175: 11.99554332 | AB175: -58.17972117 | AD175: 0 | AE175: 0
A176: 9886.2 | B176: 9.8862 | C176: 1.718987285 | D176: 0.9499326535 | E176: 1.000052522 | F176: 0.01024891751 | G176: 1 | H176: 0 | I176: 15170.6612 | J176: 1.57073041 | K176: 2.000066597 | L176: 1.047216775 | M176: 1.001099031 | N176: 0.04686203314 | O176: 1.001092872 | P176: 0.07887261426 | Q176: 14.99277388 | R176: -91.03909867 | S176: 88.96090133 | U176: 1000000000 | V176: 97736950.44 | X176: 3.030438477 | Y176: -32.68011854 | AA176: 11.9623354 | AB176: -58.35898013 | AD176: 0 | AE176: 0
A177: 9943.1 | B177: 9.9431 | C177: 1.725539072 | D177: 0.9526456556 | E177: 1.000053129 | F177: 0.01030790096 | G177: 1 | H177: 0 | I177: 15257.9759 | J177: 1.570730787 | K177: 2.008706507 | L177: 1.049698207 | M177: 1.001111711 | N177: 0.04713134935 | O177: 1.001105505 | P177: 0.07932651412 | Q177: 14.94710914 | R177: -91.09044603 | S177: 88.90955397 | U177: 1000000000 | V177: 98865237.61 | X177: 3.017920748 | Y177: -32.55339528 | AA177: 11.92918839 | AB177: -58.53705075 | AD177: 0 | AE177: 0
A178: 10000 | B178: 10 | C178: 1.732103463 | D178: 0.9553381138 | E178: 1.000053739 | F178: 0.01036688434 | G178: 1 | H178: 0 | I178: 15345.2906 | J178: 1.57073116 | K178: 2.01735868 | L178: 1.052158368 | M178: 1.001124464 | N178: 0.04740065872 | O178: 1.001118211 | P178: 0.07978041308 | Q178: 14.90168174 | R178: -91.1418343 | S178: 88.8581657 | U178: 1000000000 | V178: 100000000 | X178: 3.00557894 | Y178: -32.42789007 | AA178: 11.8961028 | AB178: -58.71394423 | AD178: 0 | AE178: 0
A179: 10058.25 | B179: 10.05825 | C179: 1.738836507 | D179: 0.9580733743 | E179: 1.000054366 | F179: 0.01042726708 | G179: 1 | H179: 0 | I179: 15434.67692 | J179: 1.570731538 | K179: 2.026228671 | L179: 1.05465512 | M179: 1.001137595 | N179: 0.04767635055 | O179: 1.001131293 | P179: 0.08024508023 | Q179: 14.85541955 | R179: -91.19448125 | S179: 88.80551875 | U179: 1000000000 | V179: 101168393.1 | X179: 2.9931232 | Y179: -32.30065435 | AA179: 11.86229635 | AB179: -58.89382691 | AD179: 0 | AE179: 0
A180: 10116.5 | B180: 10.1165 | C180: 1.745582461 | D180: 0.9607875137 | E180: 1.000054998 | F180: 0.01048764974 | G180: 1 | H180: 0 | I180: 15524.06324 | J180: 1.570731911 | K180: 2.035111182 | L180: 1.057130092 | M180: 1.001150801 | N180: 0.04795203513 | O180: 1.001144453 | P180: 0.08070974644 | Q180: 14.80940038 | R180: -91.24716521 | S180: 88.75283479 | U180: 1000000000 | V180: 102343572.2 | X180: 2.980845108 | Y180: -32.17466583 | AA180: 11.82855527 | AB180: -59.07249938 | AD180: 0 | AE180: 0
A181: 10174.75 | B181: 10.17475 | C181: 1.752341174 | D181: 0.9634807361 | E181: 1.000055633 | F181: 0.01054803233 | G181: 1 | H181: 0 | I181: 15613.44955 | J181: 1.570732279 | K181: 2.044006052 | L181: 1.059583538 | M181: 1.001164084 | N181: 0.04822771242 | O181: 1.001157689 | P181: 0.08117441168 | Q181: 14.76362141 | R181: -91.29988333 | S181: 88.70011667 | U181: 1000000000 | V181: 103525537.6 | X181: 2.968741376 | Y181: -32.04990999 | AA181: 11.79488004 | AB181: -59.24997335 | AD181: 0 | AE181: 0
A182: 10233 | B182: 10.233 | C182: 1.759112499 | D182: 0.9661532438 | E182: 1.000056272 | F182: 0.01060841483 | G182: 1 | H182: 0 | I182: 15702.83587 | J182: 1.570732644 | K182: 2.052913118 | L182: 1.062015709 | M182: 1.001177443 | N182: 0.04850338237 | O182: 1.001171001 | P182: 0.08163907595 | Q182: 14.7180799 | R182: -91.35263286 | S182: 88.64736714 | U182: 1000000000 | V182: 104714289 | X182: 2.956808789 | Y182: -31.92637246 | AA182: 11.76127111 | AB182: -59.4262604 | AD182: 0 | AE182: 0
A183: 10292.5 | B183: 10.2925 | C183: 1.766042004 | D183: 0.9688619235 | E183: 1.000056928 | F183: 0.01067009302 | G183: 1 | H183: 0 | I183: 15794.14035 | J183: 1.570733012 | K183: 2.062023752 | L183: 1.064478365 | M183: 1.001191167 | N183: 0.04878496036 | O183: 1.001184677 | P183: 0.08211371056 | Q183: 14.67180344 | R183: -91.40654398 | S183: 88.59345602 | U183: 1000000000 | V183: 105935556.2 | X183: 2.944793564 | Y183: -31.80142701 | AA183: 11.72700987 | AB183: -59.60511698 | AD183: 0 | AE183: 0
A184: 10352 | B184: 10.352 | C184: 1.772984364 | D184: 0.9715494104 | E184: 1.000057588 | F184: 0.01073177113 | G184: 1 | H184: 0 | I184: 15885.44483 | J184: 1.570733376 | K184: 2.07114678 | L184: 1.06691934 | M184: 1.001204971 | N184: 0.04906653062 | O184: 1.001198434 | P184: 0.08258834415 | Q184: 14.62576907 | R184: -91.4604823 | S184: 88.5395177 | U184: 1000000000 | V184: 107163904 | X184: 2.93295035 | Y184: -31.67772307 | AA184: 11.69281872 | AB184: -59.78275924 | AD184: 0 | AE184: 0
A185: 10411.5 | B185: 10.4115 | C185: 1.779939429 | D185: 0.9742159139 | E185: 1.000058252 | F185: 0.01079344916 | G185: 1 | H185: 0 | I185: 15976.74931 | J185: 1.570733736 | K185: 2.080282041 | L185: 1.069338891 | M185: 1.001218854 | N185: 0.04934809309 | O185: 1.00121227 | P185: 0.08306297672 | Q185: 14.57997404 | R185: -91.51444514 | S185: 88.48555486 | U185: 1000000000 | V185: 108399332.2 | X185: 2.921275946 | Y185: -31.55524595 | AA185: 11.65869809 | AB185: -59.95919919 | AD185: 0 | AE185: 0
A186: 10471 | B186: 10.471 | C186: 1.786907052 | D186: 0.9768616412 | E186: 1.00005892 | F186: 0.0108551271 | G186: 1 | H186: 0 | I186: 16068.05379 | J186: 1.570734092 | K186: 2.089429374 | L186: 1.071737271 | M186: 1.001232816 | N186: 0.04962964772 | O186: 1.001226186 | P186: 0.08353760824 | Q186: 14.5344156 | R186: -91.56842987 | S186: 88.43157013 | U186: 1000000000 | V186: 109641841 | X186: 2.909767218 | Y186: -31.43398117 | AA186: 11.62464838 | AB186: -60.13444869 | AD186: 0 | AE186: 0
A187: 10532 | B187: 10.532 | C187: 1.794063213 | D187: 0.9795527141 | E187: 1.000059608 | F187: 0.01091835987 | G187: 1 | H187: 0 | I187: 16161.66006 | J187: 1.570734452 | K187: 2.09881968 | L187: 1.074174397 | M187: 1.001247213 | N187: 0.0499182922 | O187: 1.001240536 | P187: 0.08402420419 | Q187: 14.48795145 | R187: -91.62379565 | S187: 88.37620435 | U187: 1000000000 | V187: 110923024 | X187: 2.898137142 | Y187: -31.31090291 | AA187: 11.58981431 | AB187: -60.31289274 | AD187: 0 | AE187: 0
A188: 10593 | B188: 10.593 | C188: 1.801232262 | D188: 0.9822223848 | E188: 1.000060301 | F188: 0.01098159255 | G188: 1 | H188: 0 | I188: 16255.26633 | J188: 1.570734808 | K188: 2.10822234 | L188: 1.076589798 | M188: 1.001261693 | N188: 0.05020692836 | O188: 1.001254969 | P188: 0.08451079904 | Q188: 14.44173035 | R188: -91.67917914 | S188: 88.32082086 | U188: 1000000000 | V188: 112211649 | X188: 2.886674756 | Y188: -31.18906868 | AA188: 11.5550556 | AB188: -60.49011046 | AD188: 0 | AE188: 0
A189: 10654 | B189: 10.654 | C189: 1.808414047 | D189: 0.98487087 | E189: 1.000060997 | F189: 0.01104482514 | G189: 1 | H189: 0 | I189: 16348.8726 | J189: 1.57073516 | K189: 2.11763719 | L189: 1.078983736 | M189: 1.001276256 | N189: 0.05049555614 | O189: 1.001269486 | P189: 0.08499739279 | Q189: 14.39574952 | R189: -91.7345778 | S189: 88.2654222 | U189: 1000000000 | V189: 113507716 | X189: 2.875376906 | Y189: -31.0684635 | AA189: 11.52037261 | AB189: -60.6661143 | AD189: 0 | AE189: 0
A190: 10715 | B190: 10.715 | C190: 1.815608417 | D190: 0.9874983843 | E190: 1.000061698 | F190: 0.01110805764 | G190: 1 | H190: 0 | I190: 16442.47887 | J190: 1.570735509 | K190: 2.127064069 | L190: 1.081356467 | M190: 1.001290903 | N190: 0.0507841755 | O190: 1.001284088 | P190: 0.08548398542 | Q190: 14.35000623 | R190: -91.78998913 | S190: 88.21001087 | U190: 1000000000 | V190: 114811225 | X190: 2.864240509 | Y190: -30.94907261 | AA190: 11.48576572 | AB190: -60.84091652 | AD190: 0 | AE190: 0
A191: 10777.5 | B191: 10.7775 | C191: 1.822992594 | D191: 0.9901689806 | E191: 1.000062419 | F191: 0.01117284494 | G191: 1 | H191: 0 | I191: 16538.38694 | J191: 1.570735861 | K191: 2.136735066 | L191: 1.083765816 | M191: 1.001305997 | N191: 0.05107988327 | O191: 1.001299135 | P191: 0.08598254228 | Q191: 14.30338169 | R191: -91.84677368 | S191: 88.15322632 | U191: 1000000000 | V191: 116154506.2 | X191: 2.852994572 | Y191: -30.8279901 | AA191: 11.45038712 | AB191: -61.01878358 | AD191: 0 | AE191: 0
A192: 10840 | B192: 10.84 | C192: 1.830389668 | D192: 0.9928180105 | E192: 1.000063146 | F192: 0.01123763216 | G192: 1 | H192: 0 | I192: 16634.29501 | J192: 1.57073621 | K192: 2.146418355 | L192: 1.08615344 | M192: 1.001321178 | N192: 0.05137558211 | O192: 1.00131427 | P192: 0.08648109795 | Q192: 14.2570009 | R192: -91.90356652 | S192: 88.09643348 | U192: 1000000000 | V192: 117505600 | X192: 2.841911794 | Y192: -30.7081516 | AA192: 11.41508911 | AB192: -61.19541492 | AD192: 0 | AE192: 0
A193: 10902.5 | B193: 10.9025 | C193: 1.837799484 | D193: 0.9954456975 | E193: 1.000063876 | F193: 0.01130241928 | G193: 1 | H193: 0 | I193: 16730.20307 | J193: 1.570736555 | K193: 2.15611377 | L193: 1.088519604 | M193: 1.001336447 | N193: 0.05167127195 | O193: 1.001329493 | P193: 0.08697965243 | Q193: 14.21086109 | R193: -91.96036524 | S193: 88.03963476 | U193: 1000000000 | V193: 118864506.2 | X193: 2.830989079 | Y193: -30.5895419 | AA193: 11.37987201 | AB193: -61.37082334 | AD193: 0 | AE193: 0
A194: 10965 | B194: 10.965 | C194: 1.845221886 | D194: 0.9980522627 | E194: 1.00006461 | F194: 0.0113672063 | G194: 1 | H194: 0 | I194: 16826.11114 | J194: 1.570736895 | K194: 2.165821149 | L194: 1.090864571 | M194: 1.001351803 | N194: 0.05196695275 | O194: 1.001344805 | P194: 0.08747820572 | Q194: 14.16495953 | R194: -92.01716749 | S194: 87.98283251 | U194: 1000000000 | V194: 120231225 | X194: 2.820223401 | Y194: -30.47214599 | AA194: 11.34473613 | AB194: -61.5450215 | AD194: 0 | AE194: 0
A195: 11028.75 | B195: 11.02875 | C195: 1.852805548 | D195: 1.000689426 | E195: 1.000065364 | F195: 0.01143328897 | G195: 1 | H195: 0 | I195: 16923.93737 | J195: 1.570737239 | K195: 2.175734833 | L195: 1.093234867 | M195: 1.001367557 | N195: 0.0522685378 | O195: 1.001360513 | P195: 0.08798672882 | Q195: 14.11838263 | R195: -92.07510708 | S195: 87.92489292 | U195: 1000000000 | V195: 121633326.6 | X195: 2.809401122 | Y195: -30.35363728 | AA195: 11.30898151 | AB195: -61.72146981 | AD195: 0 | AE195: 0
A196: 11092.5 | B196: 11.0925 | C196: 1.86040199 | D196: 1.003305071 | E196: 1.000066121 | F196: 0.01149937153 | G196: 1 | H196: 0 | I196: 17021.76359 | J196: 1.570737578 | K196: 2.185660631 | L196: 1.095583647 | M196: 1.001383401 | N196: 0.05257011333 | O196: 1.001376313 | P196: 0.08849525066 | Q196: 14.07204806 | R196: -92.13304568 | S196: 87.86695432 | U196: 1000000000 | V196: 123043556.2 | X196: 2.79873608 | Y196: -30.23636053 | AA196: 11.27331198 | AB196: -61.89668514 | AD196: 0 | AE196: 0
A197: 11156.25 | B197: 11.15625 | C197: 1.868011057 | D197: 1.005899426 | E197: 1.000066884 | F197: 0.011565454 | G197: 1 | H197: 0 | I197: 17119.58982 | J197: 1.570737914 | K197: 2.195598377 | L197: 1.097911178 | M197: 1.001399337 | N197: 0.05287167929 | O197: 1.001392205 | P197: 0.08900377123 | Q197: 14.0259531 | R197: -92.19098104 | S197: 87.80901896 | U197: 1000000000 | V197: 124461914.1 | X197: 2.788225279 | Y197: -30.12030053 | AA197: 11.23772782 | AB197: -62.07068052 | AD197: 0 | AE197: 0
A198: 11220 | B198: 11.22 | C198: 1.875632594 | D198: 1.008472713 | E198: 1.00006765 | F198: 0.01163153636 | G198: 1 | H198: 0 | I198: 17217.41605 | J198: 1.570738246 | K198: 2.205547911 | L198: 1.100217722 | M198: 1.001415364 | N198: 0.05317323562 | O198: 1.001408189 | P198: 0.08951229052 | Q198: 13.98009506 | R198: -92.24891101 | S198: 87.75108899 | U198: 1000000000 | V198: 125888400 | X198: 2.777865789 | Y198: -30.00544222 | AA198: 11.20222927 | AB198: -62.24346878 | AD198: 0 | AE198: 0
A199: 11285.5 | B199: 11.2855 | C199: 1.883476181 | D199: 1.01109493 | E199: 1.000068442 | F199: 0.01169943265 | G199: 1 | H199: 0 | I199: 17317.9277 | J199: 1.570738583 | K199: 2.215782679 | L199: 1.102565995 | M199: 1.001431925 | N199: 0.05348305989 | O199: 1.001424706 | P199: 0.09003476782 | Q199: 13.93322217 | R199: -92.30842338 | S199: 87.69157662 | U199: 1000000000 | V199: 127362510.2 | X199: 2.767376514 | Y199: -29.88866704 | AA199: 11.16584566 | AB199: -62.41975634 | AD199: 0 | AE199: 0
A200: 11351 | B200: 11.351 | C200: 1.89133261 | D200: 1.01369538 | E200: 1.000069239 | F200: 0.01176732883 | G200: 1 | H200: 0 | I200: 17418.43935 | J200: 1.570738916 | K200: 2.226029554 | L200: 1.104892661 | M200: 1.001448583 | N200: 0.05379287388 | O200: 1.001441321 | P200: 0.09055724375 | Q200: 13.88659382 | R200: -92.36792567 | S200: 87.63207433 | U200: 1000000000 | V200: 128845201 | X200: 2.757040919 | Y200: -29.773129 | AA200: 11.1295529 | AB200: -62.59479667 | AD200: 0 | AE200: 0
A201: 11416.5 | B201: 11.4165 | C201: 1.899201724 | D201: 1.016274299 | E201: 1.00007004 | F201: 0.01183522489 | G201: 1 | H201: 0 | I201: 17518.95101 | J201: 1.570739246 | K201: 2.236288368 | L201: 1.107197993 | M201: 1.001465337 | N201: 0.05410267753 | O201: 1.001458032 | P201: 0.09107971831 | Q201: 13.84020726 | R201: -92.42741575 | S201: 87.57258425 | U201: 1000000000 | V201: 130336472.2 | X201: 2.746856041 | Y201: -29.65881252 | AA201: 11.09335122 | AB201: -62.76860323 | AD201: 0 | AE201: 0
A202: 11482 | B202: 11.482 | C202: 1.907083364 | D202: 1.018831917 | E202: 1.000070846 | F202: 0.01190312085 | G202: 1 | H202: 0 | I202: 17619.46266 | J202: 1.570739571 | K202: 2.246558959 | L202: 1.109482259 | M202: 1.001482187 | N202: 0.05441247079 | O202: 1.00147484 | P202: 0.09160219147 | Q202: 13.79405979 | R202: -92.4868916 | S202: 87.5131084 | U202: 1000000000 | V202: 131836324 | X202: 2.736818986 | Y202: -29.54570225 | AA202: 11.0572408 | AB202: -62.94118934 | AD202: 0 | AE202: 0
... 433 more rows

Sheet Bode Plot Management (hidden)
J1: Single or dual output (MODE) | N1: 3.3V or 5V fixed (FB1/2)
A2: =CHOOSE(BODE_PLOT_TYPE, "BODE_PLOT_Ch1", "BODE_PLOT_Ch2") -> BODE_PLOT_Ch1 | J2: With/without dither (DITH) | N2: With/without VOUT connected to VCCX
J3: FPWM or DEM (DEMB)
J4: Shunt or inductor DCR current sensing
F6: =INDIRECT(A2) -> 0

Sheet Efficiency Calculations (hidden)
A1: BUCK CONTROLLER POWER DESIGN TOOL
H2: =AV19 -> 0.9417255766 | I2: 10% load
H3: =AV59 -> 0.9640102795 | I3: 50% load | AP3: =IF(MODE=1, (Qg_Q1+Qg_Q2)*Fsw*Vin, (Qg_Q1+Qg_Q2+Qg_Q3+Qg_Q4)*Fsw*Vin) -> 0.13662
H4: =AV109 -> 0.9535823726 | I4: 100% load | AO4: I_VCC | AP4: =(Qg_Q1+Qg_Q2)*Fsw*1000 -> 10.12 | AQ4: mA | AR4: =AP4*5/1000 -> 0.0506
A6: Enter the values of your design and MOSFET datasheet specifications below. Note that thermal resistance (θJA) will change when components are placed on the PCB
G7: Operating Point Condtions | R7: Filter Inductor | V7: Cout | Y7: Cin | AB7: High-side BUCK "Control" MOSFET Losses | AH7: Low-side BUCK "Sync" MOSFET Losses | AL7: External Diode | AM7: Diode/FET | AN7: Sense Rs | AO7: Controller IC Losses | AT7: RESULTS | AZ7: Consolidated Buck/Boost Efficiency & Losses
A8: Input Parameters | G8: Step | H8: Vin | I8: Mode | J8: Iout | K8: Iout/ phase | L8: Iin | M8: Duty Cycle BUCK Leg | N8: Ripple Current pk-pk | O8: Peak Inductor Current | P8: Valley Inductor Current | Q8: SW node voltage at Q1 turn-on | R8: Irms Lo | S8: DCR Loss | T8: Core Loss | U8: Total Inductor Loss | V8: Irms Cout | W8: Cout ESR Loss | X8: Total Cout Loss | Y8: Irms Cin | Z8: Cin ESR Loss | AA8: Total Cin Loss | AB8: Irms | AC8: RDS(on) Loss | AD8: Transition Loss (not including capacitive loss) | AE8: MOSFET Output Capacitance Loss | AF8: Dead Time Loss | AG8: Total Control MOSFET Loss | AH8: Irms | AI8: RDS(on) Loss | AJ8: Deadtime Loss | AK8: Total Sync MOSFET Loss | AL8: Deadtime Loss | AM8: Reverse Recovery Loss | AN8: Isense Shunt Loss | AO8: IQ Loss | AP8: Switching Current Loss | AQ8: Switching Current Diss | AR8: LDO Loss Saved from Gate Drive Current | AS8: Total IC Loss | AT8: Total Loss | AU8: Pout | AV8: EFF, h | AW8: =IF(Vin>Vout, "Buck ''CONTROL'' MOSFET Temp Rise", "Boost ''CONTROL'' MOSFET Temp Rise") -> Buck ''CONTROL'' MOSFET Temp Rise | AX8: =IF(Vin>Vout, "Buck ''SYNC'' MOSFET Temp Rise", "Boost ''SYNC'' MOSFET Temp Rise") -> Buck ''SYNC'' MOSFET Temp Rise | AZ8: h | BA8: Inductor Cu & Core Loss | BB8: Total MOSFET Loss | BC8: Control MOSFET Loss | BD8: SYNC MOSFET Loss | BE8: Shunt Loss
A9: Design | B9: Input Value | C9: Units | D9: Description | G9: 0 | H9: =Vin -> 13.5 | I9: =MODE -> 1 | J9: 0 | K9: =Iout*G9/100/Number_of_Phases -> 0 | L9: =Vout*K9/(Vin*Efficiency) -> 0 | M9: =(Vout+(Rdson2+Rs+Rdcr)*K9)/(Vin+(Rs+Rdson2-Rdson1)*K9) -> 0.3703703704 | N9: =(Vin-(Rdson1+Rdcr)*K9-Vout)*M9/(Fsw*Lf) -> 4.769921437 | O9: =K9+N9/2 -> 2.384960718 | P9: =K9-N9/2 -> -2.384960718 | Q9: =IF(MIN(Vin, -P9/(Coss_Q1+Coss_Q2)*0.00000002)<0, 0, MIN(Vin, -P9/(Coss_Q1+Coss_Q2)*0.00000002)) -> 13.5 | R9: =SQRT(K9^2+(N9^2)/12) -> 1.376957713 | S9: =R9^2*Rdcr -> 0.004360828848 | T9: =Core_Loss_Ch1 -> 0.2 | U9: =(T9+S9*(1+Ltc*(Ta-25)))/(1-S9*Ltc*ThetaCa) -> 0.2044321483 | V9: =N9/SQRT(12) -> 1.376957713 | W9: =RCoutEsr*V9^2 -> 0.001896012543 | X9: =W9 -> 0.001896012543 | Y9: =SQRT(M9*(1-M9))*SQRT(K9^2+(N9^2)/12) -> 0.6649382246 | Z9: =RCinEsr*Y9^2 -> 0.0004421428426 | AA9: =Z9 -> 0.0004421428426 | AB9: =SQRT(M9)*SQRT(K9^2+(N9^2)/12) -> 0.8379897778 | AC9: =Rdson1*AB9^2 -> 0.002528016723 | AD9: =(Vin*K9/2)*Fsw*(Tr_buck+Tf_buck) -> 0 | AE9: =(0.5*Coss_Q1*(Vin-Q9)^2-0.5*Coss_Q2*(Vin-Q9)^2+(Qoss_Q2*(Vin-Q9)/Vin)*Vin)*Fsw -> 0 | AF9: =IF(K9>N9/2,0,ABS(K9-N9/2)*Vsd_Q1*Deadtime2*Fsw) -> 0.01469135802 | AG9: =(AF9+AE9+AD9+AC9*(1+RdsonTopTc*Ta-RdsonTopTc*25))/(1-AC9*RdsonTopTc*ThetaJA_Q1) -> 0.01722442581 | AH9: =SQRT((1-M9))*SQRT(K9^2+(N9^2)/12) -> 1.092604995 | AI9: =Rdson2*AH9^2 -> 0.002877023477 | AJ9: =IF(K9<N9/2,Deadtime1*Fsw*IF(VfdSky_Q2>0,0,Vsd_Q2)*O9,(Deadtime1+Deadtime2)*Fsw*IF(VfdSky_Q2>0,0,Vsd_Q2)*K9) -> 0.01469135802 | AK9: =(AJ9+AI9*(1+RdsonBotTc*Ta-RdsonBotTc*25))/(1-AI9*RdsonBotTc*ThetaJA_Q2) -> 0.01757404433 | AL9: =(Deadtime1+Deadtime2)*Fsw*IF(VfdSky_Q2>0,VfdSky_Q2,Vsd_Q2)*K9 -> 0 | AM9: =IF(QrrSky_Q2>0,QrrSky_Q2,Qrr_Q2*K9/(Iout/Number_of_Phases))*Fsw*Vin -> 0 | AN9: =CHOOSE(SENSING_TYPE, Rs*R9^2, 0) -> 0.003792025085 | AO9: =Iq*Vin -> 0.0004725 | AP9: ='Variable Management'!$B$337 -> 0.0506 | AQ9: =(Vin-VCC)*Fsw*(Qg_Q1+Qg_Q2)+(RdsonDRT+RdsonDRT2)*Fsw*Qg_Q1*VCC/(RdsonDRT+2*Rgate1+RdsonDRT2)+(RdsonDRB+RdsonDRB2)*Fsw*Qg_Q2*VCC/(RdsonDRB+2*Rgate2+RdsonDRB2) -> 0.1021384787 | AR9: =(Qg_Q1+Qg_Q2)*Fsw*(Vin-Vout) -> 0.08602 | AS9: =SUM(AO9:AP9) -> 0.0510725 | AT9: =SUM(U9,X9,AA9,AG9,AK9,AL9,AM9,AS9,AN9) -> 0.2964332989 | AU9: =Vout*K9 -> 0 | AV9: =AU9/(AU9+AT9) -> 0 | AW9: =ThetaJA_Q1*BC9 -> 0.4995083485 | AX9: =ThetaJA_Q2*BD9 -> 0.4920732411 | AZ9: =AV9*100 -> 0 | BA9: =U9 -> 0.2044321483 | BB9: =AG9+AK9+AM9 -> 0.03479847014 | BC9: =AG9+AM9*0.66 -> 0.01722442581 | BD9: =AK9+AM9*0.33 -> 0.01757404433 | BE9: =AN9 -> 0.003792025085
G10: 1 | H10: 13.5 | I10: 1 | J10: =Iout*G10/100 -> 0.2 | K10: 0.2 | L10: 0.08230452675 | M10: 0.3704653322 | N10: 4.770482083 | O10: =K10+N10/2 -> 2.585241041 | P10: =K10-N10/2 -> -2.185241041 | Q10: 13.5 | R10: =SQRT(K10^2+(N10^2)/12) -> 1.391566842 | S10: 0.004453854033 | T10: 0.2 | U10: 0.2045267286 | V10: =N10/SQRT(12) -> 1.377119557 | W10: 0.001896458275 | X10: =W10 -> 0.001896458275 | Y10: =SQRT(M10*(1-M10))*SQRT(K10^2+(N10^2)/12) -> 0.6720284887 | Z10: 0.0004516222897 | AA10: =Z10 -> 0.0004516222897 | AB10: =SQRT(M10)*SQRT(K10^2+(N10^2)/12) -> 0.8469891724 | AC10: 0.002582606369 | AD10: 0.005775124528 | AE10: 0 | AF10: 0.01346108481 | AG10: 0.0218253542 | AH10: 1.104113951 | AI10: 0.002937952957 | AJ10: 0.01592508481 | AK10: 0.01886924671 | AL10: 0.002464 | AM10: 0.0004752 | AN10: 0.00387291655 | AO10: 0.0004725 | AP10: ='Variable Management'!$B$337 -> 0.0506 | AQ10: 0.1021384787 | AR10: 0.08602 | AS10: 0.0510725 | AT10: 0.3054540266 | AU10: 1 | AV10: =AU10/(AU10+AT10) -> 0.7660170175 | AW10: 0.6420305999 | AX10: 0.5327297559 | AZ10: =AV10*100 -> 76.60170175 | BA10: 0.2045267286 | BB10: 0.04116980091 | BC10: 0.0221389862 | BD10: 0.01902606271 | BE10: 0.00387291655
A11: Vin | B11: =Vin -> 13.5 | C11: V | D11: Vin | G11: 2 | H11: 13.5 | I11: 1 | J11: 0.4 | K11: 0.4 | L11: 0.1646090535 | M11: 0.3705602917 | N11: 4.77104236 | O11: 2.78552118 | P11: -1.98552118 | Q11: 13.5 | R11: 1.43419098 | S11: 0.004730878663 | T11: 0.2 | U11: 0.2048083926 | V11: 1.377281295 | W11: 0.001896903767 | X11: 0.001896903767 | Y11: 0.6926494521 | Z11: 0.0004797632635 | AA11: 0.0004797632635 | AB11: 0.8730445921 | AC11: 0.002743944695 | AD11: 0.01155024906 | AE11: 0 | AF11: 0.01223081047 | AG11: 0.02653344975 | AH11: 1.137847488 | AI11: 0.003120219545 | AJ11: 0.01715881047 | AK11: 0.02028611929 | AL11: 0.004928 | AM11: 0.0009504 | AN11: 0.004113807533 | AO11: 0.0004725 | AP11: ='Variable Management'!$B$337 -> 0.0506 | AQ11: 0.1021384787 | AR11: 0.08602 | AS11: 0.0510725 | AT11: 0.3150693362 | AU11: 2 | AV11: 0.8639050109 | AW11: 0.7876606988 | AX11: 0.5767930362 | AZ11: 86.39050109 | BA11: 0.2048083926 | BB11: 0.04776996905 | BC11: 0.02716071375 | BD11: 0.02059975129 | BE11: 0.004113807533
A12: Vout | B12: =Vout -> 5 | C12: V | D12: Vout | G12: 3 | H12: 13.5 | I12: 1 | J12: 0.6 | K12: 0.6 | L12: 0.2469135802 | M12: 0.370655249 | N12: 4.771602268 | O12: 2.985801134 | P12: -1.785801134 | Q12: 13.5 | R12: 1.502447675 | S12: 0.005191902739 | T12: 0.2 | U12: 0.2052771651 | V12: 1.377442927 | W12: 0.001897349017 | X12: 0.001897349017 | Y12: 0.7256525748 | Z12: 0.0005265716594 | AA12: 0.0005265716594 | AB12: 0.9147121197 | AC12: 0.003012113743 | AD12: 0.01732537358 | AE12: 0 | AF12: 0.01100053499 | AG12: 0.03134897581 | AH12: 1.191910548 | AI12: 0.00342376832 | AJ12: 0.01839253499 | AK12: 0.02182467224 | AL12: 0.007392 | AM12: 0.0014256 | AN12: 0.004514698034 | AO12: 0.0004725 | AP12: ='Variable Management'!$B$337 -> 0.0506 | AQ12: 0.1021384787 | AR12: 0.08602 | AS12: 0.0510725 | AT12: 0.3252795318 | AU12: 3 | AV12: 0.9021797931 | AW12: 0.9364062825 | AX12: 0.6242633667 | AZ12: 90.21797931 | BA12: 0.2052771651 | BB12: 0.05459924805 | BC12: 0.03228987181 | BD12: 0.02229512024 | BE12: 0.004514698034
A13: Fsw | B13: =Fsw/1000 -> 440 | C13: kHz | D13: Switching Frequency | G13: 4 | H13: 13.5 | I13: 1 | J13: 0.8 | K13: 0.8 | L13: 0.329218107 | M13: 0.370750204 | N13: 4.772161808 | O13: 3.186080904 | P13: -1.586080904 | Q13: 13.5 | R13: 1.593045519 | S13: 0.005836926261 | T13: 0.2 | U13: 0.2059330876 | V13: 1.377604452 | W13: 0.001897794026 | X13: 0.001897794026 | Y13: 0.7694500398 | Z13: 0.0005920533637 | AA13: 0.0005920533637 | AB13: 0.9699936355 | AC13: 0.003387195551 | AD13: 0.02310049811 | AE13: 0 | AF13: 0.009770258367 | AG13: 0.03627220391 | AH13: 1.263687609 | AI13: 0.00384854436 | AJ13: 0.01962625837 | AK13: 0.0234849256 | AL13: 0.009856 | AM13: 0.0019008 | AN13: 0.005075588053 | AO13: 0.0004725 | AP13: ='Variable Management'!$B$337 -> 0.0506 | AQ13: 0.1021384787 | AR13: 0.08602 | AS13: 0.0510725 | AT13: 0.3360849525 | AU13: 4 | AV13: 0.9224911513 | AW13: 1.088275225 | AX13: 0.6751413088 | AZ13: 92.24911513 | BA13: 0.2059330876 | BB13: 0.06165792951 | BC13: 0.03752673191 | BD13: 0.0241121896 | BE13: 0.005075588053
A14: Iout | B14: =Iout -> 20 | C14: A | D14: Max Output Current | G14: 5 | H14: 13.5 | I14: 1 | J14: 1 | K14: 1 | L14: 0.4115226337 | M14: 0.3708451567 | N14: 4.772720978 | O14: 3.386360489 | P14: -1.386360489 | Q14: 13.20343323 | R14: 1.70242145 | S14: 0.006665949227 | T14: 0.2 | U14: 0.206776218 | V14: 1.377765871 | W14: 0.001898238795 | X14: 0.001898238795 | Y14: 0.8223224757 | Z14: 0.000676214254 | AA14: 0.000676214254 | AB14: 1.036724563 | AC14: 0.003869272152 | AD14: 0.02887562264 | AE14: 0.006514794263 | AF14: 0.008539980612 | AG14: 0.04782113349 | AH14: 1.350348464 | AI14: 0.004394492749 | AJ14: 0.02085998061 | AK14: 0.02526690931 | AL14: 0.01232 | AM14: 0.002376 | AN14: 0.005796477589 | AO14: 0.0004725 | AP14: ='Variable Management'!$B$337 -> 0.0506 | AQ14: 0.1021384787 | AR14: 0.08602 | AS14: 0.0510725 | AT14: 0.3540036915 | AU14: 5 | AV14: 0.9338805664 | AW14: 1.432289511 | AX14: 0.7294277007 | AZ14: 93.38805664 | BA14: 0.206776218 | BB14: 0.0754640428 | BC14: 0.04938929349 | BD14: 0.02605098931 | BE14: 0.005796477589
A15: Ta | B15: =Ta -> 25 | C15: °C | D15: Ambient Temperature | G15: 6 | H15: 13.5 | I15: 1 | J15: 1.2 | K15: 1.2 | L15: 0.4938271605 | M15: 0.3709401071 | N15: 4.77327978 | O15: 3.58663989 | P15: -1.18663989 | Q15: 11.30133228 | R15: 1.827206425 | S15: 0.007678971639 | T15: 0.2 | U15: 0.2078066309 | V15: 1.377927183 | W15: 0.001898683321 | X15: 0.001898683321 | Y15: 0.8826438685 | Z15: 0.0007790601987 | AA15: 0.0007790601987 | AB15: 1.11285738 | AC15: 0.004458425576 | AD15: 0.03465074717 | AE15: 0.04783893437 | AF15: 0.007309701722 | AG15: 0.09430658207 | AH15: 1.449217641 | AI15: 0.005061558572 | AJ15: 0.02209370172 | AK15: 0.02717066319 | AL15: 0.014784 | AM15: 0.0028512 | AN15: 0.006677366643 | AO15: 0.0004725 | AP15: ='Variable Management'!$B$337 -> 0.0506 | AQ15: 0.1021384787 | AR15: 0.08602 | AS15: 0.0510725 | AT15: 0.4073466864 | AU15: 6 | AV15: 0.9364250592 | AW15: 2.789462848 | AX15: 0.7871236574 | AZ15: 93.64250592 | BA15: 0.2078066309 | BB15: 0.1243284453 | BC15: 0.09618837407 | BD15: 0.02811155919 | BE15: 0.006677366643
A16: Vcc | B16: =VCC -> 5 | C16: V | D16: Subregulated VCC Voltage | G16: 7 | H16: 13.5 | I16: 1 | J16: 1.4 | K16: 1.4 | L16: 0.5761316872 | M16: 0.3710350553 | N16: 4.773838213 | O16: 3.786919106 | P16: -0.9869191063 | Q16: 9.399229584 | R16: 1.96446624 | S16: 0.008875993495 | T16: 0.2 | U16: 0.2090244174 | V16: 1.378088389 | W16: 0.001899127607 | X16: 0.001899127607 | Y16: 0.9489979227 | Z16: 0.0009005970574 | AA16: 0.0009005970574 | AB16: 1.196608384 | AC16: 0.005154737849 | AD16: 0.0404258717 | AE16: 0.08836715418 | AF16: 0.006079421695 | AG16: 0.1401109647 | AH16: 1.557965334 | AI16: 0.005849686916 | AJ16: 0.02332742169 | AK16: 0.02919623696 | AL16: 0.017248 | AM16: 0.0033264 | AN16: 0.007718255213 | AO16: 0.0004725 | AP16: ='Variable Management'!$B$337 -> 0.0506 | AQ16: 0.1021384787 | AR16: 0.08602 | AS16: 0.0510725 | AT16: 0.460496499 | AU16: 7 | AV16: 0.9382753549 | AW16: 4.126885273 | AX16: 0.8482305709 | AZ16: 93.82753549 | BA16: 0.2090244174 | BB16: 0.1726336017 | BC16: 0.1423063887 | BD16: 0.03029394896 | BE16: 0.007718255213
A17: Components | B17: Input Value | C17: Units | D17: Description | G17: 8 | H17: 13.5 | I17: 1 | J17: 1.6 | K17: 1.6 | L17: 0.658436214 | M17: 0.3711300011 | N17: 4.774396277 | O17: 3.987198138 | P17: -0.7871981383 | Q17: 7.497125127 | R17: 2.111769791 | S17: 0.0102570148 | T17: 0.2 | U17: 0.2104296852 | V17: 1.378249488 | W17: 0.001899571651 | X17: 0.001899571651 | Y17: 1.020211096 | Z17: 0.001040830681 | AA17: 0.001040830681 | AB17: 1.286499449 | AC17: 0.005958290994 | AD17: 0.04620099623 | AE17: 0.1280994515 | AF17: 0.004849140532 | AG17: 0.1852359072 | AH17: 1.674661404 | AI17: 0.006758822873 | AJ17: 0.02456114053 | AK17: 0.03134369021 | AL17: 0.019712 | AM17: 0.0038016 | AN17: 0.008919143301 | AO17: 0.0004725 | AP17: ='Variable Management'!$B$337 -> 0.0506 | AQ17: 0.1021384787 | AR17: 0.08602 | AS17: 0.0510725 | AT17: 0.5134549283 | AU17: 8 | AV17: 0.9396890061 | AW17: 5.444603933 | AX17: 0.9127501098 | AZ17: 93.96890061 | BA17: 0.2104296852 | BB17: 0.2203811974 | BC17: 0.1877449632 | BD17: 0.03259821821 | BE17: 0.008919143301
A18: L | B18: =Lf*1000000 -> 1.5 | C18: uH | D18: Filter Inductance | G18: 9 | H18: 13.5 | I18: 1 | J18: 1.8 | K18: 1.8 | L18: 0.7407407407 | M18: 0.3712249447 | N18: 4.774953972 | O18: 4.187476986 | P18: -0.5874769859 | Q18: 5.595018913 | R18: 2.267160218 | S18: 0.01182203554 | T18: 0.2 | U18: 0.2120225586 | V18: 1.37841048 | W18: 0.001900015453 | X18: 0.001900015453 | Y18: 1.09533872 | Z18: 0.001199766911 | AA18: 0.001199766911 | AB18: 1.381340636 | AC18: 0.006869167029 | AD18: 0.05197612075 | AE18: 0.167035824 | AF18: 0.003618858233 | AG18: 0.2296829868 | AH18: 1.797752347 | AI18: 0.007788911536 | AJ18: 0.02579485823 | AK18: 0.03361309242 | AL18: 0.022176 | AM18: 0.0042768 | AN18: 0.01028003091 | AO18: 0.0004725 | AP18: ='Variable Management'!$B$337 -> 0.0506 | AQ18: 0.1021384787 | AR18: 0.08602 | AS18: 0.0510725 | AT18: 0.5662237511 | AU18: 9 | AV18: 0.940810108 | AW18: 6.74266457 | AX18: 0.9806842198 | AZ18: 94.0810108 | BA18: 0.2120225586 | BB18: 0.2675728793 | BC18: 0.2325056748 | BD18: 0.03502443642 | BE18: 0.01028003091
A19: Rdcr | B19: =Rdcr*1000 -> 2.3 | C19: mW | D19: Inductor DCR at 25°C | G19: 10 | H19: 13.5 | I19: 1 | J19: 2 | K19: 2 | L19: 0.8230452675 | M19: 0.3713198861 | N19: 4.775511298 | O19: 4.387755649 | P19: -0.3877556491 | Q19: 3.692910944 | R19: 2.429086045 | S19: 0.01357105573 | T19: 0.2 | U19: 0.2138031785 | V19: 1.378571367 | W19: 0.001900459013 | X19: 0.001900459013 | Y19: 1.17363179 | Z19: 0.00137741158 | AA19: 0.00137741158 | AB19: 1.480188423 | AC19: 0.007887447967 | AD19: 0.05775124528 | AE19: 0.2051762697 | AF19: 0.002388574799 | AG19: 0.2734537326 | AH19: 1.926006554 | AI19: 0.008939898 | AJ19: 0.0270285748 | AK19: 0.036004523 | AL19: 0.02464 | AM19: 0.004752 | AN19: 0.01180091803 | AO19: 0.0004725 | AP19: ='Variable Management'!$B$337 -> 0.0506 | AQ19: 0.1021384787 | AR19: 0.08602 | AS19: 0.0510725 | AT19: 0.6188047227 | AU19: 10 | AV19: 0.9417255766 | AW19: 8.021111525 | AX19: 1.052035124 | AZ19: 94.17255766 | BA19: 0.2138031785 | BB19: 0.3142102556 | BC19: 0.2765900526 | BD19: 0.037572683 | BE19: 0.01180091803
A20: LTc | B20: =Ltc*1000000 -> 4000 | C20: ppm | D20: Inductor Series Resistance Temp Co | G20: 11 | H20: 13.5 | I20: 1 | J20: 2.2 | K20: 2.2 | L20: 0.9053497942 | M20: 0.3714148251 | N20: 4.776068256 | O20: 4.588034128 | P20: -0.1880341279 | Q20: 1.790801218 | R20: 2.596324774 | S20: 0.01550407536 | T20: 0.2 | U20: 0.2157717026 | V20: 1.378732147 | W20: 0.001900902332 | X20: 0.001900902332 | Y20: 1.254500104 | Z20: 0.001573770512 | AA20: 0.001573770512 | AB20: 1.582299296 | AC20: 0.009013215818 | AD20: 0.06352636981 | AE20: 0.2425207862 | AF20: 0.001158290228 | AG20: 0.3165496252 | AH20: 2.058453612 | AI20: 0.01021172736 | AJ20: 0.02826229023 | AK20: 0.03851807123 | AL20: 0.027104 | AM20: 0.0052272 | AN20: 0.01348180466 | AO20: 0.0004725 | AP20: ='Variable Management'!$B$337 -> 0.0506 | AQ20: 0.1021384787 | AR20: 0.08602 | AS20: 0.0510725 | AT20: 0.6711995765 | AU20: 11 | AV20: 0.942490952 | AW20: 9.279987738 | AX20: 1.126805322 | AZ20: 94.2490952 | BA20: 0.2157717026 | BB20: 0.3602948964 | BC20: 0.3199995772 | BD20: 0.04024304723 | BE20: 0.01348180466
A21: ThetaCa | B21: =ThetaCa -> 20 | C21: °C/W | D21: Core to Ambient Thermal Resistance | G21: 12 | H21: 13.5 | I21: 1 | J21: 2.4 | K21: 2.4 | L21: 0.987654321 | M21: 0.3715097619 | N21: 4.776624845 | O21: 4.788312422 | P21: 0.01168757763 | Q21: 0 | R21: 2.767913548 | S21: 0.01762109444 | T21: 0.2 | U21: 0.2179283053 | V21: 1.37889282 | W21: 0.001901345409 | X21: 0.001901345409 | Y21: 1.337478793 | Z21: 0.001788849522 | AA21: 0.001788849522 | AB21: 1.687087611 | AC21: 0.01024655259 | AD21: 0.06930149434 | AE21: 0.2769525 | AF21: 0 | AG21: 0.3569247878 | AH21: 2.194329237 | AI21: 0.01160434473 | AJ21: 0.029568 | AK21: 0.04122592551 | AL21: 0.029568 | AM21: 0.0057024 | AN21: 0.01532269082 | AO21: 0.0004725 | AP21: ='Variable Management'!$B$337 -> 0.0506 | AQ21: 0.1021384787 | AR21: 0.08602 | AS21: 0.0510725 | AT21: 0.7214348043 | AU21: 12 | AV21: 0.9432898242 | AW21: 10.45996278 | AX21: 1.20701609 | AZ21: 94.32898242 | BA21: 0.2179283053 | BB21: 0.4038531133 | BC21: 0.3606883718 | BD21: 0.04310771751 | BE21: 0.01532269082
A22: Cin | B22: =Cin*1000000 -> 55 | C22: μF | D22: Input Capacitance | G22: 13 | H22: 13.5 | I22: 1 | J22: 2.6 | K22: 2.6 | L22: 1.069958848 | M22: 0.3716046963 | N22: 4.777181065 | O22: 4.988590532 | P22: 0.2114094676 | Q22: 0 | R22: 2.943091613 | S22: 0.01992211296 | T22: 0.2 | U22: 0.2202731775 | V22: 1.379053387 | W22: 0.001901788244 | X22: 0.001901788244 | Y22: 1.422200554 | Z22: 0.002022654415 | AA22: 0.002022654415 | AB22: 1.79409063 | AC22: 0.01158754028 | AD22: 0.07507661887 | AE22: 0.2769525 | AF22: 0 | AG22: 0.364106074 | AH22: 2.333029587 | AI22: 0.0131176952 | AJ22: 0.032032 | AK22: 0.04521612591 | AL22: 0.032032 | AM22: 0.0061776 | AN22: 0.01732357649 | AO22: 0.0004725 | AP22: ='Variable Management'!$B$337 -> 0.0506 | AQ22: 0.1021384787 | AR22: 0.08602 | AS22: 0.0510725 | AT22: 0.7401254966 | AU22: 13 | AV22: 0.9461340075 | AW22: 10.67731541 | AX22: 1.32313255 | AZ22: 94.61340075 | BA22: 0.2202731775 | BB22: 0.4154997999 | BC22: 0.36818329 | BD22: 0.04725473391 | BE22: 0.01732357649
A23: RCinEsr | B23: =RCinEsr*1000 -> 1 | C23: mW | D23: Input Capacitor ESR | G23: 14 | H23: 13.5 | I23: 1 | J23: 2.8 | K23: 2.8 | L23: 1.152263374 | M23: 0.3716996285 | N23: 4.777736916 | O23: 5.188868458 | P23: 0.4111315419 | Q23: 0 | R23: 3.121254689 | S23: 0.02240713092 | T23: 0.2 | U23: 0.2228065273 | V23: 1.379213847 | W23: 0.001902230837 | X23: 0.001902230837 | Y23: 1.508373624 | Z23: 0.00227519099 | AA23: 0.00227519099 | AB23: 1.902940772 | AC23: 0.0130362609 | AD23: 0.0808517434 | AE23: 0.2769525 | AF23: 0 | AG23: 0.3714021409 | AH23: 2.47407503 | AI23: 0.01475172388 | AJ23: 0.034496 | AK23: 0.04932922529 | AL23: 0.034496 | AM23: 0.0066528 | AN23: 0.01948446167 | AO23: 0.0004725 | AP23: ='Variable Management'!$B$337 -> 0.0506 | AQ23: 0.1021384787 | AR23: 0.08602 | AS23: 0.0510725 | AT23: 0.7594210771 | AU23: 14 | AV23: 0.9485466894 | AW23: 10.89799668 | AX23: 1.44269018 | AZ23: 94.85466894 | BA23: 0.2228065273 | BB23: 0.4273841662 | BC23: 0.3757929889 | BD23: 0.05152464929 | BE23: 0.01948446167
A24: Cout | B24: =Cout*1000000 -> 128 | C24: μF | D24: Output Capcitance | G24: 15 | H24: 13.5 | I24: 1 | J24: 3 | K24: 3 | L24: 1.234567901 | M24: 0.3717945585 | N24: 4.778292399 | O24: 5.389146199 | P24: 0.6108538006 | Q24: 0 | R24: 3.301919622 | S24: 0.02507614833 | T24: 0.2 | U24: 0.2255285794 | V24: 1.379374201 | W24: 0.001902673187 | X24: 0.001902673187 | Y24: 1.595764718 | Z24: 0.002546465035 | AA24: 0.002546465035 | AB24: 2.013344125 | AC24: 0.01459279643 | AD24: 0.08662686792 | AE24: 0.2769525 | AF24: 0 | AG24: 0.3788134062 | AH24: 2.617082082 | AI24: 0.01650637588 | AJ24: 0.03696 | AK24: 0.053565403 | AL24: 0.03696 | AM24: 0.007128 | AN24: 0.02180534637 | AO24: 0.0004725 | AP24: ='Variable Management'!$B$337 -> 0.0506 | AQ24: 0.1021384787 | AR24: 0.08602 | AS24: 0.0510725 | AT24: 0.7793223732 | AU24: 15 | AV24: 0.9506111635 | AW24: 11.1220187 | AX24: 1.565694004 | AZ24: 95.06111635 | BA24: 0.2255285794 | BB24: 0.4395068092 | BC24: 0.3835178862 | BD24: 0.055917643 | BE24: 0.02180534637
A25: RCoutEsr | B25: =Cout_ESR*1000 -> 1 | C25: mW | D25: Output Capacitor ESR | G25: 16 | H25: 13.5 | I25: 1 | J25: 3.2 | K25: 3.2 | L25: 1.316872428 | M25: 0.3718894861 | N25: 4.778847513 | O25: 5.589423756 | P25: 0.8105762436 | Q25: 0 | R25: 3.484697303 | S25: 0.02792916518 | T25: 0.2 | U25: 0.2284395753 | V25: 1.379534449 | W25: 0.001903115296 | X25: 0.001903115296 | Y25: 1.684185954 | Z25: 0.002836482327 | AA25: 0.002836482327 | AB25: 2.125063977 | AC25: 0.01625722887 | AD25: 0.09240199245 | AE25: 0.2769525 | AF25: 0 | AG25: 0.3863402967 | AH25: 2.761741912 | AI25: 0.01838159632 | AJ25: 0.039424 | AK25: 0.05792484845 | AL25: 0.039424 | AM25: 0.0076032 | AN25: 0.02428623059 | AO25: 0.0004725 | AP25: ='Variable Management'!$B$337 -> 0.0506 | AQ25: 0.1021384787 | AR25: 0.08602 | AS25: 0.0510725 | AT25: 0.7998302487 | AU25: 16 | AV25: 0.9523905756 | AW25: 11.34939385 | AX25: 1.692149325 | AZ25: 95.23905756 | BA25: 0.2284395753 | BB25: 0.4518683452 | BC25: 0.3913584087 | BD25: 0.06043390445 | BE25: 0.02428623059
A26: Top Driver | B26: Input Value | C26: Units | D26: Description | G26: 17 | H26: 13.5 | I26: 1 | J26: 3.4 | K26: 3.4 | L26: 1.399176955 | M26: 0.3719844115 | N26: 4.779402258 | O26: 5.789701129 | P26: 1.010298871 | Q26: 0 | R26: 3.669272021 | S26: 0.03096618147 | T26: 0.2 | U26: 0.2315397737 | V26: 1.37969459 | W26: 0.001903557162 | X26: 0.001903557162 | Y26: 1.773484885 | Z26: 0.003145248638 | AA26: 0.003145248638 | AB26: 2.237908262 | AC26: 0.01802964019 | AD26: 0.09817711698 | AE26: 0.2769525 | AF26: 0 | AG26: 0.3939832488 | AH26: 2.907803944 | AI26: 0.0203773303 | AJ26: 0.041888 | AK26: 0.0624077611 | AL26: 0.041888 | AM26: 0.0080784 | AN26: 0.02692711432 | AO26: 0.0004725 | AP26: ='Variable Management'!$B$337 -> 0.0506 | AQ26: 0.1021384787 | AR26: 0.08602 | AS26: 0.0510725 | AT26: 0.8209456037 | AU26: 17 | AV26: 0.9539336676 | AW26: 11.58013479 | AX26: 1.822061727 | AZ26: 95.39336676 | BA26: 0.2315397737 | BB26: 0.4644694099 | BC26: 0.3993149928 | BD26: 0.0650736331 | BE26: 0.02692711432
A27: RdsonDRT | B27: =RdsonDRT -> 1 | C27: W | D27: Drain to Source Resistance of pullup Top FET Driver | G27: 18 | H27: 13.5 | I27: 1 | J27: 3.6 | K27: 3.6 | L27: 1.481481481 | M27: 0.3720793346 | N27: 4.779956634 | O27: 5.989978317 | P27: 1.210021683 | Q27: 0 | R27: 3.855385686 | S27: 0.03418719721 | T27: 0.2 | U27: 0.2348294501 | V27: 1.379854625 | W27: 0.001903998786 | X27: 0.001903998786 | Y27: 1.863536887 | Z27: 0.003472769729 | AA27: 0.003472769729 | AB27: 2.351719961 | AC27: 0.0199101124 | AD27: 0.1039522415 | AE27: 0.2769525 | AF27: 0 | AG27: 0.401742708 | AH27: 3.05506334 | AI27: 0.02249352294 | AJ27: 0.044352 | AK27: 0.06701435049 | AL27: 0.044352 | AM27: 0.0085536 | AN27: 0.02972799757 | AO27: 0.0004725 | AP27: ='Variable Management'!$B$337 -> 0.0506 | AQ27: 0.1021384787 | AR27: 0.08602 | AS27: 0.0510725 | AT27: 0.8426693747 | AU27: 18 | AV27: 0.9552786626 | AW27: 11.81425444 | AX27: 1.955437078 | AZ27: 95.52786626 | BA27: 0.2348294501 | BB27: 0.4773106585 | BC27: 0.407388084 | BD27: 0.06983703849 | BE27: 0.02972799757
A28: RdsonDRT2 | B28: =RdsonDRT2 -> 0.5 | C28: W | D28: Drain to Source Resistance of pulldown Top FET Driver | G28: 19 | H28: 13.5 | I28: 1 | J28: 3.8 | K28: 3.8 | L28: 1.563786008 | M28: 0.3721742554 | N28: 4.780510642 | O28: 6.190255321 | P28: 1.409744679 | Q28: 0 | R28: 4.042825765 | S28: 0.03759221238 | T28: 0.2 | U28: 0.2383088971 | V28: 1.380014553 | W28: 0.001904440167 | X28: 0.001904440167 | Y28: 1.954239328 | Z28: 0.003819051353 | AA28: 0.003819051353 | AB28: 2.466369771 | AC28: 0.02189872746 | AD28: 0.109727366 | AE28: 0.2769525 | AF28: 0 | AG28: 0.4096191295 | AH28: 3.20335142 | AI28: 0.02473011937 | AJ28: 0.046816 | AK28: 0.0717448363 | AL28: 0.046816 | AM28: 0.0090288 | AN28: 0.03268888033 | AO28: 0.0004725 | AP28: ='Variable Management'!$B$337 -> 0.0506 | AQ28: 0.1021384787 | AR28: 0.08602 | AS28: 0.0510725 | AT28: 0.8650025347 | AU28: 19 | AV28: 0.9564559565 | AW28: 12.05176599 | AX28: 2.092281528 | AZ28: 95.64559565 | BA28: 0.2383088971 | BB28: 0.4903927658 | BC28: 0.4155781375 | BD28: 0.0747243403 | BE28: 0.03268888033
A29: Bottom Driver | B29: Input Value | C29: Units | D29: Description | G29: 20 | H29: 13.5 | I29: 1 | J29: 4 | K29: 4 | L29: 1.646090535 | M29: 0.3722691739 | N29: 4.781064281 | O29: 6.390532141 | P29: 1.609467859 | Q29: 0 | R29: 4.231415993 | S29: 0.041181227 | T29: 0.2 | U29: 0.2419784245 | V29: 1.380174375 | W29: 0.001904881305 | X29: 0.001904881305 | Y29: 2.045507089 | Z29: 0.004184099253 | AA29: 0.004184099253 | AB29: 2.581750447 | AC29: 0.02399556734 | AD29: 0.1155024906 | AE29: 0.2769525 | AF29: 0 | AG29: 0.4176129777 | AH29: 3.35252829 | AI29: 0.0270870647 | AJ29: 0.04928 | AK29: 0.07659944837 | AL29: 0.04928 | AM29: 0.009504 | AN29: 0.03580976261 | AO29: 0.0004725 | AP29: ='Variable Management'!$B$337 -> 0.0506 | AQ29: 0.1021384787 | AR29: 0.08602 | AS29: 0.0510725 | AT29: 0.8879460937 | AU29: 20 | AV29: 0.9574900237 | AW29: 12.29268291 | AX29: 2.232601514 | AZ29: 95.74900237 | BA29: 0.2419784245 | BB29: 0.5037164261 | BC29: 0.4238856177 | BD29: 0.07973576837 | BE29: 0.03580976261
A30: RdsonDRB | B30: =RdsonDRB -> 1 | C30: W | D30: Drain to Source Resistance of pullup Bottom FET Driver | G30: 21 | H30: 13.5 | I30: 1 | J30: 4.2 | K30: 4.2 | L30: 1.728395062 | M30: 0.3723640902 | N30: 4.781617552 | O30: 6.590808776 | P30: 1.809191224 | Q30: 0 | R30: 4.421009184 | S30: 0.04495424106 | T30: 0.2 | U30: 0.2458383592 | V30: 1.38033409 | W30: 0.001905322201 | X30: 0.001905322201 | Y30: 2.13726909 | Z30: 0.004567919163 | AA30: 0.004567919163 | AB30: 2.697772436 | AC30: 0.02620071403 | AD30: 0.1212776151 | AE30: 0.2769525 | AF30: 0 | AG30: 0.425724727 | AH30: 3.502477135 | AI30: 0.02956430406 | AJ30: 0.051744 | AK30: 0.08157842671 | AL30: 0.051744 | AM30: 0.0099792 | AN30: 0.0390906444 | AO30: 0.0004725 | AP30: ='Variable Management'!$B$337 -> 0.0506 | AQ30: 0.1021384787 | AR30: 0.08602 | AS30: 0.0510725 | AT30: 0.9115010987 | AU30: 21 | AV30: 0.9584007917 | AW30: 12.53701897 | AX30: 2.376403756 | AZ30: 95.84007917 | BA30: 0.2458383592 | BB30: 0.5172823537 | BC30: 0.432310999 | BD30: 0.08487156271 | BE30: 0.0390906444
A31: RdsonDRB2 | B31: 0.7 | C31: W | D31: Drain to Source Resistance of pulldown Bottom FET Driver | G31: 22 | H31: 13.5 | I31: 1 | J31: 4.4 | K31: 4.4 | L31: 1.810699588 | M31: 0.3724590042 | N31: 4.782170454 | O31: 6.791085227 | P31: 2.008914773 | Q31: 0 | R31: 4.611481633 | S31: 0.04891125456 | T31: 0.2 | U31: 0.2498890455 | V31: 1.380493699 | W31: 0.001905762854 | X31: 0.001905762854 | Y31: 2.229465588 | Z31: 0.004970516809 | AA31: 0.004970516809 | AB31: 2.81436047 | AC31: 0.02851424948 | AD31: 0.1270527396 | AE31: 0.2769525 | AF31: 0 | AG31: 0.4339548612 | AH31: 3.653099779 | AI31: 0.03216178258 | AJ31: 0.054208 | AK31: 0.08668202159 | AL31: 0.054208 | AM31: 0.0104544 | AN31: 0.04253152571 | AO31: 0.0004725 | AP31: ='Variable Management'!$B$337 -> 0.0506 | AQ31: 0.1021384787 | AR31: 0.08602 | AS31: 0.0510725 | AT31: 0.9356686336 | AU31: 22 | AV31: 0.9592046498 | AW31: 12.78478819 | AX31: 2.523695261 | AZ31: 95.92046498 | BA31: 0.2498890455 | BB31: 0.5310912828 | BC31: 0.4408547652 | BD31: 0.09013197359 | BE31: 0.04253152571
A32: Deadtime | B32: Input Value | C32: Units | D32: Description | G32: 23 | H32: 13.5 | I32: 1 | J32: 4.6 | K32: 4.6 | L32: 1.893004115 | M32: 0.3725539159 | N32: 4.782722987 | O32: 6.991361494 | P32: 2.208638506 | Q32: 0 | R32: 4.802728731 | S32: 0.05305226751 | T32: 0.2 | U32: 0.2541308449 | V32: 1.380653202 | W32: 0.001906203264 | X32: 0.001906203264 | Y32: 2.322046061 | Z32: 0.005391897909 | AA32: 0.005391897909 | AB32: 2.931450895 | AC32: 0.03093625566 | AD32: 0.1328278642 | AE32: 0.2769525 | AF32: 0 | AG32: 0.442303874 | AH32: 3.804313199 | AI32: 0.03487944538 | AJ32: 0.056672 | AK32: 0.09191049353 | AL32: 0.056672 | AM32: 0.0109296 | AN32: 0.04613240653 | AO32: 0.0004725 | AP32: ='Variable Management'!$B$337 -> 0.0506 | AQ32: 0.1021384787 | AR32: 0.08602 | AS32: 0.0510725 | AT32: 0.9604498201 | AU32: 23 | AV32: 0.9599152008 | AW32: 13.03600489 | AX32: 2.674483323 | AZ32: 95.99152008 | BA32: 0.2541308449 | BB32: 0.5451439675 | BC32: 0.44951741 | BD32: 0.09551726153 | BE32: 0.04613240653
A33: Deadtime1 | B33: 10 | C33: ns | D33: LO off to HO on deadtime | G33: 24 | H33: 13.5 | I33: 1 | J33: 4.8 | K33: 4.8 | L33: 1.975308642 | M33: 0.3726488253 | N33: 4.783275152 | O33: 7.191637576 | P33: 2.408362424 | Q33: 0 | R33: 4.994661493 | S33: 0.05737727989 | T33: 0.2 | U33: 0.2585641364 | V33: 1.380812598 | W33: 0.001906643432 | X33: 0.001906643432 | Y33: 2.41496753 | Z33: 0.005832068169 | AA33: 0.005832068169 | AB33: 3.048989565 | AC33: 0.03346681453 | AD33: 0.1386029887 | AE33: 0.2769525 | AF33: 0 | AG33: 0.450772269 | AH33: 3.956046772 | AI33: 0.03771723761 | AJ33: 0.059136 | AK33: 0.09726411338 | AL33: 0.059136 | AM33: 0.0114048 | AN33: 0.04989328686 | AO33: 0.0004725 | AP33: ='Variable Management'!$B$337 -> 0.0506 | AQ33: 0.1021384787 | AR33: 0.08602 | AS33: 0.0510725 | AT33: 0.9858458173 | AU33: 24 | AV33: 0.9605438285 | AW33: 13.29068367 | AX33: 2.828775527 | AZ33: 96.05438285 | BA33: 0.2585641364 | BB33: 0.5594411824 | BC33: 0.458299437 | BD33: 0.1010276974 | BE33: 0.04989328686
A34: Deadtime2 | B34: 13 | C34: ns | D34: LO off to HO on deadtime | G34: 25 | H34: 13.5 | I34: 1 | J34: 5 | K34: 5 | L34: 2.057613169 | M34: 0.3727437324 | N34: 4.783826948 | O34: 7.391913474 | P34: 2.608086526 | Q34: 0 | R34: 5.187203809 | S34: 0.06188629172 | T34: 0.2 | U34: 0.2631893166 | V34: 1.380971888 | W34: 0.001907083356 | X34: 0.001907083356 | Y34: 2.508193232 | Z34: 0.00629103329 | AA34: 0.00629103329 | AB34: 3.166930166 | AC34: 0.03610600804 | AD34: 0.1443781132 | AE34: 0.2769525 | AF34: 0 | AG34: 0.4593605597 | AH34: 4.108240095 | AI34: 0.04067510439 | AJ34: 0.0616 | AK34: 0.1027431623 | AL34: 0.0616 | AM34: 0.01188 | AN34: 0.05381416671 | AO34: 0.0004725 | AP34: ='Variable Management'!$B$337 -> 0.0506 | AQ34: 0.1021384787 | AR34: 0.08602 | AS34: 0.0510725 | AT34: 1.011857822 | AU34: 25 | AV34: 0.9611001325 | AW34: 13.54883943 | AX34: 2.986579746 | AZ34: 96.11001325 | BA34: 0.2631893166 | BB34: 0.573983722 | BC34: 0.4672013597 | BD34: 0.1066635623 | BE34: 0.05381416671
A35: IQ | B35: Input Value | C35: Units | D35: Description | G35: 26 | H35: 13.5 | I35: 1 | J35: 5.2 | K35: 5.2 | L35: 2.139917695 | M35: 0.3728386373 | N35: 4.784378375 | O35: 7.592189188 | P35: 2.807810812 | Q35: 0 | R35: 5.380290237 | S35: 0.06657930298 | T35: 0.2 | U35: 0.2680067995 | V35: 1.381131071 | W35: 0.001907523037 | X35: 0.001907523037 | Y35: 2.601691557 | Z35: 0.00676879896 | AA35: 0.00676879896 | AB35: 3.285232875 | AC35: 0.03885391815 | AD35: 0.1501532377 | AE35: 0.2769525 | AF35: 0 | AG35: 0.4680692696 | AH35: 4.260841231 | AI35: 0.04375299087 | AJ35: 0.064064 | AK35: 0.108347932 | AL35: 0.064064 | AM35: 0.0123552 | AN35: 0.05789504607 | AO35: 0.0004725 | AP35: ='Variable Management'!$B$337 -> 0.0506 | AQ35: 0.1021384787 | AR35: 0.08602 | AS35: 0.0510725 | AT35: 1.038487069 | AU35: 26 | AV35: 0.9615922641 | AW35: 13.81048735 | AX35: 3.147904145 | AZ35: 96.15922641 | BA35: 0.2680067995 | BB35: 0.5887724016 | BC35: 0.4762237016 | BD35: 0.112425148 | BE35: 0.05789504607
A36: IQ | B36: =Iq*1000 -> 0.035 | C36: mA | D36: Quiescent Current Of Controller (Not Switching!) | G36: 27 | H36: 13.5 | I36: 1 | J36: 5.4 | K36: 5.4 | L36: 2.222222222 | M36: 0.3729335399 | N36: 4.784929434 | O36: 7.792464717 | P36: 3.007535283 | Q36: 0 | R36: 5.573864232 | S36: 0.07145631369 | T36: 0.2 | U36: 0.2730170169 | V36: 1.381290148 | W36: 0.001907962474 | X36: 0.001907962474 | Y36: 2.695435189 | Z36: 0.007265370861 | AA36: 0.007265370861 | AB36: 3.403863279 | AC36: 0.0417106268 | AD36: 0.1559283623 | AE36: 0.2769525 | AF36: 0 | AG36: 0.4768989325 | AH36: 4.413805303 | AI36: 0.04695084218 | AJ36: 0.066528 | AK36: 0.1140787245 | AL36: 0.066528 | AM36: 0.0128304 | AN36: 0.06213592495 | AO36: 0.0004725 | AP36: ='Variable Management'!$B$337 -> 0.0506 | AQ36: 0.1021384787 | AR36: 0.08602 | AS36: 0.0510725 | AT36: 1.065734832 | AU36: 27 | AV36: 0.9620271894 | AW36: 14.0756429 | AX36: 3.312757182 | AZ36: 96.20271894 | BA36: 0.2730170169 | BB36: 0.603808057 | BC36: 0.4853669965 | BD36: 0.1183127565 | BE36: 0.06213592495
A37: High-side FET | B37: Input Value | C37: Units | D37: Description | G37: 28 | H37: 13.5 | I37: 1 | J37: 5.6 | K37: 5.6 | L37: 2.304526749 | M37: 0.3730284402 | N37: 4.785480125 | O37: 7.992740062 | P37: 3.207259938 | Q37: 0 | R37: 5.767876704 | S37: 0.07651732384 | T37: 0.2 | U37: 0.2782204184 | V37: 1.381449119 | W37: 0.001908401669 | X37: 0.001908401669 | Y37: 2.789400413 | Z37: 0.007780754665 | AA37: 0.007780754665 | AB37: 3.522791504 | AC37: 0.04467621594 | AD37: 0.1617034868 | AE37: 0.2769525 | AF37: 0 | AG37: 0.4858500922 | AH37: 4.567093352 | AI37: 0.05026860346 | AJ37: 0.068992 | AK37: 0.1199358523 | AL37: 0.068992 | AM37: 0.0133056 | AN37: 0.06653680334 | AO37: 0.0004725 | AP37: ='Variable Management'!$B$337 -> 0.0506 | AQ37: 0.1021384787 | AR37: 0.08602 | AS37: 0.0510725 | AT37: 1.093602423 | AU37: 28 | AV37: 0.9624108968 | AW37: 14.34432186 | AX37: 3.481147609 | AZ37: 96.24108968 | BA37: 0.2782204184 | BB37: 0.6190915445 | BC37: 0.4946317882 | BD37: 0.1243267003 | BE37: 0.06653680334
A38: RdsonTop | B38: =Rdson1*1000 -> 3.6 | C38: mW | D38: Drain-Source Resistance of Top FET | G38: 29 | H38: 13.5 | I38: 1 | J38: 5.8 | K38: 5.8 | L38: 2.386831276 | M38: 0.3731233383 | N38: 4.786030446 | O38: 8.193015223 | P38: 3.406984777 | Q38: 0 | R38: 5.962284849 | S38: 0.08176233342 | T38: 0.2 | U38: 0.2836174715 | V38: 1.381607983 | W38: 0.001908840619 | X38: 0.001908840619 | Y38: 2.883566548 | Z38: 0.008314956035 | AA38: 0.008314956035 | AB38: 3.6419915 | AC38: 0.0477507675 | AD38: 0.1674786113 | AE38: 0.2769525 | AF38: 0 | AG38: 0.4949233031 | AH38: 4.720671407 | AI38: 0.05370621987 | AJ38: 0.071456 | AK38: 0.1259196387 | AL38: 0.071456 | AM38: 0.0137808 | AN38: 0.07109768124 | AO38: 0.0004725 | AP38: ='Variable Management'!$B$337 -> 0.0506 | AQ38: 0.1021384787 | AR38: 0.08602 | AS38: 0.0510725 | AT38: 1.122091191 | AU38: 29 | AV38: 0.9627485627 | AW38: 14.6165403 | AX38: 3.653084475 | AZ38: 96.27485627 | BA38: 0.2836174715 | BB38: 0.6346237417 | BC38: 0.5040186311 | BD38: 0.1304673027 | BE38: 0.07109768124
A39: RdsonTopTc | B39: =RdsonTopTc*1000000 -> 4000 | C39: ppm | D39: Drain to Source Resistance Temp Co | G39: 30 | H39: 13.5 | I39: 1 | J39: 6 | K39: 6 | L39: 2.469135802 | M39: 0.373218234 | N39: 4.7865804 | O39: 8.3932902 | P39: 3.6067098 | Q39: 0 | R39: 6.157051188 | S39: 0.08719134245 | T39: 0.2 | U39: 0.2892086618 | V39: 1.381766741 | W39: 0.001909279327 | X39: 0.001909279327 | Y39: 2.977915483 | Z39: 0.008867980626 | AA39: 0.008867980626 | AB39: 3.761440453 | AC39: 0.05093436342 | AD39: 0.1732537358 | AE39: 0.2769525 | AF39: 0 | AG39: 0.5041191298 | AH39: 4.874509723 | AI39: 0.05726363655 | AJ39: 0.07392 | AK39: 0.1320304172 | AL39: 0.07392 | AM39: 0.014256 | AN39: 0.07581855865 | AO39: 0.0004725 | AP39: ='Variable Management'!$B$337 -> 0.0506 | AQ39: 0.1021384787 | AR39: 0.08602 | AS39: 0.0510725 | AT39: 1.151202527 | AU39: 30 | AV39: 0.9630446842 | AW39: 14.8923146 | AX39: 3.828577123 | AZ39: 96.30446842 | BA39: 0.2892086618 | BB39: 0.650405547 | BC39: 0.5135280898 | BD39: 0.1367348972 | BE39: 0.07581855865
A40: QgTop | B40: =Qg_Q1*1000000000 -> 9 | C40: nC | D40: Gate Charge Of Top FET | G40: 31 | H40: 13.5 | I40: 1 | J40: 6.2 | K40: 6.2 | L40: 2.551440329 | M40: 0.3733131275 | N40: 4.787129984 | O40: 8.593564992 | P40: 3.806435008 | Q40: 0 | R40: 6.352142772 | S40: 0.09280435092 | T40: 0.2 | U40: 0.2949944927 | V40: 1.381925393 | W40: 0.001909717791 | X40: 0.001909717791 | Y40: 3.072431298 | Z40: 0.009439834083 | AA40: 0.009439834083 | AB40: 3.881118311 | AC40: 0.05422708563 | AD40: 0.1790288604 | AE40: 0.2769525 | AF40: 0 | AG40: 0.5134381475 | AH40: 5.028582151 | AI40: 0.06094079866 | AJ40: 0.076384 | AK40: 0.1382685325 | AL40: 0.076384 | AM40: 0.0147312 | AN40: 0.08069943558 | AO40: 0.0004725 | AP40: ='Variable Management'!$B$337 -> 0.0506 | AQ40: 0.1021384787 | AR40: 0.08602 | AS40: 0.0510725 | AT40: 1.18093786 | AU40: 31 | AV40: 0.963303187 | AW40: 15.17166145 | AX40: 4.007635197 | AZ40: 96.3303187 | BA40: 0.2949944927 | BB40: 0.66643788 | BC40: 0.5231607395 | BD40: 0.1431298285 | BE40: 0.08069943558
A41: QgdTop | B41: =Qgd_Q1*1000000000 -> 3.3 | C41: nC | D41: Gate to Drain Charge | G41: 32 | H41: =Vin -> 13.5 | I41: =MODE -> 1 | J41: 6.4 | K41: =Iout*G41/100/Number_of_Phases -> 6.4 | L41: =Vout*K41/(Vin*Efficiency) -> 2.633744856 | M41: =(Vout+(Rdson2+Rs+Rdcr)*K41)/(Vin+(Rs+Rdson2-Rdson1)*K41) -> 0.3734080187 | N41: =(Vin-(Rdson1+Rdcr)*K41-Vout)*M41/(Fsw*Lf) -> 4.787679201 | O41: 8.7938396 | P41: 4.0061604 | Q41: =IF(MIN(Vin, -P41/(Coss_Q1+Coss_Q2)*0.00000002)<0, 0, MIN(Vin, -P41/(Coss_Q1+Coss_Q2)*0.00000002)) -> 0 | R41: 6.547530528 | S41: =R41^2*Rdcr -> 0.09860135882 | T41: =Core_Loss_Ch1 -> 0.2 | U41: =(T41+S41*(1+Ltc*(Ta-25)))/(1-S41*Ltc*ThetaCa) -> 0.3009754862 | V41: 1.382083938 | W41: 0.001910156011 | X41: 0.001910156011 | Y41: 3.167099942 | Z41: 0.01003052204 | AA41: 0.01003052204 | AB41: 4.001007375 | AC41: =Rdson1*AB41^2 -> 0.05762901607 | AD41: =(Vin*K41/2)*Fsw*(Tr_buck+Tf_buck) -> 0.1848039849 | AE41: =(0.5*Coss_Q1*(Vin-Q41)^2-0.5*Coss_Q2*(Vin-Q41)^2+(Qoss_Q2*(Vin-Q41)/Vin)*Vin)*Fsw -> 0.2769525 | AF41: =IF(K41>N41/2,0,ABS(K41-N41/2)*Vsd_Q1*Deadtime2*Fsw) -> 0 | AG41: =(AF41+AE41+AD41+AC41*(1+RdsonTopTc*Ta-RdsonTopTc*25))/(1-AC41*RdsonTopTc*ThetaJA_Q1) -> 0.5228809422 | AH41: =SQRT((1-M41))*SQRT(K41^2+(N41^2)/12) -> 5.182865616 | AI41: =Rdson2*AH41^2 -> 0.06473765134 | AJ41: =IF(K41<N41/2,Deadtime1*Fsw*IF(VfdSky_Q2>0,0,Vsd_Q2)*O41,(Deadtime1+Deadtime2)*Fsw*IF(VfdSky_Q2>0,0,Vsd_Q2)*K41) -> 0.078848 | AK41: =(AJ41+AI41*(1+RdsonBotTc*Ta-RdsonBotTc*25))/(1-AI41*RdsonBotTc*ThetaJA_Q2) -> 0.1446343395 | AL41: =(Deadtime1+Deadtime2)*Fsw*IF(VfdSky_Q2>0,VfdSky_Q2,Vsd_Q2)*K41 -> 0.078848 | AM41: =IF(QrrSky_Q2>0,QrrSky_Q2,Qrr_Q2*K41/(Iout/Number_of_Phases))*Fsw*Vin -> 0.0152064 | AN41: =CHOOSE(SENSING_TYPE, Rs*R41^2, 0) -> 0.08574031202 | AO41: =Iq*Vin -> 0.0004725 | AP41: ='Variable Management'!$B$337 -> 0.0506 | AQ41: 0.1021384787 | AR41: =(Qg_Q1+Qg_Q2)*Fsw*(Vin-Vout) -> 0.08602 | AS41: =SUM(AO41:AP41) -> 0.0510725 | AT41: =SUM(U41,X41,AA41,AG41,AK41,AL41,AM41,AS41,AN41) -> 1.211298658 | AU41: =Vout*K41 -> 32 | AV41: 0.963527513 | AW41: =ThetaJA_Q1*BC41 -> 15.45459782 | AX41: =ThetaJA_Q2*BD41 -> 4.190268643 | AZ41: 96.3527513 | BA41: =U41 -> 0.3009754862 | BB41: =AG41+AK41+AM41 -> 0.6827216818 | BC41: =AG41+AM41*0.66 -> 0.5329171662 | BD41: =AK41+AM41*0.33 -> 0.1496524515 | BE41: =AN41 -> 0.08574031202
A42: QgsTop | B42: =Qgs_Q1*1000000000 -> 3.6 | C42: nC | G42: 33 | H42: 13.5 | I42: 1 | J42: =Iout*G42/100 -> 6.6 | K42: 6.6 | L42: 2.716049383 | M42: 0.3735029077 | N42: 4.788228048 | O42: 8.994114024 | P42: 4.205885976 | Q42: 0 | R42: 6.743188711 | S42: 0.1045823662 | T42: 0.2 | U42: 0.3071521823 | V42: 1.382242376 | W42: 0.001910593987 | X42: 0.001910593987 | Y42: 3.261908971 | Z42: 0.01064005013 | AA42: 0.01064005013 | AB42: 4.121091975 | AC42: 0.06114023664 | AD42: 0.1905791094 | AE42: 0.2769525 | AF42: 0 | AG42: 0.5324481105 | AH42: 5.337339686 | AI42: 0.06865413976 | AJ42: 0.081312 | AK42: 0.1511282044 | AL42: 0.081312 | AM42: 0.0156816 | AN42: 0.09094118797 | AO42: 0.0004725 | AP42: ='Variable Management'!$B$337 -> 0.0506 | AQ42: 0.1021384787 | AR42: 0.08602 | AS42: 0.0510725 | AT42: 1.242286429 | AU42: 33 | AV42: 0.9637206928 | AW42: 15.74114103 | AX42: 4.376487706 | AZ42: 96.37206928 | BA42: 0.3071521823 | BB42: 0.6992579148 | BC42: 0.5427979665 | BD42: 0.1563031324 | BE42: 0.09094118797
A43: RGateTop | B43: =Rgate1 -> 1.3 | C43: W | D43: Gate Resistance | G43: 34 | H43: 13.5 | I43: 1 | J43: 6.8 | K43: 6.8 | L43: 2.798353909 | M43: 0.3735977943 | N43: 4.788776528 | O43: 9.194388264 | P43: 4.405611736 | Q43: 0 | R43: 6.939094445 | S43: 0.110747373 | T43: 0.2 | U43: 0.3135251398 | V43: 1.382400709 | W43: 0.001911031719 | X43: 0.001911031719 | Y43: 3.356847326 | Z43: 0.01126842397 | AA43: 0.01126842397 | AB43: 4.241358184 | AC43: 0.06476082928 | AD43: 0.196354234 | AE43: 0.2769525 | AF43: 0 | AG43: 0.5421402598 | AH43: 5.491986205 | AI43: 0.07269020906 | AJ43: 0.083776 | AK43: 0.1577505038 | AL43: 0.083776 | AM43: 0.0161568 | AN43: 0.09630206344 | AO43: 0.0004725 | AP43: ='Variable Management'!$B$337 -> 0.0506 | AQ43: 0.1021384787 | AR43: 0.08602 | AS43: 0.0510725 | AT43: 1.273902722 | AU43: 34 | AV43: 0.9638854047 | AW43: 16.03130869 | AX43: 4.566302938 | AZ43: 96.38854047 | BA43: 0.3135251398 | BB43: 0.7160475635 | BC43: 0.5528037478 | BD43: 0.1630822478 | BE43: 0.09630206344
A44: GfsTop | B44: =Gfs_Q1 -> 64 | C44: S | D44: Transconductance of Top FET | G44: 35 | H44: 13.5 | I44: 1 | J44: 7 | K44: 7 | L44: 2.880658436 | M44: 0.3736926787 | N44: 4.789324638 | O44: 9.394662319 | P44: 4.605337681 | Q44: 0 | R44: 7.135227341 | S44: 0.1170963792 | T44: 0.2 | U44: 0.3200949358 | V44: 1.382558935 | W44: 0.001911469208 | X44: 0.001911469208 | Y44: 3.451905151 | Z44: 0.01191564917 | AA44: 0.01191564917 | AB44: 4.361793588 | AC44: 0.0684908759 | AD44: 0.2021293585 | AE44: 0.2769525 | AF44: 0 | AG44: 0.5519580085 | AH44: 5.64678899 | AI44: 0.07684580443 | AJ44: 0.08624 | AK44: 0.1645016255 | AL44: 0.08624 | AM44: 0.016632 | AN44: 0.1018229384 | AO44: 0.0004725 | AP44: ='Variable Management'!$B$337 -> 0.0506 | AQ44: 0.1021384787 | AR44: 0.08602 | AS44: 0.0510725 | AT44: 1.306149127 | AU44: 35 | AV44: 0.9640240246 | AW44: 16.32511873 | AX44: 4.759725194 | AZ44: 96.40240246 | BA44: 0.3200949358 | BB44: 0.7330916341 | BC44: 0.5629351285 | BD44: 0.1699901855 | BE44: 0.1018229384
A45: VthTop | B45: =Vth_Q1 -> 3 | C45: V | D45: Threshold Voltage of Top FET | G45: 36 | H45: 13.5 | I45: 1 | J45: 7.2 | K45: 7.2 | L45: 2.962962963 | M45: 0.3737875608 | N45: 4.789872381 | O45: 9.59493619 | P45: 4.80506381 | Q45: 0 | R45: 7.331569167 | S45: 0.1236293848 | T45: 0.2 | U45: 0.3268621663 | V45: 1.382717054 | W45: 0.001911906452 | X45: 0.001911906452 | Y45: 3.547073629 | Z45: 0.01258173133 | AA45: 0.01258173133 | AB45: 4.482387087 | AC45: 0.07233045841 | AD45: 0.207904483 | AE45: 0.2769525 | AF45: 0 | AG45: 0.5619019863 | AH45: 5.801733573 | AI45: 0.08112087101 | AJ45: 0.088704 | AK45: 0.1713819683 | AL45: 0.088704 | AM45: 0.0171072 | AN45: 0.1075038129 | AO45: 0.0004725 | AP45: ='Variable Management'!$B$337 -> 0.0506 | AQ45: 0.1021384787 | AR45: 0.08602 | AS45: 0.0510725 | AT45: 1.339027272 | AU45: 36 | AV45: 0.9641386675 | AW45: 16.62258941 | AX45: 4.956765641 | AZ45: 96.41386675 | BA45: 0.3268621663 | BB45: 0.7503911546 | BC45: 0.5731927383 | BD45: 0.1770273443 | BE45: 0.1075038129
A46: VspTop | B46: =Vsp_Q1 -> 3.3125 | C46: V | G46: 37 | H46: 13.5 | I46: 1 | J46: 7.4 | K46: 7.4 | L46: 3.04526749 | M46: 0.3738824406 | N46: 4.790419755 | O46: 9.795209877 | P46: 5.004790123 | Q46: 0 | R46: 7.528103576 | S46: 0.1303463899 | T46: 0.2 | U46: 0.3338274461 | V46: 1.382875067 | W46: 0.001912343452 | X46: 0.001912343452 | Y46: 3.642344855 | Z46: 0.01326667604 | AA46: 0.01326667604 | AB46: 4.603128728 | AC46: 0.07627965871 | AD46: 0.2136796075 | AE46: 0.2769525 | AF46: 0 | AG46: 0.5719728338 | AH46: 5.956806977 | AI46: 0.08551535397 | AJ46: 0.091168 | AK46: 0.178391942 | AL46: 0.091168 | AM46: 0.0175824 | AN46: 0.1133446869 | AO46: 0.0004725 | AP46: ='Variable Management'!$B$337 -> 0.0506 | AQ46: 0.1021384787 | AR46: 0.08602 | AS46: 0.0510725 | AT46: 1.372538828 | AU46: 37 | AV46: 0.9642312219 | AW46: 16.92373932 | AX46: 5.157435751 | AZ46: 96.42312219 | BA46: 0.3338274461 | BB46: 0.7679471758 | BC46: 0.5835772178 | BD46: 0.184194134 | BE46: 0.1133446869
A47: VsdTop | B47: =Vsd_Q1 -> 0.7 | C47: V | G47: 38 | H47: 13.5 | I47: 1 | J47: 7.6 | K47: 7.6 | L47: 3.127572016 | M47: 0.3739773182 | N47: 4.79096676 | O47: 9.99548338 | P47: 5.20451662 | Q47: 0 | R47: 7.724815869 | S47: 0.1372473945 | T47: 0.2 | U47: 0.3409914091 | V47: 1.383032974 | W47: 0.001912780208 | X47: 0.001912780208 | Y47: 3.737711718 | Z47: 0.01397048888 | AA47: 0.01397048888 | AB47: 4.724009559 | AC47: 0.08033855872 | AD47: 0.2194547321 | AE47: 0.2769525 | AF47: 0 | AG47: 0.5821712031 | AH47: 6.111997537 | AI47: 0.09002919849 | AJ47: 0.093632 | AK47: 0.1855319675 | AL47: 0.093632 | AM47: 0.0180576 | AN47: 0.1193455604 | AO47: 0.0004725 | AP47: ='Variable Management'!$B$337 -> 0.0506 | AQ47: 0.1021384787 | AR47: 0.08602 | AS47: 0.0510725 | AT47: 1.406685509 | AU47: 38 | AV47: 0.9643033792 | AW47: 17.22858735 | AX47: 5.361747313 | AZ47: 96.43033792 | BA47: 0.3409914091 | BB47: 0.7857607705 | BC47: 0.5940892191 | BD47: 0.1914909755 | BE47: 0.1193455604
A48: θJATop | B48: =ThetaJA_Q1 -> 29 | C48: °C/W | D48: Junction to Ambient Resistance | G48: 39 | H48: 13.5 | I48: 1 | J48: 7.8 | K48: 7.8 | L48: 3.209876543 | M48: 0.3740721935 | N48: 4.791513397 | O48: 10.1957567 | P48: 5.404243301 | Q48: 0 | R48: 7.921692794 | S48: 0.1443323985 | T48: 0.2 | U48: 0.3483547081 | V48: 1.383190775 | W48: 0.00191321672 | X48: 0.00191321672 | Y48: 3.833167807 | Z48: 0.01469317544 | AA48: 0.01469317544 | AB48: 4.845021509 | AC48: 0.08450724033 | AD48: 0.2252298566 | AE48: 0.2769525 | AF48: 0 | AG48: 0.5924977576 | AH48: 6.267294735 | AI48: 0.09466234974 | AJ48: 0.096096 | AK48: 0.1928024769 | AL48: 0.096096 | AM48: 0.0185328 | AN48: 0.1255064334 | AO48: 0.0004725 | AP48: ='Variable Management'!$B$337 -> 0.0506 | AQ48: 0.1021384787 | AR48: 0.08602 | AS48: 0.0510725 | AT48: 1.441469068 | AU48: 39 | AV48: 0.9643566591 | AW48: 17.53715276 | AX48: 5.569712426 | AZ48: 96.43566591 | BA48: 0.3483547081 | BB48: 0.8038330345 | BC48: 0.6047294056 | BD48: 0.1989183009 | BE48: 0.1255064334
A49: Low-side FET | B49: Input Value | C49: Units | D49: Description | G49: 40 | H49: 13.5 | I49: 1 | J49: 8 | K49: 8 | L49: 3.29218107 | M49: 0.3741670665 | N49: 4.792059666 | O49: 10.39602983 | P49: 5.603970167 | Q49: 0 | R49: 8.118722374 | S49: 0.1516014019 | T49: 0.2 | U49: 0.3559180155 | V49: 1.383348469 | W49: 0.001913652987 | X49: 0.001913652987 | Y49: 3.928707328 | Z49: 0.01543474127 | AA49: 0.01543474127 | AB49: 4.966157285 | AC49: 0.08878578544 | AD49: 0.2310049811 | AE49: 0.2769525 | AF49: 0 | AG49: 0.6029531724 | AH49: 6.422689064 | AI49: 0.09941475289 | AJ49: 0.09856 | AK49: 0.2002039138 | AL49: 0.09856 | AM49: 0.019008 | AN49: 0.131827306 | AO49: 0.0004725 | AP49: ='Variable Management'!$B$337 -> 0.0506 | AQ49: 0.1021384787 | AR49: 0.08602 | AS49: 0.0510725 | AT49: 1.476891302 | AU49: 40 | AV49: 0.9643924302 | AW49: 17.84945512 | AX49: 5.781343507 | AZ49: 96.43924302 | BA49: 0.3559180155 | BB49: 0.8221650862 | BC49: 0.6154984524 | BD49: 0.2064765538 | BE49: 0.131827306
A50: RdsonBot | B50: =Rdson2*1000 -> 2.41 | C50: mW | D50: Drain-Source Resistance of Low-side FET | G50: 41 | H50: 13.5 | I50: 1 | J50: 8.2 | K50: 8.2 | L50: 3.374485597 | M50: 0.3742619372 | N50: 4.792605566 | O50: 10.59630278 | P50: 5.803697217 | Q50: 0 | R50: 8.315893759 | S50: 0.1590544047 | T50: 0.2 | U50: 0.3636820229 | V50: 1.383506057 | W50: 0.001914089009 | X50: 0.001914089009 | Y50: 4.024325027 | Z50: 0.01619519193 | AA50: 0.01619519193 | AB50: 5.087410276 | AC50: 0.09317427594 | AD50: 0.2367801057 | AE50: 0.2769525 | AF50: 0 | AG50: 0.6135381343 | AH50: 6.578171911 | AI50: 0.1042863531 | AJ50: 0.101024 | AK50: 0.207736733 | AL50: 0.101024 | AM50: 0.0194832 | AN50: 0.138308178 | AO50: 0.0004725 | AP50: ='Variable Management'!$B$337 -> 0.0506 | AQ50: 0.1021384787 | AR50: 0.08602 | AS50: 0.0510725 | AT50: 1.512954049 | AU50: 41 | AV50: 0.9644119285 | AW50: 18.16551434 | AX50: 5.996653293 | AZ50: 96.44119285 | BA50: 0.3636820229 | BB50: 0.8407580673 | BC50: 0.6263970463 | BD50: 0.214166189 | BE50: 0.138308178
A51: RdsonBotTc | B51: =RdsonBotTc*1000000 -> 4000 | C51: ppm | D51: Drain To Source Resitance Temp Co | G51: 42 | H51: 13.5 | I51: 1 | J51: 8.4 | K51: 8.4 | L51: 3.456790123 | M51: 0.3743568057 | N51: 4.793151098 | O51: 10.79657555 | P51: 6.003424451 | Q51: 0 | R51: 8.513197096 | S51: 0.166691407 | T51: 0.2 | U51: 0.3716474418 | V51: 1.383663538 | W51: 0.001914524787 | X51: 0.001914524787 | Y51: 4.120016136 | Z51: 0.01697453296 | AA51: 0.01697453296 | AB51: 5.208774481 | AC51: 0.09767279373 | AD51: 0.2425552302 | AE51: 0.2769525 | AF51: 0 | AG51: 0.6242533418 | AH51: 6.733735456 | AI51: 0.1092770956 | AJ51: 0.103488 | AK51: 0.2154014008 | AL51: 0.103488 | AM51: 0.0199584 | AN51: 0.1449490496 | AO51: 0.0004725 | AP51: ='Variable Management'!$B$337 -> 0.0506 | AQ51: 0.1021384787 | AR51: 0.08602 | AS51: 0.0510725 | AT51: 1.549659192 | AU51: 42 | AV51: 0.9644162728 | AW51: 18.48535069 | AX51: 6.215654839 | AZ51: 96.44162728 | BA51: 0.3716474418 | BB51: 0.8596131426 | BC51: 0.6374258858 | BD51: 0.2219876728 | BE51: 0.1449490496
A52: QgBot | B52: =Qg_Q2*1000000000 -> 14 | C52: nC | D52: Gate Charge Of Top FET | G52: 43 | H52: 13.5 | I52: 1 | J52: 8.6 | K52: 8.6 | L52: 3.53909465 | M52: 0.3744516718 | N52: 4.793696262 | O52: 10.99684813 | P52: 6.203151869 | Q52: 0 | R52: 8.710623417 | S52: 0.1745124087 | T52: 0.2 | U52: 0.3798150032 | V52: 1.383820914 | W52: 0.001914960321 | X52: 0.001914960321 | Y52: 4.215776313 | Z52: 0.01777276992 | AA52: 0.01777276992 | AB52: 5.330244435 | AC52: 0.1022814207 | AD52: 0.2483303547 | AE52: 0.2769525 | AF52: 0 | AG52: 0.6350995054 | AH52: 6.889372582 | AI52: 0.1143869255 | AJ52: 0.105952 | AK52: 0.2231983951 | AL52: 0.105952 | AM52: 0.0204336 | AN52: 0.1517499206 | AO52: 0.0004725 | AP52: ='Variable Management'!$B$337 -> 0.0506 | AQ52: 0.1021384787 | AR52: 0.08602 | AS52: 0.0510725 | AT52: 1.587008655 | AU52: 43 | AV52: 0.9644064784 | AW52: 18.80898476 | AX52: 6.438361527 | AZ52: 96.44064784 | BA52: 0.3798150032 | BB52: 0.8787315005 | BC52: 0.6485856814 | BD52: 0.2299414831 | BE52: 0.1517499206
A53: RGateBot | B53: =Rgate2 -> 2.1 | C53: W | D53: Gate Resistance | G53: 44 | H53: 13.5 | I53: 1 | J53: 8.8 | K53: 8.8 | L53: 3.621399177 | M53: 0.3745465357 | N53: 4.794241057 | O53: 11.19712053 | P53: 6.402879472 | Q53: 0 | R53: 8.908164548 | S53: 0.1825174099 | T53: 0.2 | U53: 0.3881854583 | V53: 1.383978182 | W53: 0.001915395609 | X53: 0.001915395609 | Y53: 4.311601596 | Z53: 0.01858990832 | AA53: 0.01858990832 | AB53: 5.451815158 | AC53: 0.1070002387 | AD53: 0.2541054792 | AE53: 0.2769525 | AF53: 0 | AG53: 0.6460773478 | AH53: 7.045076798 | AI53: 0.1196157881 | AJ53: 0.108416 | AK53: 0.2311282053 | AL53: 0.108416 | AM53: 0.0209088 | AN53: 0.1587107912 | AO53: 0.0004725 | AP53: ='Variable Management'!$B$337 -> 0.0506 | AQ53: 0.1021384787 | AR53: 0.08602 | AS53: 0.0510725 | AT53: 1.625004407 | AU53: 44 | AV53: 0.9643834685 | AW53: 19.13643752 | AX53: 6.664787061 | AZ53: 96.43834685 | BA53: 0.3881854583 | BB53: 0.8981143532 | BC53: 0.6598771558 | BD53: 0.2380281093 | BE53: 0.1587107912
A54: VsdBot | B54: =Vsd_Q2 -> 0.7 | C54: V | D54: Diode Forward Voltage of Bottom FET Body Diode | G54: 45 | H54: 13.5 | I54: 1 | J54: 9 | K54: 9 | L54: 3.703703704 | M54: 0.3746413973 | N54: 4.794785484 | O54: 11.39739274 | P54: 6.602607258 | Q54: 0 | R54: 9.105813014 | S54: 0.1907064105 | T54: 0.2 | U54: 0.3967595781 | V54: 1.384135345 | W54: 0.001915830653 | X54: 0.001915830653 | Y54: 4.407488365 | Z54: 0.01942595369 | AA54: 0.01942595369 | AB54: 5.573482095 | AC54: 0.1118293296 | AD54: 0.2598806038 | AE54: 0.2769525 | AF54: 0 | AG54: 0.6571876038 | AH54: 7.200842173 | AI54: 0.1249636285 | AJ54: 0.11088 | AK54: 0.2391913328 | AL54: 0.11088 | AM54: 0.021384 | AN54: 0.1658316613 | AO54: 0.0004725 | AP54: ='Variable Management'!$B$337 -> 0.0506 | AQ54: 0.1021384787 | AR54: 0.08602 | AS54: 0.0510725 | AT54: 1.66364846 | AU54: 45 | AV54: 0.9643480843 | AW54: 19.46773027 | AX54: 6.894945477 | AZ54: 96.43480843 | BA54: 0.3967595781 | BB54: 0.9177629366 | BC54: 0.6713010438 | BD54: 0.2462480528 | BE54: 0.1658316613
A55: QrrBot | B55: =Qrr_Q2*1000000000 -> 8 | C55: nC | D55: Reverse Recovery Charge of Body Diode | G55: 46 | H55: 13.5 | I55: 1 | J55: 9.2 | K55: 9.2 | L55: 3.78600823 | M55: 0.3747362567 | N55: 4.795329542 | O55: 11.59766477 | P55: 6.802335229 | Q55: 0 | R55: 9.303561977 | S55: 0.1990794105 | T55: 0.2 | U55: 0.4055381543 | V55: 1.384292401 | W55: 0.001916265452 | X55: 0.001916265452 | Y55: 4.503433305 | Z55: 0.02028091154 | AA55: 0.02028091154 | AB55: 5.695241076 | AC55: 0.1167687753 | AD55: 0.2656557283 | AE55: 0.2769525 | AF55: 0 | AG55: 0.6684310207 | AH55: 7.356663275 | AI55: 0.1304303918 | AJ55: 0.113344 | AK55: 0.2473882904 | AL55: 0.113344 | AM55: 0.0218592 | AN55: 0.1731125309 | AO55: 0.0004725 | AP55: ='Variable Management'!$B$337 -> 0.0506 | AQ55: 0.1021384787 | AR55: 0.08602 | AS55: 0.0510725 | AT55: 1.702942873 | AU55: 46 | AV55: 0.964301094 | AW55: 19.80288469 | AX55: 7.12885114 | AZ55: 96.4301094 | BA55: 0.4055381543 | BB55: 0.9376785111 | BC55: 0.6828580927 | BD55: 0.2546018264 | BE55: 0.1731125309
A56: TrrBot | B56: =Trr_Q2*1000000000 -> 40 | C56: ns | D56: Reverse Recovery Time of Body Diode | G56: 47 | H56: 13.5 | I56: 1 | J56: 9.4 | K56: 9.4 | L56: 3.868312757 | M56: 0.3748311138 | N56: 4.795873233 | O56: 11.79793662 | P56: 7.002063384 | Q56: 0 | R56: 9.50140516 | S56: 0.20763641 | T56: 0.2 | U56: 0.4145219988 | V56: 1.384449351 | W56: 0.001916700005 | X56: 0.001916700005 | Y56: 4.599433374 | Z56: 0.02115478737 | AA56: 0.02115478737 | AB56: 5.817088276 | AC56: 0.1218186576 | AD56: 0.2714308528 | AE56: 0.2769525 | AF56: 0 | AG56: 0.6798083581 | AH56: 7.512535124 | AI56: 0.1360160234 | AJ56: 0.115808 | AK56: 0.2557196033 | AL56: 0.115808 | AM56: 0.0223344 | AN56: 0.1805534 | AO56: 0.0004725 | AP56: ='Variable Management'!$B$337 -> 0.0506 | AQ56: 0.1021384787 | AR56: 0.08602 | AS56: 0.0510725 | AT56: 1.742889748 | AU56: 47 | AV56: 0.9642432003 | AW56: 20.1419228 | AX56: 7.36651875 | AZ56: 96.42432003 | BA56: 0.4145219988 | BB56: 0.9578623614 | BC56: 0.6945490621 | BD56: 0.2630899553 | BE56: 0.1805534
A57: θJABot | B57: =ThetaJA_Q2 -> 28 | C57: °C/W | D57: Junction to Ambient Resistance | G57: 48 | H57: 13.5 | I57: 1 | J57: 9.6 | K57: 9.6 | L57: 3.950617284 | M57: 0.3749259686 | N57: 4.796416554 | O57: 11.99820828 | P57: 7.201791723 | Q57: 0 | R57: 9.699336798 | S57: 0.2163774089 | T57: 0.2 | U57: 0.4237119443 | V57: 1.384606194 | W57: 0.001917134314 | X57: 0.001917134314 | Y57: 4.695485776 | Z57: 0.02204758667 | AA57: 0.02204758667 | AB57: 5.93902018 | AC57: 0.1269790585 | AD57: 0.2772059774 | AE57: 0.2769525 | AF57: 0 | AG57: 0.6913203885 | AH57: 7.668453143 | AI57: 0.1417204684 | AJ57: 0.118272 | AK57: 0.2641858085 | AL57: 0.118272 | AM57: 0.0228096 | AN57: 0.1881542686 | AO57: 0.0004725 | AP57: ='Variable Management'!$B$337 -> 0.0506 | AQ57: 0.1021384787 | AR57: 0.08602 | AS57: 0.0510725 | AT57: 1.783491231 | AU57: 48 | AV57: 0.9641750471 | AW57: 20.48486701 | AX57: 7.607963342 | AZ57: 96.41750471 | BA57: 0.4237119443 | BB57: 0.978315797 | BC57: 0.7063747245 | BD57: 0.2717129765 | BE57: 0.1881542686
A58: Bottom Schottky | B58: Input Value | C58: Units | D58: Std Units | G58: 49 | H58: 13.5 | I58: 1 | J58: 9.8 | K58: 9.8 | L58: 4.032921811 | M58: 0.3750208211 | N58: 4.796959508 | O58: 12.19847975 | P58: 7.401520246 | Q58: 0 | R58: 9.897351584 | S58: 0.2253024073 | T58: 0.2 | U58: 0.4331088445 | V58: 1.384762932 | W58: 0.001917568377 | X58: 0.001917568377 | Y58: 4.791587935 | Z58: 0.02295931494 | AA58: 0.02295931494 | AB58: 6.061033553 | AC58: 0.1322500598 | AD58: 0.2829811019 | AE58: 0.2769525 | AF58: 0 | AG58: 0.7029678971 | AH58: 7.824413119 | AI58: 0.147543672 | AJ58: 0.120736 | AK58: 0.272787455 | AL58: 0.120736 | AM58: 0.0232848 | AN58: 0.1959151368 | AO58: 0.0004725 | AP58: ='Variable Management'!$B$337 -> 0.0506 | AQ58: 0.1021384787 | AR58: 0.08602 | AS58: 0.0510725 | AT58: 1.824749517 | AU58: 49 | AV58: 0.9640972256 | AW58: 20.83174009 | AX58: 7.853200292 | AZ58: 96.40972256 | BA58: 0.4331088445 | BB58: 0.9990401521 | BC58: 0.7183358651 | BD58: 0.280471439 | BE58: 0.1959151368
A59: VfdSky | B59: =VfdSky_Q2 -> 0 | C59: V | D59: Diode Forward Voltage | G59: 50 | H59: 13.5 | I59: 1 | J59: 10 | K59: 10 | L59: 4.115226337 | M59: 0.3751156713 | N59: 4.797502094 | O59: 12.39875105 | P59: 7.601248953 | Q59: 0 | R59: 10.09544463 | S59: 0.234411405 | T59: 0.2 | U59: 0.4427135739 | V59: 1.384919563 | W59: 0.001918002195 | X59: 0.001918002195 | Y59: 4.887737477 | Z59: 0.02388997765 | AA59: 0.02388997765 | AB59: 6.183125408 | AC59: 0.1376317433 | AD59: 0.2887562264 | AE59: 0.2769525 | AF59: 0 | AG59: 0.7147516821 | AH59: 7.980411166 | AI59: 0.1534855793 | AJ59: 0.1232 | AK59: 0.2815251042 | AL59: 0.1232 | AM59: 0.02376 | AN59: 0.2038360044 | AO59: 0.0004725 | AP59: ='Variable Management'!$B$337 -> 0.0506 | AQ59: 0.1021384787 | AR59: 0.08602 | AS59: 0.0510725 | AT59: 1.866666844 | AU59: 50 | AV59: 0.9640102795 | AW59: 21.18256518 | AX59: 8.102245319 | AZ59: 96.40102795 | BA59: 0.4427135739 | BB59: 1.020036786 | BC59: 0.7304332821 | BD59: 0.2893659042 | BE59: 0.2038360044
A60: QrrSky | B60: =QrrSky_Q2*1000000000 -> 0 | C60: nC | D60: Diode Reverse Recovery Charge | G60: 51 | H60: 13.5 | I60: 1 | J60: 10.2 | K60: 10.2 | L60: 4.197530864 | M60: 0.3752105193 | N60: 4.798044311 | O60: 12.59902216 | P60: 7.800977845 | Q60: 0 | R60: 10.29361141 | S60: 0.2437044023 | T60: 0.2 | U60: 0.4525270286 | V60: 1.385076087 | W60: 0.001918435767 | X60: 0.001918435767 | Y60: 4.983932209 | Z60: 0.02483958026 | AA60: 0.02483958026 | AB60: 6.305292992 | AC60: 0.143124191 | AD60: 0.2945313509 | AE60: 0.2769525 | AF60: 0 | AG60: 0.7266725548 | AH60: 8.136443698 | AI60: 0.1595461357 | AJ60: 0.125664 | AK60: 0.2903993299 | AL60: 0.125664 | AM60: 0.0242352 | AN60: 0.2119168715 | AO60: 0.0004725 | AP60: ='Variable Management'!$B$337 -> 0.0506 | AQ60: 0.1021384787 | AR60: 0.08602 | AS60: 0.0510725 | AT60: 1.909245501 | AU60: 51 | AV60: 0.9639147094 | AW60: 21.53736582 | AX60: 8.355114485 | AZ60: 96.39147094 | BA60: 0.4525270286 | BB60: 1.041307085 | BC60: 0.7426677868 | BD60: 0.2983969459 | BE60: 0.2119168715
A61: Ireverse | B61: =Ireverse -> 0 | C61: mA | D61: Reverse Leakage Current | G61: 52 | H61: 13.5 | I61: 1 | J61: 10.4 | K61: 10.4 | L61: 4.279835391 | M61: 0.375305365 | N61: 4.79858616 | O61: 12.79929308 | P61: 8.00070692 | Q61: 0 | R61: 10.49184774 | S61: 0.2531813989 | T61: 0.2 | U61: 0.462550126 | V61: 1.385232506 | W61: 0.001918869094 | X61: 0.001918869094 | Y61: 5.080170099 | Z61: 0.02580812824 | AA61: 0.02580812824 | AB61: 6.427533753 | AC61: 0.1487274845 | AD61: 0.3003064755 | AE61: 0.2769525 | AF61: 0 | AG61: 0.7387313398 | AH61: 8.292507398 | AI61: 0.1657252863 | AJ61: 0.128128 | AK61: 0.2994107181 | AL61: 0.128128 | AM61: 0.0247104 | AN61: 0.2201577382 | AO61: 0.0004725 | AP61: ='Variable Management'!$B$337 -> 0.0506 | AQ61: 0.1021384787 | AR61: 0.08602 | AS61: 0.0510725 | AT61: 1.952487819 | AU61: 52 | AV61: 0.9638109771 | AW61: 21.89616591 | AX61: 8.611824202 | AZ61: 96.38109771 | BA61: 0.462550126 | BB61: 1.062852458 | BC61: 0.7550402038 | BD61: 0.3075651501 | BE61: 0.2201577382
